Workbook

Sheet BazaDate
Z2: =SUBSTITUTE(Z3,"htm","html") -> http://www.goaloo1.com/analysis/2108606.html
Z3: ="http://www.goaloo1.com/analysis/"&VLOOKUP(D4,Foglio1!G:H,2,FALSE) -> http://www.goaloo1.com/analysis/2108606.htm
B4: 282 | D4: =INDEX(Foglio1!G2:G4411,B4) -> INT CF /// Club America(N) - Pumas U.N.A.M.

Sheet Predictie
F1: =LEFT(Foglio1!K2,SEARCH("/",Foglio1!K2)-1) -> INT CF
E2: =Poisson!C3 -> Club America | I2: =Poisson!L3 -> Pumas U.N.A.M.
G3: =Date!C83*Date!D29/93 -> 2.157845694 | J3: =Date!C83*Date!D30/93 -> 0.2708320885
Q5: =LARGE(G19:G27,1) -> 
M6: =TAB!J25 -> 2 : 0 | O6: =TAB!J26 -> 1 : 0 | Q6: =Date!C7&" : "&Date!C13 -> 2 : 0
C7: 1°T/2°T
C8: 1/1 | D8: 1/2 | E8: 1/X | F8: X/1 | G8: X/X | H8: 2/X | I8: X/2 | J8: 2/1 | K8: 2/2 | M8: 1 | N8: X | O8: 2 | Q8: 1X | R8: X2
C9: =Now!B52/SUM(Now!C52:J52) -> 0.3928571429 | D9: =Now!C52/SUM(Now!B52,Now!D52:J52) -> 0.05405405405 | E9: =Now!D52/SUM(Now!B52:C52,Now!E52:J52) -> 0.08333333333 | F9: =Now!E52/SUM(Now!B52:D52,Now!F52:J52) -> 0.21875 | G9: =Now!F52/SUM(Now!B52:E52,Now!G52:J52) -> 0.3928571429 | H9: =Now!G52/SUM(Now!B52:F52,Now!H52:J52) -> 0 | I9: =Now!H52/SUM(Now!B52:G52,Now!I52:J52) -> 0.05405405405 | J9: =Now!I52/SUM(Now!B52:H52,Now!J52) -> 0.02631578947 | K9: =Now!J52/SUM(Now!B52:I52) -> 0.05405405405 | M9: =SUM(C9,E9:F9) -> 0.6949404762 | N9: =SUM(G9) -> 0.3928571429 | O9: =SUM(H9:I9,K9) -> 0.1081081081 | Q9: =SUM(C9,E9:G9) -> 1.087797619 | R9: =SUM(G9:I9,K9) -> 0.500965251
C11: Parziale/Finale
C12: 1/1 | D12: 1/2 | E12: 1/X | F12: X/1 | G12: X/X | H12: 2/X | I12: X/2 | J12: 2/1 | K12: 2/2 | M12: 1 | N12: X | O12: 2 | Q12: 1X | R12: X2
C13: =Now!B56/SUM(Now!C56:J56) -> 0.56 | D13: =Now!C56/SUM(Now!B56,Now!D56:J56) -> 0.02631578947 | E13: =Now!D56/SUM(Now!B56:C56,Now!E56:J56) -> 0.02631578947 | F13: =Now!E56/SUM(Now!B56:D56,Now!F56:J56) -> 0.21875 | G13: =Now!F56/SUM(Now!B56:E56,Now!G56:J56) -> 0.3928571429 | H13: =Now!G56/SUM(Now!B56:F56,Now!H56:J56) -> 0.02631578947 | I13: =Now!H56/SUM(Now!B56:G56,Now!I56:J56) -> 0.05405405405 | J13: =Now!I56/SUM(Now!B56:H56,Now!J56) -> 0 | K13: =Now!J56/SUM(Now!B56:I56) -> 0.05405405405 | M13: =SUM(C13,E13:F13) -> 0.8050657895 | N13: =SUM(G13) -> 0.3928571429 | O13: =SUM(H13:I13,K13) -> 0.1344238976 | Q13: =SUM(C13,E13:G13) -> 1.197922932 | R13: =SUM(G13:I13,K13) -> 0.5272810404
C16: =IF(AND(G17=H17,E18<63%,K18<63%),"OV 1.5",IF(AND(E18>75%,K18>75%),"UN 3.5","NoBet")) -> NoBet | D16: Over | E16: Under | G16: PR 1 | H16: PR 2 | J16: Over | K16: Under | M16: 1 | N16: X | O16: 2 | Q16: 1X | R16: X2
C17: 1.5 | D17: =1-E17 -> 0.7146737548 | E17: =TAB!F20/100 -> 0.2853262452 | F17: ÜST | G17: =IF(games!H21>games!I21,"Un 1,5",IF(games!H21<games!I21,"Ov 1,5")) -> Ov 1,5 | H17: =IF(games!L21>games!M21,"Un 1,5",IF(games!L21<games!M21,"Ov 1,5")) -> Ov 1,5 | J17: =1-K17 -> 0.5939941503 | K17: =SUM(Generale!I3,Generale!I5,Generale!I7) -> 0.4060058497 | M17: =Generale!I32 -> 0.5746950764 | N17: =Generale!J32 -> 0.2725154809 | O17: =Generale!K32 -> 0.1527894428 | Q17: =Generale!I35 -> 0.8472105572 | R17: =Generale!J35 -> 0.4253049236
C18: 2.5 | D18: =1-E18 -> 0.4586556896 | E18: =TAB!F21/100 -> 0.5413443104 | F18: ÜST | G18: =IF(games!H22>games!I22,"Un 2,5",IF(games!H22<games!I22,"Ov 2,5")) -> Un 2,5 | H18: =IF(games!L22>games!M22,"Un 2,5",IF(games!L22<games!M22,"Ov 2,5")) -> Un 2,5 | J18: =1-K18 -> 0.3233235838 | K18: =SUM(Generale!I3,Generale!I5:J5,Generale!I7:J7,Generale!I9) -> 0.6766764162
C19: 3.5 | D19: =1-E19 -> 0.2444851674 | E19: =TAB!F22/100 -> 0.7555148326 | F19: DiKKAT | G19: =IF(games!H23>games!I23,"Un 3,5",IF(games!H23<games!I23,"Ov 3,5")) -> Un 3,5 | H19: =IF(games!L23>games!M23,"Un 3,5",IF(games!L23<games!M23,"Ov 3,5")) -> Un 3,5 | J19: =1-K19 -> 0.1428765395 | K19: =SUM(Generale!I3,Generale!I5:K5,Generale!I7:K7,Generale!I9:J9,Generale!I11) -> 0.8571234605 | Q19: KG VAR | R19: KG YOK

Sheet Generale (hidden)
A2: =Evolution!C41 -> Club America | B2: PARTITE SQ CASA | C2: =Evolution!D44 -> 6 | D2: FORMA | E2: PARTITE SQ CASA | F2: =Evolution!D46 -> 6 | H2: RISULTATI ESATTI | I2: 0 – 0
A3: EV | B3: GOL FATTI SQ CASA | C3: =Evolution!H44 -> 10 | D3: =Evolution!C41 -> Club America | E3: GOL FATTI | F3: =Evolution!H46 -> 7 | I3: =C57*$C$71 -> 0.1353352832 | T3: EVOLUTIE
B4: GOL SUBITI SQ CASA | C4: =Evolution!I44 -> 1 | D4: EV | E4: GOL SUBITI | F4: =Evolution!I46 -> 5 | G4: =(D6+A6)/2 -> 1.416666667 | I4: 0 – 1 | J4: 0 – 2 | K4: 0 – 3 | L4: 0 – 4 | M4: 0 – 5 | N4: 0 – 6 | O4: 0 – 7 | P4: 0 – 8 | Q4: 0 – 9 | R4: 0 – 10 | T4: =Evolution!O51 -> 0.4 | U4: =Evolution!O52 -> 0.6 | V4: =Evolution!O53 -> 0
B5: MGF | C5: =C3/C2 -> 1.666666667 | E5: MGF | F5: =F3/F2 -> 1.166666667 | I5: =$C57*C72 -> 0.07894558189 | J5: =$C57*C73 -> 0.02302579472 | K5: =$C57*C74 -> 0.004477237862 | L5: =$C57*C75 -> 0.0006529305215 | M5: =$C57*C76 -> 7.617522751e-05 | N5: =$C57*C77 -> 7.405924897e-06 | O5: =$C57*C78 -> 6.171604081e-07 | P5: =$C57*C79 -> 4.500127975e-08 | Q5: =$C57*C80 -> 2.916749614e-09 | R5: =$C57*C81 -> 1.701437275e-10 | T5: =Evolution!R63 -> 0.525 | U5: =Evolution!T63 -> 0.35 | V5: =Evolution!V63 -> 0.125
A6: =(C5+C12)/2 -> 1.75 | B6: MGS | C6: =C4/C2 -> 0.1666666667 | D6: =(F5+F12)/2 -> 1.083333333 | E6: MGS | F6: =F4/F2 -> 0.8333333333 | I6: 1 – 0 | J6: 2 – 0 | K6: 3 – 0 | L6: 4 – 0 | M6: 5 – 0 | N6: 6 – 0 | O6: 7 – 0 | P6: 8 – 0 | Q6: 9 – 0 | R6: 10 – 0 | T6: =Evolution!R66 -> 0.4833333333 | U6: =Evolution!T66 -> 0.4333333333 | V6: =Evolution!V66 -> 0.08333333333
I7: =C58*$C$71 -> 0.1917249846 | J7: =C59*$C$71 -> 0.1358051974 | K7: =C60*$C$71 -> 0.06413023211 | L7: =C61*$C$71 -> 0.02271279054 | M7: =C62*$C$71 -> 0.006435290653 | N7: =C63*$C$71 -> 0.001519443626 | O7: =C64*$C$71 -> 0.0003075064482 | P7: =C65*$C$71 -> 5.445426687e-05 | Q7: =C66*$C$71 -> 8.57150497e-06 | R7: =C67*$C$71 -> 1.214296537e-06 | T7: POISSON
A8: =Evolution!L41 -> Pumas U.N.A.M. | B8: PARTITE SQ TRASF | C8: =Evolution!M45 -> 6 | D8: FORMA | E8: PARTITE SQ TRASF | F8: =Evolution!M46 -> 6 | I8: 1 – 1 | J8: 2 – 1 | K8: 3 – 1 | L8: 4 – 1 | M8: 5 – 1 | N8: 6 – 1 | O8: 7 – 1 | P8: 8 – 1 | Q8: 9 – 1 | R8: 10 – 1 | T8: ='Predictie POISSON'!K4 -> 0.5071960158 | U8: ='Predictie POISSON'!L4 -> 0.3075300306 | V8: ='Predictie POISSON'!M4 -> 0.1852690785
A9: DEPLASMAN | B9: GOL FATTI SQ TRASF | C9: =Evolution!Q45 -> 3 | D9: =Evolution!L41 -> Pumas U.N.A.M. | E9: GOL FATTI | F9: =Evolution!Q46 -> 5 | I9: =C58*$C72 -> 0.1118395743 | J9: =C59*$C72 -> 0.07921969849 | K9: =C60*$C72 -> 0.03740930207 | L9: =C61*$C72 -> 0.01324912781 | M9: =C62*$C72 -> 0.003753919548 | N9: =C63*$C72 -> 0.0008863421154 | O9: =C64*$C72 -> 0.0001793787614 | P9: =C65*$C72 -> 3.176498901e-05 | Q9: =C66*$C72 -> 5.000044566e-06 | R9: =C67*$C72 -> 7.083396468e-07 | T9: OVER 2,5
B10: GOL SUBITI SQ TRASF | C10: =Evolution!R45 -> 11 | D10: DEPLASMAN | E10: GOL SUBITI | F10: =Evolution!R46 -> 6 | G10: =(D12+A12)/2 -> 0.5833333333 | I10: 1 – 2 | J10: 2 – 2 | K10: 3 – 2 | L10: 4 – 2 | M10: 5 – 2 | N10: 6 – 2 | O10: 7 – 2 | P10: 8 – 2 | Q10: 9 – 2 | R10: 10 – 2 | U10: ='Predictie POISSON'!L23 -> 26.93789141
B11: MGF | C11: =C9/C8 -> 0.5 | E11: MGF | F11: =F9/F8 -> 0.8333333333 | I11: =C58*$C73 -> 0.03261987585 | J11: =C59*$C73 -> 0.02310574539 | K11: =C60*$C73 -> 0.01091104644 | L11: =C61*$C73 -> 0.003864328946 | M11: =C62*$C73 -> 0.001094893201 | N11: =C63*$C73 -> 0.0002585164503 | O11: =C64*$C73 -> 5.231880542e-05 | P11: =C65*$C73 -> 9.26478846e-06 | Q11: =C66*$C73 -> 1.458346332e-06 | R11: =C67*$C73 -> 2.065990637e-07
A12: =(C6+C11)/2 -> 0.3333333333 | B12: MGS | C12: =C10/C8 -> 1.833333333 | D12: =(F6+F11)/2 -> 0.8333333333 | E12: MGS | F12: =F10/F8 -> 1 | I12: 1 – 3 | J12: 2 – 3 | K12: 3 – 3 | L12: 4 – 3 | M12: 5 – 3 | N12: 6 – 3 | O12: 7 – 3 | P12: 8 – 3 | Q12: 9 – 3 | R12: 10 – 3 | T12: =games!D5 -> 1.380392157 | U12: =games!E5 -> 1.366808511 | V12: =games!F5 -> 2.229773884
I13: =C58*$C74 -> 0.006342753637 | J13: =C59*$C74 -> 0.004492783827 | K13: =C60*$C74 -> 0.002121592363 | L13: =C61*$C74 -> 0.0007513972951 | M13: =C62*$C74 -> 0.0002128959003 | N13: =C63*$C74 -> 5.026708756e-05 | O13: =C64*$C74 -> 1.017310105e-05 | P13: =C65*$C74 -> 1.801486645e-06 | Q13: =C66*$C74 -> 2.835673423e-07 | R13: =C67*$C74 -> 4.017204016e-08 | T13: =games!D6 -> Away team | U13: =games!E6 -> Home team | V13: =games!F6 -> 0
I14: 1 – 4 | J14: 2 – 4 | K14: 3 – 4 | L14: 4 – 4 | M14: 5 – 4 | N14: 6 – 4 | O14: 7 – 4 | P14: 8 – 4 | Q14: 9 – 4 | R14: 10 – 4 | T14: =games!D7 -> attack | U14: =games!E7 -> defence | V14: =games!F7 -> Expected
B15: =Evolution!C41 -> Club America | C15: - | D15: =Evolution!L41 -> Pumas U.N.A.M. | E15: MAC ORANI | F15: VALORE | I15: =C58*$C75 -> 0.0009249849055 | J15: =C59*$C75 -> 0.0006551976414 | K15: =C60*$C75 -> 0.0003093988862 | L15: =C61*$C75 -> 0.0001095787722 | M15: =C62*$C75 -> 3.104731879e-05 | N15: =C63*$C75 -> 7.330616936e-06 | O15: =C64*$C75 -> 1.483577237e-06 | P15: =C65*$C75 -> 2.627168024e-07 | Q15: =C66*$C75 -> 4.135357075e-08 | R15: =C67*$C75 -> 5.858422523e-09 | T15: forza | U15: =games!E8 -> Ddebolezza | V15: =games!F8 -> goals
A16: =IF(C16=1,2,IF(C16="X",3,IF(C16=2,4,""))) -> 2 | B16: FINAL | C16: =IF(D16=I32,I31,IF(D16=J32,J31,K31)) -> 1 | D16: =MAX(I32:K32) -> 0.5746950764 | E16: =SUBSTITUTE(VLOOKUP(A2,Foglio1!AC163:AF1892,A16,0),".",",") ->  | F16: =(E16*D16)-1 ->  | G16: LEGENDA | I16: 1 – 5 | J16: 2 – 5 | K16: 3 – 5 | L16: 4 – 5 | M16: 5 – 5 | N16: 6 – 5 | O16: 7 – 5 | P16: 8 – 5 | Q16: 9 – 5 | R16: 10 – 5 | T16: =games!D9 -> 0.5694117647 | U16: =games!E9 -> 0.6553191489 | V16: =games!F9 -> 0.2798598248
G17: çok muhtemel | I17: =C58*$C76 -> 0.0001079149056 | J17: =C59*$C76 -> 7.643972483e-05 | K17: =C60*$C76 -> 3.609653672e-05 | L17: =C61*$C76 -> 1.278419009e-05 | M17: =C62*$C76 -> 3.622187192e-06 | N17: =C63*$C76 -> 8.552386426e-07 | O17: =C64*$C76 -> 1.73084011e-07 | P17: =C65*$C76 -> 3.065029361e-08 | Q17: =C66*$C76 -> 4.824583254e-09 | R17: =C67*$C76 -> 6.834826277e-10 | T17: =games!D10 -> 0 | U17: =games!E10 -> 0 | V17: =games!F10 -> 0
B18: CiFTE SANS | C18: =IF(D18=I35,I34,IF(D18=J35,J34,K34)) -> 1X | D18: =MAX(I35:K35) -> 0.8472105572 | F18: =(E18*D18)-1 -> -1 | G18: büyük ihtimal | I18: 1 – 6 | J18: 2 – 6 | K18: 3 – 6 | L18: 4 – 6 | M18: 5 – 6 | N18: 6 – 6 | O18: 7 – 6 | P18: 8 – 6 | Q18: 9 – 6 | R18: 10 – 6
G19: belirsiz | I19: =C58*$C77 -> 1.049172694e-05 | J19: =C59*$C77 -> 7.431639914e-06 | K19: =C60*$C77 -> 3.509385515e-06 | L19: =C61*$C77 -> 1.24290737e-06 | M19: =C62*$C77 -> 3.521570881e-07 | N19: =C63*$C77 -> 8.314820136e-08 | O19: =C64*$C77 -> 1.682761218e-08 | P19: =C65*$C77 -> 2.979889657e-09 | Q19: =C66*$C77 -> 4.690567053e-10 | R19: =C67*$C77 -> 6.644969991e-11
B20: Atılacak Tam Gol sayısı | C20: =IF(D20=I38,I37,IF(D20=J38,J37,IF(D20=K38,K37,IF(D20=L38,L37,IF(D20=M38,M37,IF(D20=N38,N37,IF(D20=O38,O37,IF(D20=P38,P37,Q37)))))))) -> 1 | D20: =MAX(I38:Q38) -> 0.2706705665 | F20: =(E20*D20)-1 -> -1 | I20: 1 – 7 | J20: 2 – 7 | K20: 3 – 7 | L20: 4 – 7 | M20: 5 – 7 | N20: 6 – 7 | O20: 7 – 7 | P20: 8 – 7 | Q20: 9 – 7 | R20: 10 – 7
B21: =games!F8 -> goals | C21: =games!F9 -> 0.2798598248 | I21: =C58*$C78 -> 8.743105781e-07 | J21: =C59*$C78 -> 6.193033261e-07 | K21: =C60*$C78 -> 2.924487929e-07 | L21: =C61*$C78 -> 1.035756142e-07 | M21: =C62*$C78 -> 2.934642401e-08 | N21: =C63*$C78 -> 6.92901678e-09 | O21: =C64*$C78 -> 1.402301015e-09 | P21: =C65*$C78 -> 2.483241381e-10 | Q21: =C66*$C78 -> 3.908805877e-11 | R21: =C67*$C78 -> 5.537474993e-12
B22: TOPLAM GOL | C22: =IF(D22=I41,I40,IF(D22=J41,J40,K40)) -> 2 – 3 | D22: =MAX(I41:K41) -> 0.4511176108 | F22: =(E22*D22)-1 -> -1 | I22: 1 – 8 | J22: 2 – 8 | K22: 3 – 8 | L22: 4 – 8 | M22: 5 – 8 | N22: 6 – 8 | O22: 7 – 8 | P22: 8 – 8 | Q22: 9 – 8 | R22: 10 – 8
I23: =C58*$C79 -> 6.375181298e-08 | J23: =C59*$C79 -> 4.51575342e-08 | K23: =C60*$C79 -> 2.132439115e-08 | L23: =C61*$C79 -> 7.552388532e-09 | M23: =C62*$C79 -> 2.139843417e-09 | N23: =C63*$C79 -> 5.052408069e-10 | O23: =C64*$C79 -> 1.022511157e-10 | P23: =C65*$C79 -> 1.81069684e-11 | Q23: =C66*$C79 -> 2.850170952e-12 | R23: =C67*$C79 -> 4.037742182e-13
B24: HS / HNS | C24: =IF(D24=M32,M31,N31) -> HS | D24: =MAX(M32:N32) -> 0.7574789254 | F24: =(E24*D24)-1 -> -1 | I24: 1 – 9 | J24: 2 – 9 | K24: 3 – 9 | L24: 4 – 9 | M24: 5 – 9 | N24: 6 – 9 | O24: 7 – 9 | P24: 8 – 9 | Q24: 9 – 9 | R24: 10 – 9
I25: =C58*$C80 -> 4.132061953e-09 | J25: =C59*$C80 -> 2.926877216e-09 | K25: =C60*$C80 -> 1.382136463e-09 | L25: =C61*$C80 -> 4.895066641e-10 | M25: =C62*$C80 -> 1.386935548e-10 | N25: =C63*$C80 -> 3.274708933e-11 | O25: =C64*$C80 -> 6.627387127e-12 | P25: =C65*$C80 -> 1.173599804e-12 | Q25: =C66*$C80 -> 1.847333024e-13 | R25: =C67*$C80 -> 2.617055118e-14
B26: AS / ANS | C26: =IF(D26=M35,M34,N34) -> ANS | D26: =MAX(M35:N35) -> 0.5580349687 | F26: =(E26*D26)-1 -> -1 | I26: 1 – 10 | J26: 2 – 10 | K26: 3 – 10 | L26: 4 – 10 | M26: 5 – 10 | N26: 6 – 10 | O26: 7 – 10 | P26: 8 – 10 | Q26: 9 – 10 | R26: 10 – 10
I27: =C58*$C81 -> 2.410369472e-10 | J27: =C59*$C81 -> 1.707345043e-10 | K27: =C60*$C81 -> 8.062462703e-11 | L27: =C61*$C81 -> 2.855455541e-11 | M27: =C62*$C81 -> 8.090457365e-12 | N27: =C63*$C81 -> 1.910246878e-12 | O27: =C64*$C81 -> 3.865975824e-13 | P27: =C65*$C81 -> 6.845998855e-14 | Q27: =C66*$C81 -> 1.077610931e-14 | R27: =C67*$C81 -> 1.526615486e-15
B28: CIFT / TEK | C28: =IF(D28=P32,P31,Q31) -> CIFT | D28: =MAX(P32:Q32) -> 0.5091576997 | I28: ALTRO
I29: =C68*C82 -> 1.240704063e-17
B30: YOK / VAR | C30: =IF(D30=P35,P34,Q34) -> VAR | D30: =MAX(P35:Q35) -> 0.6652210775 | F30: =(E30*D30)-1 -> -1
H31: FINAL | I31: 1 | J31: X | K31: 2 | M31: HS | N31: HNS | P31: CIFT | Q31: TEK
B32: UN / OV (0,5) | C32: =IF(D34=Predictie!K17,Predictie!K16,Predictie!J16) -> Over | D32: =MAX(Predictie!J17:K17) -> 0.5939941503 | F32: =(E32*D32)-1 -> -1 | I32: =SUM(I7:R7,J9:R9,K11:R11,L13:R13,M15:R15,N17:R17,O19:R19,P21:R21,Q23:R23,R25) -> 0.5746950764 | J32: =SUM(I3,I9,J11,K13,L15,M17,N19,O21,P23,Q25,R27) -> 0.2725154809 | K32: =1-J32-I32 -> 0.1527894428 | M32: =1-$N$32 -> 0.7574789254 | N32: =SUM(I3,I5:R5) -> 0.2425210746 | P32: =SUM(I3,I9,I13,I17,I21,I25,J5,J7,J11,J15,J19,J23,J27,K9,K13,K17,K21,K25,L5,L7,L11,L15,L19,L23,L27,M9,M13,M17,M21,M25,N5,N7,N11,N15,N19,N23,N27,O9,O13,O17,O21,O25,P5,P7,P11,P15,P19,P23,P27,Q9,Q13,Q17,Q21,Q25,R5,R7,R11,R15,R19,R23,R27) -> 0.5091576997 | Q32: =1-P32 -> 0.4908423003
B34: UN / OV (1,5) | C34: =IF(D34=Predictie!K17,Predictie!K16,Predictie!J16) -> Over | D34: =MAX(Predictie!J17:K17) -> 0.5939941503 | F34: =(E34*D34)-1 -> -1 | H34: CiFTE SANS | I34: 1X | J34: X2 | K34: 12 | M34: AS | N34: ANS | P34: YOK | Q34: VAR
I35: =SUM(I32:J32) -> 0.8472105572 | J35: =SUM(J32:K32) -> 0.4253049236 | K35: =SUM(K32,I32) -> 0.7274845191 | M35: =1-$N$35 -> 0.4419650313 | N35: =SUM(I3,I7:R7) -> 0.5580349687 | P35: =SUM(P27:P31,I9:R9,I11:R11,I13:R13,I15:R15,I17:R17,I19:R19,I21:R21,I23:R23,I25:R25,I27:R27,I29) -> 0.3347789225 | Q35: =1-P35 -> 0.6652210775
B36: UN / OV (2,5) | C36: =IF(D36=Predictie!K18,Predictie!K16,Predictie!J16) -> Under | D36: =MAX(Predictie!J18:K18) -> 0.6766764162 | F36: =(E36*D36)-1 -> -1
H37: TOPLAM GOL | I37: 0 | J37: 1 | K37: 2 | L37: 3 | M37: 4 | N37: 5 | O37: 6 | P37: 7 | Q37: >7
B38: UN / OV (3,5) | C38: =IF(D38=Predictie!K19,Predictie!K16,Predictie!J16) -> Under | D38: =MAX(Predictie!J19:K19) -> 0.8571234605 | F38: =(E38*D38)-1 -> -1 | I38: =SUM(I3) -> 0.1353352832 | J38: =SUM(I5,I7) -> 0.2706705665 | K38: =SUM(J5,J7,I9) -> 0.2706705665 | L38: =SUM(K5,K7,J9,I11) -> 0.1804470443 | M38: =SUM(L5,L7,K9,I13,J11) -> 0.09022352216 | N38: =SUM(M5,M7,L9,I15,K11,J13) -> 0.03608940886 | O38: =SUM(N5,N7,M9,I17,L11,J15,K13) -> 0.01202980295 | P38: =SUM(O5,O7,N9,I19,M11,J17,L13,K15) -> 0.003437086558 | Q38: =SUM(P5:R5,P7:R7,O9:R9,N11:R11,M13:R13,L15:R15,K17:R17,J19:R19,J21:R21,J23:R23,J25:R25,J27:R27,I29) -> 0.001095459156
B40: EV Takım tercih edilirse | H40: TOPLAM GOL | I40: 0 – 1 | J40: 2 – 3 | K40: 4 o PIÙ
B41: HANDICAP (+1) | C41: =IF(D41=I47,I46,IF(D41=J47,J46,K46)) -> 2 | D41: =MAX(I47:K47) -> 0.4253046063 | F41: =(E41*D41)-1 -> -1 | I41: =SUM(I38:J38) -> 0.4060058497 | J41: =SUM(K38:L38) -> 0.4511176108 | K41: =SUM(M38:Q38) -> 0.1428752797
B42: HANDICAP (+2) | C42: =IF(D42=I50,I49,IF(D42=J50,J49,K49)) -> 2 | D42: =MAX(I50:K50) -> 0.7079439701 | F42: =(E42*D42)-1 -> -1
B43: HANDICAP (+3) | C43: =IF(D43=I53,I52,IF(D43=J53,J52,K52)) -> 2 | D43: =MAX(I53:K53) -> 0.8852432011 | F43: =(E43*D43)-1 -> -1
B45: DEPLASMAN Takım tercih edilirse | H45: EV Takım tercih edilirse | L45: DEPLASMAN Takım tercih edilirse
B46: HANDICAP (-1) | C46: =IF(D46=M47,M46,IF(D46=N47,N46,O46)) -> 1 | D46: =MAX(M47:O47) -> 0.8472105572 | F46: =(E46*D46)-1 -> -1 | H46: HANDICAP (+1) | I46: 1 | J46: X | K46: 2 | L46: HANDICAP (-1) | M46: 1 | N46: X | O46: 2
B47: HANDICAP (-2) | C47: =IF(D47=M50,M49,IF(D47=N50,N49,O49)) -> 1 | D47: =MAX(M50:O50) -> 0.9635913411 | F47: =(E47*D47)-1 -> -1 | I47: =SUM(J7:R7,K9:R9,L11:R11,M13:R13,N15:R15,O17:R17,P19:R19,Q21:R21,R23) -> 0.2920560299 | J47: =SUM(I7,J9,K11,L13,M15,N17,O19,P21,Q23,R25) -> 0.2826390464 | K47: =SUM(I3,I5:R5,I9,I11:J11,I13:K13,I15:L15,I17:M17,I19:N19,I21:O21,I23:P23,I25:Q25,I27:R27) -> 0.4253046063 | M47: =SUM(I3,I7:R7,I9:R9,J11:R11,K13:R13,L15:R15,M17:R17,N19:R19,O21:R21,P23:R23,Q25:R25,R27) -> 0.8472105572 | N47: =SUM(I5,I11,J13,K15,L17,M19,N21,O23,P25,Q27) -> 0.1163807838 | O47: =1-N47-M47 -> 0.03640865895
B48: HANDICAP (-3) | C48: =IF(D48=M53,M52,IF(D48=N53,N52,O52)) -> 1 | D48: =MAX(M53:O53) -> 0.9936524564 | F48: =(E48*D48)-1 -> -1
H49: HANDICAP (+2) | I49: 1 | J49: X | K49: 2 | L49: HANDICAP (-2) | M49: 1 | N49: X | O49: 2
I50: =SUM(K7:R7,L9:R9,M11:R11,N13:R13,O15:R15,P17:R17,Q19:R19,R21) -> 0.1147567989 | J50: =SUM(J7,K9,L11,M13,N15,O17,P19,Q21,R23) -> 0.177299231 | K50: =1-J50-I50 -> 0.7079439701 | M50: =SUM(I3,I5,I7:R7,I9:R9,I11:R11,J13:R13,K15:R15,L17:R17,M19:R19,N21:R21,O23:R23,P25:R25,Q27:R27) -> 0.9635913411 | N50: =SUM(J5,I13,J15,K17,L19,M21,N23,O25,P27) -> 0.0300611153 | O50: =1-N50-M50 -> 0.006347543647
H52: HANDICAP (+3) | I52: 1 | J52: X | K52: 2 | L52: HANDICAP (-3) | M52: 1 | N52: X | O52: 2
I53: =SUM(L7:R7,M9:R9,N11:R11,O13:R13,P15:R15,Q17:R17,R19) -> 0.03623076395 | J53: =SUM(K7,L9,M11,N13,O15,P17,Q19,R21) -> 0.07852603492 | K53: =1-J53-I53 -> 0.8852432011 | M53: =SUM(I3,I5:J5,I7:R7,I9:R9,I11:R11,I13:R13,J15:R15,K17:R17,L19:R19,M21:R21,N23:R23,O25:R25,P27:R27) -> 0.9936524564 | N53: =SUM(K5,I15,J17,K19,L21,M23,N25,O27) -> 0.005482277626 | O53: =1-N53-M53 -> 0.0008652660208
B56: GOL SQUADRA IN CASA | C56: P(x)
B57: 0 | C57: =EXP(-G4) -> 0.2425210746
B58: 1 | C58: =($G$4/B58)*C57 -> 0.3435715224
B59: 2 | C59: 0.2433631617
B60: 3 | C60: 0.114921493
B61: 4 | C61: 0.04070136211
B62: 5 | C62: 0.0115320526
B63: 6 | C63: 0.002722845752
B64: 7 | C64: 0.0005510521166
B65: 8 | C65: 9.758214564e-05
B66: 9 | C66: 1.536015255e-05
B67: 10 | C67: 2.176021612e-06
B68: >10 | C68: =1-SUM(C57:C67) -> 3.173376849e-07
B70: GOL SQUADRA IN TRASF | C70: P(x)
B71: 0 | C71: =EXP(-G10) -> 0.5580351458
B72: 1 | C72: =($G$10/B72)*C71 -> 0.3255205017
B73: 2 | C73: 0.09494347966
B74: 3 | C74: 0.01846123216
B75: 4 | C75: 0.002692263023
B76: 5 | C76: 0.0003140973527
B77: 6 | C77: 3.053724262e-05
B78: 7 | C78: 2.544770218e-06
B79: 8 | C79: 1.855561618e-07
B80: 9 | C80: 1.202678826e-08
B81: 10 | C81: 7.015626486e-10
B82: >10 | C82: =1-SUM(C71:C81) -> 3.909728097e-11

Sheet Date (hidden)
A7: =LARGE(G19:G27,1) -> 26.73702977 | C7: =VLOOKUP(A7,G19:I27,3,FALSE) -> 2
G8: HW | H8: D | I8: AW | J8: Under | K8: Over
D9: EV | G9: =D33 -> 82.24387903 | H9: =D34 -> 14.05151245 | I9: =D35 -> 3.489986608 | J9: =D37 -> 54.13443104 | K9: =D38 -> 45.86556896
A13: =LARGE(H19:H27,1) -> 75.5889691 | C13: =VLOOKUP(A13,H19:I27,2,FALSE) -> 0
D16: DEP
J17: HW | R17: EXP
G18: HG | H18: AG | O18: H | P18: A | Q18: EXP | R18: ODDS
F19: 0 | G19: =POISSON(F19,$D$29,FALSE)*100 -> 10.75527468 | H19: =POISSON(F19,$D$30,FALSE)*100 -> 75.5889691 | I19: 0 | J19: 7 | K19: 0 | O19: =VLOOKUP(J19,$F$19:$H$26,2) -> 0.5848126275 | P19: =VLOOKUP(K19,$F$19:$H$26,3) -> 75.5889691 | Q19: =(O19*P19)/100 -> 0.4420538363 | R19: =100/Q19 -> 226.2167903
F20: 1 | G20: 23.98183059 | H20: 21.15431565 | I20: 1 | J20: 7 | K20: 1 | O20: 0.5848126275 | P20: 21.15431565 | Q20: 0.1237131092 | R20: 808.321775
F21: 2 | G21: 26.73702977 | H21: 2.960121535 | I21: 2 | J21: 7 | K21: 2 | O21: 0.5848126275 | P21: 2.960121535 | Q21: 0.01731116453 | R21: 5776.618888
F22: 3 | G22: 19.87251024 | H22: 0.2761396981 | I22: 3 | J22: 7 | K22: 3 | O22: 0.5848126275 | P22: 0.2761396981 | Q22: 0.001614899824 | R22: 61923.34566
F23: 4 | G23: 11.07780109 | H23: 0.01932010188 | I23: 4 | J23: 7 | K23: 4 | O23: 0.5848126275 | P23: 0.01932010188 | Q23: 0.0001129863954 | R23: 885062.3087
F24: 5 | G24: 4.940198311 | H24: 0.001081384065 | I24: 5 | J24: 7 | K24: 5 | O24: 0.5848126275 | P24: 0.001081384065 | Q24: 6.324070566e-06 | R24: 15812600.28
F25: 6 | G25: 1.835920863 | H25: 5.043932584e-05 | I25: 6 | J25: 7 | K25: 6 | O25: 0.5848126275 | P25: 5.043932584e-05 | Q25: 2.949755468e-07 | R25: 339011152.3
F26: 7 | G26: 0.5848126275 | H26: 2.016562985e-06 | I26: 7 | J26: 6 | K26: 0 | O26: 1.835920863 | P26: 75.5889691 | Q26: 1.387753654 | R26: 72.05889874
F27: =MATCH(G27,G19:G26,0) -> 3 | G27: =MAX(G19:G26) -> 26.73702977 | H27: =MAX(H19:H26) -> 75.5889691 | I27: =MATCH(H27,H19:H26,0) -> 1 | J27: 6 | K27: 1 | O27: 1.835920863 | P27: 21.15431565 | Q27: 0.3883764943 | R27: 257.482112
J28: 6 | K28: 2 | O28: 1.835920863 | P28: 2.960121535 | Q28: 0.05434548883 | R28: 1840.079134
D29: =games!F5 -> 2.229773884 | J29: 6 | K29: 3 | O29: 1.835920863 | P29: 0.2761396981 | Q29: 0.005069706327 | R29: 19725.00842
D30: =games!F9 -> 0.2798598248 | J30: 6 | K30: 4 | O30: 1.835920863 | P30: 0.01932010188 | Q30: 0.0003547017811 | R30: 281926.9745
J31: 6 | K31: 5 | O31: 1.835920863 | P31: 0.001081384065 | Q31: 1.985335566e-05 | R31: 5036931.877
D32: % | E32: ODDS | J32: 5 | K32: 0 | O32: 4.940198311 | P32: 75.5889691 | Q32: 3.734244975 | R32: 26.77917509
C33: HW | D33: =SUM(Q19:Q46) -> 82.24387903 | E33: =100/D33 -> 1.215895957 | J33: 5 | K33: 1 | O33: 4.940198311 | P33: 21.15431565 | Q33: 1.045065144 | R33: 95.68781481
C34: D | D34: =SUM(Q81:Q87) -> 14.05151245 | E34: =100/D34 -> 7.116671628 | J34: 5 | K34: 2 | O34: 4.940198311 | P34: 2.960121535 | Q34: 0.1462358741 | R34: 683.8267328
C35: A | D35: =SUM(Q50:Q77) -> 3.489986608 | E35: =100/D35 -> 28.65340508 | J35: 5 | K35: 3 | O35: 4.940198311 | P35: 0.2761396981 | Q35: 0.0136418487 | R35: 7330.384774
J36: 5 | K36: 4 | O36: 4.940198311 | P36: 0.01932010188 | Q36: 0.0009544513468 | R36: 104772.2342
C37: UNDER 2.5 | D37: =SUM(Q44+Q46+Q75+Q77+Q81+Q82) -> 54.13443104 | E37: =100/D37 -> 1.847253182 | J37: 4 | K37: 0 | O37: 11.07780109 | P37: 75.5889691 | Q37: 8.373595641 | R37: 11.94230105
C38: OVER 2.5 | D38: =100-D37 -> 45.86556896 | E38: =100/D38 -> 2.180284738 | J38: 4 | K38: 1 | O38: 11.07780109 | P38: 21.15431565 | Q38: 2.343433009 | R38: 42.6724381
J39: 4 | K39: 2 | O39: 11.07780109 | P39: 2.960121535 | Q39: 0.3279163756 | R39: 304.955798
C40: UNQ | D40: =100-(Q81+Q82+Q83+Q84+Q77+Q76+Q75+Q74+Q73+Q72+Q46+Q45+Q44+Q43+Q42+Q41) -> 18.66999337 | E40: =100/D40 -> 5.356188298 | J40: 4 | K40: 3 | O40: 11.07780109 | P40: 0.2761396981 | Q40: 0.03059020647 | R40: 3269.020106
J41: 3 | K41: 0 | O41: 19.87251024 | P41: 75.5889691 | Q41: 15.02142563 | R41: 6.657157748
J42: 3 | K42: 1 | O42: 19.87251024 | P42: 21.15431565 | Q42: 4.203893544 | R42: 23.78747201
J43: 3 | K43: 2 | O43: 19.87251024 | P43: 2.960121535 | Q43: 0.5882504553 | R43: 169.9956185
J44: 2 | K44: 0 | O44: 26.73702977 | P44: 75.5889691 | Q44: 20.21024517 | R44: 4.947985496
J45: 2 | K45: 1 | O45: 26.73702977 | P45: 21.15431565 | Q45: 5.656035673 | R45: 17.68022795
J46: 1 | K46: 0 | O46: 23.98183059 | P46: 75.5889691 | Q46: 18.12761852 | R46: 5.516444419
J48: AW
J50: 0 | K50: 7 | O50: =VLOOKUP(J50,$F$19:$H$26,2) -> 10.75527468 | P50: =VLOOKUP(K50,$F$19:$H$26,3) -> 2.016562985e-06 | Q50: =(O50*P50)/100 -> 2.168868881e-07 | R50: =100/Q50 -> 461069827.2
J51: 1 | K51: 7 | O51: 23.98183059 | P51: 2.016562985e-06 | Q51: 4.836087188e-07 | R51: 206778736.9
J52: 2 | K52: 7 | O52: 26.73702977 | P52: 2.016562985e-06 | Q52: 5.391690456e-07 | R52: 185470588.2
J53: 3 | K53: 7 | O53: 19.87251024 | P53: 2.016562985e-06 | Q53: 4.007416856e-07 | R53: 249537304.4
J54: 4 | K54: 7 | O54: 11.07780109 | P54: 2.016562985e-06 | Q54: 2.233908362e-07 | R54: 447645936.1
J55: 5 | K55: 7 | O55: 4.940198311 | P55: 2.016562985e-06 | Q55: 9.962221051e-08 | R55: 1003792222
J56: 6 | K56: 7 | O56: 1.835920863 | P56: 2.016562985e-06 | Q56: 3.702250054e-08 | R56: 2701060127
J57: 0 | K57: 6 | O57: 10.75527468 | P57: 5.043932584e-05 | Q57: 5.42488804e-06 | R57: 18433560.15
J58: 1 | K58: 6 | O58: 23.98183059 | P58: 5.043932584e-05 | Q58: 1.209627368e-05 | R58: 8267008.724
J59: 2 | K59: 6 | O59: 26.73702977 | P59: 5.043932584e-05 | Q59: 1.348597757e-05 | R59: 7415109.472
J60: 3 | K60: 6 | O60: 19.87251024 | P60: 5.043932584e-05 | Q60: 1.002356019e-05 | R60: 9976495.184
J61: 4 | K61: 6 | O61: 11.07780109 | P61: 5.043932584e-05 | Q61: 5.587568186e-06 | R61: 17896873.32
J62: 5 | K62: 6 | O62: 4.940198311 | P62: 5.043932584e-05 | Q62: 2.491802723e-06 | R62: 40131587.89
J63: 0 | K63: 5 | O63: 10.75527468 | P63: 0.001081384065 | Q63: 0.0001163058266 | R63: 859802.1523
J64: 1 | K64: 5 | O64: 23.98183059 | P64: 0.001081384065 | Q64: 0.0002593356946 | R64: 385600.6021
J65: 2 | K65: 5 | O65: 26.73702977 | P65: 0.001081384065 | Q65: 0.0002891299795 | R65: 345865.2063
J66: 3 | K66: 5 | O66: 19.87251024 | P66: 0.001081384065 | Q66: 0.0002148981591 | R66: 465336.699
J67: 4 | K67: 5 | O67: 11.07780109 | P67: 0.001081384065 | Q67: 0.0001197935757 | R67: 834769.3053
J68: 0 | K68: 4 | O68: 10.75527468 | P68: 0.01932010188 | Q68: 0.002077930025 | R68: 48124.81594
J69: 1 | K69: 4 | O69: 23.98183059 | P69: 0.01932010188 | Q69: 0.004633314103 | R69: 21582.82339
J70: 2 | K70: 4 | O70: 26.73702977 | P70: 0.01932010188 | Q70: 0.005165621392 | R70: 19358.7552
J71: 3 | K71: 4 | O71: 19.87251024 | P71: 0.01932010188 | Q71: 0.003839389225 | R71: 26045.80941
J72: 0 | K72: 3 | O72: 10.75527468 | P72: 0.2761396981 | Q72: 0.02969958302 | R72: 3367.050639
J73: 1 | K73: 3 | O73: 23.98183059 | P73: 0.2761396981 | Q73: 0.06622335459 | R73: 1510.041293
J74: 2 | K74: 3 | O74: 26.73702977 | P74: 0.2761396981 | Q74: 0.07383155329 | R74: 1354.43446
J75: 0 | K75: 2 | O75: 10.75527468 | P75: 2.960121535 | Q75: 0.3183692019 | R75: 314.100734
J76: 1 | K76: 2 | O76: 23.98183059 | P76: 2.960121535 | Q76: 0.709891332 | R76: 140.8666306
J77: 0 | K77: 1 | O77: 10.75527468 | P77: 21.15431565 | Q77: 2.275204754 | R77: 43.95208819
J79: DRAW
J81: 0 | K81: 0 | O81: =VLOOKUP(J81,$F$19:$H$26,2) -> 10.75527468 | P81: =VLOOKUP(K81,$F$19:$H$26,3) -> 75.5889691 | Q81: =(O81*P81)/100 -> 8.129801253 | R81: =100/Q81 -> 12.3004237
J82: 1 | K82: 1 | O82: 23.98183059 | P82: 21.15431565 | Q82: 5.073192142 | R82: 19.71145527
C83: 90 | J83: 2 | K83: 2 | O83: 26.73702977 | P83: 2.960121535 | Q83: 0.7914485762 | R83: 126.3505969
J84: 3 | K84: 3 | O84: 19.87251024 | P84: 0.2761396981 | Q84: 0.05487588978 | R84: 1822.293914
J85: 4 | K85: 4 | O85: 11.07780109 | P85: 0.01932010188 | Q85: 0.002140242456 | R85: 46723.6783
J86: 5 | K86: 5 | O86: 4.940198311 | P86: 0.001081384065 | Q86: 5.342251733e-05 | R86: 1871869.859
J87: 6 | K87: 6 | O87: 1.835920863 | P87: 5.043932584e-05 | Q87: 9.260261061e-07 | R87: 107988316.2
G96: total goals | H96: exactly | I96: or less | J96: dec odds
G97: 0 | H97: =K109 -> 0.08815331339 | I97: =H97 -> 0.08815331339 | J97: =1/I97 -> 11.34387309 | K97: =1/(1-I97) -> 1.096675587 | L97: =K97/100 -> 0.01096675587 | M97: 0.5
G98: 1 | H98: =K110+K111 -> 0.2140959937 | I98: =H97+H98 -> 0.3022493071 | J98: 3.308527022 | K98: 1.433176649 | L98: =K98/100 -> 0.01433176649 | M98: 1.5
G99: 2 | H99: =K112+K113+K115 -> 0.2599850916 | I99: =H99+H98+H97 -> 0.5622343988 | J99: 1.778617605 | K99: 2.284327497 | L99: =K99/100 -> 0.02284327497 | M99: 2.5
G100: 3 | H100: =K114+K116+K118+K121 -> 0.2104733386 | I100: =H97+H98+H99+H100 -> 0.7727077374 | J100: 1.294150364 | K100: 4.399621828 | L100: 0.04399621828 | M100: 3.5
G101: 4 | H101: =K117+K119+K122+K125+K129 -> 0.1277929804 | I101: =H97+H98+H99+H100+H101 -> 0.9005007177 | J101: 1.110493285 | K101: 10.05032375 | L101: 0.1005032375 | M101: 4.5
G102: 5 | H102: =K120+K123+K126+K130+K134+K139 -> 0.06207359443 | I102: =H97+H98+H99+H100+H101+H102 -> 0.9625743122 | J102: 1.03888083 | K102: 26.71961581 | L102: 0.2671961581 | M102: 5.5
G103: 6 | H103: =K124+K127+K131+K140+K145+K151 -> 0.01581806091 | I103: =H97+H98+H99+H100+H101+H102+H103 -> 0.9783923731 | J103: 1.022084828 | K103: 46.27995495 | L103: 0.4627995495 | M103: 6.5
O104: draw no bet
F105: minutes | G105: home aver | H105: away aver | I105: total aver | K105: home | L105: draw | M105: away | O105: home | P105: away
F106: =Date!C83 -> 90 | G106: =G107*F106/90 -> 2.157845694 | H106: =H107*F106/90 -> 0.2708320885 | I106: =G106+H106 -> 2.428677783 | K106: =(K110+K113+K114+K118+K119+K120+K125+K126+K127+K128+K134+K135+K136+K137+K138+K145+K146+K147+K148+K149+K158+K159+K160+K161+K162+K163+K164+K173+K174+K175+K176+K177+K178+K179+K180)*100 -> 81.60492445 | L106: =(K109+K112+K117+K124+K133+K144+K157+K165+K181)*100 -> 14.7705331 | M106: =(K111+K115+K116+K121+K122+K123+K129+K130+K131+K132+K139+K140+K141+K142+K143+K151+K152+K153+K154+K155+K156+K166+K167+K168+K169+K170+K171+K172+K182+K183+K184+K185+K186+K187+K188+K189)*100 -> 3.583589037 | O106: =1/(1/(K106/Q106)) -> 0.9579334245 | P106: =1/(1/(M106/Q106)) -> 0.04206657553 | Q106: =K106+M106 -> 85.18851349
G107: =Predictie!G3 -> 2.157845694 | H107: =Predictie!J3 -> 0.2708320885 | I107: =G107+H107 -> 2.428677783 | K107: =100/K106 -> 1.225416244 | L107: =100/L106 -> 6.770236345 | M107: =100/M106 -> 27.90498547 | O107: =1/O106 -> 1.043913882 | P107: =1/P106 -> 23.77184231
G108: home goal | H108: away goal
C109: 0-0 adjustment | D109: 1 | G109: 0 | H109: 0 | I109: =POISSON(G109,$G$106,FALSE) -> 0.1155738344 | J109: =POISSON(H109,$H$106,FALSE) -> 0.7627445592 | K109: =I109*J109*D109 -> 0.08815331339 | L109: =1/K109 -> 11.34387309 | O109: asian hcp
C110: 1-0 adjustment | D110: 1 | G110: 1 | H110: 0 | I110: 0.249390501 | J110: 0.7627445592 | K110: =I110*J110*D110 -> 0.1902212477 | L110: 5.257036277 | O110: h+.5 | P110: a-.5
C111: 0-1 adjustment | D111: 1 | G111: 0 | H111: 1 | I111: 0.1155738344 | J111: 0.206575702 | K111: =I111*J111*D111 -> 0.02387474597 | L111: 41.88526241 | O111: =1/(1-M106) -> -0.3870584624 | P111: =1/M106 -> 0.2790498547
C112: 1-1 adjustment | D112: 1 | G112: 1 | H112: 1 | I112: 0.249390501 | J112: 0.206575702 | K112: =I112*J112*D112 -> 0.0515180178 | L112: 19.4106847 | O112: h-.5 | P112: a+.5
C113: 2-1 adjustment | D113: 1 | G113: 2 | H113: 0 | I113: 0.2690731093 | J113: 0.7627445592 | K113: =I113*J113*D116 -> 0.2052340502 | L113: 4.872485823 | O113: =1/K106 -> 0.01225416244 | P113: =1/(1-K106) -> -0.0124061899
C114: 1-2 adjustment | D114: 1 | G114: 2 | H114: 1 | I114: 0.2690731093 | J114: 0.206575702 | K114: =I114*J114*D113 -> 0.05558396644 | L114: 17.99079958
C115: 2-2 adjustment | D115: 1 | G115: 0 | H115: 2 | I115: 0.1155738344 | J115: 0.0279736644 | K115: =I115*J115*D117 -> 0.003233023657 | L115: 309.3079748 | O115: both teams to score
C116: 2-0 adjustment | D116: 1 | G116: 1 | H116: 2 | I116: 0.249390501 | J116: 0.0279736644 | K116: =I116*J116*D114 -> 0.006976366178 | L116: 143.3410997 | O116: =1-(K109+K110+K111+K113+K115+K118+K121+K125+K129+K134+K139+K145+K151+K158+K172+K173+K182) -> 0.2101471752
C117: 0-2 adjustment | D117: 1 | G117: 2 | H117: 2 | I117: 0.2690731093 | J117: 0.0279736644 | K117: =I117*J117*D115 -> 0.007526960859 | L117: 132.855746 | O117: =1/O116 -> 4.758569793
G118: 3 | H118: 0 | I118: 0.1935394168 | J118: 0.7627445592 | K118: =I118*J118 -> 0.1476211372 | L118: 6.774097661
G119: 3 | H119: 1 | I119: 0.1935394168 | J119: 0.206575702 | K119: 0.03998054089 | L119: 25.01216787
G120: 3 | H120: 2 | I120: 0.1935394168 | J120: 0.0279736644 | K120: 0.005414006694 | L120: 184.7060886
C121: 1x2 | G121: 0 | H121: 3 | I121: 0.1155738344 | J121: 0.002525388651 | K121: 0.0002918688498 | L121: 3426.196392
C122: Selection | D122: Odds | E122: =IF(D122="","",IF(D122="Odds","Probability, %",IF(D122="Probability, %","Odds","Error"))) -> Probability, % | G122: 1 | H122: 3 | I122: 0.249390501 | J122: 0.002525388651 | K122: 0.0006298079407 | L122: 1587.785633
C123: 1 | D123: =SUBSTITUTE(VLOOKUP(A124,Foglio1!AC163:AE1892,2,0),".",",") ->  | E123: =IF(D123="","",100/D123) ->  | G123: 2 | H123: 3 | I123: 0.2690731093 | J123: 0.002525388651 | K123: 0.0006795141765 | L123: 1471.639643
A124: =TRIM(MID('Clasament campionate'!B2,1,FIND("VS",'Clasament campionate'!B2,1)-3)) ->  | C124: x | D124: =SUBSTITUTE(VLOOKUP(A124,Foglio1!AC163:AE1892,3,0),".",",") ->  | E124: =IF(D124="","",100/D124) ->  | G124: 3 | H124: 3 | I124: 0.1935394168 | J124: 0.002525388651 | K124: 0.0004887622467 | L124: 2045.984539
C125: 2 | D125: =SUBSTITUTE(VLOOKUP(A124,Foglio1!AC163:AF1892,4,0),".",",") ->  | E125: =IF(D125="","",100/D125) ->  | G125: 4 | H125: 0 | I125: 0.1044070493 | J125: 0.7627445592 | K125: 0.0796359088 | L125: 12.55714934
C126: =IF(COUNT(D$4:D$6)=3,"Overround, %","") ->  | E126: =IF(C126="","",IF(D$3="odds",SUM(E123:E125),SUM(D123:D125))) ->  | G126: 4 | H126: 1 | I126: 0.1044070493 | J126: 0.206575702 | K126: 0.0215679595 | L126: 46.36507223
C127: duble | G127: 4 | H127: 2 | I127: 0.1044070493 | J127: 0.0279736644 | K127: 0.002920647758 | L127: 342.3897994
G128: 4 | H128: 3 | I128: 0.1044070493 | J128: 0.002525388651 | K128: 0.0002636683774 | L128: 3792.642902
C129: 1X | D129: =(E123+E124) ->  | E129: =100/D129 ->  | G129: 0 | H129: 4 | I129: 0.1155738344 | J129: 0.0001709890706 | K129: 1.976186254e-05 | L129: 50602.51776
C130: 12 | D130: =(E123+E125) ->  | E130: =100/D130 ->  | G130: 1 | H130: 4 | I130: 0.249390501 | J130: 0.0001709890706 | K130: 4.264304998e-05 | L130: 23450.48022
C131: X2 | D131: =(E124+E125) ->  | E131: =100/D131 ->  | G131: 2 | H131: 4 | I131: 0.2690731093 | J131: 0.0001709890706 | K131: 4.60085609e-05 | L131: 21735.08539
G132: 3 | H132: 4 | I132: 0.1935394168 | J132: 0.0001709890706 | K132: 3.309312501e-05 | L132: 30217.7567
C133: =Predictie!#REF!*Predictie!#REF!/100 ->  | D133: =Predictie!#REF!*Predictie!#REF!/100 ->  | E133: =Predictie!#REF!*Predictie!#REF!/100 ->  | G133: 4 | H133: 4 | I133: 0.1044070493 | J133: 0.0001709890706 | K133: 1.785246433e-05 | L133: 56014.67571
G134: 5 | H134: 0 | I134: 0.04505886036 | J134: 0.7627445592 | K134: 0.03436840058 | L134: 29.09649512
G135: 5 | H135: 1 | I135: 0.04505886036 | J135: 0.206575702 | K135: 0.009308065708 | L135: 107.4337066
C136: 0.5 | D136: =Predictie!#REF!*Predictie!#REF!/100 ->  | G136: 5 | H136: 2 | I136: 0.04505886036 | J136: 0.0279736644 | K136: 0.001260461438 | L136: 793.3602489
C137: 1.5 | D137: =Predictie!#REF!*Predictie!#REF!/100 ->  | G137: 5 | H137: 3 | I137: 0.04505886036 | J137: 0.002525388651 | K137: 0.0001137911346 | L137: 8788.030842
C138: 2.5 | D138: =Now!BE7*Predictie!#REF!/100 ->  | G138: 5 | H138: 4 | I138: 0.04505886036 | J138: 0.0001709890706 | K138: 7.704572656e-06 | L138: 129793.0521
C139: 3.5 | D139: =Predictie!#REF!*Predictie!#REF!/100 ->  | G139: 0 | H139: 5 | I139: 0.1155738344 | J139: 9.261865422e-06 | K139: 1.070429301e-06 | L139: 934204.6218
C140: 4.5 | D140: =Predictie!#REF!*Predictie!#REF!/100 ->  | G140: 1 | H140: 5 | I140: 0.249390501 | J140: 9.261865422e-06 | K140: 2.309821257e-06 | L140: 432933.9323
G141: 2 | H141: 5 | I141: 0.2690731093 | J141: 9.261865422e-06 | K141: 2.492118927e-06 | L141: 401264.9593
G142: 3 | H142: 5 | I142: 0.1935394168 | J142: 9.261865422e-06 | K142: 1.792536032e-06 | L142: 557868.8417
G143: 4 | H143: 5 | I143: 0.1044070493 | J143: 9.261865422e-06 | K143: 9.670040398e-07 | L143: 1034121.843
G144: 5 | H144: 5 | I144: 0.04505886036 | J144: 9.261865422e-06 | K144: 4.173291007e-07 | L144: 2396190.437
G145: 6 | H145: 0 | I145: 0.0162050113 | J145: 0.7627445592 | K145: 0.0123602842 | L145: 80.90428857
G146: 6 | H146: 1 | I146: 0.0162050113 | J146: 0.206575702 | K146: 0.003347561585 | L146: 298.7249001
G147: 6 | H147: 2 | I147: 0.0162050113 | J147: 0.0279736644 | K147: 0.0004533135477 | L147: 2205.978632
G148: 6 | H148: 3 | I148: 0.0162050113 | J148: 0.002525388651 | K148: 4.092395162e-05 | L148: 24435.56793
G149: 6 | H149: 4 | I149: 0.0162050113 | J149: 0.0001709890706 | K149: 2.770879822e-06 | L149: 360896.2006
G150: 6 | H150: 5 | I150: 0.0162050113 | J150: 9.261865422e-06 | K150: 1.500886338e-07 | L150: 6662729.711
G151: 0 | H151: 6 | I151: 0.1155738344 | J151: 4.180683926e-07 | K151: 4.831776718e-08 | L151: 20696320.59
G152: 1 | H152: 6 | I152: 0.249390501 | J152: 4.180683926e-07 | K152: 1.042622859e-07 | L152: 9591195.816
G153: 2 | H153: 6 | I153: 0.2690731093 | J153: 4.180683926e-07 | K153: 1.124909623e-07 | L153: 8889603.035
G154: 3 | H154: 6 | I154: 0.1935394168 | J154: 4.180683926e-07 | K154: 8.091271289e-08 | L154: 12358997.3
G155: 4 | H155: 6 | I155: 0.1044070493 | J155: 4.180683926e-07 | K155: 4.364928728e-08 | L155: 22909881.52
G156: 5 | H156: 6 | I156: 0.04505886036 | J156: 4.180683926e-07 | K156: 1.883768532e-08 | L156: 53085078.28
G157: 6 | H157: 6 | I157: 0.0162050113 | J157: 4.180683926e-07 | K157: 6.774803027e-09 | L157: 147605767.4
G158: 7 | H158: 0 | I158: 0.004995416266 | J158: 0.7627445592 | K158: 0.003810226578 | L158: 262.4515838
G159: 7 | H159: 1 | I159: 0.004995416266 | J159: 0.206575702 | K159: 0.001031931622 | L159: 969.0564558
G160: 7 | H160: 2 | I160: 0.004995416266 | J160: 0.0279736644 | K160: 0.0001397400982 | L160: 7156.142104
G161: 7 | H161: 3 | I161: 0.004995416266 | J161: 0.002525388651 | K161: 1.261536754e-05 | L161: 79268.39995
G162: 7 | H162: 4 | I162: 0.004995416266 | J162: 0.0001709890706 | K162: 8.541615847e-07 | L162: 1170738.673
G163: 7 | H163: 5 | I163: 0.004995416266 | J163: 9.261865422e-06 | K163: 4.626687318e-08 | L163: 21613736.38
G164: 7 | H164: 6 | I164: 0.004995416266 | J164: 4.180683926e-07 | K164: 2.088425649e-09 | L164: 478829591.4
G165: 7 | H165: 7 | I165: 0.004995416266 | J165: 1.617519084e-08 | K165: 8.080181144e-11 | L165: 1.237596017e+10
G166: 1 | H166: 7 | I166: 0.249390501 | J166: 1.617519084e-08 | K166: 4.033938948e-09 | L166: 247896662
G167: 2 | H167: 7 | I167: 0.2690731093 | J167: 1.617519084e-08 | K167: 4.352308894e-09 | L167: 229763103.7
G168: 3 | H168: 7 | I168: 0.1935394168 | J168: 1.617519084e-08 | K168: 3.130537003e-09 | L168: 319434013.8
G169: 4 | H169: 7 | I169: 0.1044070493 | J169: 1.617519084e-08 | K169: 1.688803948e-09 | L169: 592135044
G170: 5 | H170: 7 | I170: 0.04505886036 | J170: 1.617519084e-08 | K170: 7.288356655e-10 | L170: 1372051407
G171: 6 | H171: 7 | I171: 0.0162050113 | J171: 1.617519084e-08 | K171: 2.621191504e-10 | L171: 3815058909
G172: 0 | H172: 7 | I172: 0.1155738344 | J172: 1.617519084e-08 | K172: 1.869428828e-09 | L172: 534922744.8
G173: 8 | H173: 0 | I173: =POISSON(G173,$G$106,FALSE) -> 0.001347417185 | J173: =POISSON(H173,$H$106,FALSE) -> 0.7627445592 | K173: 0.001027735127 | L173: =1/K173 -> 973.0133512
G174: 8 | H174: 1 | I174: 0.001347417185 | J174: 0.206575702 | K174: 0.0002783436508 | L174: 3592.681195
G175: 8 | H175: 2 | I175: 0.001347417185 | J175: 0.0279736644 | K175: 3.769219614e-05 | L175: 26530.69076
G176: 8 | H176: 3 | I176: 0.001347417185 | J176: 0.002525388651 | K176: 3.402752067e-06 | L176: 293879.7715
G177: 8 | H177: 4 | I177: 0.001347417185 | J177: 0.0001709890706 | K177: 2.303936122e-07 | L177: 4340398.114
G178: 8 | H178: 5 | I178: 0.001347417185 | J178: 9.261865422e-06 | K178: 1.247959664e-08 | L178: 80130795.03
G179: 8 | H179: 6 | I179: 0.001347417185 | J179: 4.180683926e-07 | K179: 5.633125367e-10 | L179: 1775213465
G180: 8 | H180: 7 | I180: 0.001347417185 | J180: 1.617519084e-08 | K180: 2.179473011e-11 | L180: 4.588265121e+10
G181: 8 | H181: 8 | I181: 0.001347417185 | J181: 5.475950897e-10 | K181: 7.378390344e-13 | L181: 1.355309157e+12
G182: 0 | H182: 8 | I182: 0.1155738344 | J182: 5.475950897e-10 | K182: =I182*J182 -> 6.328766423e-11 | L182: 1.580086755e+10
G183: 1 | H183: 8 | I183: 0.249390501 | J183: 5.475950897e-10 | K183: 1.365650138e-10 | L183: 7322519674
G184: 2 | H184: 8 | I184: 0.2690731093 | J184: 5.475950897e-10 | K184: 1.473431135e-10 | L184: 6786879797
G185: 3 | H185: 8 | I185: 0.1935394168 | J185: 5.475950897e-10 | K185: 1.059812343e-10 | L185: 9435632699
G186: 4 | H186: 8 | I186: 0.1044070493 | J186: 5.475950897e-10 | K186: 5.717278753e-11 | L186: 1.749083862e+10
G187: 5 | H187: 8 | I187: 0.04505886036 | J187: 5.475950897e-10 | K187: 2.467401068e-11 | L187: 4.052847398e+10
G188: 6 | H188: 8 | I188: 0.0162050113 | J188: 5.475950897e-10 | K188: 8.873784618e-12 | L188: 1.126914888e+11
G189: 7 | H189: 8 | I189: 0.004995416266 | J189: 5.475950897e-10 | K189: 2.735465418e-12 | L189: 3.655685037e+11

Sheet archivio
A1: Lega | B1: Partira | D1: P 1 | E1: P2 | F1: P3 | G1: parziale / parziale | P1: Parziale/Finale | Y1: prono manuale | Z1: ht | AA1: ft
G2: 1/1 | H2: 1/2 | I2: 1/X | J2: X/1 | K2: X/X | L2: 2/X | M2: X/2 | N2: 2/1 | O2: 2/2 | P2: 1/1 | Q2: 1/2 | R2: 1/X | S2: X/1 | T2: X/X | U2: 2/X | V2: X/2 | W2: 2/1 | X2: 2/2
A3: [ Bolivia Primera Division ] | B3: Bolivar | C3: Real Potosi | D3: 3 : 0 | E3: 2 : 0 | F3: 3 : 0 | G3: 0.25 | H3: 0.08108108108 | I3: 0 | J3: 0.4285714286 | K3: 0.1111111111 | L3: 0.05263157895 | M3: 0.08108108108 | N3: 0.1428571429 | O3: 0.08108108108 | P3: 0.2903225806 | Q3: 0 | R3: 0.05263157895 | S3: 0.4285714286 | T3: 0.1111111111 | U3: 0.05263157895 | V3: 0.08108108108 | W3: 0.02564102564 | X3: 0.2121212121
A4: [Iceland Premier Division] | B4: KA Akureyri | C4: Hafnarfjordur | D4: 1 : 1 | E4: 1 : 2 | F4: 1 : 1 | G4: 0.1764705882 | H4: 0.1428571429 | I4: 0.08108108108 | J4: 0.08108108108 | K4: 0.1764705882 | L4: 0.1428571429 | M4: 0.1428571429 | N4: 0.02564102564 | O4: 0.1764705882 | P4: 0.2903225806 | Q4: 0.02564102564 | R4: 0.1111111111 | S4: 0.08108108108 | T4: 0.1764705882 | U4: 0 | V4: 0.1428571429 | W4: 0 | X4: 0.4285714286 | Y4: 2
A5: [Chinese Super League] | B5: Dalian Aerbin | C5: Guangzhou Fuli FC | D5: 0 : 2 | E5: 0 : 1 | F5: 0 : 2 | G5: 0.1428571429 | H5: 0.1111111111 | I5: 0.02564102564 | J5: 0.1111111111 | K5: 0.1764705882 | L5: 0.08108108108 | M5: 0.25 | N5: 0.1111111111 | O5: 0.1428571429 | P5: 0.2121212121 | Q5: 0.02564102564 | R5: 0.05263157895 | S5: 0.1111111111 | T5: 0.1764705882 | U5: 0.02564102564 | V5: 0.25 | W5: 0.05263157895 | X5: 0.2903225806 | AA5: 3-0
A6: [Chinese Super League] | B6: Beijing Guoan | C6: Jiangsu Suning FC | D6: 1 : 1 | E6: 2 : 1 | F6: 1 : 1 | G6: 0.1111111111 | H6: 0.1111111111 | I6: 0.08108108108 | J6: 0.1764705882 | K6: 0.2903225806 | L6: 0.05263157895 | M6: 0.1111111111 | N6: 0.08108108108 | O6: 0.1428571429 | P6: 0.2903225806 | Q6: 0 | R6: 0.05263157895 | S6: 0.1764705882 | T6: 0.2903225806 | U6: 0.02564102564 | V6: 0.1111111111 | W6: 0.02564102564 | X6: 0.25 | AA6: 3-1
A7: [Chinese Super League] | B7: Tianjin Teda | C7: Henan Jianye | D7: 0 : 1 | E7: 1 : 1 | F7: 0 : 1 | G7: 0.1428571429 | H7: 0.08108108108 | I7: 0.2121212121 | J7: 0.05263157895 | K7: 0.1428571429 | L7: 0.2903225806 | M7: 0.1111111111 | N7: 0.1111111111 | O7: 0.02564102564 | P7: 0.4814814815 | Q7: 0 | R7: 0.05263157895 | S7: 0.05263157895 | T7: 0.1428571429 | U7: 0.02564102564 | V7: 0.1111111111 | W7: 0.08108108108 | X7: 0.3333333333 | Z7: 1-0 | AA7: 2-0
A8: [Finland Kolmonen] | B8: FC Espoo 2 | C8: NuPS | D8: 1 : 2 | E8: 1 : 3 | F8: 1 : 2 | G8: 0.2121212121 | H8: 0.1764705882 | I8: 0.08108108108 | J8: 0.02564102564 | K8: 0.1111111111 | L8: 0.1764705882 | M8: 0.05263157895 | N8: 0.1111111111 | O8: 0.2121212121 | P8: 0.4285714286 | Q8: 0.02564102564 | R8: 0.08108108108 | S8: 0.02564102564 | T8: 0.1111111111 | U8: 0.08108108108 | V8: 0.05263157895 | W8: 0.02564102564 | X8: 0.4814814815
A9: [Finland Kolmonen] | B9: HooGee | C9: Poxyt | D9: 0 : 1 | E9: 0 : 0 | F9: 0 : 1 | G9: 0.08108108108 | H9: 0.02564102564 | I9: 0.05263157895 | J9: 0.2121212121 | K9: 0.08108108108 | L9: 0.08108108108 | M9: 0.1428571429 | N9: 0.1428571429 | O9: 0.3793103448 | P9: 0.1428571429 | Q9: 0.02564102564 | R9: 0 | S9: 0.2121212121 | T9: 0.08108108108 | U9: 0.05263157895 | V9: 0.1428571429 | W9: 0.05263157895 | X9: 0.6
A10: [Norwegian Junior U19] | B10: Lyn Fotball U19 | C10: Kongsvinger U19 | D10: 1 : 1 | E10: 2 : 1 | F10: 1 : 1 | G10: 0.25 | H10: 0.02564102564 | I10: 0.1428571429 | J10: 0.1428571429 | K10: 0.05263157895 | L10: 0.08108108108 | M10: 0.1764705882 | N10: 0.05263157895 | O10: 0.25 | P10: 0.5384615385 | Q10: 0 | R10: 0 | S10: 0.1428571429 | T10: 0.05263157895 | U10: 0.02564102564 | V10: 0.1764705882 | W10: 0.02564102564 | X10: 0.3793103448
A11: [Spanish La Liga] | D11: 0 : 0 | E11: 1 : 0 | F11: 0 : 0 | G11: 0.1428571429 | H11: 0.05263157895 | I11: 0.25 | J11: 0.1764705882 | K11: 0.2903225806 | L11: 0.1111111111 | M11: 0.08108108108 | N11: 0.02564102564 | O11: 0.05263157895 | P11: 0.5384615385 | Q11: 0 | R11: 0.02564102564 | S11: 0.1764705882 | T11: 0.2903225806 | U11: 0.02564102564 | V11: 0.08108108108 | W11: 0 | X11: 0.1764705882
A12: PAR D2 | B12: General Caballero | C12: Deportivo Capiata | D12: 2 : 0 | E12: 3 : 0 | F12: 2 : 0 | G12: 0.2580645161 | H12: 0.08333333333 | I12: 0.08333333333 | J12: 0.21875 | K12: 0.2580645161 | L12: 0.08333333333 | M12: 0.08333333333 | N12: 0.1142857143 | O12: 0 | P12: 0.3928571429 | Q12: 0.02631578947 | R12: 0.05405405405 | S12: 0.21875 | T12: 0.2580645161 | U12: 0.08333333333 | V12: 0.08333333333 | W12: 0.02631578947 | X12: 0.08333333333

Sheet TAB
A1: Poisson dağılımına göre Katsayılar | C1: Mümkün Scor | E1: 1 X 2 | F1: =Predictie!E2 -> Club America | G1: - | H1: =Predictie!I2 -> Pumas U.N.A.M. | I1: ALT | J1: ÜST | K1: DAKiKA
C2: =Date!F27-1 -> 2 | D2: =Date!I27-1 -> 0 | E2: Etkinlik | F2: 1 | G2: X | H2: 2 | I2: U | J2: O
A3: 1 | B3: 2 | E3: Olasılık | F3: =Date!D33 -> 82.24387903 | G3: =Date!D34 -> 14.05151245 | H3: =Date!D35 -> 3.489986608 | I3: =Date!D37 -> 54.13443104 | J3: =Date!D38 -> 45.86556896 | L3: 90
A4: =A5*L3/90 -> 2.229773884 | B4: =B5*L3/90 -> 0.2798598248 | C4: Mümkün Scor | E4: ORAN | F4: =100/F3 -> 1.215895957 | G4: =100/G3 -> 7.116671628 | H4: =100/H3 -> 28.65340508 | I4: =100/I3 -> 1.847253182 | J4: =100/J3 -> 2.180284738
A5: =L3*games!F5/90 -> 2.229773884 | B5: =L3*games!F9/90 -> 0.2798598248 | C5: =Date!F27-1 -> 2 | D5: =Date!F27-1 -> 2
E7: TABLO ÜST | I7: OLASILIK | J7: Cota | K7: Scor
E8: Total | F8: OLASILIK | G8: ORAN | I8: =Date!Q81 -> 8.129801253 | J8: =100/I8 -> 12.3004237 | K8: 0 : 0
E9: ÜST 0.5 | F9: =100-F19 -> 91.87019875 | G9: =100/F9 -> 1.088492257 | I9: =Date!Q82 -> 5.073192142 | J9: 19.71145527 | K9: 1 : 1
E10: ÜST 1.5 | F10: =100-F20 -> 71.46737548 | G10: =100/F10 -> 1.399239854 | H10: =TAB!D2&":" -> 0: | I10: =Date!Q83 -> 0.7914485762 | J10: 126.3505969 | K10: 2 : 2
E11: ÜST 2.5 | F11: =100-F21 -> 45.86556896 | G11: =100/F11 -> 2.180284738 | I11: =Date!Q84 -> 0.05487588978 | J11: 1822.293914 | K11: 3 : 3
E12: ÜST 3.5 | F12: =100-F22 -> 24.44851674 | G12: =100/F12 -> 4.090227684 | I12: =Date!Q46 -> 18.12761852 | J12: 5.516444419 | K12: 1 : 0
E13: ÜST 4.5 | F13: =100-F23 -> 11.0112777 | G13: =100/F13 -> 9.081598226 | I13: =Date!Q44 -> 20.21024517 | J13: 4.947985496 | K13: 2 : 0
I14: =Date!Q45 -> 5.656035673 | J14: 17.68022795 | K14: 2 : 1
I15: =Date!Q41 -> 15.02142563 | J15: 6.657157748 | K15: 3 : 0
I16: =Date!Q42 -> 4.203893544 | J16: 23.78747201 | K16: 3 : 1
E17: TABLO ALT | I17: =Date!Q43 -> 0.5882504553 | J17: 169.9956185 | K17: 3 : 2
E18: Total | F18: OLASILIK | G18: ORAN | I18: =Date!Q77 -> 2.275204754 | J18: 43.95208819 | K18: 0 : 1
E19: ALT 0.5 | F19: =Date!Q81 -> 8.129801253 | G19: =100/F19 -> 12.3004237 | I19: =Date!Q75 -> 0.3183692019 | J19: 314.100734 | K19: 0 : 2
E20: ALT 1.5 | F20: =Date!Q46+Date!Q77+Date!Q81 -> 28.53262452 | G20: =100/F20 -> 3.50475996 | I20: =Date!Q76 -> 0.709891332 | J20: 140.8666306 | K20: 1 : 2
E21: ALT 2.5 | F21: =Date!Q46+Date!Q44+Date!Q77+Date!Q75+Date!Q81+Date!Q82 -> 54.13443104 | G21: =100/F21 -> 1.847253182 | I21: =Date!Q72 -> 0.02969958302 | J21: 3367.050639 | K21: 0 : 3
E22: ALT 3.5 | F22: =Date!Q82+Date!Q81+Date!Q77+Date!Q76+Date!Q75+Date!Q72+Date!Q46+Date!Q45+Date!Q44+Date!Q41 -> 75.55148326 | G22: =100/F22 -> 1.323600751 | I22: =Date!Q73 -> 0.06622335459 | J22: 1510.041293 | K22: 1 : 3
E23: ALT 4.5 | F23: =Date!Q81+Date!Q82+Date!Q83+Date!Q77+Date!Q76+Date!Q75+Date!Q73+Date!Q72+Date!Q68+Date!Q46+Date!Q45+Date!Q44+Date!Q42+Date!Q41+Date!Q37 -> 88.9887223 | G23: =100/F23 -> 1.123737901 | I23: =Date!Q74 -> 0.07383155329 | J23: 1354.43446 | K23: 2 : 3
I25: =LARGE(I8:I23,1) -> 20.21024517 | J25: =VLOOKUP(I25,I8:K23,3,FALSE) -> 2 : 0
I26: =LARGE(I8:I23,2) -> 18.12761852 | J26: =VLOOKUP(I26,I8:K23,3,FALSE) -> 1 : 0

Sheet Handicap 3 (hidden)
H1: 90
A2: Numarul de goluri | E2: Probabilitate | K2: Cote
A3: =Poisson!C3 -> Club America | C3: =Poisson!L3 -> Pumas U.N.A.M. | E3: =A3 -> Club America | G3: X | I3: =C3 -> Pumas U.N.A.M. | K3: =E3 -> Club America | M3: =G3 -> X | O3: =I3 -> Pumas U.N.A.M.
A4: ='Predictie POISSON'!A2:B2 -> 1.2 | C4: ='Predictie POISSON'!C2:D2 -> 0.6 | E4: =IF('Predictie POISSON'!E20=-1,SUMIF(S7:S42,1,C7:D42)+SUMIF(T7:T42,1,I7:J42)+SUMIF(U7:U42,1,O7:P42),IF('Predictie POISSON'!E20=1,SUMIF(V7:V42,1,C7:D42)+SUMIF(W7:W42,1,I7:J42)+SUMIF(X7:X42,1,O7:P42))) -> 0.9917302273 | G4: =IF('Predictie POISSON'!E20=-1,SUMIF(S7:S42,"x",C7:D42)+SUMIF(T7:T42,"x",I7:J42)+SUMIF(U7:U42,"x",O7:P42),IF('Predictie POISSON'!E20=1,SUMIF(V7:V42,"x",C7:D42)+SUMIF(W7:W42,"x",I7:J42)+SUMIF(X7:X42,"x",O7:P42))) -> 0.007102184248 | I4: =IF('Predictie POISSON'!E20=-1,SUMIF(S7:S42,2,C7:D42)+SUMIF(T7:T42,2,I7:J42)+SUMIF(U7:U42,2,O7:P42),IF('Predictie POISSON'!E20=1,SUMIF(V7:V42,2,C7:D42)+SUMIF(W7:W42,2,I7:J42)+SUMIF(X7:X42,2,O7:P42))) -> 0.001162713454 | K4: =1/E4 -> 1.008338732 | M4: =1/G4 -> 140.8017541 | O4: =1/I4 -> 860.0571329
B5: =A3 -> Club America | H5: =IF(H1=90,"Final",IF(H1=45,"Pauza","Intermediar")) -> Final | M5: =C3 -> Pumas U.N.A.M. | V5: 3
A6: Rezultat | C6: Probabilitate | E6: Cote | G6: Rezultat | I6: Probabilitate | K6: Cote | M6: Rezultat | O6: Probabilitate | Q6: Cote | S6: - | V6: +
A7: 01:00:00 | C7: =POISSON(HOUR(A7),$A$4*$H$1/90,FALSE)*POISSON(MINUTE(A7),$C$4*$H$1/90,FALSE) -> 0.1983586659 | E7: =1/C7 -> 5.041372887 | G7: 00:00:00 | I7: =POISSON(HOUR(G7),$A$4*$H$1/90,FALSE)*POISSON(MINUTE(G7),$C$4*$H$1/90,FALSE) -> 0.1652988882 | K7: =1/I7 -> 6.049647464 | M7: 00:01:00 | O7: =POISSON(HOUR(M7),$A$4*$H$1/90,FALSE)*POISSON(MINUTE(M7),$C$4*$H$1/90,FALSE) -> 0.09917933293 | Q7: =1/O7 -> 10.08274577 | S7: =IF(HOUR(A7)-MINUTE(A7)>3,1,IF(HOUR(A7)-MINUTE(A7)=3,"X",IF(HOUR(A7)-MINUTE(A7)<3,2))) -> 2 | T7: =IF(G7="","",IF(HOUR(G7)-MINUTE(G7)>3,1,IF(HOUR(G7)-MINUTE(G7)=3,"X",IF(HOUR(G7)-MINUTE(G7)<3,2)))) -> 2 | U7: =IF(M7="","",IF(HOUR(M7)-MINUTE(M7)>3,1,IF(HOUR(M7)-MINUTE(M7)=3,"X",IF(HOUR(M7)-MINUTE(M7)<3,2)))) -> 2 | V7: =IF(HOUR(A7)-MINUTE(A7)>-3,1,IF(HOUR(A7)-MINUTE(A7)=-3,"X",IF(HOUR(A7)-MINUTE(A7)<-3,2))) -> 1 | W7: =IF(G7="","",IF(HOUR(G7)-MINUTE(G7)>-3,1,IF(HOUR(G7)-MINUTE(G7)=-3,"X",IF(HOUR(G7)-MINUTE(G7)<-3,2)))) -> 1 | X7: =IF(M7="","",IF(HOUR(M7)-MINUTE(M7)>-3,1,IF(HOUR(M7)-MINUTE(M7)=-3,"X",IF(HOUR(M7)-MINUTE(M7)<-3,2)))) -> 1
A8: 02:00:00 | C8: =POISSON(HOUR(A8),$A$4*$H$1/90,FALSE)*POISSON(MINUTE(A8),$C$4*$H$1/90,FALSE) -> 0.1190151995 | E8: =1/C8 -> 8.402288145 | G8: 01:01:00 | I8: =POISSON(HOUR(G8),$A$4*$H$1/90,FALSE)*POISSON(MINUTE(G8),$C$4*$H$1/90,FALSE) -> 0.1190151995 | K8: =1/I8 -> 8.402288145 | M8: 00:02:00 | O8: =POISSON(HOUR(M8),$A$4*$H$1/90,FALSE)*POISSON(MINUTE(M8),$C$4*$H$1/90,FALSE) -> 0.02975379988 | Q8: =1/O8 -> 33.60915258 | S8: =IF(HOUR(A8)-MINUTE(A8)>3,1,IF(HOUR(A8)-MINUTE(A8)=3,"X",IF(HOUR(A8)-MINUTE(A8)<3,2))) -> 2 | T8: =IF(G8="","",IF(HOUR(G8)-MINUTE(G8)>3,1,IF(HOUR(G8)-MINUTE(G8)=3,"X",IF(HOUR(G8)-MINUTE(G8)<3,2)))) -> 2 | U8: =IF(M8="","",IF(HOUR(M8)-MINUTE(M8)>3,1,IF(HOUR(M8)-MINUTE(M8)=3,"X",IF(HOUR(M8)-MINUTE(M8)<3,2)))) -> 2 | V8: =IF(HOUR(A8)-MINUTE(A8)>-3,1,IF(HOUR(A8)-MINUTE(A8)=-3,"X",IF(HOUR(A8)-MINUTE(A8)<-3,2))) -> 1 | W8: =IF(G8="","",IF(HOUR(G8)-MINUTE(G8)>-3,1,IF(HOUR(G8)-MINUTE(G8)=-3,"X",IF(HOUR(G8)-MINUTE(G8)<-3,2)))) -> 1 | X8: =IF(M8="","",IF(HOUR(M8)-MINUTE(M8)>-3,1,IF(HOUR(M8)-MINUTE(M8)=-3,"X",IF(HOUR(M8)-MINUTE(M8)<-3,2)))) -> 1
A9: 02:01:00 | C9: 0.07140911971 | E9: 14.00381358 | G9: 02:02:00 | I9: 0.02142273591 | K9: 46.67937858 | M9: 01:02:00 | O9: 0.03570455986 | Q9: 28.00762715 | S9: 2 | T9: 2 | U9: 2 | V9: 1 | W9: 1 | X9: 1
A10: 03:00:00 | C10: 0.04760607981 | E10: 21.00572036 | G10: 03:03:00 | I10: 0.001713818873 | K10: 583.4922323 | M10: 00:03:00 | O10: 0.005950759976 | Q10: 168.0457629 | S10: X | T10: 2 | U10: 2 | V10: 1 | W10: 1 | X10: X
A11: 03:01:00 | C11: 0.02856364788 | E11: 35.00953394 | G11: 04:04:00 | I11: 7.712184929e-05 | K11: 12966.49405 | M11: 01:03:00 | O11: 0.007140911971 | Q11: 140.0381358 | S11: 2 | T11: 2 | U11: 2 | V11: 1 | W11: 1 | X11: 1
A12: 03:02:00 | C12: 0.008569094365 | E12: 116.6984465 | G12: 05:05:00 | I12: 2.22110926e-06 | K12: 450225.4879 | M12: 02:03:00 | O12: 0.004284547183 | Q12: 233.3968929 | S12: 2 | T12: 2 | U12: 2 | V12: 1 | W12: 1 | X12: 1
A13: 04:00:00 | C13: 0.01428182394 | E13: 70.01906788 | G13: 06:06:00 | I13: 4.442218519e-08 | K13: 22511274.39 | M13: 00:04:00 | O13: 0.0008926139964 | Q13: 1120.305086 | S13: 1 | T13: 2 | U13: 2 | V13: 1 | W13: 1 | X13: 2
A14: 04:01:00 | C14: 0.008569094365 | E14: 116.6984465 | G14: 07:07:00 | I14: 6.527341497e-10 | K14: 1532017285 | M14: 01:04:00 | O14: 0.001071136796 | Q14: 933.5875717 | S14: X | T14: 2 | U14: 2 | V14: 1 | W14: 1 | X14: X
A15: 04:02:00 | C15: 0.00257072831 | E15: 388.9948215 | G15: 08:08:00 | I15: 7.343259185e-12 | K15: 1.361793142e+11 | M15: 02:04:00 | O15: 0.0006426820774 | Q15: 1555.979286 | S15: 2 | T15: 2 | U15: 2 | V15: 1 | W15: 1 | X15: 1
A16: 04:03:00 | C16: 0.0005141456619 | E16: 1944.974108 | M16: 03:04:00 | O16: 0.000257072831 | Q16: 3889.948215 | S16: 2 | U16: 2 | V16: 1 | X16: 1
A17: 05:00:00 | C17: 0.003427637746 | E17: 291.7461161 | M17: 00:05:00 | O17: 0.0001071136796 | Q17: 9335.875717 | S17: 1 | U17: 2 | V17: 1 | X17: 2
A18: 05:01:00 | C18: 0.002056582648 | E18: 486.2435269 | M18: 01:05:00 | O18: 0.0001285364155 | Q18: 7779.896431 | S18: 1 | U18: 2 | V18: 1 | X18: 2
A19: 05:02:00 | C19: 0.0006169747943 | E19: 1620.811756 | M19: 02:05:00 | O19: 7.712184929e-05 | Q19: 12966.49405 | S19: X | U19: 2 | V19: 1 | X19: X
A20: 05:03:00 | C20: 0.0001233949589 | E20: 8104.058782 | M20: 03:05:00 | O20: 3.084873972e-05 | Q20: 32416.23513 | S20: 2 | U20: 2 | V20: 1 | X20: 1
A21: 05:04:00 | C21: 1.850924383e-05 | E21: 54027.05855 | M21: 04:05:00 | O21: 9.254621915e-06 | Q21: 108054.1171 | S21: 2 | U21: 2 | V21: 1 | X21: 1
A22: 06:00:00 | C22: 0.0006855275492 | E22: 1458.730581 | M22: 00:06:00 | O22: 1.071136796e-05 | Q22: 93358.75717 | S22: 1 | U22: 2 | V22: 1 | X22: 2
A23: 06:01:00 | C23: 0.0004113165295 | E23: 2431.217635 | M23: 01:06:00 | O23: 1.285364155e-05 | Q23: 77798.96431 | S23: 1 | U23: 2 | V23: 1 | X23: 2
A24: 06:02:00 | C24: 0.0001233949589 | E24: 8104.058782 | M24: 02:06:00 | O24: 7.712184929e-06 | Q24: 129664.9405 | S24: 1 | U24: 2 | V24: 1 | X24: 2
A25: 06:03:00 | C25: 2.467899177e-05 | E25: 40520.29391 | M25: 03:06:00 | O25: 3.084873972e-06 | Q25: 324162.3513 | S25: X | U25: 2 | V25: 1 | X25: X
A26: 06:04:00 | C26: 3.701848766e-06 | E26: 270135.2927 | M26: 04:06:00 | O26: 9.254621915e-07 | Q26: 1080541.171 | S26: 2 | U26: 2 | V26: 1 | X26: 1
A27: 06:05:00 | C27: 4.442218519e-07 | E27: 2251127.439 | M27: 05:06:00 | O27: 2.22110926e-07 | Q27: 4502254.879 | S27: 2 | U27: 2 | V27: 1 | X27: 1
A28: 07:00:00 | C28: 0.0001175190084 | E28: 8509.261721 | M28: 00:07:00 | O28: 9.181172534e-07 | Q28: 1089185.5 | S28: 1 | U28: 2 | V28: 1 | X28: 2
A29: 07:01:00 | C29: 7.051140506e-05 | E29: 14182.10287 | M29: 01:07:00 | O29: 1.101740704e-06 | Q29: 907654.5836 | S29: 1 | U29: 2 | V29: 1 | X29: 2
A30: 07:02:00 | C30: 2.115342152e-05 | E30: 47273.67623 | M30: 02:07:00 | O30: 6.610444225e-07 | Q30: 1512757.639 | S30: 1 | U30: 2 | V30: 1 | X30: 2
A31: 07:03:00 | C31: 4.230684304e-06 | E31: 236368.3811 | M31: 03:07:00 | O31: 2.64417769e-07 | Q31: 3781894.098 | S31: 1 | U31: 2 | V31: 1 | X31: 2
A32: 07:04:00 | C32: 6.346026456e-07 | E32: 1575789.208 | M32: 04:07:00 | O32: 7.93253307e-08 | Q32: 12606313.66 | S32: X | U32: 2 | V32: 1 | X32: X
A33: 07:05:00 | C33: 7.615231747e-08 | E33: 13131576.73 | M33: 05:07:00 | O33: 1.903807937e-08 | Q33: 52526306.92 | S33: 2 | U33: 2 | V33: 1 | X33: 1
A34: 07:06:00 | C34: 7.615231747e-09 | E34: 131315767.3 | M34: 06:07:00 | O34: 3.807615873e-09 | Q34: 262631534.6 | S34: 2 | U34: 2 | V34: 1 | X34: 1
A35: 08:00:00 | C35: 1.762785127e-05 | E35: 56728.41147 | M35: 00:08:00 | O35: 6.885879401e-08 | Q35: 14522473.34 | S35: 1 | U35: 2 | V35: 1 | X35: 2
A36: 08:01:00 | C36: 1.057671076e-05 | E36: 94547.35245 | M36: 01:08:00 | O36: 8.263055281e-08 | Q36: 12102061.11 | S36: 1 | U36: 2 | V36: 1 | X36: 2
A37: 08:02:00 | C37: 3.173013228e-06 | E37: 315157.8415 | M37: 02:08:00 | O37: 4.957833169e-08 | Q37: 20170101.86 | S37: 1 | U37: 2 | V37: 1 | X37: 2
A38: 08:03:00 | C38: 6.346026456e-07 | E38: 1575789.208 | M38: 03:08:00 | O38: 1.983133267e-08 | Q38: 50425254.64 | S38: 1 | U38: 2 | V38: 1 | X38: 2
A39: 08:04:00 | C39: 9.519039684e-08 | E39: 10505261.38 | M39: 04:08:00 | O39: 5.949399802e-09 | Q39: 168084182.1 | S39: 1 | U39: 2 | V39: 1 | X39: 2
A40: 08:05:00 | C40: 1.142284762e-08 | E40: 87543844.87 | M40: 05:08:00 | O40: 1.427855953e-09 | Q40: 700350758.9 | S40: X | U40: 2 | V40: 1 | X40: X
A41: 08:06:00 | C41: 1.142284762e-09 | E41: 875438448.7 | M41: 06:08:00 | O41: 2.855711905e-10 | Q41: 3501753795 | S41: 2 | U41: 2 | V41: 1 | X41: 1
A42: 08:07:00 | C42: 9.791012246e-11 | E42: 1.021344857e+10 | M42: 07:08:00 | O42: 4.895506123e-11 | Q42: 2.042689714e+10 | S42: 2 | U42: 2 | V42: 1 | X42: 1

Sheet Handicap 2 (hidden)
H1: 90
A2: Numarul de goluri | E2: Probabilitate | K2: Cote
A3: =Poisson!C3 -> Club America | C3: =Poisson!L3 -> Pumas U.N.A.M. | E3: =A3 -> Club America | G3: X | I3: =C3 -> Pumas U.N.A.M. | K3: =E3 -> Club America | M3: =G3 -> X | O3: =I3 -> Pumas U.N.A.M.
A4: ='Predictie POISSON'!A2:B2 -> 1.2 | C4: ='Predictie POISSON'!C2:D2 -> 0.6 | E4: =IF('Predictie POISSON'!E20=-1,SUMIF(S7:S42,1,C7:D42)+SUMIF(T7:T42,1,I7:J42)+SUMIF(U7:U42,1,O7:P42),IF('Predictie POISSON'!E20=1,SUMIF(V7:V42,1,C7:D42)+SUMIF(W7:W42,1,I7:J42)+SUMIF(X7:X42,1,O7:P42))) -> 0.9541610398 | G4: =IF('Predictie POISSON'!E20=-1,SUMIF(S7:S42,"x",C7:D42)+SUMIF(T7:T42,"x",I7:J42)+SUMIF(U7:U42,"x",O7:P42),IF('Predictie POISSON'!E20=1,SUMIF(V7:V42,"x",C7:D42)+SUMIF(W7:W42,"x",I7:J42)+SUMIF(X7:X42,"x",O7:P42))) -> 0.03756918745 | I4: =IF('Predictie POISSON'!E20=-1,SUMIF(S7:S42,2,C7:D42)+SUMIF(T7:T42,2,I7:J42)+SUMIF(U7:U42,2,O7:P42),IF('Predictie POISSON'!E20=1,SUMIF(V7:V42,2,C7:D42)+SUMIF(W7:W42,2,I7:J42)+SUMIF(X7:X42,2,O7:P42))) -> 0.008264897703 | K4: =1/E4 -> 1.048041115 | M4: =1/G4 -> 26.61755731 | O4: =1/I4 -> 120.9936331
B5: =A3 -> Club America | H5: =IF(H1=90,"Final",IF(H1=45,"Pauza","Intermediar")) -> Final | M5: =C3 -> Pumas U.N.A.M. | V5: 2
A6: Rezultat | C6: Probabilitate | E6: Cote | G6: Rezultat | I6: Probabilitate | K6: Cote | M6: Rezultat | O6: Probabilitate | Q6: Cote | S6: - | V6: +
A7: 01:00:00 | C7: =POISSON(HOUR(A7),$A$4*$H$1/90,FALSE)*POISSON(MINUTE(A7),$C$4*$H$1/90,FALSE) -> 0.1983586659 | E7: =1/C7 -> 5.041372887 | G7: 00:00:00 | I7: =POISSON(HOUR(G7),$A$4*$H$1/90,FALSE)*POISSON(MINUTE(G7),$C$4*$H$1/90,FALSE) -> 0.1652988882 | K7: =1/I7 -> 6.049647464 | M7: 00:01:00 | O7: =POISSON(HOUR(M7),$A$4*$H$1/90,FALSE)*POISSON(MINUTE(M7),$C$4*$H$1/90,FALSE) -> 0.09917933293 | Q7: =1/O7 -> 10.08274577 | S7: =IF(HOUR(A7)-MINUTE(A7)>2,1,IF(HOUR(A7)-MINUTE(A7)=2,"X",IF(HOUR(A7)-MINUTE(A7)<2,2))) -> 2 | T7: =IF(G7="","",IF(HOUR(G7)-MINUTE(G7)>2,1,IF(HOUR(G7)-MINUTE(G7)=2,"X",IF(HOUR(G7)-MINUTE(G7)<2,2)))) -> 2 | U7: =IF(M7="","",IF(HOUR(M7)-MINUTE(M7)>2,1,IF(HOUR(M7)-MINUTE(M7)=2,"X",IF(HOUR(M7)-MINUTE(M7)<2,2)))) -> 2 | V7: =IF(HOUR(A7)-MINUTE(A7)>-2,1,IF(HOUR(A7)-MINUTE(A7)=-2,"X",IF(HOUR(A7)-MINUTE(A7)<-2,2))) -> 1 | W7: =IF(G7="","",IF(HOUR(G7)-MINUTE(G7)>-2,1,IF(HOUR(G7)-MINUTE(G7)=-2,"X",IF(HOUR(G7)-MINUTE(G7)<-2,2)))) -> 1 | X7: =IF(M7="","",IF(HOUR(M7)-MINUTE(M7)>-2,1,IF(HOUR(M7)-MINUTE(M7)=-2,"X",IF(HOUR(M7)-MINUTE(M7)<-2,2)))) -> 1
A8: 02:00:00 | C8: =POISSON(HOUR(A8),$A$4*$H$1/90,FALSE)*POISSON(MINUTE(A8),$C$4*$H$1/90,FALSE) -> 0.1190151995 | E8: =1/C8 -> 8.402288145 | G8: 01:01:00 | I8: =POISSON(HOUR(G8),$A$4*$H$1/90,FALSE)*POISSON(MINUTE(G8),$C$4*$H$1/90,FALSE) -> 0.1190151995 | K8: =1/I8 -> 8.402288145 | M8: 00:02:00 | O8: =POISSON(HOUR(M8),$A$4*$H$1/90,FALSE)*POISSON(MINUTE(M8),$C$4*$H$1/90,FALSE) -> 0.02975379988 | Q8: =1/O8 -> 33.60915258 | S8: =IF(HOUR(A8)-MINUTE(A8)>2,1,IF(HOUR(A8)-MINUTE(A8)=2,"X",IF(HOUR(A8)-MINUTE(A8)<2,2))) -> X | T8: =IF(G8="","",IF(HOUR(G8)-MINUTE(G8)>2,1,IF(HOUR(G8)-MINUTE(G8)=2,"X",IF(HOUR(G8)-MINUTE(G8)<2,2)))) -> 2 | U8: =IF(M8="","",IF(HOUR(M8)-MINUTE(M8)>2,1,IF(HOUR(M8)-MINUTE(M8)=2,"X",IF(HOUR(M8)-MINUTE(M8)<2,2)))) -> 2 | V8: =IF(HOUR(A8)-MINUTE(A8)>-2,1,IF(HOUR(A8)-MINUTE(A8)=-2,"X",IF(HOUR(A8)-MINUTE(A8)<-2,2))) -> 1 | W8: =IF(G8="","",IF(HOUR(G8)-MINUTE(G8)>-2,1,IF(HOUR(G8)-MINUTE(G8)=-2,"X",IF(HOUR(G8)-MINUTE(G8)<-2,2)))) -> 1 | X8: =IF(M8="","",IF(HOUR(M8)-MINUTE(M8)>-2,1,IF(HOUR(M8)-MINUTE(M8)=-2,"X",IF(HOUR(M8)-MINUTE(M8)<-2,2)))) -> X
A9: 02:01:00 | C9: 0.07140911971 | E9: 14.00381358 | G9: 02:02:00 | I9: 0.02142273591 | K9: 46.67937858 | M9: 01:02:00 | O9: 0.03570455986 | Q9: 28.00762715 | S9: 2 | T9: 2 | U9: 2 | V9: 1 | W9: 1 | X9: 1
A10: 03:00:00 | C10: 0.04760607981 | E10: 21.00572036 | G10: 03:03:00 | I10: 0.001713818873 | K10: 583.4922323 | M10: 00:03:00 | O10: 0.005950759976 | Q10: 168.0457629 | S10: 1 | T10: 2 | U10: 2 | V10: 1 | W10: 1 | X10: 2
A11: 03:01:00 | C11: 0.02856364788 | E11: 35.00953394 | G11: 04:04:00 | I11: 7.712184929e-05 | K11: 12966.49405 | M11: 01:03:00 | O11: 0.007140911971 | Q11: 140.0381358 | S11: X | T11: 2 | U11: 2 | V11: 1 | W11: 1 | X11: X
A12: 03:02:00 | C12: 0.008569094365 | E12: 116.6984465 | G12: 05:05:00 | I12: 2.22110926e-06 | K12: 450225.4879 | M12: 02:03:00 | O12: 0.004284547183 | Q12: 233.3968929 | S12: 2 | T12: 2 | U12: 2 | V12: 1 | W12: 1 | X12: 1
A13: 04:00:00 | C13: 0.01428182394 | E13: 70.01906788 | G13: 06:06:00 | I13: 4.442218519e-08 | K13: 22511274.39 | M13: 00:04:00 | O13: 0.0008926139964 | Q13: 1120.305086 | S13: 1 | T13: 2 | U13: 2 | V13: 1 | W13: 1 | X13: 2
A14: 04:01:00 | C14: 0.008569094365 | E14: 116.6984465 | G14: 07:07:00 | I14: 6.527341497e-10 | K14: 1532017285 | M14: 01:04:00 | O14: 0.001071136796 | Q14: 933.5875717 | S14: 1 | T14: 2 | U14: 2 | V14: 1 | W14: 1 | X14: 2
A15: 04:02:00 | C15: 0.00257072831 | E15: 388.9948215 | G15: 08:08:00 | I15: 7.343259185e-12 | K15: 1.361793142e+11 | M15: 02:04:00 | O15: 0.0006426820774 | Q15: 1555.979286 | S15: X | T15: 2 | U15: 2 | V15: 1 | W15: 1 | X15: X
A16: 04:03:00 | C16: 0.0005141456619 | E16: 1944.974108 | M16: 03:04:00 | O16: 0.000257072831 | Q16: 3889.948215 | S16: 2 | U16: 2 | V16: 1 | X16: 1
A17: 05:00:00 | C17: 0.003427637746 | E17: 291.7461161 | M17: 00:05:00 | O17: 0.0001071136796 | Q17: 9335.875717 | S17: 1 | U17: 2 | V17: 1 | X17: 2
A18: 05:01:00 | C18: 0.002056582648 | E18: 486.2435269 | M18: 01:05:00 | O18: 0.0001285364155 | Q18: 7779.896431 | S18: 1 | U18: 2 | V18: 1 | X18: 2
A19: 05:02:00 | C19: 0.0006169747943 | E19: 1620.811756 | M19: 02:05:00 | O19: 7.712184929e-05 | Q19: 12966.49405 | S19: 1 | U19: 2 | V19: 1 | X19: 2
A20: 05:03:00 | C20: 0.0001233949589 | E20: 8104.058782 | M20: 03:05:00 | O20: 3.084873972e-05 | Q20: 32416.23513 | S20: X | U20: 2 | V20: 1 | X20: X
A21: 05:04:00 | C21: 1.850924383e-05 | E21: 54027.05855 | M21: 04:05:00 | O21: 9.254621915e-06 | Q21: 108054.1171 | S21: 2 | U21: 2 | V21: 1 | X21: 1
A22: 06:00:00 | C22: 0.0006855275492 | E22: 1458.730581 | M22: 00:06:00 | O22: 1.071136796e-05 | Q22: 93358.75717 | S22: 1 | U22: 2 | V22: 1 | X22: 2
A23: 06:01:00 | C23: 0.0004113165295 | E23: 2431.217635 | M23: 01:06:00 | O23: 1.285364155e-05 | Q23: 77798.96431 | S23: 1 | U23: 2 | V23: 1 | X23: 2
A24: 06:02:00 | C24: 0.0001233949589 | E24: 8104.058782 | M24: 02:06:00 | O24: 7.712184929e-06 | Q24: 129664.9405 | S24: 1 | U24: 2 | V24: 1 | X24: 2
A25: 06:03:00 | C25: 2.467899177e-05 | E25: 40520.29391 | M25: 03:06:00 | O25: 3.084873972e-06 | Q25: 324162.3513 | S25: 1 | U25: 2 | V25: 1 | X25: 2
A26: 06:04:00 | C26: 3.701848766e-06 | E26: 270135.2927 | M26: 04:06:00 | O26: 9.254621915e-07 | Q26: 1080541.171 | S26: X | U26: 2 | V26: 1 | X26: X
A27: 06:05:00 | C27: 4.442218519e-07 | E27: 2251127.439 | M27: 05:06:00 | O27: 2.22110926e-07 | Q27: 4502254.879 | S27: 2 | U27: 2 | V27: 1 | X27: 1
A28: 07:00:00 | C28: 0.0001175190084 | E28: 8509.261721 | M28: 00:07:00 | O28: 9.181172534e-07 | Q28: 1089185.5 | S28: 1 | U28: 2 | V28: 1 | X28: 2
A29: 07:01:00 | C29: 7.051140506e-05 | E29: 14182.10287 | M29: 01:07:00 | O29: 1.101740704e-06 | Q29: 907654.5836 | S29: 1 | U29: 2 | V29: 1 | X29: 2
A30: 07:02:00 | C30: 2.115342152e-05 | E30: 47273.67623 | M30: 02:07:00 | O30: 6.610444225e-07 | Q30: 1512757.639 | S30: 1 | U30: 2 | V30: 1 | X30: 2
A31: 07:03:00 | C31: 4.230684304e-06 | E31: 236368.3811 | M31: 03:07:00 | O31: 2.64417769e-07 | Q31: 3781894.098 | S31: 1 | U31: 2 | V31: 1 | X31: 2
A32: 07:04:00 | C32: 6.346026456e-07 | E32: 1575789.208 | M32: 04:07:00 | O32: 7.93253307e-08 | Q32: 12606313.66 | S32: 1 | U32: 2 | V32: 1 | X32: 2
A33: 07:05:00 | C33: 7.615231747e-08 | E33: 13131576.73 | M33: 05:07:00 | O33: 1.903807937e-08 | Q33: 52526306.92 | S33: X | U33: 2 | V33: 1 | X33: X
A34: 07:06:00 | C34: 7.615231747e-09 | E34: 131315767.3 | M34: 06:07:00 | O34: 3.807615873e-09 | Q34: 262631534.6 | S34: 2 | U34: 2 | V34: 1 | X34: 1
A35: 08:00:00 | C35: 1.762785127e-05 | E35: 56728.41147 | M35: 00:08:00 | O35: 6.885879401e-08 | Q35: 14522473.34 | S35: 1 | U35: 2 | V35: 1 | X35: 2
A36: 08:01:00 | C36: 1.057671076e-05 | E36: 94547.35245 | M36: 01:08:00 | O36: 8.263055281e-08 | Q36: 12102061.11 | S36: 1 | U36: 2 | V36: 1 | X36: 2
A37: 08:02:00 | C37: 3.173013228e-06 | E37: 315157.8415 | M37: 02:08:00 | O37: 4.957833169e-08 | Q37: 20170101.86 | S37: 1 | U37: 2 | V37: 1 | X37: 2
A38: 08:03:00 | C38: 6.346026456e-07 | E38: 1575789.208 | M38: 03:08:00 | O38: 1.983133267e-08 | Q38: 50425254.64 | S38: 1 | U38: 2 | V38: 1 | X38: 2
A39: 08:04:00 | C39: 9.519039684e-08 | E39: 10505261.38 | M39: 04:08:00 | O39: 5.949399802e-09 | Q39: 168084182.1 | S39: 1 | U39: 2 | V39: 1 | X39: 2
A40: 08:05:00 | C40: 1.142284762e-08 | E40: 87543844.87 | M40: 05:08:00 | O40: 1.427855953e-09 | Q40: 700350758.9 | S40: 1 | U40: 2 | V40: 1 | X40: 2
A41: 08:06:00 | C41: 1.142284762e-09 | E41: 875438448.7 | M41: 06:08:00 | O41: 2.855711905e-10 | Q41: 3501753795 | S41: X | U41: 2 | V41: 1 | X41: X
A42: 08:07:00 | C42: 9.791012246e-11 | E42: 1.021344857e+10 | M42: 07:08:00 | O42: 4.895506123e-11 | Q42: 2.042689714e+10 | S42: 2 | U42: 2 | V42: 1 | X42: 1

Sheet Handicap 1 (hidden)
H1: 90
A2: Numarul de goluri | E2: Probabilitate | K2: Cote
A3: =Poisson!C3 -> Club America | C3: =Poisson!L3 -> Pumas U.N.A.M. | E3: =A3 -> Club America | G3: X | I3: =C3 -> Pumas U.N.A.M. | K3: =E3 -> Club America | M3: =G3 -> X | O3: =I3 -> Pumas U.N.A.M.
A4: =Poisson!E72 -> 1.2 | C4: =Poisson!E75 -> 0.6 | E4: =IF('Predictie POISSON'!E20=-1,SUMIF(S7:S42,1,C7:D42)+SUMIF(T7:T42,1,I7:J42)+SUMIF(U7:U42,1,O7:P42),IF('Predictie POISSON'!E20=1,SUMIF(V7:V42,1,C7:D42)+SUMIF(W7:W42,1,I7:J42)+SUMIF(X7:X42,1,O7:P42))) -> 0.8147260464 | G4: =IF('Predictie POISSON'!E20=-1,SUMIF(S7:S42,"x",C7:D42)+SUMIF(T7:T42,"x",I7:J42)+SUMIF(U7:U42,"x",O7:P42),IF('Predictie POISSON'!E20=1,SUMIF(V7:V42,"x",C7:D42)+SUMIF(W7:W42,"x",I7:J42)+SUMIF(X7:X42,"x",O7:P42))) -> 0.1394349934 | I4: =IF('Predictie POISSON'!E20=-1,SUMIF(S7:S42,2,C7:D42)+SUMIF(T7:T42,2,I7:J42)+SUMIF(U7:U42,2,O7:P42),IF('Predictie POISSON'!E20=1,SUMIF(V7:V42,2,C7:D42)+SUMIF(W7:W42,2,I7:J42)+SUMIF(X7:X42,2,O7:P42))) -> 0.04583408516 | K4: =1/E4 -> 1.227406445 | M4: =1/G4 -> 7.17180082 | O4: =1/I4 -> 21.81782393
B5: =A3 -> Club America | H5: =IF(H1=90,"Final",IF(H1=45,"Pauza","Intermediar")) -> Final | M5: =C3 -> Pumas U.N.A.M. | V5: 1
A6: Rezultat | C6: Probabilitate | E6: Cote | G6: Rezultat | I6: Probabilitate | K6: Cote | M6: Rezultat | O6: Probabilitate | Q6: Cote | S6: - | V6: +
A7: 01:00:00 | C7: =POISSON(HOUR(A7),$A$4*$H$1/90,FALSE)*POISSON(MINUTE(A7),$C$4*$H$1/90,FALSE) -> 0.1983586659 | E7: =1/C7 -> 5.041372887 | G7: 00:00:00 | I7: =POISSON(HOUR(G7),$A$4*$H$1/90,FALSE)*POISSON(MINUTE(G7),$C$4*$H$1/90,FALSE) -> 0.1652988882 | K7: =1/I7 -> 6.049647464 | M7: 00:01:00 | O7: =POISSON(HOUR(M7),$A$4*$H$1/90,FALSE)*POISSON(MINUTE(M7),$C$4*$H$1/90,FALSE) -> 0.09917933293 | Q7: =1/O7 -> 10.08274577 | S7: =IF(HOUR(A7)-MINUTE(A7)>1,1,IF(HOUR(A7)-MINUTE(A7)=1,"X",IF(HOUR(A7)-MINUTE(A7)<1,2))) -> X | T7: =IF(G7="","",IF(HOUR(G7)-MINUTE(G7)>1,1,IF(HOUR(G7)-MINUTE(G7)=1,"X",IF(HOUR(G7)-MINUTE(G7)<1,2)))) -> 2 | U7: =IF(M7="","",IF(HOUR(M7)-MINUTE(M7)>1,1,IF(HOUR(M7)-MINUTE(M7)=1,"X",IF(HOUR(M7)-MINUTE(M7)<1,2)))) -> 2 | V7: =IF(HOUR(A7)-MINUTE(A7)>-1,1,IF(HOUR(A7)-MINUTE(A7)=-1,"X",IF(HOUR(A7)-MINUTE(A7)<-1,2))) -> 1 | W7: =IF(G7="","",IF(HOUR(G7)-MINUTE(G7)>-1,1,IF(HOUR(G7)-MINUTE(G7)=-1,"X",IF(HOUR(G7)-MINUTE(G7)<-1,2)))) -> 1 | X7: =IF(M7="","",IF(HOUR(M7)-MINUTE(M7)>-1,1,IF(HOUR(M7)-MINUTE(M7)=-1,"X",IF(HOUR(M7)-MINUTE(M7)<-1,2)))) -> X
A8: 02:00:00 | C8: =POISSON(HOUR(A8),$A$4*$H$1/90,FALSE)*POISSON(MINUTE(A8),$C$4*$H$1/90,FALSE) -> 0.1190151995 | E8: =1/C8 -> 8.402288145 | G8: 01:01:00 | I8: =POISSON(HOUR(G8),$A$4*$H$1/90,FALSE)*POISSON(MINUTE(G8),$C$4*$H$1/90,FALSE) -> 0.1190151995 | K8: =1/I8 -> 8.402288145 | M8: 00:02:00 | O8: =POISSON(HOUR(M8),$A$4*$H$1/90,FALSE)*POISSON(MINUTE(M8),$C$4*$H$1/90,FALSE) -> 0.02975379988 | Q8: =1/O8 -> 33.60915258 | S8: =IF(HOUR(A8)-MINUTE(A8)>1,1,IF(HOUR(A8)-MINUTE(A8)=1,"X",IF(HOUR(A8)-MINUTE(A8)<1,2))) -> 1 | T8: =IF(G8="","",IF(HOUR(G8)-MINUTE(G8)>1,1,IF(HOUR(G8)-MINUTE(G8)=1,"X",IF(HOUR(G8)-MINUTE(G8)<1,2)))) -> 2 | U8: =IF(M8="","",IF(HOUR(M8)-MINUTE(M8)>1,1,IF(HOUR(M8)-MINUTE(M8)=1,"X",IF(HOUR(M8)-MINUTE(M8)<1,2)))) -> 2 | V8: =IF(HOUR(A8)-MINUTE(A8)>-1,1,IF(HOUR(A8)-MINUTE(A8)=-1,"X",IF(HOUR(A8)-MINUTE(A8)<-1,2))) -> 1 | W8: =IF(G8="","",IF(HOUR(G8)-MINUTE(G8)>-1,1,IF(HOUR(G8)-MINUTE(G8)=-1,"X",IF(HOUR(G8)-MINUTE(G8)<-1,2)))) -> 1 | X8: =IF(M8="","",IF(HOUR(M8)-MINUTE(M8)>-1,1,IF(HOUR(M8)-MINUTE(M8)=-1,"X",IF(HOUR(M8)-MINUTE(M8)<-1,2)))) -> 2
A9: 02:01:00 | C9: 0.07140911971 | E9: 14.00381358 | G9: 02:02:00 | I9: 0.02142273591 | K9: 46.67937858 | M9: 01:02:00 | O9: 0.03570455986 | Q9: 28.00762715 | S9: X | T9: 2 | U9: 2 | V9: 1 | W9: 1 | X9: =IF(M9="","",IF(HOUR(M9)-MINUTE(M9)>-1,1,IF(HOUR(M9)-MINUTE(M9)=-1,"X",IF(HOUR(M9)-MINUTE(M9)<-1,2)))) -> X
A10: 03:00:00 | C10: 0.04760607981 | E10: 21.00572036 | G10: 03:03:00 | I10: 0.001713818873 | K10: 583.4922323 | M10: 00:03:00 | O10: 0.005950759976 | Q10: 168.0457629 | S10: 1 | T10: 2 | U10: 2 | V10: 1 | W10: 1 | X10: 2
A11: 03:01:00 | C11: 0.02856364788 | E11: 35.00953394 | G11: 04:04:00 | I11: 7.712184929e-05 | K11: 12966.49405 | M11: 01:03:00 | O11: 0.007140911971 | Q11: 140.0381358 | S11: 1 | T11: 2 | U11: 2 | V11: 1 | W11: 1 | X11: 2
A12: 03:02:00 | C12: 0.008569094365 | E12: 116.6984465 | G12: 05:05:00 | I12: 2.22110926e-06 | K12: 450225.4879 | M12: 02:03:00 | O12: 0.004284547183 | Q12: 233.3968929 | S12: X | T12: 2 | U12: 2 | V12: 1 | W12: 1 | X12: X
A13: 04:00:00 | C13: 0.01428182394 | E13: 70.01906788 | G13: 06:06:00 | I13: 4.442218519e-08 | K13: 22511274.39 | M13: 00:04:00 | O13: 0.0008926139964 | Q13: 1120.305086 | S13: 1 | T13: 2 | U13: 2 | V13: 1 | W13: 1 | X13: 2
A14: 04:01:00 | C14: 0.008569094365 | E14: 116.6984465 | G14: 07:07:00 | I14: 6.527341497e-10 | K14: 1532017285 | M14: 01:04:00 | O14: 0.001071136796 | Q14: 933.5875717 | S14: 1 | T14: 2 | U14: 2 | V14: 1 | W14: 1 | X14: 2
A15: 04:02:00 | C15: 0.00257072831 | E15: 388.9948215 | G15: 08:08:00 | I15: 7.343259185e-12 | K15: 1.361793142e+11 | M15: 02:04:00 | O15: 0.0006426820774 | Q15: 1555.979286 | S15: 1 | T15: 2 | U15: 2 | V15: 1 | W15: 1 | X15: 2
A16: 04:03:00 | C16: 0.0005141456619 | E16: 1944.974108 | M16: 03:04:00 | O16: 0.000257072831 | Q16: 3889.948215 | S16: X | U16: 2 | V16: 1 | X16: X
A17: 05:00:00 | C17: 0.003427637746 | E17: 291.7461161 | M17: 00:05:00 | O17: 0.0001071136796 | Q17: 9335.875717 | S17: 1 | U17: 2 | V17: 1 | X17: 2
A18: 05:01:00 | C18: 0.002056582648 | E18: 486.2435269 | M18: 01:05:00 | O18: 0.0001285364155 | Q18: 7779.896431 | S18: 1 | U18: 2 | V18: 1 | X18: 2
A19: 05:02:00 | C19: 0.0006169747943 | E19: 1620.811756 | M19: 02:05:00 | O19: 7.712184929e-05 | Q19: 12966.49405 | S19: 1 | U19: 2 | V19: 1 | X19: 2
A20: 05:03:00 | C20: 0.0001233949589 | E20: 8104.058782 | M20: 03:05:00 | O20: 3.084873972e-05 | Q20: 32416.23513 | S20: 1 | U20: 2 | V20: 1 | X20: 2
A21: 05:04:00 | C21: 1.850924383e-05 | E21: 54027.05855 | M21: 04:05:00 | O21: 9.254621915e-06 | Q21: 108054.1171 | S21: X | U21: 2 | V21: 1 | X21: X
A22: 06:00:00 | C22: 0.0006855275492 | E22: 1458.730581 | M22: 00:06:00 | O22: 1.071136796e-05 | Q22: 93358.75717 | S22: 1 | U22: 2 | V22: 1 | X22: 2
A23: 06:01:00 | C23: 0.0004113165295 | E23: 2431.217635 | M23: 01:06:00 | O23: 1.285364155e-05 | Q23: 77798.96431 | S23: 1 | U23: 2 | V23: 1 | X23: 2
A24: 06:02:00 | C24: 0.0001233949589 | E24: 8104.058782 | M24: 02:06:00 | O24: 7.712184929e-06 | Q24: 129664.9405 | S24: 1 | U24: 2 | V24: 1 | X24: 2
A25: 06:03:00 | C25: 2.467899177e-05 | E25: 40520.29391 | M25: 03:06:00 | O25: 3.084873972e-06 | Q25: 324162.3513 | S25: 1 | U25: 2 | V25: 1 | X25: 2
A26: 06:04:00 | C26: 3.701848766e-06 | E26: 270135.2927 | M26: 04:06:00 | O26: 9.254621915e-07 | Q26: 1080541.171 | S26: 1 | U26: 2 | V26: 1 | X26: 2
A27: 06:05:00 | C27: 4.442218519e-07 | E27: 2251127.439 | M27: 05:06:00 | O27: 2.22110926e-07 | Q27: 4502254.879 | S27: X | U27: 2 | V27: 1 | X27: X
A28: 07:00:00 | C28: 0.0001175190084 | E28: 8509.261721 | M28: 00:07:00 | O28: 9.181172534e-07 | Q28: 1089185.5 | S28: 1 | U28: 2 | V28: 1 | X28: 2
A29: 07:01:00 | C29: 7.051140506e-05 | E29: 14182.10287 | M29: 01:07:00 | O29: 1.101740704e-06 | Q29: 907654.5836 | S29: 1 | U29: 2 | V29: 1 | X29: 2
A30: 07:02:00 | C30: 2.115342152e-05 | E30: 47273.67623 | M30: 02:07:00 | O30: 6.610444225e-07 | Q30: 1512757.639 | S30: 1 | U30: 2 | V30: 1 | X30: 2
A31: 07:03:00 | C31: 4.230684304e-06 | E31: 236368.3811 | M31: 03:07:00 | O31: 2.64417769e-07 | Q31: 3781894.098 | S31: 1 | U31: 2 | V31: =IF(HOUR(A31)-MINUTE(A31)>-1,1,IF(HOUR(A31)-MINUTE(A31)=-1,"X",IF(HOUR(A31)-MINUTE(A31)<-1,2))) -> 1 | X31: 2
A32: 07:04:00 | C32: 6.346026456e-07 | E32: 1575789.208 | M32: 04:07:00 | O32: 7.93253307e-08 | Q32: 12606313.66 | S32: 1 | U32: 2 | V32: 1 | X32: 2
A33: 07:05:00 | C33: 7.615231747e-08 | E33: 13131576.73 | M33: 05:07:00 | O33: 1.903807937e-08 | Q33: 52526306.92 | S33: 1 | U33: 2 | V33: 1 | X33: 2
A34: 07:06:00 | C34: 7.615231747e-09 | E34: 131315767.3 | M34: 06:07:00 | O34: 3.807615873e-09 | Q34: 262631534.6 | S34: X | U34: 2 | V34: 1 | X34: X
A35: 08:00:00 | C35: 1.762785127e-05 | E35: 56728.41147 | M35: 00:08:00 | O35: 6.885879401e-08 | Q35: 14522473.34 | S35: 1 | U35: 2 | V35: 1 | X35: 2
A36: 08:01:00 | C36: 1.057671076e-05 | E36: 94547.35245 | M36: 01:08:00 | O36: 8.263055281e-08 | Q36: 12102061.11 | S36: 1 | U36: 2 | V36: 1 | X36: 2
A37: 08:02:00 | C37: 3.173013228e-06 | E37: 315157.8415 | M37: 02:08:00 | O37: 4.957833169e-08 | Q37: 20170101.86 | S37: 1 | U37: 2 | V37: 1 | X37: 2
A38: 08:03:00 | C38: 6.346026456e-07 | E38: 1575789.208 | M38: 03:08:00 | O38: 1.983133267e-08 | Q38: 50425254.64 | S38: 1 | U38: 2 | V38: 1 | X38: 2
A39: 08:04:00 | C39: 9.519039684e-08 | E39: 10505261.38 | M39: 04:08:00 | O39: 5.949399802e-09 | Q39: 168084182.1 | S39: 1 | U39: 2 | V39: 1 | X39: 2
A40: 08:05:00 | C40: 1.142284762e-08 | E40: 87543844.87 | M40: 05:08:00 | O40: 1.427855953e-09 | Q40: 700350758.9 | S40: 1 | U40: 2 | V40: 1 | X40: 2
A41: 08:06:00 | C41: 1.142284762e-09 | E41: 875438448.7 | M41: 06:08:00 | O41: 2.855711905e-10 | Q41: 3501753795 | S41: 1 | U41: 2 | V41: 1 | X41: 2
A42: 08:07:00 | C42: 9.791012246e-11 | E42: 1.021344857e+10 | M42: 07:08:00 | O42: 4.895506123e-11 | Q42: 2.042689714e+10 | S42: X | U42: 2 | V42: 1 | X42: X

Sheet PRONOSTIC (hidden)
A2: Home | B2: Squadre | D2: Attacco | E2: Difesa | F2: Forza Attacco | G2: Percentuali % | M2: Final | O2: O/U 2.5 | Q2: Gol
B3: =B27 -> Club America | D3: =B30 -> 1.322222222 | E3: =C30 -> 0.8777777778 | F3: =AVERAGE(D3,E4) -> 1.294444444 | G3: 1 | H3: X | I3: 2 | J3: 1X | K3: X2 | L3: 12 | M3: Prono | O3: Over | P3: Under | Q3: GG | R3: ='Predictie POISSON'!F23 -> 0.3152908366 | S3: Finish
A4: AwaY | B4: =B28 -> Pumas U.N.A.M. | D4: =B31 -> 0.7444444444 | E4: =C31 -> 1.266666667 | F4: =AVERAGE(D4,E3) -> 0.8111111111 | G4: =B35 -> 0.5677604673 | H4: =C35 -> 0.2148321258 | I4: =D35 -> 0.09009429218 | J4: =G4+H4 -> 0.7825925931 | K4: =H4+I4 -> 0.304926418 | L4: =G4+I4 -> 0.6578547595 | M4: =IF(G4-I4>0.2,1,IF(G4>I4,"1X",IF(I4-G4>0.2,2,IF(I4>G4,"X2","")))) -> 1 | O4: =B16 -> 0.3504527291 | P4: =C16 -> 0.6495472709 | Q4: ='Predictie POISSON'!K21 -> GG&3+ | R4: ='Predictie POISSON'!K22 -> 0.1962756371
B5: Soccer !
B8: =Predictie!C18 -> 2.5 | C8: =Predictie!#REF! -> 
B11: =PRINCIPAL!P37 -> 0.2693789141 | C11: =PRINCIPAL!Q37 -> 0.7306210859
B12: =Predictie!J18 -> 0.3233235838 | C12: =Predictie!K18 -> 0.6766764162
B13: =games!I22 -> 0.4586556896 | C13: =games!H22 -> 0.5413443104
B16: =AVERAGE(B11,B12,B13) -> 0.3504527291 | C16: =AVERAGE(C11,C12,C13) -> 0.6495472709
B22: ='Predictie POISSON'!I18 -> 26.93789141 | C22: ='Predictie POISSON'!L18 -> 73.06210859
B27: =Poisson!C3 -> Club America
B28: =Poisson!L3 -> Pumas U.N.A.M.
B30: =AVERAGE(Poisson!F45,Poisson!F56,Poisson!F65) -> 1.322222222 | C30: =AVERAGE(Poisson!G45,Poisson!G56,Poisson!G65) -> 0.8777777778
B31: =AVERAGE(Poisson!F49,Poisson!F59,Poisson!F68) -> 0.7444444444 | C31: =AVERAGE(Poisson!G49,Poisson!G59,Poisson!G68) -> 1.266666667
B33: ='Predictie POISSON'!K4 -> 0.5071960158 | C33: ='Predictie POISSON'!L4 -> 0.3075300306 | D33: ='Predictie POISSON'!M4 -> 0.1852690785
B35: =AVERAGE(games!Q19,games!Q20,games!Q21,games!Q22,games!Q23,games!Q24,games!Q25,games!Q26) -> 0.5677604673 | C35: =AVERAGE(games!R19,games!R20,games!R21,games!R22,games!R23,games!R24,games!R25,games!R26) -> 0.2148321258 | D35: =AVERAGE(games!S19,games!S20,games!S21,games!S22,games!S23,games!S24,games!S25,games!S26) -> 0.09009429218

Sheet games (hidden)
C2: Home | D2: Home team | E2: Away team | N2: principale | Q2: generale
C3: average | D3: attack | E3: defence | F3: Expected | G3: % Somma Gol | M3: 1 | N3: x | O3: 2 | P3: 1 | Q3: x | R3: 2
C4: goals | D4: forza | E4: debolezza | F4: goals | G4: 0 | H4: 1 | I4: 2 | J4: 3 | K4: 4 | L4: 5 | M4: =PRINCIPAL!K4 -> 0.4696391845 | N4: =PRINCIPAL!L4 -> 0.375301813 | O4: =PRINCIPAL!M4 -> 0.1550590025 | P4: =Generale!I32 -> 0.5746950764 | Q4: =Generale!J32 -> 0.2725154809 | R4: =Generale!K32 -> 0.1527894428
A5: =Poisson!C3 -> Club America | C5: =strengths!G$7 -> 1.181818182 | D5: =strengths!L5 -> 1.380392157 | E5: =strengths!V6 -> 1.366808511 | F5: =C5*D5*E5 -> 2.229773884 | G5: =C13 -> 0.08129801253 | H5: 0.1812761852 | I5: 0.2021024517 | J5: 0.1502142563 | K5: 0.08373595641 | L5: 0.03734244975 | M5: =PRINCIPAL!C40 -> UN 2,5 | N5: =PRINCIPAL!D40 -> 0.7306210859 | P5: =Generale!C36 -> Under | Q5: =Generale!D36 -> 0.6766764162
C6: Away | D6: Away team | E6: Home team | G6: =SUM(G5,G9) -> 0.1625960251 | H6: 0.2040282327 | I6: 0.2052861438 | J6: 0.1505112521 | K6: 0.08375673571 | L6: 0.03734361281
C7: average | D7: attack | E7: defence | F7: Expected
C8: goals | D8: strength | E8: Ddebolezza | F8: goals | G8: 0 | H8: 1 | I8: 2 | J8: 3 | K8: 4 | L8: 5
A9: =Poisson!L3 -> Pumas U.N.A.M. | C9: =strengths!H$7 -> 0.75 | D9: =strengths!M6 -> 0.5694117647 | E9: =strengths!U5 -> 0.6553191489 | F9: =C9*D9*E9 -> 0.2798598248 | G9: =C13 -> 0.08129801253 | H9: =C14 -> 0.02275204754 | I9: =C15 -> 0.003183692019 | J9: =C16 -> 0.0002969958302 | K9: =C17 -> 2.077930025e-05 | L9: =C18 -> 1.163058266e-06
E11: =Poisson!C3 -> Club America | Q11: =Now!BE4 -> 0.8160492445 | R11: =Now!BF4 -> 0.147705331 | S11: =Now!BG4 -> 0.03583589037
C12: 0 | D12: 1 | E12: 2 | F12: 3 | G12: 4 | H12: 5 | J12: 0 | K12: 1 | L12: 2 | M12: 3 | N12: 4 | O12: 5 | Q12: =TAB!F3 -> 82.24387903 | R12: =TAB!G3 -> 14.05151245 | S12: =TAB!H3 -> 3.489986608
B13: 0 | C13: =_xlfn.POISSON.DIST(0,$F$5,FALSE)*_xlfn.POISSON.DIST(0,$F$9,FALSE) -> 0.08129801253 | D13: =_xlfn.POISSON.DIST(D12,$F$5,FALSE)*_xlfn.POISSON.DIST($B$13,$F$9,FALSE) -> 0.1812761852 | E13: =_xlfn.POISSON.DIST(E12,$F$5,FALSE)*_xlfn.POISSON.DIST($B$13,$F$9,FALSE) -> 0.2021024517 | F13: =_xlfn.POISSON.DIST(F12,$F$5,FALSE)*_xlfn.POISSON.DIST($B$13,$F$9,FALSE) -> 0.1502142563 | G13: =_xlfn.POISSON.DIST(G12,$F$5,FALSE)*_xlfn.POISSON.DIST($B$13,$F$9,FALSE) -> 0.08373595641 | H13: =_xlfn.POISSON.DIST(H12,$F$5,FALSE)*_xlfn.POISSON.DIST($B$13,$F$9,FALSE) -> 0.03734244975 | I13: 0 | J13: =_xlfn.POISSON.DIST(0,F9,TRUE)*_xlfn.POISSON.DIST(0,F5,TRUE)/2 -> 0.04064900627 | K13: =_xlfn.POISSON.DIST($I$13,$F$9,TRUE)*_xlfn.POISSON.DIST(K12,$F$5,TRUE)/2 -> 0.1312870989 | L13: =_xlfn.POISSON.DIST($I$13,$F$9,TRUE)*_xlfn.POISSON.DIST(L12,$F$5,TRUE)/2 -> 0.2323383247 | M13: =_xlfn.POISSON.DIST($I$13,$F$9,TRUE)*_xlfn.POISSON.DIST(M12,$F$5,TRUE)/2 -> 0.3074454529 | N13: =_xlfn.POISSON.DIST($I$13,$F$9,TRUE)*_xlfn.POISSON.DIST(N12,$F$5,TRUE)/2 -> 0.3493134311 | O13: =_xlfn.POISSON.DIST($I$13,$F$9,TRUE)*_xlfn.POISSON.DIST(O12,$F$5,TRUE)/2 -> 0.3679846559
B14: 1 | C14: =_xlfn.POISSON.DIST(B14,F9,FALSE)*_xlfn.POISSON.DIST(C12,F5,FALSE) -> 0.02275204754 | D14: =_xlfn.POISSON.DIST($B$14,$F$9,FALSE)*_xlfn.POISSON.DIST(D12,$F$5,FALSE) -> 0.05073192142 | E14: =_xlfn.POISSON.DIST($B$14,$F$9,FALSE)*_xlfn.POISSON.DIST(E12,$F$5,FALSE) -> 0.05656035673 | F14: =_xlfn.POISSON.DIST($B$14,$F$9,FALSE)*_xlfn.POISSON.DIST(F12,$F$5,FALSE) -> 0.04203893544 | G14: =_xlfn.POISSON.DIST($B$14,$F$9,FALSE)*_xlfn.POISSON.DIST(G12,$F$5,FALSE) -> 0.02343433009 | H14: =_xlfn.POISSON.DIST($B$14,$F$9,FALSE)*_xlfn.POISSON.DIST(H12,$F$5,FALSE) -> 0.01045065144 | I14: 1 | J14: =_xlfn.POISSON.DIST(I14,$F$9,TRUE)*_xlfn.POISSON.DIST($J$12,$F$5,TRUE)/2 -> 0.05202503004 | K14: =_xlfn.POISSON.DIST(1,F9,TRUE)*_xlfn.POISSON.DIST(1,F5,TRUE)/2 -> 0.1680290833 | L14: =_xlfn.POISSON.DIST($I$14,$F$9,TRUE)*_xlfn.POISSON.DIST(L12,$F$5,TRUE)/2 -> 0.2973604876 | M14: =_xlfn.POISSON.DIST($I$14,$F$9,TRUE)*_xlfn.POISSON.DIST(M12,$F$5,TRUE)/2 -> 0.3934870834 | N14: =_xlfn.POISSON.DIST($I$14,$F$9,TRUE)*_xlfn.POISSON.DIST(N12,$F$5,TRUE)/2 -> 0.4470722267 | O14: =_xlfn.POISSON.DIST($I$14,$F$9,TRUE)*_xlfn.POISSON.DIST(O12,$F$5,TRUE)/2 -> 0.4709687773
A15: =Poisson!C3 -> Club America | B15: 2 | C15: =_xlfn.POISSON.DIST($B$15,$F9,FALSE)*_xlfn.POISSON.DIST(C12,$F$5,FALSE) -> 0.003183692019 | D15: 0.00709891332 | E15: 0.007914485762 | F15: 0.005882504553 | G15: 0.003279163756 | H15: 0.001462358741 | I15: 2 | J15: =_xlfn.POISSON.DIST(I15,$F$9,TRUE)*_xlfn.POISSON.DIST($J$12,$F$5,TRUE)/2 -> 0.05361687605 | K15: =_xlfn.POISSON.DIST(I15,$F$9,TRUE)*_xlfn.POISSON.DIST($K$12,$F$5,TRUE)/2 -> 0.173170386 | L15: =_xlfn.POISSON.DIST(2,F9,TRUE)*_xlfn.POISSON.DIST(2,F5,TRUE)/2 -> 0.3064590331 | M15: =_xlfn.POISSON.DIST($I$15,$F$9,TRUE)*_xlfn.POISSON.DIST(M12,$F$5,TRUE)/2 -> 0.4055268813 | N15: =_xlfn.POISSON.DIST($I$15,$F$9,TRUE)*_xlfn.POISSON.DIST(N12,$F$5,TRUE)/2 -> 0.4607516064 | O15: =_xlfn.POISSON.DIST($I$15,$F$9,TRUE)*_xlfn.POISSON.DIST(O12,$F$5,TRUE)/2 -> 0.4853793363
B16: 3 | C16: =_xlfn.POISSON.DIST($B$16,$F$9,FALSE)*_xlfn.POISSON.DIST(C12,$F$5,FALSE) -> 0.0002969958302 | D16: 0.0006622335459 | E16: 0.0007383155329 | F16: 0.0005487588978 | G16: 0.0003059020647 | H16: 0.000136418487 | I16: 3 | J16: =_xlfn.POISSON.DIST(I16,$F$9,TRUE)*_xlfn.POISSON.DIST($J$12,$F$5,TRUE)/2 -> 0.05376537396 | K16: =_xlfn.POISSON.DIST(I16,$F$9,TRUE)*_xlfn.POISSON.DIST($K$12,$F$5,TRUE)/2 -> 0.1736500007 | L16: =_xlfn.POISSON.DIST(I16,$F$9,TRUE)*_xlfn.POISSON.DIST($L$12,$F$5,TRUE)/2 -> 0.3073078056 | M16: =_xlfn.POISSON.DIST(3,F9,TRUE)*_xlfn.POISSON.DIST(3,F5,TRUE)/2 -> 0.4066500332 | N16: =_xlfn.POISSON.DIST($I$16,$F$9,TRUE)*_xlfn.POISSON.DIST(N12,$F$5,TRUE)/2 -> 0.4620277093 | O16: =_xlfn.POISSON.DIST($I$16,$F$9,TRUE)*_xlfn.POISSON.DIST(O12,$F$5,TRUE)/2 -> 0.4867236485
B17: 4 | C17: =_xlfn.POISSON.DIST($B$17,$F$9,FALSE)*_xlfn.POISSON.DIST(C12,$F$5,FALSE) -> 2.077930025e-05 | D17: 4.633314103e-05 | E17: 5.165621392e-05 | F17: 3.839389225e-05 | G17: 2.140242456e-05 | H17: 9.544513468e-06 | I17: 4 | J17: =_xlfn.POISSON.DIST(I17,$F$9,TRUE)*_xlfn.POISSON.DIST($J$12,$F$5,TRUE)/2 -> 0.05377576361 | K17: =_xlfn.POISSON.DIST(I17,$F$9,TRUE)*_xlfn.POISSON.DIST($K$12,$F$5,TRUE)/2 -> 0.1736835569 | L17: =_xlfn.POISSON.DIST(I17,$F$9,TRUE)*_xlfn.POISSON.DIST($L$12,$F$5,TRUE)/2 -> 0.3073671899 | M17: =_xlfn.POISSON.DIST(I17,$F$9,TRUE)*_xlfn.POISSON.DIST($M$12,$F$5,TRUE)/2 -> 0.4067286144 | N17: =_xlfn.POISSON.DIST(4,F9,TRUE)*_xlfn.POISSON.DIST(4,F5,TRUE)/2 -> 0.4621169918 | O17: =_xlfn.POISSON.DIST(I17,F9,TRUE)*_xlfn.POISSON.DIST(O12,F5,TRUE)/2 -> 0.4868177033
B18: 5 | C18: =_xlfn.POISSON.DIST($B$18,$F$9,FALSE)*_xlfn.POISSON.DIST(C12,$F$5,FALSE) -> 1.163058266e-06 | D18: 2.593356946e-06 | E18: 2.891299795e-06 | F18: 2.148981591e-06 | G18: 1.197935757e-06 | H18: 5.342251733e-07 | I18: 5 | J18: =_xlfn.POISSON.DIST(I18,$F$9,TRUE)*_xlfn.POISSON.DIST($J$12,$F$5,TRUE)/2 -> 0.05377634514 | K18: =_xlfn.POISSON.DIST(I18,$F$9,TRUE)*_xlfn.POISSON.DIST($K$12,$F$5,TRUE)/2 -> 0.1736854351 | L18: =_xlfn.POISSON.DIST(I18,$F$9,TRUE)*_xlfn.POISSON.DIST($L$12,$F$5,TRUE)/2 -> 0.3073705138 | M18: =_xlfn.POISSON.DIST(I18,$F$9,TRUE)*_xlfn.POISSON.DIST($M$12,$F$5,TRUE)/2 -> 0.4067330128 | N18: =_xlfn.POISSON.DIST($I$18,$F$9,TRUE)*_xlfn.POISSON.DIST(N12,$F$5,TRUE)/2 -> 0.4621219891 | O18: =_xlfn.POISSON.DIST(5,F9,TRUE)*_xlfn.POISSON.DIST(5,F5,TRUE)/2 -> 0.4868229677
Q19: =M4 -> 0.4696391845 | R19: =N4 -> 0.375301813 | S19: =O4 -> 0.1550590025
G20: <<>> | H20: Under | I20: Over | L20: Under | M20: Over | Q20: =P4 -> 0.5746950764 | R20: =Q4 -> 0.2725154809 | S20: =R4 -> 0.1527894428
A21: =IF(B22-E22>25%,1,IF(B22>E22,"1X",IF(E22-B22>25%,2,IF(E22>B22,"X2","")))) -> 1 | B21: =A5 -> Club America | D21: X | E21: =A9 -> Pumas U.N.A.M. | G21: 1,5 | H21: =SUM(C13:D13,C14) -> 0.2853262452 | I21: =100%-H21 -> 0.7146737548 | L21: =SUM(J13:K13,J14) -> 0.2239611352 | M21: =100%-L21 -> 0.7760388648 | Q21: =B22 -> 0.7982314652 | R21: =D22 -> 0.1405151153 | S21: =E22 -> 0.03489935497
B22: =SUM(D13:H13,E14:H14,F15:H15,G16:H16,H17) -> 0.7982314652 | D22: =SUM(C13,D14,E15,F16,G17,H18) -> 0.1405151153 | E22: =SUM(C14:C18,D15:D18,E16:E18,F17:F18,G18) -> 0.03489935497 | G22: 2,5 | H22: =SUM(C13:E13,C14:D14,C15) -> 0.5413443104 | I22: =100%-H22 -> 0.4586556896 | L22: =SUM(J13:L13,J14:K14,J15) -> 0.6779454193 | M22: =100%-L22 -> 0.3220545807 | Q22: =Generale!I32 -> 0.5746950764 | R22: =Generale!J32 -> 0.2725154809 | S22: =Generale!K32 -> 0.1527894428
B23: 1X | C23: =SUM(B22:D22) -> 0.9387465804 | D23: 12 | E23: X2 | F23: =SUM(D22:F22) -> 0.1754144702 | G23: 3,5 | H23: =SUM(C13:F13,C14:E14,C15:D15,C16) -> 0.7555148326 | I23: =100%-H23 -> 0.2444851674 | L23: =SUM(J13:M13,J14:L14,J15:K15,J16) -> 1.50968712 | M23: =100%-L23 -> -0.5096871197 | Q23: =PRINCIPAL!K4 -> 0.4696391845 | R23: =PRINCIPAL!L4 -> 0.375301813 | S23: =PRINCIPAL!M4 -> 0.1550590025
D24: =SUM(B22,E22) -> 0.8331308201 | G24: 4,5 | H24: =SUM(C13:G13,C14:F14,C15:E15,C16:D16,C17) -> 0.889887223 | I24: =100%-H24 -> 0.110112777 | J24: =MAX(H22:I22) -> 0.5413443104 | L24: CIFT | M24: TEK | N24: =MAX(L22:M22) -> 0.6779454193 | Q24: =Q11/100 -> 0.008160492445 | R24: =R11/100 -> 0.00147705331 | S24: =S11/100 -> 0.0003583589037
G25: 5,5 | H25: =SUM(C13:H18) -> 0.9736459354 | I25: =100%-H25 -> 0.02635406461 | L25: =SUM(J13,L13,N13,J15,L15,N15,J17,L17,N17,K18,M18,O18,O16,M16,K16,K14,M14,O14)/10 -> 0.5433138265 | M25: =SUM(100%-L25) -> 0.4566861735 | Q25: =Sheet1!F4 -> 0.8245844687 | R25: =Sheet1!G4 -> 0.1405151259 | S25: =Sheet1!H4 -> 0.03489986688
G26: =MAX(C13:H18) -> 0.2021024517 | H26: CIFT | I26: TEK | Q26: =Q12/100 -> 0.8224387903 | R26: =R12/100 -> 0.1405151245 | S26: =S12/100 -> 0.03489986608
G27: =IF(G26>7%,"OK",IF(G26<=7%,"NO")) -> OK | H27: =SUM(C13,E13,G13,C15,E15,G15,C17,E17,G17,D14,F14,H14,D16,F16,H16,D18,F18,H18) -> 0.486181796 | I27: =SUM(100%-H27) -> 0.513818204

Sheet Predictie POISSON (hidden)
A1: Variante di lavoro: | G1: =IF(K4>59.99%,1,IF(L4>59.99%,"X",IF(M4>59.99%,2,VLOOKUP(LARGE(I21:I23,1),T21:U23,2,FALSE)))) -> 1X
A2: =SUM(Poisson!E72) -> 1.2 | C2: =SUM(Poisson!E75) -> 0.6 | E2: Previsione | F2: minuti | H2: Previsione | W2: 1 | X2: 35.17896061 | Y2: 64.82103939 | Z2: 59.17808543 | AA2: 40.82191457
A3: Score possibile | C3: Score possibile | E3: =IF(M23-L23>14,"UNDER 2,5",IF(M23-L23>22,"OVER 2,5","")) -> UNDER 2,5 | F3: 90 | H3: =IF(K4-M4>0.2,1,IF(K4>M4,"1X",IF(M4-K4>0.2,2,IF(M4>K4,"X2","")))) -> 1 | J3: Evento | K3: =Poisson!C3 -> Club America | L3: X | M3: =Poisson!L3 -> Pumas U.N.A.M.
A4: ='Scor corect1 - 10 meciuri'!AG16 -> 1 | B4: ='Scor corect1 - 10 meciuri'!AJ16 -> 0 | C4: ='Scor corect1 - 10 meciuri'!AG17 -> 2 | D4: ='Scor corect1 - 10 meciuri'!AJ17 -> 1 | J4: % | K4: =SUM('Scor corect1 - 10 meciuri'!E4:F4) -> 0.5071960158 | L4: =SUM('Scor corect1 - 10 meciuri'!G4:H4) -> 0.3075300306 | M4: =SUM('Scor corect1 - 10 meciuri'!I4:J4) -> 0.1852690785
J5: quota | K5: =SUM('Scor corect1 - 10 meciuri'!K4:L4) -> 1.97162432 | L5: =SUM('Scor corect1 - 10 meciuri'!M4:N4) -> 3.251714957 | M5: =SUM('Scor corect1 - 10 meciuri'!O4:P4) -> 5.397554777
A14: Bet | B14: OK | C14: OK | D14: OK | E14: OK | F14: OK | G14: OK | H14: Tabel over | K14: Tabel under
A15: % | B15: 0 | C15: 0 | D15: 0 | E15: 0 | F15: 0 | G15: 0 | H15: Total | I15: Probabilit. | J15: Cota | K15: Total | L15: Probabil | M15: Cota
A16: Over | B16: 0.5 | C16: 1.5 | D16: 2.5 | E16: 3.5 | F16: 4.5 | G16: 5.5 | H16: Over 0.5 | I16: =100/J16 -> 83.47011118 | J16: =B17 -> 1.198033627 | K16: Under 0.5 | L16: =100-I16 -> 16.52988882 | M16: =100/L16 -> 6.049647464 | V16: =VLOOKUP('Predictie POISSON'!H3,U19:V23,2,FALSE) -> 0.5071960158
A17: Quota | B17: ='Total goluri - 10 meciuri'!I6 -> 1.198033627 | C17: ='Total goluri - 10 meciuri'!I7 -> 1.861631925 | D17: ='Total goluri - 10 meciuri'!I8 -> 3.712243044 | E17: ='Total goluri - 10 meciuri'!I9 -> 9.198921598 | F17: ='Total goluri - 10 meciuri'!I10 -> 27.46750107 | G17: ='Total goluri - 10 meciuri'!I11 -> 96.35733741 | H17: Over 1.5 | I17: =100/J17 -> 53.7163113 | J17: =C17 -> 1.861631925 | K17: Under 1.5 | L17: =100-I17 -> 46.2836887 | M17: =100/L17 -> 2.16058838
B18: Probabilitate | D18: Cota | E18: APOSTA DE DESVANTAGEM | H18: Over 2.5 | I18: =100/J18 -> 26.93789141 | J18: =D17 -> 3.712243044 | K18: Under 2.5 | L18: =100-I18 -> 73.06210859 | M18: =100/L18 -> 1.368698521
A19: GMNu | B19: =SUMIF('Scor corect1 - 10 meciuri'!S7:S42,0,'Scor corect1 - 10 meciuri'!C7:D42)+SUMIF('Scor corect1 - 10 meciuri'!T7:T15,0,'Scor corect1 - 10 meciuri'!I7:J15)+SUMIF('Scor corect1 - 10 meciuri'!V7:V42,0,'Scor corect1 - 10 meciuri'!O7:P42) -> 0.301194207 | D19: =1/B19 -> 3.320116977 | E19: 1 | F19: X | G19: 2 | H19: Over 3.5 | I19: =100/J19 -> 10.87083947 | J19: =E17 -> 9.198921598 | K19: Under 3.5 | L19: =100-I19 -> 89.12916053 | M19: =100/L19 -> 1.12196726 | T19: =K4 -> 0.5071960158 | U19: 1 | V19: =T19 -> 0.5071960158
A20: GMDa | B20: =SUMIF('Scor corect1 - 10 meciuri'!S7:S42,">0",'Scor corect1 - 10 meciuri'!C7:D42)+SUMIF('Scor corect1 - 10 meciuri'!T7:T42,">0",'Scor corect1 - 10 meciuri'!I7:J14)+SUMIF('Scor corect1 - 10 meciuri'!U7:U42,">0",'Scor corect1 - 10 meciuri'!O7:P42) -> 0.6988009179 | D20: 1.431022734 | E20: =IF(J27="-",-1,IF(J27="+",1)) -> 1 | F20: =IF(J27="-",-2,IF(J27="+",2)) -> 2 | G20: =IF(J27="-",-3,IF(J27="+",3)) -> 3 | H20: Over 4.5 | I20: =100/J20 -> 3.6406661 | J20: =F17 -> 27.46750107 | K20: Under 4.5 | L20: =100-I20 -> 96.3593339 | M20: =100/L20 -> 1.037782184 | T20: =M4 -> 0.1852690785 | U20: 2 | V20: =T20 -> 0.1852690785
A21: GM 2+ | B21: =1-POISSON(1,A2*F3/90,TRUE) -> 0.3373727338 | D21: 2.964080673 | E21: =SUM('Handicap 1'!E4:F4) -> 0.8147260464 | F21: =SUM('Handicap 1'!G4:H4) -> 0.1394349934 | G21: =SUM('Scor corect - 10 meciuri'!I4:J4) -> 0.154765502 | H21: 1X | I21: =K4+L4 -> 0.8147260464 | J21: =1/I21 -> 1.227406445 | K21: GG&3+ | L21: =RIGHT(K18,3) -> 2.5 | T21: =I21 -> 0.8147260464 | U21: =H21 -> 1X | V21: =T21 -> 0.8147260464
A22: OMNu | B22: =SUMIF('Scor corect1 - 10 meciuri'!V7:V34,0,'Scor corect1 - 10 meciuri'!C7:D34)+SUMIF('Scor corect1 - 10 meciuri'!W7:W34,0,'Scor corect1 - 10 meciuri'!I7:J14)+SUMIF('Scor corect1 - 10 meciuri'!X7:X34,0,'Scor corect1 - 10 meciuri'!O7:P34) -> 0.5487913417 | D22: 1.822186183 | E22: =SUM('Handicap 1'!K4:L4) -> 1.227406445 | F22: =SUM('Handicap 1'!L4:M4) -> 7.17180082 | G22: =SUM('Handicap 1'!N4:O4) -> 21.81782393 | H22: X2 | I22: =L4+M4 -> 0.4927991091 | J22: =1/I22 -> 2.029224448 | K22: =SUMIF('Scor corect1 - 10 meciuri'!AB7:AB42,1,'Scor corect1 - 10 meciuri'!C7:D42)+SUMIF('Scor corect1 - 10 meciuri'!AC7:AC42,1,'Scor corect1 - 10 meciuri'!I7:J15)+SUMIF('Scor corect1 - 10 meciuri'!AD7:AD42,1,'Scor corect1 - 10 meciuri'!O7:P42) -> 0.1962756371 | L22: Over | M22: Under | T22: =I22 -> 0.4927991091 | U22: =H22 -> X2 | V22: =T22 -> 0.4927991091
A23: OMDa | B23: =SUMIF('Scor corect1 - 10 meciuri'!V7:V34,">0",'Scor corect1 - 10 meciuri'!C7:D34)+SUMIF('Scor corect1 - 10 meciuri'!W7:W34,">0",'Scor corect1 - 10 meciuri'!I7:J14)+SUMIF('Scor corect1 - 10 meciuri'!X7:X34,">0",'Scor corect1 - 10 meciuri'!O7:P34) -> 0.4511714347 | D23: 2.21645238 | E23: GG | F23: =SUMIF('Scor corect1 - 10 meciuri'!Y7:Y42,1,'Scor corect1 - 10 meciuri'!C7:D42)+SUMIF('Scor corect1 - 10 meciuri'!Z7:Z42,1,'Scor corect1 - 10 meciuri'!I7:J15)+SUMIF('Scor corect1 - 10 meciuri'!AA7:AA42,1,'Scor corect1 - 10 meciuri'!O7:P42) -> 0.3152908366 | G23: =1/F23 -> 3.171674796 | H23: 12 | I23: =K4+M4 -> 0.6924650944 | J23: =1/I23 -> 1.444116112 | K23: =1/K22 -> 5.094875832 | L23: =I18 -> 26.93789141 | M23: =L18 -> 73.06210859 | T23: =I23 -> 0.6924650944 | U23: =H23 -> 12 | V23: =T23 -> 0.6924650944
A24: OM 2+ | B24: =1-POISSON(1,C2*F3/90,TRUE) -> 0.1219013822 | D24: 8.203352428 | E24: NG | F24: =SUMIF('Scor corect1 - 10 meciuri'!Y7:Y42,0,'Scor corect1 - 10 meciuri'!C7:D42)+SUMIF('Scor corect1 - 10 meciuri'!Z7:Z42,0,'Scor corect1 - 10 meciuri'!I7:J15)+SUMIF('Scor corect1 - 10 meciuri'!AA7:AA42,0,'Scor corect1 - 10 meciuri'!O7:P42) -> 0.6847042883 | G24: =1/F24 -> 1.4604845 | H24: Previsão de futebol | L24: =J18 -> 3.712243044 | M24: =M18 -> 1.368698521
A25: H1 DE APOSTA DE DESVANTAGEM | D25: DEFICIÊNCIA APOSTA H2 | G25: H3 APOSTA HANDICAP | J25: Tip handicap
A26: 1 | B26: X | C26: 2 | D26: 1 | E26: X | F26: 2 | G26: 1 | H26: X | I26: 2
A27: 1 | B27: 2 | C27: 3 | D27: 1 | E27: 2 | F27: 3 | G27: 1 | H27: 2 | I27: 3 | J27: +
A28: =SUM('Handicap 1'!E4:F4) -> 0.8147260464 | B28: =SUM('Handicap 1'!G4:H4) -> 0.1394349934 | C28: =SUM('Handicap 1'!I4:J4) -> 0.04583408516 | D28: =SUM('Handicap 2'!E4:F4) -> 0.9541610398 | E28: =SUM('Handicap 2'!G4:H4) -> 0.03756918745 | F28: =SUM('Handicap 2'!I4:J4) -> 0.008264897703 | G28: =SUM('Handicap 3'!E4:F4) -> 0.9917302273 | H28: =SUM('Handicap 3'!G4:H4) -> 0.007102184248 | I28: =SUM('Handicap 3'!I4:J4) -> 0.001162713454
A29: =SUM('Handicap 1'!K4:L4) -> 1.227406445 | B29: =SUM('Handicap 1'!M4:N4) -> 7.17180082 | C29: =SUM('Handicap 1'!O4:P4) -> 21.81782393 | D29: =SUM('Handicap 2'!K4:L4) -> 1.048041115 | E29: =SUM('Handicap 2'!M4:N4) -> 26.61755731 | F29: =SUM('Handicap 2'!O4:P4) -> 120.9936331 | G29: =SUM('Handicap 3'!K4:L4) -> 1.008338732 | H29: =SUM('Handicap 3'!M4:N4) -> 140.8017541 | I29: =SUM('Handicap 3'!O4:P4) -> 860.0571329

Sheet Poisson (hidden)
I1: Classifica
C3: =TRIM('Clasament campionate'!A1) -> Club America | L3: =TRIM('Clasament campionate'!C1) -> Pumas U.N.A.M.
D4: Matches | E4: Win | F4: Draw | G4: Loss | H4: Get | I4: Miss | J4: Pts | K4: Rank | M4: Matches | N4: Win | O4: Draw | P4: Loss | Q4: Get | R4: Miss | S4: Pts | T4: Rank
B5: 1 | C5: =INDEX('Clasament campionate'!$A:$A,MATCH("FT",'Clasament campionate'!$A:$A,FALSE)+$B5,1) -> Total | D5: =INDEX('Clasament campionate'!B:B,MATCH("FT",'Clasament campionate'!$A:$A,FALSE)+$B5,1) -> 12 | E5: =INDEX('Clasament campionate'!C:C,MATCH("FT",'Clasament campionate'!$A:$A,FALSE)+$B5,1) -> 7 | F5: =INDEX('Clasament campionate'!D:D,MATCH("FT",'Clasament campionate'!$A:$A,FALSE)+$B5,1) -> 4 | G5: =INDEX('Clasament campionate'!E:E,MATCH("FT",'Clasament campionate'!$A:$A,FALSE)+$B5,1) -> 1 | H5: =INDEX('Clasament campionate'!F:F,MATCH("FT",'Clasament campionate'!$A:$A,FALSE)+$B5,1) -> 16 | I5: =INDEX('Clasament campionate'!G:G,MATCH("FT",'Clasament campionate'!$A:$A,FALSE)+$B5,1) -> 7 | J5: =INDEX('Clasament campionate'!H:H,MATCH("FT",'Clasament campionate'!$A:$A,FALSE)+$B5,1) -> 25 | K5: =INDEX('Clasament campionate'!I:I,MATCH("FT",'Clasament campionate'!$A:$A,FALSE)+$B5,1) -> 1 | L5: Total | M5: =INDEX('Clasament campionate'!B:B,MATCH("FT",'Clasament campionate'!$A:$A,FALSE)+$B5+12,1) -> 11 | N5: =INDEX('Clasament campionate'!C:C,MATCH("FT",'Clasament campionate'!$A:$A,FALSE)+$B5+12,1) -> 1 | O5: =INDEX('Clasament campionate'!D:D,MATCH("FT",'Clasament campionate'!$A:$A,FALSE)+$B5+12,1) -> 5 | P5: =INDEX('Clasament campionate'!E:E,MATCH("FT",'Clasament campionate'!$A:$A,FALSE)+$B5+12,1) -> 5 | Q5: =INDEX('Clasament campionate'!F:F,MATCH("FT",'Clasament campionate'!$A:$A,FALSE)+$B5+12,1) -> 6 | R5: =INDEX('Clasament campionate'!G:G,MATCH("FT",'Clasament campionate'!$A:$A,FALSE)+$B5+12,1) -> 14 | S5: =INDEX('Clasament campionate'!H:H,MATCH("FT",'Clasament campionate'!$A:$A,FALSE)+$B5+12,1) -> 8 | T5: =INDEX('Clasament campionate'!I:I,MATCH("FT",'Clasament campionate'!$A:$A,FALSE)+$B5+12,1) -> 17
B6: 2 | C6: =INDEX('Clasament campionate'!$A:$A,MATCH("FT",'Clasament campionate'!$A:$A,FALSE)+$B6,1) -> Home | D6: =INDEX('Clasament campionate'!B:B,MATCH("FT",'Clasament campionate'!$A:$A,FALSE)+$B6,1) -> 6 | E6: =INDEX('Clasament campionate'!C:C,MATCH("FT",'Clasament campionate'!$A:$A,FALSE)+$B6,1) -> 5 | F6: =INDEX('Clasament campionate'!D:D,MATCH("FT",'Clasament campionate'!$A:$A,FALSE)+$B6,1) -> 1 | G6: =INDEX('Clasament campionate'!E:E,MATCH("FT",'Clasament campionate'!$A:$A,FALSE)+$B6,1) -> 0 | H6: =INDEX('Clasament campionate'!F:F,MATCH("FT",'Clasament campionate'!$A:$A,FALSE)+$B6,1) -> 10 | I6: =INDEX('Clasament campionate'!G:G,MATCH("FT",'Clasament campionate'!$A:$A,FALSE)+$B6,1) -> 1 | J6: =INDEX('Clasament campionate'!H:H,MATCH("FT",'Clasament campionate'!$A:$A,FALSE)+$B6,1) -> 16 | K6: =INDEX('Clasament campionate'!I:I,MATCH("FT",'Clasament campionate'!$A:$A,FALSE)+$B6,1) -> 1 | L6: Home | M6: =INDEX('Clasament campionate'!B:B,MATCH("FT",'Clasament campionate'!$A:$A,FALSE)+$B6+12,1) -> 5 | N6: =INDEX('Clasament campionate'!C:C,MATCH("FT",'Clasament campionate'!$A:$A,FALSE)+$B6+12,1) -> 1 | O6: =INDEX('Clasament campionate'!D:D,MATCH("FT",'Clasament campionate'!$A:$A,FALSE)+$B6+12,1) -> 3 | P6: =INDEX('Clasament campionate'!E:E,MATCH("FT",'Clasament campionate'!$A:$A,FALSE)+$B6+12,1) -> 1 | Q6: =INDEX('Clasament campionate'!F:F,MATCH("FT",'Clasament campionate'!$A:$A,FALSE)+$B6+12,1) -> 3 | R6: =INDEX('Clasament campionate'!G:G,MATCH("FT",'Clasament campionate'!$A:$A,FALSE)+$B6+12,1) -> 3 | S6: =INDEX('Clasament campionate'!H:H,MATCH("FT",'Clasament campionate'!$A:$A,FALSE)+$B6+12,1) -> 6 | T6: =INDEX('Clasament campionate'!I:I,MATCH("FT",'Clasament campionate'!$A:$A,FALSE)+$B6+12,1) -> 15
B7: 3 | C7: =INDEX('Clasament campionate'!$A:$A,MATCH("FT",'Clasament campionate'!$A:$A,FALSE)+$B7,1) -> Away | D7: =INDEX('Clasament campionate'!B:B,MATCH("FT",'Clasament campionate'!$A:$A,FALSE)+$B7,1) -> 6 | E7: =INDEX('Clasament campionate'!C:C,MATCH("FT",'Clasament campionate'!$A:$A,FALSE)+$B7,1) -> 2 | F7: =INDEX('Clasament campionate'!D:D,MATCH("FT",'Clasament campionate'!$A:$A,FALSE)+$B7,1) -> 3 | G7: =INDEX('Clasament campionate'!E:E,MATCH("FT",'Clasament campionate'!$A:$A,FALSE)+$B7,1) -> 1 | H7: =INDEX('Clasament campionate'!F:F,MATCH("FT",'Clasament campionate'!$A:$A,FALSE)+$B7,1) -> 6 | I7: =INDEX('Clasament campionate'!G:G,MATCH("FT",'Clasament campionate'!$A:$A,FALSE)+$B7,1) -> 6 | J7: =INDEX('Clasament campionate'!H:H,MATCH("FT",'Clasament campionate'!$A:$A,FALSE)+$B7,1) -> 9 | K7: =INDEX('Clasament campionate'!I:I,MATCH("FT",'Clasament campionate'!$A:$A,FALSE)+$B7,1) -> 6 | L7: Away | M7: =INDEX('Clasament campionate'!B:B,MATCH("FT",'Clasament campionate'!$A:$A,FALSE)+$B7+12,1) -> 6 | N7: =INDEX('Clasament campionate'!C:C,MATCH("FT",'Clasament campionate'!$A:$A,FALSE)+$B7+12,1) -> 0 | O7: =INDEX('Clasament campionate'!D:D,MATCH("FT",'Clasament campionate'!$A:$A,FALSE)+$B7+12,1) -> 2 | P7: =INDEX('Clasament campionate'!E:E,MATCH("FT",'Clasament campionate'!$A:$A,FALSE)+$B7+12,1) -> 4 | Q7: =INDEX('Clasament campionate'!F:F,MATCH("FT",'Clasament campionate'!$A:$A,FALSE)+$B7+12,1) -> 3 | R7: =INDEX('Clasament campionate'!G:G,MATCH("FT",'Clasament campionate'!$A:$A,FALSE)+$B7+12,1) -> 11 | S7: =INDEX('Clasament campionate'!H:H,MATCH("FT",'Clasament campionate'!$A:$A,FALSE)+$B7+12,1) -> 2 | T7: =INDEX('Clasament campionate'!I:I,MATCH("FT",'Clasament campionate'!$A:$A,FALSE)+$B7+12,1) -> 17
B8: 4 | C8: =INDEX('Clasament campionate'!$A:$A,MATCH("FT",'Clasament campionate'!$A:$A,FALSE)+$B8,1) -> Last 6 | D8: =INDEX('Clasament campionate'!B:B,MATCH("FT",'Clasament campionate'!$A:$A,FALSE)+$B8,1) -> 6 | E8: =INDEX('Clasament campionate'!C:C,MATCH("FT",'Clasament campionate'!$A:$A,FALSE)+$B8,1) -> 2 | F8: =INDEX('Clasament campionate'!D:D,MATCH("FT",'Clasament campionate'!$A:$A,FALSE)+$B8,1) -> 3 | G8: =INDEX('Clasament campionate'!E:E,MATCH("FT",'Clasament campionate'!$A:$A,FALSE)+$B8,1) -> 1 | H8: =INDEX('Clasament campionate'!F:F,MATCH("FT",'Clasament campionate'!$A:$A,FALSE)+$B8,1) -> 7 | I8: =INDEX('Clasament campionate'!G:G,MATCH("FT",'Clasament campionate'!$A:$A,FALSE)+$B8,1) -> 5 | J8: =INDEX('Clasament campionate'!H:H,MATCH("FT",'Clasament campionate'!$A:$A,FALSE)+$B8,1) -> 9 | K8: =INDEX('Clasament campionate'!I:I,MATCH("FT",'Clasament campionate'!$A:$A,FALSE)+$B8,1) -> 0 | L8: Last 6 | M8: =INDEX('Clasament campionate'!B:B,MATCH("FT",'Clasament campionate'!$A:$A,FALSE)+$B8+12,1) -> 6 | N8: =INDEX('Clasament campionate'!C:C,MATCH("FT",'Clasament campionate'!$A:$A,FALSE)+$B8+12,1) -> 1 | O8: =INDEX('Clasament campionate'!D:D,MATCH("FT",'Clasament campionate'!$A:$A,FALSE)+$B8+12,1) -> 3 | P8: =INDEX('Clasament campionate'!E:E,MATCH("FT",'Clasament campionate'!$A:$A,FALSE)+$B8+12,1) -> 2 | Q8: =INDEX('Clasament campionate'!F:F,MATCH("FT",'Clasament campionate'!$A:$A,FALSE)+$B8+12,1) -> 5 | R8: =INDEX('Clasament campionate'!G:G,MATCH("FT",'Clasament campionate'!$A:$A,FALSE)+$B8+12,1) -> 6 | S8: =INDEX('Clasament campionate'!H:H,MATCH("FT",'Clasament campionate'!$A:$A,FALSE)+$B8+12,1) -> 6 | T8: =INDEX('Clasament campionate'!I:I,MATCH("FT",'Clasament campionate'!$A:$A,FALSE)+$B8+12,1) -> 0
I10: H2H
A12: 5 | D12: 2 | E12: =IF(AND(F12=$C$3,K12=1),"V",IF(AND(H12=$C$3,K12=2),"V",IF(K12="X","E","I"))) -> V | F12: =INDEX('Clasament campionate'!C:C,MATCH("League/Cup",'Clasament campionate'!A:A,FALSE)+D12,1) -> Club America | H12: =INDEX('Clasament campionate'!G:G,MATCH("League/Cup",'Clasament campionate'!A:A,FALSE)+D12,1) -> Pumas U.N.A.M. | J12: =INDEX('Clasament campionate'!D:D,MATCH("League/Cup",'Clasament campionate'!A:A,FALSE)+D12,1) -> 2-0 | K12: =IF(VALUE(LEFT(J12))=VALUE(RIGHT(J12)),"X",IF(VALUE(LEFT(J12))>VALUE(RIGHT(J12)),1,2)) -> 1 | L12: =IF(E12="I","V",IF(E12="E","E","I")) -> I | M12: =C3 -> Club America | O12: H2H | P12: =L3 -> Pumas U.N.A.M. | R12: H2H | S12: =VALUE(LEFT(J12)) -> 2 | T12: =VALUE(RIGHT(J12)) -> 0
A13: 7 | D13: 3 | E13: =IF(AND(F13=$C$3,K13=1),"V",IF(AND(H13=$C$3,K13=2),"V",IF(K13="X","E","I"))) -> V | F13: =INDEX('Clasament campionate'!C:C,MATCH("League/Cup",'Clasament campionate'!A:A,FALSE)+D13,1) -> Pumas U.N.A.M. | H13: =INDEX('Clasament campionate'!G:G,MATCH("League/Cup",'Clasament campionate'!A:A,FALSE)+D13,1) -> Club America | J13: =INDEX('Clasament campionate'!D:D,MATCH("League/Cup",'Clasament campionate'!A:A,FALSE)+D13,1) -> 0-1 | K13: =IF(VALUE(LEFT(J13))=VALUE(RIGHT(J13)),"X",IF(VALUE(LEFT(J13))>VALUE(RIGHT(J13)),1,2)) -> 2 | L13: =IF(E13="I","V",IF(E13="E","E","I")) -> I | M13: Vittoria | O13: =COUNTIF(E12:E16,"V")/5 -> 0.4 | P13: Vittoria | R13: =COUNTIF(L12:L16,"V")/5 -> 0 | S13: =VALUE(LEFT(J13)) -> 0 | T13: =VALUE(RIGHT(J13)) -> 1
A14: 9 | D14: 4 | E14: =IF(AND(F14=$C$3,K14=1),"V",IF(AND(H14=$C$3,K14=2),"V",IF(K14="X","E","I"))) -> E | F14: =INDEX('Clasament campionate'!C:C,MATCH("League/Cup",'Clasament campionate'!A:A,FALSE)+D14,1) -> Club America | H14: =INDEX('Clasament campionate'!G:G,MATCH("League/Cup",'Clasament campionate'!A:A,FALSE)+D14,1) -> Pumas U.N.A.M. | J14: =INDEX('Clasament campionate'!D:D,MATCH("League/Cup",'Clasament campionate'!A:A,FALSE)+D14,1) -> 2-2 | K14: =IF(VALUE(LEFT(J14))=VALUE(RIGHT(J14)),"X",IF(VALUE(LEFT(J14))>VALUE(RIGHT(J14)),1,2)) -> X | L14: =IF(E14="I","V",IF(E14="E","E","I")) -> E | M14: Pareggio | O14: =COUNTIF(E12:E16,"E")/5 -> 0.6 | P14: Pareggio | R14: =COUNTIF(L12:L16,"E")/5 -> 0.6 | S14: =VALUE(LEFT(J14)) -> 2 | T14: =VALUE(RIGHT(J14)) -> 2
A15: 11 | D15: 5 | E15: =IF(AND(F15=$C$3,K15=1),"V",IF(AND(H15=$C$3,K15=2),"V",IF(K15="X","E","I"))) -> E | F15: =INDEX('Clasament campionate'!C:C,MATCH("League/Cup",'Clasament campionate'!A:A,FALSE)+D15,1) -> Pumas U.N.A.M. | H15: =INDEX('Clasament campionate'!G:G,MATCH("League/Cup",'Clasament campionate'!A:A,FALSE)+D15,1) -> Club America | J15: =INDEX('Clasament campionate'!D:D,MATCH("League/Cup",'Clasament campionate'!A:A,FALSE)+D15,1) -> 0-0 | K15: =IF(VALUE(LEFT(J15))=VALUE(RIGHT(J15)),"X",IF(VALUE(LEFT(J15))>VALUE(RIGHT(J15)),1,2)) -> X | L15: =IF(E15="I","V",IF(E15="E","E","I")) -> E | M15: Sconfitta | O15: =COUNTIF(E12:E16,"I")/5 -> 0 | P15: Sconfitta | R15: =COUNTIF(L12:L16,"I")/5 -> 0.4 | S15: =VALUE(LEFT(J15)) -> 0 | T15: =VALUE(RIGHT(J15)) -> 0
A16: 13 | D16: 6 | E16: =IF(AND(F16=$C$3,K16=1),"V",IF(AND(H16=$C$3,K16=2),"V",IF(K16="X","E","I"))) -> E | F16: =INDEX('Clasament campionate'!C:C,MATCH("League/Cup",'Clasament campionate'!A:A,FALSE)+D16,1) -> Pumas U.N.A.M. | H16: =INDEX('Clasament campionate'!G:G,MATCH("League/Cup",'Clasament campionate'!A:A,FALSE)+D16,1) -> Club America | J16: =INDEX('Clasament campionate'!D:D,MATCH("League/Cup",'Clasament campionate'!A:A,FALSE)+D16,1) -> 3-3 | K16: =IF(VALUE(LEFT(J16))=VALUE(RIGHT(J16)),"X",IF(VALUE(LEFT(J16))>VALUE(RIGHT(J16)),1,2)) -> X | L16: =IF(E16="I","V",IF(E16="E","E","I")) -> E | M16: =AVERAGE(O13,R15) -> 0.4 | O16: =AVERAGE(O14,R14) -> 0.6 | Q16: =AVERAGE(O15,R13) -> 0 | S16: =VALUE(LEFT(J16)) -> 3 | T16: =VALUE(RIGHT(J16)) -> 3
I18: Ultime 20 partite
B20: =C3 -> Club America | I20: =L3 -> Pumas U.N.A.M.
A21: 2 | C21: =INDEX('Clasament campionate'!C:C,MATCH("League",'Clasament campionate'!A:A,FALSE)+$A21,1) -> Club America | E21: =INDEX('Clasament campionate'!G:G,MATCH("League",'Clasament campionate'!A:A,FALSE)+$A21,1) -> Pumas U.N.A.M. | F21: =INDEX('Clasament campionate'!D:D,MATCH("League",'Clasament campionate'!A:A,FALSE)+$A21,1) -> 2-0 | G21: =VALUE(LEFT(F21)) -> 2 | H21: =VALUE(RIGHT(F21)) -> 0 | I21: =INDEX('Clasament campionate'!C:C,MATCH("League",'Clasament campionate'!A:A,FALSE)+A21+26,1) -> Club America | K21: =INDEX('Clasament campionate'!G:G,MATCH("League",'Clasament campionate'!A:A,FALSE)+A21+26,1) -> Pumas U.N.A.M. | M21: =INDEX('Clasament campionate'!D:D,MATCH("League",'Clasament campionate'!A:A,FALSE)+A21+26,1) -> 2-0 | N21: =VALUE(LEFT(M21)) -> 2 | O21: =VALUE(RIGHT(M21)) -> 0 | R21: =M12 -> Club America | S21: EMPATE | T21: =P12 -> Pumas U.N.A.M. | U21: =IF(RIGHT(C21,LEN($C$3))=$C$3,$C$3,C21) -> Club America | V21: =IF(LEFT(E21,LEN($C$3))=$C$3,$C$3,E21) -> Pumas U.N.A.M. | W21: =IF(RIGHT(I21,LEN($L$3))=$L$3,$L$3,I21) -> Club America | X21: =IF(LEFT(K21,LEN($L$3))=$L$3,$L$3,K21) -> Pumas U.N.A.M. | Y21: E
A22: 3 | C22: =INDEX('Clasament campionate'!C:C,MATCH("League",'Clasament campionate'!A:A,FALSE)+$A22,1) -> Pachuca | E22: =INDEX('Clasament campionate'!G:G,MATCH("League",'Clasament campionate'!A:A,FALSE)+$A22,1) -> Club America | F22: =INDEX('Clasament campionate'!D:D,MATCH("League",'Clasament campionate'!A:A,FALSE)+$A22,1) -> 1-1 | G22: =VALUE(LEFT(F22)) -> 1 | H22: =VALUE(RIGHT(F22)) -> 1 | I22: =INDEX('Clasament campionate'!C:C,MATCH("League",'Clasament campionate'!A:A,FALSE)+A22+26,1) -> Tigres UANL | K22: =INDEX('Clasament campionate'!G:G,MATCH("League",'Clasament campionate'!A:A,FALSE)+A22+26,1) -> Pumas U.N.A.M. | M22: =INDEX('Clasament campionate'!D:D,MATCH("League",'Clasament campionate'!A:A,FALSE)+A22+26,1) -> 0-0 | N22: =VALUE(LEFT(M22)) -> 0 | O22: =VALUE(RIGHT(M22)) -> 0 | R22: =E8/D8/(E8/D8+F8/D8+N8/M8+O8/M8) -> 0.2222222222 | S22: =(F8/D8+O8/M8)/(E8/D8+F8/D8+N8/M8+O8/M8) -> 0.6666666667 | T22: =N8/M8/(E8/D8+F8/D8+N8/M8+O8/M8) -> 0.1111111111 | U22: Pachuca | V22: =IF(LEFT(E22,LEN($C$3))=$C$3,$C$3,E22) -> Club America | W22: Tigres UANL | X22: =IF(LEFT(K22,LEN($L$3))=$L$3,$L$3,K22) -> Pumas U.N.A.M.
A23: 4 | C23: =INDEX('Clasament campionate'!C:C,MATCH("League",'Clasament campionate'!A:A,FALSE)+$A23,1) -> Club America | E23: =INDEX('Clasament campionate'!G:G,MATCH("League",'Clasament campionate'!A:A,FALSE)+$A23,1) -> Chivas Guadalajara | F23: =INDEX('Clasament campionate'!D:D,MATCH("League",'Clasament campionate'!A:A,FALSE)+$A23,1) -> 0-0 | G23: 0 | H23: 0 | I23: =INDEX('Clasament campionate'!C:C,MATCH("League",'Clasament campionate'!A:A,FALSE)+A23+26,1) -> Mazatlan FC | K23: =INDEX('Clasament campionate'!G:G,MATCH("League",'Clasament campionate'!A:A,FALSE)+A23+26,1) -> Pumas U.N.A.M. | M23: =INDEX('Clasament campionate'!D:D,MATCH("League",'Clasament campionate'!A:A,FALSE)+A23+26,1) -> 2-2 | N23: 2 | O23: 2 | U23: Club America | V23: Chivas Guadalajara | W23: Mazatlan FC | X23: Pumas U.N.A.M.
A24: 5 | C24: =INDEX('Clasament campionate'!C:C,MATCH("League",'Clasament campionate'!A:A,FALSE)+$A24,1) -> 1Toluca | E24: =INDEX('Clasament campionate'!G:G,MATCH("League",'Clasament campionate'!A:A,FALSE)+$A24,1) -> Club America1 | F24: =INDEX('Clasament campionate'!D:D,MATCH("League",'Clasament campionate'!A:A,FALSE)+$A24,1) -> 3-1 | G24: 3 | H24: 1 | I24: =INDEX('Clasament campionate'!C:C,MATCH("League",'Clasament campionate'!A:A,FALSE)+A24+26,1) -> Club Leon(N) | K24: =INDEX('Clasament campionate'!G:G,MATCH("League",'Clasament campionate'!A:A,FALSE)+A24+26,1) -> Pumas U.N.A.M.1 | M24: =INDEX('Clasament campionate'!D:D,MATCH("League",'Clasament campionate'!A:A,FALSE)+A24+26,1) -> 2-0 | N24: 2 | O24: 0 | U24: 1Toluca | V24: Club America | W24: Club Leon(N) | X24: Pumas U.N.A.M.
A25: 6 | C25: =INDEX('Clasament campionate'!C:C,MATCH("League",'Clasament campionate'!A:A,FALSE)+$A25,1) -> Philadelphia Union | E25: =INDEX('Clasament campionate'!G:G,MATCH("League",'Clasament campionate'!A:A,FALSE)+$A25,1) -> Club America | F25: =INDEX('Clasament campionate'!D:D,MATCH("League",'Clasament campionate'!A:A,FALSE)+$A25,1) -> 0-2 | G25: 0 | H25: 2 | I25: =INDEX('Clasament campionate'!C:C,MATCH("League",'Clasament campionate'!A:A,FALSE)+A25+26,1) -> Pumas U.N.A.M. | K25: =INDEX('Clasament campionate'!G:G,MATCH("League",'Clasament campionate'!A:A,FALSE)+A25+26,1) -> Chivas Guadalajara | M25: =INDEX('Clasament campionate'!D:D,MATCH("League",'Clasament campionate'!A:A,FALSE)+A25+26,1) -> 0-0 | N25: 0 | O25: 0 | U25: Philadelphia Union | V25: Club America | W25: Pumas U.N.A.M. | X25: Chivas Guadalajara
A26: 7 | C26: =INDEX('Clasament campionate'!C:C,MATCH("League",'Clasament campionate'!A:A,FALSE)+$A26,1) -> Club America | E26: =INDEX('Clasament campionate'!G:G,MATCH("League",'Clasament campionate'!A:A,FALSE)+$A26,1) -> Mazatlan FC | F26: =INDEX('Clasament campionate'!D:D,MATCH("League",'Clasament campionate'!A:A,FALSE)+$A26,1) -> 2-0 | G26: 2 | H26: 0 | I26: =INDEX('Clasament campionate'!C:C,MATCH("League",'Clasament campionate'!A:A,FALSE)+A26+26,1) -> Toluca | K26: =INDEX('Clasament campionate'!G:G,MATCH("League",'Clasament campionate'!A:A,FALSE)+A26+26,1) -> Pumas U.N.A.M.3 | M26: =INDEX('Clasament campionate'!D:D,MATCH("League",'Clasament campionate'!A:A,FALSE)+A26+26,1) -> 2-1 | N26: 2 | O26: 1 | U26: Club America | V26: Mazatlan FC | W26: Toluca | X26: Pumas U.N.A.M.
A27: 8 | C27: =INDEX('Clasament campionate'!C:C,MATCH("League",'Clasament campionate'!A:A,FALSE)+$A27,1) -> Club Leon | E27: =INDEX('Clasament campionate'!G:G,MATCH("League",'Clasament campionate'!A:A,FALSE)+$A27,1) -> Club America1 | F27: =INDEX('Clasament campionate'!D:D,MATCH("League",'Clasament campionate'!A:A,FALSE)+$A27,1) -> 1-1 | G27: 1 | H27: 1 | I27: =INDEX('Clasament campionate'!C:C,MATCH("League",'Clasament campionate'!A:A,FALSE)+A27+26,1) -> Pumas U.N.A.M. | K27: =INDEX('Clasament campionate'!G:G,MATCH("League",'Clasament campionate'!A:A,FALSE)+A27+26,1) -> Puebla | M27: =INDEX('Clasament campionate'!D:D,MATCH("League",'Clasament campionate'!A:A,FALSE)+A27+26,1) -> 2-0 | N27: 2 | O27: 0 | U27: Club Leon | V27: Club America | W27: Pumas U.N.A.M. | X27: Puebla
A28: 9 | C28: =INDEX('Clasament campionate'!C:C,MATCH("League",'Clasament campionate'!A:A,FALSE)+$A28,1) -> Club America | E28: =INDEX('Clasament campionate'!G:G,MATCH("League",'Clasament campionate'!A:A,FALSE)+$A28,1) -> Club Tijuana1 | F28: =INDEX('Clasament campionate'!D:D,MATCH("League",'Clasament campionate'!A:A,FALSE)+$A28,1) -> 2-0 | G28: 2 | H28: 0 | I28: =INDEX('Clasament campionate'!C:C,MATCH("League",'Clasament campionate'!A:A,FALSE)+A28+26,1) -> Necaxa | K28: =INDEX('Clasament campionate'!G:G,MATCH("League",'Clasament campionate'!A:A,FALSE)+A28+26,1) -> Pumas U.N.A.M. | M28: =INDEX('Clasament campionate'!D:D,MATCH("League",'Clasament campionate'!A:A,FALSE)+A28+26,1) -> 3-0 | N28: 3 | O28: 0 | U28: Club America | V28: Club Tijuana1 | W28: Necaxa | X28: Pumas U.N.A.M.
A29: 10 | C29: =INDEX('Clasament campionate'!C:C,MATCH("League",'Clasament campionate'!A:A,FALSE)+$A29,1) -> 1FC Juarez | E29: =INDEX('Clasament campionate'!G:G,MATCH("League",'Clasament campionate'!A:A,FALSE)+$A29,1) -> Club America | F29: =INDEX('Clasament campionate'!D:D,MATCH("League",'Clasament campionate'!A:A,FALSE)+$A29,1) -> 1-2 | G29: 1 | H29: 2 | I29: =INDEX('Clasament campionate'!C:C,MATCH("League",'Clasament campionate'!A:A,FALSE)+A29+26,1) -> 1Pumas U.N.A.M. | K29: =INDEX('Clasament campionate'!G:G,MATCH("League",'Clasament campionate'!A:A,FALSE)+A29+26,1) -> Queretaro FC | M29: =INDEX('Clasament campionate'!D:D,MATCH("League",'Clasament campionate'!A:A,FALSE)+A29+26,1) -> 0-0 | N29: 0 | O29: 0 | U29: 1FC Juarez | V29: Club America | W29: Pumas U.N.A.M. | X29: Queretaro FC
A30: 11 | C30: =INDEX('Clasament campionate'!C:C,MATCH("League",'Clasament campionate'!A:A,FALSE)+$A30,1) -> Atlas | E30: =INDEX('Clasament campionate'!G:G,MATCH("League",'Clasament campionate'!A:A,FALSE)+$A30,1) -> Club America1 | F30: =INDEX('Clasament campionate'!D:D,MATCH("League",'Clasament campionate'!A:A,FALSE)+$A30,1) -> 0-1 | G30: 0 | H30: 1 | I30: =INDEX('Clasament campionate'!C:C,MATCH("League",'Clasament campionate'!A:A,FALSE)+A30+26,1) -> New York City Football Club | K30: =INDEX('Clasament campionate'!G:G,MATCH("League",'Clasament campionate'!A:A,FALSE)+A30+26,1) -> Pumas U.N.A.M. | M30: =INDEX('Clasament campionate'!D:D,MATCH("League",'Clasament campionate'!A:A,FALSE)+A30+26,1) -> 1-1 | N30: 1 | O30: 1 | U30: Atlas | V30: Club America | W30: New York City Football Club | X30: Pumas U.N.A.M.
A31: 12 | C31: =INDEX('Clasament campionate'!C:C,MATCH("League",'Clasament campionate'!A:A,FALSE)+$A31,1) -> Club America | E31: =INDEX('Clasament campionate'!G:G,MATCH("League",'Clasament campionate'!A:A,FALSE)+$A31,1) -> Philadelphia Union | F31: =INDEX('Clasament campionate'!D:D,MATCH("League",'Clasament campionate'!A:A,FALSE)+$A31,1) -> 2-0 | G31: 2 | H31: 0 | I31: =INDEX('Clasament campionate'!C:C,MATCH("League",'Clasament campionate'!A:A,FALSE)+A31+26,1) -> Pumas U.N.A.M. | K31: =INDEX('Clasament campionate'!G:G,MATCH("League",'Clasament campionate'!A:A,FALSE)+A31+26,1) -> Atletico San Luis | M31: =INDEX('Clasament campionate'!D:D,MATCH("League",'Clasament campionate'!A:A,FALSE)+A31+26,1) -> 1-3 | N31: 1 | O31: 3 | U31: Club America | V31: Philadelphia Union | W31: Pumas U.N.A.M. | X31: Atletico San Luis
A32: 13 | C32: =INDEX('Clasament campionate'!C:C,MATCH("League",'Clasament campionate'!A:A,FALSE)+$A32,1) -> Club America | E32: =INDEX('Clasament campionate'!G:G,MATCH("League",'Clasament campionate'!A:A,FALSE)+$A32,1) -> Puebla | F32: =INDEX('Clasament campionate'!D:D,MATCH("League",'Clasament campionate'!A:A,FALSE)+$A32,1) -> 2-0 | G32: 2 | H32: 0 | I32: =INDEX('Clasament campionate'!C:C,MATCH("League",'Clasament campionate'!A:A,FALSE)+A32+26,1) -> Monterrey | K32: =INDEX('Clasament campionate'!G:G,MATCH("League",'Clasament campionate'!A:A,FALSE)+A32+26,1) -> Pumas U.N.A.M. | M32: =INDEX('Clasament campionate'!D:D,MATCH("League",'Clasament campionate'!A:A,FALSE)+A32+26,1) -> 2-0 | N32: 2 | O32: 0 | U32: Club America | V32: Puebla | W32: Monterrey | X32: Pumas U.N.A.M.
A33: 14 | C33: =INDEX('Clasament campionate'!C:C,MATCH("League",'Clasament campionate'!A:A,FALSE)+$A33,1) -> Club America | E33: =INDEX('Clasament campionate'!G:G,MATCH("League",'Clasament campionate'!A:A,FALSE)+$A33,1) -> Necaxa | F33: =INDEX('Clasament campionate'!D:D,MATCH("League",'Clasament campionate'!A:A,FALSE)+$A33,1) -> 2-1 | G33: 2 | H33: 1 | I33: =INDEX('Clasament campionate'!C:C,MATCH("League",'Clasament campionate'!A:A,FALSE)+A33+26,1) -> Everton(N) | K33: =INDEX('Clasament campionate'!G:G,MATCH("League",'Clasament campionate'!A:A,FALSE)+A33+26,1) -> Pumas U.N.A.M. | M33: =INDEX('Clasament campionate'!D:D,MATCH("League",'Clasament campionate'!A:A,FALSE)+A33+26,1) -> 1-0 | N33: 1 | O33: 0 | U33: Club America | V33: Necaxa | W33: Everton(N) | X33: Pumas U.N.A.M.
A34: 15 | C34: =INDEX('Clasament campionate'!C:C,MATCH("League",'Clasament campionate'!A:A,FALSE)+$A34,1) -> Queretaro FC | E34: =INDEX('Clasament campionate'!G:G,MATCH("League",'Clasament campionate'!A:A,FALSE)+$A34,1) -> Club America | F34: =INDEX('Clasament campionate'!D:D,MATCH("League",'Clasament campionate'!A:A,FALSE)+$A34,1) -> 0-0 | G34: 0 | H34: 0 | I34: =INDEX('Clasament campionate'!C:C,MATCH("League",'Clasament campionate'!A:A,FALSE)+A34+26,1) -> Pumas U.N.A.M. | K34: =INDEX('Clasament campionate'!G:G,MATCH("League",'Clasament campionate'!A:A,FALSE)+A34+26,1) -> Atlas | M34: =INDEX('Clasament campionate'!D:D,MATCH("League",'Clasament campionate'!A:A,FALSE)+A34+26,1) -> 0-0 | N34: 0 | O34: 0 | U34: Queretaro FC | V34: Club America | W34: Pumas U.N.A.M. | X34: Atlas
A35: 16 | C35: =INDEX('Clasament campionate'!C:C,MATCH("League",'Clasament campionate'!A:A,FALSE)+$A35,1) -> Tigres UANL | E35: =INDEX('Clasament campionate'!G:G,MATCH("League",'Clasament campionate'!A:A,FALSE)+$A35,1) -> Club America | F35: =INDEX('Clasament campionate'!D:D,MATCH("League",'Clasament campionate'!A:A,FALSE)+$A35,1) -> 1-1 | G35: 1 | H35: 1 | I35: =INDEX('Clasament campionate'!C:C,MATCH("League",'Clasament campionate'!A:A,FALSE)+A35+26,1) -> Pumas U.N.A.M.(N) | K35: =INDEX('Clasament campionate'!G:G,MATCH("League",'Clasament campionate'!A:A,FALSE)+A35+26,1) -> Queretaro FC | M35: =INDEX('Clasament campionate'!D:D,MATCH("League",'Clasament campionate'!A:A,FALSE)+A35+26,1) -> 2-2 | N35: 2 | O35: 2 | U35: Tigres UANL | V35: Club America | W35: Pumas U.N.A.M.(N) | X35: Queretaro FC
A36: 17 | C36: =INDEX('Clasament campionate'!C:C,MATCH("League",'Clasament campionate'!A:A,FALSE)+$A36,1) -> Atlas(N) | E36: =INDEX('Clasament campionate'!G:G,MATCH("League",'Clasament campionate'!A:A,FALSE)+$A36,1) -> Club America | F36: =INDEX('Clasament campionate'!D:D,MATCH("League",'Clasament campionate'!A:A,FALSE)+$A36,1) -> 0-1 | G36: 0 | H36: 1 | I36: =INDEX('Clasament campionate'!C:C,MATCH("League",'Clasament campionate'!A:A,FALSE)+A36+26,1) -> San Antonio | K36: =INDEX('Clasament campionate'!G:G,MATCH("League",'Clasament campionate'!A:A,FALSE)+A36+26,1) -> Pumas U.N.A.M. | M36: =INDEX('Clasament campionate'!D:D,MATCH("League",'Clasament campionate'!A:A,FALSE)+A36+26,1) -> 2-4 | N36: 2 | O36: 4 | U36: Atlas(N) | V36: Club America | W36: San Antonio | X36: Pumas U.N.A.M.
A37: 18 | C37: =INDEX('Clasament campionate'!C:C,MATCH("League",'Clasament campionate'!A:A,FALSE)+$A37,1) -> 1Santos Laguna(N) | E37: =INDEX('Clasament campionate'!G:G,MATCH("League",'Clasament campionate'!A:A,FALSE)+$A37,1) -> Club America | F37: =INDEX('Clasament campionate'!D:D,MATCH("League",'Clasament campionate'!A:A,FALSE)+$A37,1) -> 0-1 | G37: 0 | H37: 1 | I37: =INDEX('Clasament campionate'!C:C,MATCH("League",'Clasament campionate'!A:A,FALSE)+A37+26,1) -> Monarcas Morelia | K37: =INDEX('Clasament campionate'!G:G,MATCH("League",'Clasament campionate'!A:A,FALSE)+A37+26,1) -> Pumas U.N.A.M. | M37: =INDEX('Clasament campionate'!D:D,MATCH("League",'Clasament campionate'!A:A,FALSE)+A37+26,1) -> 1-3 | N37: 1 | O37: 3 | U37: 1Santos Laguna(N) | V37: Club America | W37: Monarcas Morelia | X37: Pumas U.N.A.M.
A38: 19 | C38: =INDEX('Clasament campionate'!C:C,MATCH("League",'Clasament campionate'!A:A,FALSE)+$A38,1) -> Club America | E38: =INDEX('Clasament campionate'!G:G,MATCH("League",'Clasament campionate'!A:A,FALSE)+$A38,1) -> Pachuca | F38: =INDEX('Clasament campionate'!D:D,MATCH("League",'Clasament campionate'!A:A,FALSE)+$A38,1) -> 4-2 | G38: 4 | H38: 2 | I38: =INDEX('Clasament campionate'!C:C,MATCH("League",'Clasament campionate'!A:A,FALSE)+A38+26,1) -> Pumas U.N.A.M. | K38: =INDEX('Clasament campionate'!G:G,MATCH("League",'Clasament campionate'!A:A,FALSE)+A38+26,1) -> Club America | M38: =INDEX('Clasament campionate'!D:D,MATCH("League",'Clasament campionate'!A:A,FALSE)+A38+26,1) -> 0-1 | N38: 0 | O38: 1 | U38: Club America | V38: Pachuca | W38: Pumas U.N.A.M. | X38: =IF(LEFT(K38,LEN($L$3))=$L$3,$L$3,K38) -> Club America
A39: 20 | C39: =INDEX('Clasament campionate'!C:C,MATCH("League",'Clasament campionate'!A:A,FALSE)+$A39,1) -> Pachuca | E39: =INDEX('Clasament campionate'!G:G,MATCH("League",'Clasament campionate'!A:A,FALSE)+$A39,1) -> Club America1 | F39: =INDEX('Clasament campionate'!D:D,MATCH("League",'Clasament campionate'!A:A,FALSE)+$A39,1) -> 3-1 | G39: 3 | H39: 1 | I39: =INDEX('Clasament campionate'!C:C,MATCH("League",'Clasament campionate'!A:A,FALSE)+A39+26,1) -> Puebla | K39: =INDEX('Clasament campionate'!G:G,MATCH("League",'Clasament campionate'!A:A,FALSE)+A39+26,1) -> Pumas U.N.A.M. | M39: =INDEX('Clasament campionate'!D:D,MATCH("League",'Clasament campionate'!A:A,FALSE)+A39+26,1) -> 0-0 | N39: 0 | O39: 0 | U39: Pachuca | V39: Club America | W39: Puebla | X39: Pumas U.N.A.M.
A40: 21 | C40: =INDEX('Clasament campionate'!C:C,MATCH("League",'Clasament campionate'!A:A,FALSE)+$A40,1) -> Club America | E40: =INDEX('Clasament campionate'!G:G,MATCH("League",'Clasament campionate'!A:A,FALSE)+$A40,1) -> Portland Timbers | F40: =INDEX('Clasament campionate'!D:D,MATCH("League",'Clasament campionate'!A:A,FALSE)+$A40,1) -> 3-1 | G40: 3 | H40: 1 | I40: =INDEX('Clasament campionate'!C:C,MATCH("League",'Clasament campionate'!A:A,FALSE)+A40+26,1) -> Pumas U.N.A.M. | K40: =INDEX('Clasament campionate'!G:G,MATCH("League",'Clasament campionate'!A:A,FALSE)+A40+26,1) -> Tigres UANL | M40: =INDEX('Clasament campionate'!D:D,MATCH("League",'Clasament campionate'!A:A,FALSE)+A40+26,1) -> 0-0 | N40: 0 | O40: 0 | U40: Club America | V40: Portland Timbers | W40: Pumas U.N.A.M. | X40: Tigres UANL
B44: Home | C44: Nr. Partite | D44: Gol Fatti | E44: Gol Subiti | F44: Media Fatti | G44: Media subiti | H44: media finale
C45: =COUNTA(C21:C25) -> 5 | D45: =SUMIF(U21:U25,C3,G21:G25)+SUMIF(V21:V25,C3,H21:H25) -> 6 | E45: =SUMIF(U21:U25,C3,H21:H25)+SUMIF(V21:V25,C3,G21:G25) -> 4 | F45: =D45/C45 -> 1.2 | G45: =E45/C45 -> 0.8 | H45: =AVERAGE(F45:G45) -> 1
B48: Away | C48: Nr. Partite | D48: Gol Fatti | E48: Gol Subiti | F48: Media Fatti | G48: Media subiti | H48: media finale
C49: =COUNTA(I21:I25) -> 5 | D49: =SUMIF(W21:W25,L3,N21:N25)+SUMIF(X21:X25,L3,O21:O25) -> 2 | E49: =SUMIF(W21:W25,L3,O21:O25)+SUMIF(X21:X25,L3,N21:N25) -> 6 | F49: =D49/C49 -> 0.4 | G49: =E49/C49 -> 1.2 | H49: =AVERAGE(F49:G49) -> 0.8
D52: H2H
J54: medie gazde
B55: Home | C55: Nr. Partite | D55: Gol Fatti | E55: Gol Subiti | F55: Media Fatti | G55: Media subiti | H55: media finale | J55: =AVERAGE(F56,G59) -> 1.6
C56: =COUNTA(F12:G16) -> 5 | D56: =SUMIF(F12:G16,C3,S12:S16)+SUMIF(H12:I16,C3,T12:T16) -> 8 | E56: =SUMIF(F12:G16,C3,T12:T16)+SUMIF(H12:I16,C3,S12:S16) -> 5 | F56: =D56/C56 -> 1.6 | G56: =E56/C56 -> 1 | H56: =AVERAGE(F56:G56) -> 1.3
J57: medie oaspeti
B58: Away | C58: Nr. Partite | D58: Gol Fatti | E58: Gol Subiti | F58: Media Fatti | G58: Media subiti | H58: media finale | J58: =AVERAGE(F59,G56) -> 1
C59: =COUNTA(F12:G16) -> 5 | D59: =SUMIF(F12:G16,L3,S12:S16)+SUMIF(H12:I16,L3,T12:T16) -> 5 | E59: =SUMIF(F12:G16,L3,T12:T16)+SUMIF(H12:I16,L3,S12:S16) -> 8 | F59: =D59/C59 -> 1 | G59: =E59/C59 -> 1.6 | H59: =AVERAGE(F59:G59) -> 1.3
D61: ULTIME 6
B64: Home | C64: Nr. Partite | D64: Gol Fatti | E64: Gol Subiti | F64: Media Fatti | G64: Media subiti | H64: media finale
C65: 6 | D65: =H8 -> 7 | E65: =I8 -> 5 | F65: =D65/C65 -> 1.166666667 | G65: =E65/C65 -> 0.8333333333 | H65: =AVERAGE(F65:G65) -> 1
B67: Away | C67: Nr. Partite | D67: Gol Fatti | E67: Gol Subiti | F67: Media Fatti | G67: Media subiti | H67: media finale
C68: 6 | D68: =Q8 -> 5 | E68: =R8 -> 6 | F68: =D68/C68 -> 0.8333333333 | G68: =E68/C68 -> 1 | H68: =AVERAGE(F68:G68) -> 0.9166666667
C72: Home | E72: =(F45+G49)/2 -> 1.2 | G72: =AVERAGE(F45,G49,H56,F65,G68) -> 1.173333333
C75: Away | E75: =(F49+G45)/2 -> 0.6 | G75: =AVERAGE(F49,G45,H59,F68,G65) -> 0.8333333333

Sheet Scor corect1 - 10 meciuri (hidden)
H1: =SUM('Predictie POISSON'!F3:G5) -> 90
A2: Numarul de goluri | E2: Probabilitate | K2: Cote
A3: =Poisson!C3 -> Club America | C3: =Poisson!L3 -> Pumas U.N.A.M. | E3: =A3 -> Club America | G3: X | I3: =C3 -> Pumas U.N.A.M. | K3: =E3 -> Club America | M3: =G3 -> X | O3: =I3 -> Pumas U.N.A.M.
A4: =Poisson!E72 -> 1.2 | C4: =Poisson!E75 -> 0.6 | E4: =SUM(C7:D42) -> 0.5071960158 | G4: =SUM(I7:J15) -> 0.3075300306 | I4: =SUM(O7:P42) -> 0.1852690785 | K4: =1/E4 -> 1.97162432 | M4: =1/G4 -> 3.251714957 | O4: =1/I4 -> 5.397554777
B5: =A3 -> Club America | H5: =IF(H1=90,"Final",IF(H1=45,"Pauza","Intermediar")) -> Final | M5: =C3 -> Pumas U.N.A.M. | S5: Left | V5: Right | Y5: GG | AB5: GG 3+ | AE5: H1
A6: Rezultat | C6: Probabilitate | E6: Cote | G6: Rezultat | I6: Probabilitate | K6: Cote | M6: Rezultat | O6: Probabilitate | Q6: Cote | S6: 1 | T6: x | U6: 2 | V6: 1 | W6: x | X6: 2 | Y6: 1 | Z6: x | AA6: 2 | AB6: 1 | AC6: x | AD6: 2 | AH6: HG | AI6: AG
A7: 01:00:00 | C7: =POISSON(HOUR(A7),$A$4*$H$1/90,FALSE)*POISSON(MINUTE(A7),$C$4*$H$1/90,FALSE) -> 0.1983586659 | E7: =1/C7 -> 5.041372887 | G7: 00:00:00 | I7: =POISSON(HOUR(G7),$A$4*$H$1/90,FALSE)*POISSON(MINUTE(G7),$C$4*$H$1/90,FALSE) -> 0.1652988882 | K7: =1/I7 -> 6.049647464 | M7: 00:01:00 | O7: =POISSON(HOUR(M7),$A$4*$H$1/90,FALSE)*POISSON(MINUTE(M7),$C$4*$H$1/90,FALSE) -> 0.09917933293 | Q7: =1/O7 -> 10.08274577 | S7: =IF(A7="","",HOUR(A7)) -> 1 | T7: =IF(G7="","",HOUR(G7)) -> 0 | U7: =IF(M7="","",HOUR(M7)) -> 0 | V7: =IF(A7="","",MINUTE(A7)) -> 0 | W7: =IF(G7="","",MINUTE(G7)) -> 0 | X7: =IF(M7="","",MINUTE(M7)) -> 1 | Y7: =IF(A7="","",IF(OR(HOUR(A7)=0,MINUTE(A7)=0),0,1)) -> 0 | Z7: =IF(G7="","",IF(OR(HOUR(G7)=0,MINUTE(G7)=0),0,1)) -> 0 | AA7: =IF(M7="","",IF(OR(HOUR(M7)=0,MINUTE(M7)=0),0,1)) -> 0 | AB7: =IF(Y7="","",IF(Y7=0,0,IF(SUM(HOUR(A7))+SUM(MINUTE(A7))<3,0,1))) -> 0 | AC7: =IF(Z7="","",IF(Z7=0,0,IF(SUM(HOUR(G7))+SUM(MINUTE(G7))<3,0,1))) -> 0 | AD7: =IF(AA7="","",IF(AA7=0,0,IF(SUM(HOUR(M7))+SUM(MINUTE(M7))<3,0,1))) -> 0 | AG7: 0 | AH7: =POISSON(AG7,$A$4*$H$1/90,FALSE)*100 -> 30.11942119 | AI7: =POISSON(AG7,$C$4*$H$1/90,FALSE)*100 -> 54.88116361 | AJ7: 0 | AK7: =LARGE($AN$7:$AN$87,AL7) -> 0.1983586659 | AL7: 1 | AM7: =VLOOKUP(AK7,$AN$7:$AO$87,2,0) -> 01:00:00 | AN7: =IF(NOT(ISNA(VLOOKUP(AO7,$A$7:$D$42,3,0))),VLOOKUP(AO7,$A$7:$D$42,3,0),IF(NOT(ISNA(VLOOKUP(AO7,$G$7:$J$15,3,0))),VLOOKUP(AO7,$G$7:$J$15,3,0),VLOOKUP(AO7,$M$7:$P$42,3,0))) -> 0.1652988882 | AO7: =TIMEVALUE($AG$7&":"&AJ7) -> 00:00:00
A8: 02:00:00 | C8: =POISSON(HOUR(A8),$A$4*$H$1/90,FALSE)*POISSON(MINUTE(A8),$C$4*$H$1/90,FALSE) -> 0.1190151995 | E8: =1/C8 -> 8.402288145 | G8: 01:01:00 | I8: =POISSON(HOUR(G8),$A$4*$H$1/90,FALSE)*POISSON(MINUTE(G8),$C$4*$H$1/90,FALSE) -> 0.1190151995 | K8: =1/I8 -> 8.402288145 | M8: 00:02:00 | O8: =POISSON(HOUR(M8),$A$4*$H$1/90,FALSE)*POISSON(MINUTE(M8),$C$4*$H$1/90,FALSE) -> 0.02975379988 | Q8: =1/O8 -> 33.60915258 | S8: =IF(A8="","",HOUR(A8)) -> 2 | T8: =IF(G8="","",HOUR(G8)) -> 1 | U8: =IF(M8="","",HOUR(M8)) -> 0 | V8: =IF(A8="","",MINUTE(A8)) -> 0 | W8: =IF(G8="","",MINUTE(G8)) -> 1 | X8: =IF(M8="","",MINUTE(M8)) -> 2 | Y8: =IF(A8="","",IF(OR(HOUR(A8)=0,MINUTE(A8)=0),0,1)) -> 0 | Z8: =IF(G8="","",IF(OR(HOUR(G8)=0,MINUTE(G8)=0),0,1)) -> 1 | AA8: =IF(M8="","",IF(OR(HOUR(M8)=0,MINUTE(M8)=0),0,1)) -> 0 | AB8: =IF(Y8="","",IF(Y8=0,0,IF(SUM(HOUR(A8))+SUM(MINUTE(A8))<3,0,1))) -> 0 | AC8: =IF(Z8="","",IF(Z8=0,0,IF(SUM(HOUR(G8))+SUM(MINUTE(G8))<3,0,1))) -> 0 | AD8: =IF(AA8="","",IF(AA8=0,0,IF(SUM(HOUR(M8))+SUM(MINUTE(M8))<3,0,1))) -> 0 | AG8: 1 | AH8: =POISSON(AG8,$A$4*$H$1/90,FALSE)*100 -> 36.14330543 | AI8: =POISSON(AG8,$C$4*$H$1/90,FALSE)*100 -> 32.92869817 | AJ8: 1 | AK8: =LARGE($AN$7:$AN$87,AL8) -> 0.1652988882 | AL8: 2 | AM8: =VLOOKUP(AK8,$AN$7:$AO$87,2,0) -> 00:00:00 | AN8: 0.09917933293 | AO8: 00:01:00
A9: 02:01:00 | C9: 0.07140911971 | E9: 14.00381358 | G9: 02:02:00 | I9: 0.02142273591 | K9: 46.67937858 | M9: 01:02:00 | O9: 0.03570455986 | Q9: 28.00762715 | S9: 2 | T9: 2 | U9: 1 | V9: 1 | W9: 2 | X9: 2 | Y9: 1 | Z9: 1 | AA9: =IF(M9="","",IF(OR(HOUR(M9)=0,MINUTE(M9)=0),0,1)) -> 1 | AB9: 1 | AC9: 1 | AD9: 1 | AG9: 2 | AH9: =POISSON(AG9,$A$4*$H$1/90,FALSE)*100 -> 21.68598326 | AI9: =POISSON(AG9,$C$4*$H$1/90,FALSE)*100 -> 9.87860945 | AJ9: 2 | AK9: 0.1190151995 | AL9: 3 | AM9: =VLOOKUP(AK9,$AN$7:$AO$87,2,0) -> 01:01:00 | AN9: 0.02975379988 | AO9: 00:02:00
A10: 03:00:00 | C10: 0.04760607981 | E10: 21.00572036 | G10: 03:03:00 | I10: 0.001713818873 | K10: 583.4922323 | M10: 00:03:00 | O10: 0.005950759976 | Q10: 168.0457629 | S10: 3 | T10: 3 | U10: 0 | V10: 0 | W10: 3 | X10: 3 | Y10: 0 | Z10: 1 | AA10: =IF(M10="","",IF(OR(HOUR(M10)=0,MINUTE(M10)=0),0,1)) -> 0 | AB10: 0 | AC10: 1 | AD10: 0 | AG10: 3 | AH10: 8.674393303 | AI10: 1.97572189 | AJ10: 3 | AK10: 0.1190151995 | AL10: 4 | AM10: =VLOOKUP(AK10,$AN$7:$AO$87,2,0) -> 01:01:00 | AN10: 0.005950759976 | AO10: 00:03:00
A11: 03:01:00 | C11: 0.02856364788 | E11: 35.00953394 | G11: 04:04:00 | I11: 7.712184929e-05 | K11: 12966.49405 | M11: 01:03:00 | O11: 0.007140911971 | Q11: 140.0381358 | S11: 3 | T11: 4 | U11: 1 | V11: 1 | W11: 4 | X11: 3 | Y11: 1 | Z11: 1 | AA11: 1 | AB11: 1 | AC11: 1 | AD11: 1 | AG11: 4 | AH11: 2.602317991 | AI11: 0.2963582835 | AJ11: 4 | AK11: 0.09917933293 | AL11: 5 | AM11: 00:01:00 | AN11: 0.0008926139964 | AO11: 00:04:00
A12: 03:02:00 | C12: 0.008569094365 | E12: 116.6984465 | G12: 05:05:00 | I12: 2.22110926e-06 | K12: 450225.4879 | M12: 02:03:00 | O12: 0.004284547183 | Q12: 233.3968929 | S12: 3 | T12: 5 | U12: 2 | V12: 2 | W12: 5 | X12: 3 | Y12: 1 | Z12: 1 | AA12: 1 | AB12: 1 | AC12: 1 | AD12: 1 | AG12: 5 | AH12: 0.6245563178 | AI12: 0.03556299402 | AJ12: 5 | AK12: 0.07140911971 | AL12: 6 | AM12: 02:01:00 | AN12: 0.0001071136796 | AO12: 00:05:00
A13: 04:00:00 | C13: 0.01428182394 | E13: 70.01906788 | G13: 06:06:00 | I13: 4.442218519e-08 | K13: 22511274.39 | M13: 00:04:00 | O13: 0.0008926139964 | Q13: 1120.305086 | S13: 4 | T13: 6 | U13: 0 | V13: 0 | W13: 6 | X13: 4 | Y13: 0 | Z13: 1 | AA13: 0 | AB13: 0 | AC13: 1 | AD13: 0 | AG13: 6 | AH13: 0.1249112636 | AI13: 0.003556299402 | AJ13: 6 | AK13: 0.04760607981 | AL13: 7 | AM13: 03:00:00 | AN13: 1.071136796e-05 | AO13: 00:06:00
A14: 04:01:00 | C14: 0.008569094365 | E14: 116.6984465 | G14: 07:07:00 | I14: 6.527341497e-10 | K14: 1532017285 | M14: 01:04:00 | O14: 0.001071136796 | Q14: 933.5875717 | S14: 4 | T14: 7 | U14: 1 | V14: 1 | W14: 7 | X14: 4 | Y14: 1 | Z14: 1 | AA14: 1 | AB14: 1 | AC14: 1 | AD14: 1 | AG14: 7 | AH14: 0.02141335947 | AI14: 0.000304825663 | AJ14: 7 | AK14: 0.03570455986 | AL14: 8 | AM14: 01:02:00 | AN14: 9.181172534e-07 | AO14: 00:07:00
A15: 04:02:00 | C15: 0.00257072831 | E15: 388.9948215 | G15: 08:08:00 | I15: 7.343259185e-12 | K15: 1.361793142e+11 | M15: 02:04:00 | O15: 0.0006426820774 | Q15: 1555.979286 | S15: 4 | T15: 8 | U15: 2 | V15: 2 | W15: 8 | X15: 4 | Y15: 1 | Z15: 1 | AA15: 1 | AB15: 1 | AC15: 1 | AD15: 1 | AG15: 8 | AH15: 0.00321200392 | AI15: 2.286192473e-05 | AJ15: 8 | AK15: 0.02975379988 | AL15: 9 | AM15: 00:02:00 | AN15: 6.885879401e-08 | AO15: 00:08:00
A16: 04:03:00 | C16: 0.0005141456619 | E16: 1944.974108 | M16: 03:04:00 | O16: 0.000257072831 | Q16: 3889.948215 | S16: 4 | U16: 3 | V16: 3 | X16: 4 | Y16: 1 | AA16: 1 | AB16: 1 | AD16: 1 | AG16: =MATCH(AH16,AH7:AH14,0)-1 -> 1 | AH16: =MAX(AH7:AH15) -> 36.14330543 | AI16: =MAX(AI7:AI15) -> 54.88116361 | AJ16: =MATCH(AI16,AI7:AI14,FALSE)-1 -> 0 | AK16: 0.02856364788 | AL16: 10 | AM16: 03:01:00 | AN16: 0.1983586659 | AO16: =TIMEVALUE($AG$8&":"&AJ7) -> 01:00:00
A17: 05:00:00 | C17: 0.003427637746 | E17: 291.7461161 | M17: 00:05:00 | O17: 0.0001071136796 | Q17: 9335.875717 | S17: 5 | U17: 0 | V17: 0 | X17: 5 | Y17: 0 | AA17: 0 | AB17: 0 | AD17: 0 | AG17: =MATCH(AH16,AH7:AH14,0) -> 2 | AJ17: =MATCH(AI16,AI7:AI14,FALSE) -> 1 | AK17: 0.02142273591 | AL17: 11 | AM17: 02:02:00 | AN17: 0.1190151995 | AO17: 01:01:00
A18: 05:01:00 | C18: 0.002056582648 | E18: 486.2435269 | M18: 01:05:00 | O18: 0.0001285364155 | Q18: 7779.896431 | S18: 5 | U18: 1 | V18: 1 | X18: 5 | Y18: 1 | AA18: 1 | AB18: 1 | AD18: 1 | AK18: 0.01428182394 | AL18: 12 | AM18: 04:00:00 | AN18: 0.03570455986 | AO18: 01:02:00
A19: 05:02:00 | C19: 0.0006169747943 | E19: 1620.811756 | M19: 02:05:00 | O19: 7.712184929e-05 | Q19: 12966.49405 | S19: 5 | U19: 2 | V19: 2 | X19: 5 | Y19: 1 | AA19: 1 | AB19: 1 | AD19: 1 | AK19: 0.008569094365 | AL19: 13 | AM19: 03:02:00 | AN19: 0.007140911971 | AO19: 01:03:00
A20: 05:03:00 | C20: 0.0001233949589 | E20: 8104.058782 | M20: 03:05:00 | O20: 3.084873972e-05 | Q20: 32416.23513 | S20: 5 | U20: 3 | V20: 3 | X20: 5 | Y20: 1 | AA20: 1 | AB20: 1 | AD20: 1 | AK20: 0.008569094365 | AL20: 14 | AM20: 04:01:00 | AN20: 0.001071136796 | AO20: 01:04:00
A21: 05:04:00 | C21: 1.850924383e-05 | E21: 54027.05855 | M21: 04:05:00 | O21: 9.254621915e-06 | Q21: 108054.1171 | S21: 5 | U21: 4 | V21: 4 | X21: 5 | Y21: 1 | AA21: 1 | AB21: 1 | AD21: 1 | AK21: 0.007140911971 | AL21: 15 | AM21: 01:03:00 | AN21: 0.0001285364155 | AO21: 01:05:00
A22: 06:00:00 | C22: 0.0006855275492 | E22: 1458.730581 | M22: 00:06:00 | O22: 1.071136796e-05 | Q22: 93358.75717 | S22: 6 | U22: 0 | V22: 0 | X22: 6 | Y22: 0 | AA22: 0 | AB22: 0 | AD22: 0 | AK22: 0.005950759976 | AL22: 16 | AM22: 00:03:00 | AN22: 1.285364155e-05 | AO22: 01:06:00
A23: 06:01:00 | C23: 0.0004113165295 | E23: 2431.217635 | M23: 01:06:00 | O23: 1.285364155e-05 | Q23: 77798.96431 | S23: 6 | U23: 1 | V23: 1 | X23: 6 | Y23: 1 | AA23: 1 | AB23: 1 | AD23: 1 | AK23: 0.004284547183 | AL23: 17 | AM23: 02:03:00 | AN23: 1.101740704e-06 | AO23: 01:07:00
A24: 06:02:00 | C24: 0.0001233949589 | E24: 8104.058782 | M24: 02:06:00 | O24: 7.712184929e-06 | Q24: 129664.9405 | S24: 6 | U24: 2 | V24: 2 | X24: 6 | Y24: 1 | AA24: 1 | AB24: 1 | AD24: 1 | AK24: 0.003427637746 | AL24: 18 | AM24: 05:00:00 | AN24: 8.263055281e-08 | AO24: 01:08:00
A25: 06:03:00 | C25: 2.467899177e-05 | E25: 40520.29391 | M25: 03:06:00 | O25: 3.084873972e-06 | Q25: 324162.3513 | S25: 6 | U25: 3 | V25: 3 | X25: 6 | Y25: 1 | AA25: 1 | AB25: 1 | AD25: 1 | AK25: 0.00257072831 | AL25: 19 | AM25: 04:02:00 | AN25: 0.1190151995 | AO25: =TIMEVALUE($AG$9&":"&AJ7) -> 02:00:00
A26: 06:04:00 | C26: 3.701848766e-06 | E26: 270135.2927 | M26: 04:06:00 | O26: 9.254621915e-07 | Q26: 1080541.171 | S26: 6 | U26: 4 | V26: 4 | X26: 6 | Y26: 1 | AA26: 1 | AB26: 1 | AD26: 1 | AK26: 0.002056582648 | AL26: 20 | AM26: 05:01:00 | AN26: 0.07140911971 | AO26: 02:01:00
A27: 06:05:00 | C27: 4.442218519e-07 | E27: 2251127.439 | M27: 05:06:00 | O27: 2.22110926e-07 | Q27: 4502254.879 | S27: 6 | U27: 5 | V27: 5 | X27: 6 | Y27: 1 | AA27: 1 | AB27: 1 | AD27: 1 | AK27: 0.001713818873 | AL27: 21 | AM27: 03:03:00 | AN27: 0.02142273591 | AO27: 02:02:00
A28: 07:00:00 | C28: 0.0001175190084 | E28: 8509.261721 | M28: 00:07:00 | O28: 9.181172534e-07 | Q28: 1089185.5 | S28: 7 | U28: 0 | V28: 0 | X28: 7 | Y28: =IF(A28="","",IF(OR(HOUR(A28)=0,MINUTE(A28)=0),0,1)) -> 0 | AA28: 0 | AB28: =IF(Y28="","",IF(Y28=0,0,IF(SUM(HOUR(A28))+SUM(MINUTE(A28))<3,0,1))) -> 0 | AC28: =IF(Z28="","",IF(Z28=0,0,IF(SUM(HOUR(G28))+SUM(MINUTE(G28))<3,0,1))) ->  | AD28: =IF(AA28="","",IF(AA28=0,0,IF(SUM(HOUR(M28))+SUM(MINUTE(M28))<3,0,1))) -> 0 | AK28: 0.001071136796 | AL28: 22 | AM28: 01:04:00 | AN28: 0.004284547183 | AO28: 02:03:00
A29: 07:01:00 | C29: 7.051140506e-05 | E29: 14182.10287 | M29: 01:07:00 | O29: 1.101740704e-06 | Q29: 907654.5836 | S29: 7 | U29: 1 | V29: 1 | X29: 7 | Y29: 1 | AA29: 1 | AB29: =IF(Y29="","",IF(Y29=0,0,IF(SUM(HOUR(A29))+SUM(MINUTE(A29))<3,0,1))) -> 1 | AC29: =IF(Z29="","",IF(Z29=0,0,IF(SUM(HOUR(G29))+SUM(MINUTE(G29))<3,0,1))) ->  | AD29: =IF(AA29="","",IF(AA29=0,0,IF(SUM(HOUR(M29))+SUM(MINUTE(M29))<3,0,1))) -> 1 | AK29: 0.0008926139964 | AL29: 23 | AM29: 00:04:00 | AN29: 0.0006426820774 | AO29: 02:04:00
A30: 07:02:00 | C30: 2.115342152e-05 | E30: 47273.67623 | M30: 02:07:00 | O30: 6.610444225e-07 | Q30: 1512757.639 | S30: 7 | U30: 2 | V30: 2 | X30: 7 | Y30: 1 | AA30: 1 | AB30: 1 | AD30: 1 | AK30: 0.0006855275492 | AL30: 24 | AM30: 06:00:00 | AN30: 7.712184929e-05 | AO30: 02:05:00
A31: 07:03:00 | C31: 4.230684304e-06 | E31: 236368.3811 | M31: 03:07:00 | O31: 2.64417769e-07 | Q31: 3781894.098 | S31: 7 | U31: 3 | V31: 3 | X31: 7 | Y31: 1 | AA31: 1 | AB31: 1 | AD31: 1 | AK31: 0.0006426820774 | AL31: 25 | AM31: 02:04:00 | AN31: 7.712184929e-06 | AO31: 02:06:00
A32: 07:04:00 | C32: 6.346026456e-07 | E32: 1575789.208 | M32: 04:07:00 | O32: 7.93253307e-08 | Q32: 12606313.66 | S32: 7 | U32: 4 | V32: 4 | X32: 7 | Y32: 1 | AA32: 1 | AB32: 1 | AD32: 1 | AK32: 0.0006169747943 | AL32: 26 | AM32: 05:02:00 | AN32: 6.610444225e-07 | AO32: 02:07:00
A33: 07:05:00 | C33: 7.615231747e-08 | E33: 13131576.73 | M33: 05:07:00 | O33: 1.903807937e-08 | Q33: 52526306.92 | S33: 7 | U33: 5 | V33: 5 | X33: 7 | Y33: 1 | AA33: 1 | AB33: 1 | AD33: 1 | AK33: 0.0005141456619 | AL33: 27 | AM33: 04:03:00 | AN33: 4.957833169e-08 | AO33: 02:08:00
A34: 07:06:00 | C34: 7.615231747e-09 | E34: 131315767.3 | M34: 06:07:00 | O34: 3.807615873e-09 | Q34: 262631534.6 | S34: 7 | U34: 6 | V34: 6 | X34: 7 | Y34: 1 | AA34: 1 | AB34: 1 | AD34: 1 | AK34: 0.0004113165295 | AL34: 28 | AM34: 06:01:00 | AN34: 0.04760607981 | AO34: =TIMEVALUE($AG$10&":"&AJ7) -> 03:00:00
A35: 08:00:00 | C35: 1.762785127e-05 | E35: 56728.41147 | M35: 00:08:00 | O35: 6.885879401e-08 | Q35: 14522473.34 | S35: 8 | U35: 0 | V35: 0 | X35: 8 | Y35: 0 | AA35: 0 | AB35: 0 | AD35: 0 | AK35: 0.000257072831 | AL35: 29 | AM35: 03:04:00 | AN35: 0.02856364788 | AO35: 03:01:00
A36: 08:01:00 | C36: 1.057671076e-05 | E36: 94547.35245 | M36: 01:08:00 | O36: 8.263055281e-08 | Q36: 12102061.11 | S36: 8 | U36: 1 | V36: 1 | X36: 8 | Y36: 1 | AA36: 1 | AB36: 1 | AD36: 1 | AK36: 0.0001285364155 | AL36: 30 | AM36: 01:05:00 | AN36: 0.008569094365 | AO36: 03:02:00
A37: 08:02:00 | C37: 3.173013228e-06 | E37: 315157.8415 | M37: 02:08:00 | O37: 4.957833169e-08 | Q37: 20170101.86 | S37: 8 | U37: 2 | V37: 2 | X37: 8 | Y37: 1 | AA37: 1 | AB37: 1 | AD37: 1 | AK37: 0.0001233949589 | AL37: 31 | AM37: 06:02:00 | AN37: 0.001713818873 | AO37: 03:03:00
A38: 08:03:00 | C38: 6.346026456e-07 | E38: 1575789.208 | M38: 03:08:00 | O38: 1.983133267e-08 | Q38: 50425254.64 | S38: 8 | U38: 3 | V38: 3 | X38: 8 | Y38: 1 | AA38: 1 | AB38: 1 | AD38: 1 | AK38: 0.0001233949589 | AL38: 32 | AM38: 05:03:00 | AN38: 0.000257072831 | AO38: 03:04:00
A39: 08:04:00 | C39: 9.519039684e-08 | E39: 10505261.38 | M39: 04:08:00 | O39: 5.949399802e-09 | Q39: 168084182.1 | S39: 8 | U39: 4 | V39: 4 | X39: 8 | Y39: 1 | AA39: 1 | AB39: 1 | AD39: 1 | AK39: 0.0001175190084 | AL39: 33 | AM39: 07:00:00 | AN39: 3.084873972e-05 | AO39: 03:05:00
A40: 08:05:00 | C40: 1.142284762e-08 | E40: 87543844.87 | M40: 05:08:00 | O40: 1.427855953e-09 | Q40: 700350758.9 | S40: 8 | U40: 5 | V40: 5 | X40: 8 | Y40: 1 | AA40: 1 | AB40: 1 | AD40: 1 | AK40: 0.0001071136796 | AL40: 34 | AM40: 00:05:00 | AN40: 3.084873972e-06 | AO40: 03:06:00
A41: 08:06:00 | C41: 1.142284762e-09 | E41: 875438448.7 | M41: 06:08:00 | O41: 2.855711905e-10 | Q41: 3501753795 | S41: 8 | U41: 6 | V41: 6 | X41: 8 | Y41: 1 | AA41: 1 | AB41: 1 | AD41: 1 | AK41: 7.712184929e-05 | AL41: 35 | AM41: 02:05:00 | AN41: 2.64417769e-07 | AO41: 03:07:00
A42: 08:07:00 | C42: 9.791012246e-11 | E42: 1.021344857e+10 | M42: 07:08:00 | O42: 4.895506123e-11 | Q42: 2.042689714e+10 | S42: 8 | U42: 7 | V42: 7 | X42: 8 | Y42: 1 | AA42: 1 | AB42: 1 | AD42: 1 | AK42: 7.712184929e-05 | AL42: 36 | AM42: 04:04:00 | AN42: 1.983133267e-08 | AO42: 03:08:00
AK43: 7.051140506e-05 | AL43: 37 | AM43: 07:01:00 | AN43: 0.01428182394 | AO43: =TIMEVALUE($AG$11&":"&AJ7) -> 04:00:00
AK44: 3.084873972e-05 | AL44: 38 | AM44: 03:05:00 | AN44: 0.008569094365 | AO44: 04:01:00
AK45: 2.467899177e-05 | AL45: 39 | AM45: 06:03:00 | AN45: 0.00257072831 | AO45: 04:02:00
AK46: 2.115342152e-05 | AL46: 40 | AM46: 07:02:00 | AN46: 0.0005141456619 | AO46: 04:03:00
AK47: 1.850924383e-05 | AL47: 41 | AM47: 05:04:00 | AN47: 7.712184929e-05 | AO47: 04:04:00
AK48: 1.762785127e-05 | AL48: 42 | AM48: 08:00:00 | AN48: 9.254621915e-06 | AO48: 04:05:00
AK49: 1.285364155e-05 | AL49: 43 | AM49: 01:06:00 | AN49: 9.254621915e-07 | AO49: 04:06:00
AK50: 1.071136796e-05 | AL50: 44 | AM50: 00:06:00 | AN50: 7.93253307e-08 | AO50: 04:07:00
AK51: 1.057671076e-05 | AL51: 45 | AM51: 08:01:00 | AN51: 5.949399802e-09 | AO51: 04:08:00
AK52: 9.254621915e-06 | AL52: 46 | AM52: 04:05:00 | AN52: 0.003427637746 | AO52: =TIMEVALUE($AG$12&":"&AJ7) -> 05:00:00
AK53: 7.712184929e-06 | AL53: 47 | AM53: 02:06:00 | AN53: 0.002056582648 | AO53: 05:01:00
AK54: 4.230684304e-06 | AL54: 48 | AM54: 07:03:00 | AN54: 0.0006169747943 | AO54: 05:02:00
AK55: 3.701848766e-06 | AL55: 49 | AM55: 06:04:00 | AN55: 0.0001233949589 | AO55: 05:03:00
AK56: 3.173013228e-06 | AL56: 50 | AM56: 08:02:00 | AN56: 1.850924383e-05 | AO56: 05:04:00
AK57: 3.084873972e-06 | AL57: 51 | AM57: 03:06:00 | AN57: 2.22110926e-06 | AO57: 05:05:00
AK58: 2.22110926e-06 | AL58: 52 | AM58: 05:05:00 | AN58: 2.22110926e-07 | AO58: 05:06:00
AK59: 1.101740704e-06 | AL59: 53 | AM59: 01:07:00 | AN59: 1.903807937e-08 | AO59: 05:07:00
AK60: 9.254621915e-07 | AL60: 54 | AM60: 04:06:00 | AN60: 1.427855953e-09 | AO60: 05:08:00
AK61: 9.181172534e-07 | AL61: 55 | AM61: 00:07:00 | AN61: 0.0006855275492 | AO61: =TIMEVALUE($AG$13&":"&AJ7) -> 06:00:00
AK62: 6.610444225e-07 | AL62: 56 | AM62: 02:07:00 | AN62: 0.0004113165295 | AO62: 06:01:00
AK63: 6.346026456e-07 | AL63: 57 | AM63: 08:03:00 | AN63: 0.0001233949589 | AO63: 06:02:00
AK64: 6.346026456e-07 | AL64: 58 | AM64: 07:04:00 | AN64: 2.467899177e-05 | AO64: 06:03:00
AK65: 4.442218519e-07 | AL65: 59 | AM65: 06:05:00 | AN65: 3.701848766e-06 | AO65: 06:04:00
AK66: 2.64417769e-07 | AL66: 60 | AM66: 03:07:00 | AN66: 4.442218519e-07 | AO66: 06:05:00
AK67: 2.22110926e-07 | AL67: 61 | AM67: 05:06:00 | AN67: 4.442218519e-08 | AO67: 06:06:00
AK68: 9.519039684e-08 | AL68: 62 | AM68: 08:04:00 | AN68: 3.807615873e-09 | AO68: 06:07:00
AK69: 8.263055281e-08 | AL69: 63 | AM69: 01:08:00 | AN69: 2.855711905e-10 | AO69: 06:08:00
AK70: 7.93253307e-08 | AL70: 64 | AM70: 04:07:00 | AN70: 0.0001175190084 | AO70: =TIMEVALUE($AG$14&":"&AJ7) -> 07:00:00
AK71: 7.615231747e-08 | AL71: 65 | AM71: 07:05:00 | AN71: =IF(NOT(ISNA(VLOOKUP(AO71,$A$7:$D$42,3,0))),VLOOKUP(AO71,$A$7:$D$42,3,0),IF(NOT(ISNA(VLOOKUP(AO71,$G$7:$J$15,3,0))),VLOOKUP(AO71,$G$7:$J$15,3,0),VLOOKUP(AO71,$M$7:$P$42,3,0))) -> 7.051140506e-05 | AO71: 07:01:00
AK72: =LARGE($AN$7:$AN$87,AL72) -> 6.885879401e-08 | AL72: 66 | AM72: 00:08:00 | AN72: 2.115342152e-05 | AO72: 07:02:00
AK73: 4.957833169e-08 | AL73: 67 | AM73: 02:08:00 | AN73: 4.230684304e-06 | AO73: 07:03:00
AK74: 4.442218519e-08 | AL74: 68 | AM74: =VLOOKUP(AK74,$AN$7:$AO$87,2,0) -> 06:06:00 | AN74: 6.346026456e-07 | AO74: 07:04:00
AK75: 1.983133267e-08 | AL75: 69 | AM75: 03:08:00 | AN75: 7.615231747e-08 | AO75: 07:05:00
AK76: 1.903807937e-08 | AL76: 70 | AM76: 05:07:00 | AN76: 7.615231747e-09 | AO76: 07:06:00
AK77: 1.142284762e-08 | AL77: 71 | AM77: 08:05:00 | AN77: 6.527341497e-10 | AO77: 07:07:00
AK78: 7.615231747e-09 | AL78: 72 | AM78: 07:06:00 | AN78: 4.895506123e-11 | AO78: 07:08:00
AK79: 5.949399802e-09 | AL79: 73 | AM79: 04:08:00 | AN79: 1.762785127e-05 | AO79: =TIMEVALUE($AG$15&":"&AJ7) -> 08:00:00
AK80: 3.807615873e-09 | AL80: 74 | AM80: 06:07:00 | AN80: 1.057671076e-05 | AO80: 08:01:00
AK81: 1.427855953e-09 | AL81: 75 | AM81: 05:08:00 | AN81: 3.173013228e-06 | AO81: 08:02:00
AK82: 1.142284762e-09 | AL82: 76 | AM82: 08:06:00 | AN82: 6.346026456e-07 | AO82: 08:03:00
AK83: 6.527341497e-10 | AL83: 77 | AM83: 07:07:00 | AN83: 9.519039684e-08 | AO83: 08:04:00
AK84: 2.855711905e-10 | AL84: 78 | AM84: 06:08:00 | AN84: 1.142284762e-08 | AO84: 08:05:00
AK85: 9.791012246e-11 | AL85: 79 | AM85: 08:07:00 | AN85: 1.142284762e-09 | AO85: 08:06:00
AK86: 4.895506123e-11 | AL86: 80 | AM86: 07:08:00 | AN86: 9.791012246e-11 | AO86: 08:07:00
AK87: 7.343259185e-12 | AL87: 81 | AM87: 08:08:00 | AN87: 7.343259185e-12 | AO87: 08:08:00

Sheet Scor corect - 10 meciuri (hidden)
H1: 90
A2: Numarul de goluri | E2: Probabilitate | K2: Cote
A3: =Poisson!C3 -> Club America | C3: =Poisson!L3 -> Pumas U.N.A.M. | E3: =A3 -> Club America | G3: X | I3: =C3 -> Pumas U.N.A.M. | K3: =E3 -> Club America | M3: =G3 -> X | O3: =I3 -> Pumas U.N.A.M.
A4: =Poisson!E72/2 -> 0.6 | C4: =Poisson!E75/2 -> 0.3 | E4: =SUM(C7:D42) -> 0.3621224584 | G4: =SUM(I7:J15) -> 0.4831120234 | I4: =SUM(O7:P42) -> 0.154765502 | K4: =1/E4 -> 2.761496772 | M4: =1/G4 -> 2.069913295 | O4: =1/I4 -> 6.461388275
B5: =A3 -> Club America | H5: =IF(H1=90,"Final",IF(H1=45,"Pauza","Intermediar")) -> Final | M5: =C3 -> Pumas U.N.A.M.
A6: Rezultat | C6: Probabilitate | E6: Cote | G6: Rezultat | I6: Probabilitate | K6: Cote | M6: Rezultat | O6: Probabilitate | Q6: Cote
A7: 01:00:00 | C7: =POISSON(HOUR(A7),$A$4*$H$1/90,FALSE)*POISSON(MINUTE(A7),$C$4*$H$1/90,FALSE) -> 0.2439417958 | E7: =1/C7 -> 4.099338519 | G7: 00:00:00 | I7: =POISSON(HOUR(G7),$A$4*$H$1/90,FALSE)*POISSON(MINUTE(G7),$C$4*$H$1/90,FALSE) -> 0.4065696597 | K7: =1/I7 -> 2.459603111 | M7: 00:01:00 | O7: =POISSON(HOUR(M7),$A$4*$H$1/90,FALSE)*POISSON(MINUTE(M7),$C$4*$H$1/90,FALSE) -> 0.1219708979 | Q7: =1/O7 -> 8.198677037
A8: 02:00:00 | C8: =POISSON(HOUR(A8),$A$4*$H$1/90,FALSE)*POISSON(MINUTE(A8),$C$4*$H$1/90,FALSE) -> 0.07318253875 | E8: =1/C8 -> 13.66446173 | G8: 01:01:00 | I8: =POISSON(HOUR(G8),$A$4*$H$1/90,FALSE)*POISSON(MINUTE(G8),$C$4*$H$1/90,FALSE) -> 0.07318253875 | K8: =1/I8 -> 13.66446173 | M8: 00:02:00 | O8: =POISSON(HOUR(M8),$A$4*$H$1/90,FALSE)*POISSON(MINUTE(M8),$C$4*$H$1/90,FALSE) -> 0.01829563469 | Q8: =1/O8 -> 54.65784691
A9: 02:01:00 | C9: 0.02195476163 | E9: 45.54820576 | G9: 02:02:00 | I9: 0.003293214244 | K9: 303.6547051 | M9: 01:02:00 | O9: 0.01097738081 | Q9: 91.09641152
A10: 03:00:00 | C10: 0.01463650775 | E10: 68.32230864 | G10: 03:03:00 | I10: 6.586428488e-05 | K10: 15182.73525 | M10: 00:03:00 | O10: 0.001829563469 | Q10: 546.5784691
A11: 03:01:00 | C11: 0.004390952325 | E11: 227.7410288 | G11: 04:04:00 | I11: 7.409732049e-07 | K11: 1349576.467 | M11: 01:03:00 | O11: 0.001097738081 | Q11: 910.9641152
A12: 03:02:00 | C12: 0.0006586428488 | E12: 1518.273525 | G12: 05:05:00 | I12: 5.335007075e-09 | K12: 187441176 | M12: 02:03:00 | O12: 0.0003293214244 | Q12: 3036.547051
A13: 04:00:00 | C13: 0.002195476163 | E13: 455.4820576 | G13: 06:06:00 | I13: 2.667503538e-11 | K13: 3.74882352e+10 | M13: 00:04:00 | O13: 0.0001372172602 | Q13: 7287.712922
A14: 04:01:00 | C14: 0.0006586428488 | E14: 1518.273525 | G14: 07:07:00 | I14: 9.798992587e-14 | K14: 1.020513069e+13 | M14: 01:04:00 | O14: 8.23303561e-05 | Q14: 12146.1882
A15: 04:02:00 | C15: 9.879642732e-05 | E15: 10121.8235 | G15: 08:08:00 | I15: 2.755966665e-16 | K15: 3628490912720428 | M15: 02:04:00 | O15: 2.469910683e-05 | Q15: 40487.29401
A16: 04:03:00 | C16: 9.879642732e-06 | E16: 101218.235 | M16: 03:04:00 | O16: 4.939821366e-06 | Q16: 202436.4701
A17: 05:00:00 | C17: 0.0002634571395 | E17: 3795.683814 | M17: 00:05:00 | O17: 8.23303561e-06 | Q17: 121461.882
A18: 05:01:00 | C18: 7.903714185e-05 | E18: 12652.27938 | M18: 01:05:00 | O18: 4.939821366e-06 | Q18: 202436.4701
A19: 05:02:00 | C19: 1.185557128e-05 | E19: 84348.52919 | M19: 02:05:00 | O19: 1.48194641e-06 | Q19: 674788.2335
A20: 05:03:00 | C20: 1.185557128e-06 | E20: 843485.2919 | M20: 03:05:00 | O20: 2.96389282e-07 | Q20: 3373941.168
A21: 05:04:00 | C21: 8.891678459e-08 | E21: 11246470.56 | M21: 04:05:00 | O21: 4.445839229e-08 | Q21: 22492941.12
A22: 06:00:00 | C22: 2.634571395e-05 | E22: 37956.83814 | M22: 00:06:00 | O22: 4.116517805e-07 | Q22: 2429237.641
A23: 06:01:00 | C23: 7.903714185e-06 | E23: 126522.7938 | M23: 01:06:00 | O23: 2.469910683e-07 | Q23: 4048729.401
A24: 06:02:00 | C24: 1.185557128e-06 | E24: 843485.2919 | M24: 02:06:00 | O24: 7.409732049e-08 | Q24: 13495764.67
A25: 06:03:00 | C25: 1.185557128e-07 | E25: 8434852.919 | M25: 03:06:00 | O25: 1.48194641e-08 | Q25: 67478823.35
A26: 06:04:00 | C26: 8.891678459e-09 | E26: 112464705.6 | M26: 04:06:00 | O26: 2.222919615e-09 | Q26: 449858822.3
A27: 06:05:00 | C27: 5.335007075e-10 | E27: 1874411760 | M27: 05:06:00 | O27: 2.667503538e-10 | Q27: 3748823520
A28: 07:00:00 | C28: 2.258204053e-06 | E28: 442829.7782 | M28: 00:07:00 | O28: 1.764221916e-08 | Q28: 56682211.62
A29: 07:01:00 | C29: 6.774612159e-07 | E29: 1476099.261 | M29: 01:07:00 | O29: 1.05853315e-08 | Q29: 94470352.69
A30: 07:02:00 | C30: 1.016191824e-07 | E30: 9840661.739 | M30: 02:07:00 | O30: 3.175599449e-09 | Q30: 314901175.6
A31: 07:03:00 | C31: 1.016191824e-08 | E31: 98406617.39 | M31: 03:07:00 | O31: 6.351198899e-10 | Q31: 1574505878
A32: 07:04:00 | C32: 7.621438679e-10 | E32: 1312088232 | M32: 04:07:00 | O32: 9.526798348e-11 | Q32: 1.049670585e+10
A33: 07:05:00 | C33: 4.572863207e-11 | E33: 2.18681372e+10 | M33: 05:07:00 | O33: 1.143215802e-11 | Q33: 8.747254879e+10
A34: 07:06:00 | C34: 2.286431604e-12 | E34: 4.373627439e+11 | M34: 06:07:00 | O34: 1.143215802e-12 | Q34: 8.747254879e+11
A35: 08:00:00 | C35: 1.69365304e-07 | E35: 5904397.043 | M35: 00:08:00 | O35: 6.615832186e-10 | Q35: 1511525643
A36: 08:01:00 | C36: 5.080959119e-08 | E36: 19681323.48 | M36: 01:08:00 | O36: 3.969499312e-10 | Q36: 2519209405
A37: 08:02:00 | C37: 7.621438679e-09 | E37: 131208823.2 | M37: 02:08:00 | O37: 1.190849794e-10 | Q37: 8397364684
A38: 08:03:00 | C38: 7.621438679e-10 | E38: 1312088232 | M38: 03:08:00 | O38: 2.381699587e-11 | Q38: 4.198682342e+10
A39: 08:04:00 | C39: 5.716079009e-11 | E39: 1.749450976e+10 | M39: 04:08:00 | O39: 3.572549381e-12 | Q39: 2.799121561e+11
A40: 08:05:00 | C40: 3.429647405e-12 | E40: 2.915751626e+11 | M40: 05:08:00 | O40: 4.287059257e-13 | Q40: 2.332601301e+12
A41: 08:06:00 | C41: 1.714823703e-13 | E41: 5.831503253e+12 | M41: 06:08:00 | O41: 4.287059257e-14 | Q41: 2.332601301e+13
A42: 08:07:00 | C42: 7.34924444e-15 | E42: 1.360684092e+14 | M42: 07:08:00 | O42: 3.67462222e-15 | Q42: 2.721368185e+14

Sheet Now (hidden)
I1: ='Clasament campionate'!B3 -> 0 | J1: =PRONOSTIC!B3 -> Club America | K1: =PRONOSTIC!B4 -> Pumas U.N.A.M.
O3: 1 Tempo | R3: 2 Tempo | V3: t/t | X3: t/m | Z3: g/g | AB3: g1 | AD3: g2 | AG3: =J1 -> Club America | AH3: =K1 -> Pumas U.N.A.M. | AR3: 1 период
A4: ='Now+'!D102 -> 2-0 | B4: ='Now+'!E102 -> 1-0 | C4: =VALUE(Substring(A4,"-",1)) -> 2 | D4: =VALUE(Substring(A4,"-",2)) -> 0 | F4: =VALUE(LEFT(B4,1)) -> 1 | G4: =VALUE(RIGHT(B4,1)) -> 0 | I4: ='Now+'!C102 -> Club America | J4: =IF(LEFT(I4,1)="1",MID(I4,2,50),I4) -> Club America | L4: =IF($J$1=J4,C4,D4) -> 2 | M4: =IF(L4=C4,D4,C4) -> 0 | N4: =IF(L4>M4,"1",IF(L4<M4,"2",IF(L4=M4,"X","-"))) -> 1 | O4: =IF($J$1=J4,F4,G4) -> 1 | P4: =IF(O4=F4,G4,F4) -> 0 | Q4: =IF(O4>P4,"1",IF(O4<P4,"2",IF(O4=P4,"X","-"))) -> 1 | R4: =L4-O4 -> 1 | S4: =M4-P4 -> 0 | T4: =IF(R4>S4,"1",IF(R4<S4,"2",IF(R4=S4,"X","-"))) -> 1 | V4: =Q4&"/"&T4 -> 1/1 | X4: =Q4&"/"&N4 -> 1/1 | Z4: =IF(O4+P4>R4+S4,"1>2",IF(R4+S4>O4+P4,"2>1",IF(O4+P4=R4+S4,"1=2","-"))) -> 1=2 | AB4: =O4+P4 -> 1 | AD4: =R4+S4 -> 1 | AF4: =IF(L18>M18,"1","-1") -> -1 | AG4: =VALUE(AF4) -> -1 | AH4: =VALUE(AF29) -> -1 | AR4: Показатели вариации | AS4: Знач. | AY4: Tyresyas | BE4: =Date!K106/100 -> 0.8160492445 | BF4: =Date!L106/100 -> 0.147705331 | BG4: =Date!M106/100 -> 0.03583589037
A5: ='Now+'!D103 -> 1-1 | B5: ='Now+'!E103 -> 1-1 | C5: =VALUE(Substring(A5,"-",1)) -> 1 | D5: =VALUE(Substring(A5,"-",2)) -> 1 | F5: 1 | G5: 1 | I5: ='Now+'!C103 -> Pachuca | J5: =IF(LEFT(I5,1)="1",MID(I5,2,50),I5) -> Pachuca | L5: =IF($J$1=J5,C5,D5) -> 1 | M5: =IF(L5=C5,D5,C5) -> 1 | N5: =IF(L5>M5,"1",IF(L5<M5,"2",IF(L5=M5,"X","-"))) -> X | O5: =IF($J$1=J5,F5,G5) -> 1 | P5: =IF(O5=F5,G5,F5) -> 1 | Q5: =IF(O5>P5,"1",IF(O5<P5,"2",IF(O5=P5,"X","-"))) -> X | R5: =L5-O5 -> 0 | S5: 0 | T5: =IF(R5>S5,"1",IF(R5<S5,"2",IF(R5=S5,"X","-"))) -> X | V5: =Q5&"/"&T5 -> X/X | X5: =Q5&"/"&N5 -> X/X | Z5: =IF(O5+P5>R5+S5,"1>2",IF(R5+S5>O5+P5,"2>1",IF(O5+P5=R5+S5,"1=2","-"))) -> 1>2 | AB5: =O5+P5 -> 2 | AD5: =R5+S5 -> 0 | AF5: =IF(L17>M17,"1","-1") -> -1 | AG5: =VALUE(AF5+AG4) -> -2 | AH5: =VALUE(AF30+AH4) -> -2 | AR5: Максимум | AS5: =MAX(L4:L13) -> 2 | AY5: =IF(Now!Z14>1.5,1,IF(Now!Z14>1,"1X",IF(Now!Z14<-1.5,2,IF(Now!Z14<-1,"X2","NoBet")))) -> 1 | BA5: =IF(Now!Y14>=3.5,"Over 2.5",IF(Now!Y14>=2.5,"Over 1.5",IF(Now!Y14<=0.5,"Under 2.5",IF(Now!Y14<2,"Under 3.5","NoBet")))) -> Under 2.5
A6: ='Now+'!D104 -> 0-0 | B6: ='Now+'!E104 -> 0-0 | C6: 0 | D6: 0 | F6: 0 | G6: 0 | I6: ='Now+'!C104 -> Club America | J6: Club America | L6: 0 | M6: 0 | N6: X | O6: 0 | P6: 0 | Q6: X | R6: 0 | S6: 0 | T6: X | V6: X/X | X6: X/X | Z6: 1=2 | AB6: 0 | AD6: 0 | AF6: =IF(L16>M16,"1","-1") -> 1 | AG6: =VALUE(AG5+AF6) -> -1 | AH6: =VALUE(AH5+AF31) -> -3 | AR6: Минимум | AS6: =MIN(L4:L13) -> 0 | AY6: =IF(Now!U6>1.5,"Gol Home",IF(Now!V14<-0.5,"No Gol Home","NoBet")) -> NoBet | BA6: =IF(Now!U31>1.5,"Gol Away",IF(Now!X14<-0.5,"No Gol Avay","NoBet")) -> NoBet
A7: ='Now+'!D105 -> 3-1 | B7: ='Now+'!E105 -> 2-1 | C7: 3 | D7: 1 | F7: 2 | G7: 1 | I7: ='Now+'!C105 -> 1Toluca | J7: Toluca | L7: 1 | M7: 3 | N7: 2 | O7: 1 | P7: 2 | Q7: 2 | R7: 0 | S7: 1 | T7: 2 | V7: 2/2 | X7: 2/2 | Z7: 1>2 | AB7: 3 | AD7: 1 | AF7: =IF(L15>M15,"1","-1") -> 1 | AG7: 0 | AH7: -4 | AR7: Размах | AS7: =AS5-AS6 -> 2 | AY7: =IF((Now!V14>1.5)*(Now!X14>1.5),"GG","NoBet") -> GG
A8: ='Now+'!D106 -> 0-2 | B8: ='Now+'!E106 -> 0-0 | C8: 0 | D8: 2 | F8: 0 | G8: 0 | I8: ='Now+'!C106 -> Philadelphia Union | J8: Philadelphia Union | L8: 2 | M8: 0 | N8: 1 | O8: 0 | P8: 0 | Q8: X | R8: 2 | S8: 0 | T8: 1 | V8: X/1 | X8: X/1 | Z8: 2>1 | AB8: 0 | AD8: 2 | AF8: =IF(L14>M14,"1","-1") -> 1 | AG8: 1 | AH8: -5 | AR8: Среднее линейное | AS8: =AVEDEV(L4:L13) -> 0.6 | BE8: =PRONOSTIC!G4 -> 0.5677604673 | BF8: =PRONOSTIC!H4 -> 0.2148321258 | BG8: =PRONOSTIC!I4 -> 0.09009429218
A9: ='Now+'!D107 -> 2-0 | B9: ='Now+'!E107 -> 1-0 | C9: 2 | D9: 0 | F9: 1 | G9: 0 | I9: ='Now+'!C107 -> Club America | J9: Club America | L9: 2 | M9: 0 | N9: 1 | O9: 1 | P9: 0 | Q9: 1 | R9: 1 | S9: 0 | T9: 1 | V9: 1/1 | X9: 1/1 | Z9: 1=2 | AB9: 1 | AD9: 1 | AF9: =IF(L13>M13,"1","-1") -> 1 | AG9: 2 | AH9: -6 | AR9: Дисперсия по ген. Сов. | AS9: =_xlfn.VAR.P(L4:L13) -> 0.44 | AY9: 1/1 tt | BA9: 1
A10: ='Now+'!D108 -> 1-1 | B10: ='Now+'!E108 -> 1-1 | C10: 1 | D10: 1 | F10: 1 | G10: 1 | I10: ='Now+'!C108 -> Club Leon | J10: Club Leon | L10: 1 | M10: 1 | N10: X | O10: 1 | P10: 1 | Q10: X | R10: 0 | S10: 0 | T10: X | V10: X/X | X10: X/X | Z10: 1>2 | AB10: 2 | AD10: 0 | AF10: =IF(L12>M12,"1","-1") -> 1 | AG10: 3 | AH10: -7 | AR10: Дисперсия по выборке | AS10: =_xlfn.VAR.S(L4:L13) -> 0.4888888889 | AY10: 1/2 tt | BA10: Х
A11: ='Now+'!D109 -> 2-0 | B11: ='Now+'!E109 -> 0-0 | C11: 2 | D11: 0 | F11: 0 | G11: 0 | I11: ='Now+'!C109 -> Club America | J11: Club America | L11: 2 | M11: 0 | N11: 1 | O11: 0 | P11: 0 | Q11: X | R11: 2 | S11: 0 | T11: 1 | V11: X/1 | X11: X/1 | Z11: 2>1 | AB11: 0 | AD11: 2 | AF11: =IF(L11>M11,"1","-1") -> 1 | AG11: 4 | AH11: -6 | AR11: Среднеквадратичное ген. | AS11: =_xlfn.STDEV.P(L4:L13) -> 0.6633249581 | AY11: 1/X tt | BA11: 2
A12: ='Now+'!D110 -> 1-2 | B12: ='Now+'!E110 -> 1-1 | C12: 1 | D12: 2 | F12: 1 | G12: 1 | I12: ='Now+'!C110 -> 1FC Juarez | J12: FC Juarez | L12: 2 | M12: 1 | N12: 1 | O12: 1 | P12: 1 | Q12: X | R12: 1 | S12: 0 | T12: 1 | V12: X/1 | X12: X/1 | Z12: 1>2 | AB12: 2 | AD12: 1 | AF12: =IF(L10>M10,"1","-1") -> -1 | AG12: 3 | AH12: -7 | AR12: Среднеквадратичное выб. | AS12: =_xlfn.STDEV.S(L4:L13) -> 0.6992058988 | AY12: X/X tt
A13: ='Now+'!D111 -> 0-1 | B13: ='Now+'!E111 -> 0-0 | C13: 0 | D13: 1 | F13: 0 | G13: 0 | I13: ='Now+'!C111 -> Atlas | J13: Atlas | L13: 1 | M13: 0 | N13: 1 | O13: 0 | P13: 0 | Q13: X | R13: 1 | S13: 0 | T13: 1 | V13: X/1 | X13: X/1 | Z13: 2>1 | AB13: 0 | AD13: 1 | AF13: =IF(L9>M9,"1","-1") -> 1 | AG13: 4 | AH13: -8 | AR13: Коэф. Вариации | AS13: =AS12/AVERAGE(L4:L13) -> 0.4994327848 | AT13: =AVERAGE(L4:L13)-AS8 -> 0.8 | AU13: =AT13-AS8 -> 0.2 | AY13: X/2 tt | BA13: 1Х
A14: ='Now+'!D112 -> 2-0 | B14: ='Now+'!E112 -> 1-0 | C14: 2 | D14: 0 | F14: 1 | G14: 0 | I14: ='Now+'!C112 -> Club America | J14: Club America | L14: 2 | M14: 0 | N14: 1 | O14: 1 | P14: 0 | Q14: 1 | R14: 1 | S14: 0 | T14: 1 | V14: 1/1 | X14: 1/1 | Z14: 1=2 | AB14: 1 | AD14: 1 | AF14: =IF(L8>M8,"1","-1") -> 1 | AG14: 5 | AH14: -9 | AR14: Коэф. Осцилляции | AS14: =AS7/AVERAGE(L4:L13) -> 1.428571429 | AY14: 2/1 tt | BA14: Х2
A15: ='Now+'!D113 -> 2-0 | B15: ='Now+'!E113 -> 1-0 | C15: 2 | D15: 0 | F15: 1 | G15: 0 | I15: ='Now+'!C113 -> Club America | J15: Club America | L15: 2 | M15: 0 | N15: 1 | O15: 1 | P15: 0 | Q15: 1 | R15: 1 | S15: 0 | T15: 1 | V15: 1/1 | X15: 1/1 | Z15: 1=2 | AB15: 1 | AD15: 1 | AF15: =IF(L7>M7,"1","-1") -> -1 | AG15: 4 | AH15: -10 | AY15: 2/2 tt
A16: ='Now+'!D114 -> 2-1 | B16: ='Now+'!E114 -> 1-0 | C16: 2 | D16: 1 | F16: 1 | G16: 0 | I16: ='Now+'!C114 -> Club America | J16: Club America | L16: 2 | M16: 1 | N16: 1 | O16: 1 | P16: 0 | Q16: 1 | R16: 1 | S16: 1 | T16: X | V16: 1/X | X16: 1/1 | Z16: 2>1 | AB16: 1 | AD16: 2 | AF16: =IF(L6>M6,"1","-1") -> -1 | AG16: 3 | AH16: -11
A17: ='Now+'!D115 -> 0-0 | B17: ='Now+'!E115 -> 0-0 | C17: 0 | D17: 0 | F17: 0 | G17: 0 | I17: ='Now+'!C115 -> Queretaro FC | J17: Queretaro FC | L17: 0 | M17: 0 | N17: X | O17: 0 | P17: 0 | Q17: X | R17: 0 | S17: 0 | T17: X | V17: X/X | X17: X/X | Z17: 1=2 | AB17: 0 | AD17: 0 | AF17: =IF(L5>M5,"1","-1") -> -1 | AG17: 2 | AH17: -12 | AY17: 1/1 tm
A18: ='Now+'!D116 -> 1-1 | B18: ='Now+'!E116 -> 0-0 | C18: 1 | D18: 1 | F18: 0 | G18: 0 | I18: ='Now+'!C116 -> Tigres UANL | J18: Tigres UANL | L18: 1 | M18: 1 | N18: X | O18: 0 | P18: 0 | Q18: X | R18: 1 | S18: 1 | T18: X | V18: X/X | X18: X/X | Z18: 2>1 | AB18: 0 | AD18: 2 | AF18: =IF(L4>M4,"1","-1") -> 1 | AG18: 3 | AY18: 1/2 tm
A19: ='Now+'!D117 -> 0-1 | B19: ='Now+'!E117 -> 0-0 | C19: 0 | D19: 1 | F19: 0 | G19: 0 | I19: ='Now+'!C117 -> Atlas(N) | J19: Atlas(N) | L19: 1 | M19: 0 | N19: 1 | O19: 0 | P19: 0 | Q19: X | R19: 1 | S19: 0 | T19: 1 | V19: X/1 | X19: X/1 | Z19: 2>1 | AB19: 0 | AD19: 1 | AY19: 1/X tm
A20: ='Now+'!D118 -> 0-1 | B20: ='Now+'!E118 -> 0-1 | C20: 0 | D20: 1 | F20: 0 | G20: 1 | I20: ='Now+'!C118 -> 1Santos Laguna(N) | J20: Santos Laguna(N) | L20: 1 | M20: 0 | N20: 1 | O20: 1 | P20: 0 | Q20: 1 | R20: 0 | S20: 0 | T20: X | V20: 1/X | X20: 1/1 | Z20: 1>2 | AB20: 1 | AD20: 0 | AY20: X/X tm
A21: ='Now+'!D119 -> 4-2 | B21: ='Now+'!E119 -> 2-1 | C21: 4 | D21: 2 | F21: 2 | G21: 1 | I21: ='Now+'!C119 -> Club America | J21: Club America | L21: 4 | M21: 2 | N21: 1 | O21: 2 | P21: 1 | Q21: 1 | R21: 2 | S21: 1 | T21: 1 | V21: 1/1 | X21: 1/1 | Z21: 1=2 | AB21: 3 | AD21: 3 | AY21: X/2 tm
A22: ='Now+'!D120 -> 3-1 | B22: ='Now+'!E120 -> 1-1 | C22: 3 | D22: 1 | F22: 1 | G22: 1 | I22: ='Now+'!C120 -> Pachuca | J22: Pachuca | L22: 1 | M22: 3 | N22: 2 | O22: 1 | P22: 1 | Q22: X | R22: 0 | S22: 2 | T22: 2 | V22: X/2 | X22: X/2 | Z22: 1=2 | AB22: 2 | AD22: 2 | AY22: 2/1 tm
A23: ='Now+'!D121 -> 3-1 | B23: ='Now+'!E121 -> 1-0 | C23: 3 | D23: 1 | F23: 1 | G23: 0 | I23: ='Now+'!C121 -> Club America | J23: Club America | L23: 3 | M23: 1 | N23: 1 | O23: 1 | P23: 0 | Q23: 1 | R23: 2 | S23: 1 | T23: 1 | V23: 1/1 | X23: 1/1 | Z23: 2>1 | AB23: 1 | AD23: 3 | AY23: 2/2 tm
O28: 1 Tempo | R28: 2 tempo | AR28: 1 период
A29: ='Now+'!D127 -> 0 | B29: ='Now+'!E127 -> 0 | C29: 0 | F29: =VALUE(LEFT(B29,1)) -> 0 | G29: =VALUE(RIGHT(B29,1)) -> 0 | I29: ='Now+'!C127 -> 0 | J29: 0 | L29: =IF($K$1=J29,C29,D29) ->  | M29: =IF(L29=C29,D29,C29) ->  | N29: =IF(L29>M29,"2",IF(L29<M29,"1",IF(L29=M29,"X","-"))) ->  | O29: =IF($K$1=J29,F29,G29) -> 0 | P29: =IF(O29=F29,G29,F29) -> 0 | Q29: =IF(O29>P29,"2",IF(O29<P29,"1",IF(O29=P29,"X","-"))) -> X | R29: =L29-O29 ->  | S29: =M29-P29 ->  | T29: =IF(R29>S29,"2",IF(R29<S29,"1",IF(R29=S29,"X","-"))) ->  | V29: =Q29&"/"&T29 ->  | X29: =Q29&"/"&N29 ->  | Z29: =IF(O29+P29>R29+S29,"1>2",IF(R29+S29>O29+P29,"2>1",IF(O29+P29=R29+S29,"1=2","-"))) ->  | AB29: =O29+P29 -> 0 | AD29: =R29+S29 ->  | AF29: =IF(L43>M43,"1","-1") -> -1 | AR29: Показатели вариации | AS29: Знач.
A30: ='Now+'!D128 -> 2-0 | B30: ='Now+'!E128 -> 1-0 | C30: 2 | D30: 0 | F30: 1 | G30: 0 | I30: ='Now+'!C128 -> Club America | J30: Club America | L30: =IF($K$1=J30,C30,D30) -> 0 | M30: =IF(L30=C30,D30,C30) -> 2 | N30: =IF(L30>M30,"2",IF(L30<M30,"1",IF(L30=M30,"X","-"))) -> 1 | O30: =IF($K$1=J30,F30,G30) -> 0 | P30: 1 | Q30: =IF(O30>P30,"2",IF(O30<P30,"1",IF(O30=P30,"X","-"))) -> 1 | R30: 0 | S30: 1 | T30: =IF(R30>S30,"2",IF(R30<S30,"1",IF(R30=S30,"X","-"))) -> 1 | V30: =Q30&"/"&T30 -> 1/1 | X30: 1/1 | Z30: 1=2 | AB30: =O30+P30 -> 1 | AD30: =R30+S30 -> 1 | AF30: =IF(L42>M42,"1","-1") -> -1 | AR30: Максимум | AS30: =MAX(L29:L38) -> 
A31: ='Now+'!D129 -> 0-0 | B31: ='Now+'!E129 -> 0-0 | C31: 0 | D31: 0 | F31: 0 | G31: 0 | I31: ='Now+'!C129 -> Tigres UANL | J31: Tigres UANL | L31: 0 | M31: 0 | N31: X | O31: 0 | P31: 0 | Q31: X | R31: 0 | S31: 0 | T31: X | V31: X/X | X31: X/X | Z31: 1=2 | AB31: 0 | AD31: 0 | AF31: =IF(L41>M41,"1","-1") -> -1 | AR31: Минимум | AS31: =MIN(L29:L38) -> 
A32: ='Now+'!D130 -> 2-2 | B32: ='Now+'!E130 -> 1-0 | C32: 2 | D32: 2 | F32: 1 | G32: 0 | I32: ='Now+'!C130 -> Mazatlan FC | J32: Mazatlan FC | L32: 2 | M32: 2 | N32: X | O32: 0 | P32: 1 | Q32: 1 | R32: 2 | S32: 1 | T32: 2 | V32: 1/2 | X32: 1/X | Z32: 2>1 | AB32: 1 | AD32: 3 | AF32: =IF(L40>M40,"1","-1") -> -1 | AR32: Размах | AS32: =AS30-AS31 -> 
A33: ='Now+'!D131 -> 2-0 | B33: ='Now+'!E131 -> 1-0 | C33: 2 | D33: 0 | F33: 1 | G33: 0 | I33: ='Now+'!C131 -> Club Leon(N) | J33: Club Leon(N) | L33: 0 | M33: 2 | N33: 1 | O33: 0 | P33: 1 | Q33: 1 | R33: 0 | S33: 1 | T33: 1 | V33: 1/1 | X33: 1/1 | Z33: 1=2 | AB33: 1 | AD33: 1 | AF33: =IF(L39>M39,"1","-1") -> -1 | AR33: Среднее линейное | AS33: =AVEDEV(L29:L38) -> 
A34: ='Now+'!D132 -> 0-0 | B34: ='Now+'!E132 -> 0-0 | C34: 0 | D34: 0 | F34: 0 | G34: 0 | I34: ='Now+'!C132 -> Pumas U.N.A.M. | J34: Pumas U.N.A.M. | L34: 0 | M34: 0 | N34: X | O34: 0 | P34: 0 | Q34: X | R34: 0 | S34: 0 | T34: X | V34: X/X | X34: X/X | Z34: 1=2 | AB34: 0 | AD34: 0 | AF34: =IF(L38>M38,"1","-1") -> -1 | AR34: Дисперсия по ген. Сов. | AS34: =_xlfn.VAR.P(L29:L38) -> 
A35: ='Now+'!D133 -> 2-1 | B35: ='Now+'!E133 -> 1-1 | C35: 2 | D35: 1 | F35: 1 | G35: 1 | I35: ='Now+'!C133 -> Toluca | J35: Toluca | L35: 1 | M35: 2 | N35: 1 | O35: 1 | P35: 1 | Q35: X | R35: 0 | S35: 1 | T35: 1 | V35: X/1 | X35: X/1 | Z35: 1>2 | AB35: 2 | AD35: 1 | AF35: =IF(L37>M37,"1","-1") -> -1 | AR35: Дисперсия по выборке | AS35: =_xlfn.VAR.S(L29:L38) -> 
A36: ='Now+'!D134 -> 2-0 | B36: ='Now+'!E134 -> 0-0 | C36: 2 | D36: 0 | F36: 0 | G36: 0 | I36: ='Now+'!C134 -> Pumas U.N.A.M. | J36: Pumas U.N.A.M. | L36: 2 | M36: 0 | N36: 2 | O36: 0 | P36: 0 | Q36: X | R36: 2 | S36: 0 | T36: 2 | V36: X/2 | X36: X/2 | Z36: 2>1 | AB36: 0 | AD36: 2 | AF36: =IF(L36>M36,"1","-1") -> 1 | AR36: Среднеквадратичное ген. | AS36: =_xlfn.STDEV.P(L29:L38) -> 
A37: ='Now+'!D135 -> 3-0 | B37: ='Now+'!E135 -> 1-0 | C37: 3 | D37: 0 | F37: 1 | G37: 0 | I37: ='Now+'!C135 -> Necaxa | J37: Necaxa | L37: 0 | M37: 3 | N37: 1 | O37: 0 | P37: 1 | Q37: 1 | R37: 0 | S37: 2 | T37: 1 | V37: 1/1 | X37: 1/1 | Z37: 2>1 | AB37: 1 | AD37: 2 | AF37: =IF(L35>M35,"1","-1") -> -1 | AR37: Среднеквадратичное выб. | AS37: =_xlfn.STDEV.S(L29:L38) -> 
A38: ='Now+'!D136 -> 0-0 | B38: ='Now+'!E136 -> 0-0 | C38: 0 | D38: 0 | F38: 0 | G38: 0 | I38: ='Now+'!C136 -> 1Pumas U.N.A.M. | J38: Pumas U.N.A.M. | L38: 0 | M38: 0 | N38: X | O38: 0 | P38: 0 | Q38: X | R38: 0 | S38: 0 | T38: X | V38: X/X | X38: X/X | Z38: 1=2 | AB38: 0 | AD38: 0 | AF38: =IF(L34>M34,"1","-1") -> -1 | AR38: Коэф. Вариации | AS38: =AS37/AVERAGE(L29:L38) ->  | AT38: =AVERAGE(L29:L38)-AS33 ->  | AU38: =AT38-AS33 -> 
A39: ='Now+'!D137 -> 1-1 | B39: ='Now+'!E137 -> 0-0 | C39: 1 | D39: 1 | F39: 0 | G39: 0 | I39: ='Now+'!C137 -> New York City Football Club | J39: New York City Football Club | L39: 1 | M39: 1 | N39: X | O39: 0 | P39: 0 | Q39: X | R39: 1 | S39: 1 | T39: X | V39: X/X | X39: X/X | Z39: 2>1 | AB39: 0 | AD39: 2 | AF39: =IF(L33>M33,"1","-1") -> -1 | AR39: Коэф. Осцилляции | AS39: =AS32/AVERAGE(L29:L38) -> 
A40: ='Now+'!D138 -> 1-3 | B40: ='Now+'!E138 -> 1-2 | C40: 1 | D40: 3 | F40: 1 | G40: 2 | I40: ='Now+'!C138 -> Pumas U.N.A.M. | J40: Pumas U.N.A.M. | L40: 1 | M40: 3 | N40: 1 | O40: 1 | P40: 2 | Q40: 1 | R40: 0 | S40: 1 | T40: 1 | V40: 1/1 | X40: 1/1 | Z40: 1>2 | AB40: 3 | AD40: 1 | AF40: =IF(L32>M32,"1","-1") -> -1
A41: ='Now+'!D139 -> 2-0 | B41: ='Now+'!E139 -> 1-0 | C41: 2 | D41: 0 | F41: 1 | G41: 0 | I41: ='Now+'!C139 -> Monterrey | J41: Monterrey | L41: 0 | M41: 2 | N41: 1 | O41: 0 | P41: 1 | Q41: 1 | R41: 0 | S41: 1 | T41: 1 | V41: 1/1 | X41: 1/1 | Z41: 1=2 | AB41: 1 | AD41: 1 | AF41: =IF(L31>M31,"1","-1") -> -1
A42: ='Now+'!D140 -> 1-0 | B42: ='Now+'!E140 -> 1-0 | C42: 1 | D42: 0 | F42: 1 | G42: 0 | I42: ='Now+'!C140 -> Everton(N) | J42: Everton(N) | L42: 0 | M42: 1 | N42: 1 | O42: 0 | P42: 1 | Q42: 1 | R42: 0 | S42: 0 | T42: X | V42: 1/X | X42: 1/1 | Z42: 1>2 | AB42: 1 | AD42: 0 | AF42: =IF(L30>M30,"1","-1") -> -1
A43: ='Now+'!D141 -> 0-0 | B43: ='Now+'!E141 -> 0-0 | C43: 0 | D43: 0 | F43: 0 | G43: 0 | I43: ='Now+'!C141 -> Pumas U.N.A.M. | J43: Pumas U.N.A.M. | L43: 0 | M43: 0 | N43: X | O43: 0 | P43: 0 | Q43: X | R43: 0 | S43: 0 | T43: X | V43: X/X | X43: X/X | Z43: 1=2 | AB43: 0 | AD43: 0 | AF43: =IF(L29>M29,"1","-1") -> 
A44: ='Now+'!D142 -> 2-2 | B44: ='Now+'!E142 -> 0-1 | C44: 2 | D44: 2 | F44: 0 | G44: 1 | I44: ='Now+'!C142 -> Pumas U.N.A.M.(N) | J44: Pumas U.N.A.M.(N) | L44: 2 | M44: 2 | N44: X | O44: 1 | P44: 0 | Q44: 2 | R44: 1 | S44: 2 | T44: 1 | V44: 2/1 | X44: 2/X | Z44: 2>1 | AB44: 1 | AD44: 3
A45: ='Now+'!D143 -> 2-4 | B45: ='Now+'!E143 -> 2-1 | C45: 2 | D45: 4 | F45: 2 | G45: 1 | I45: ='Now+'!C143 -> San Antonio | J45: San Antonio | L45: 4 | M45: 2 | N45: 2 | O45: 1 | P45: 2 | Q45: 1 | R45: 3 | S45: 0 | T45: 2 | V45: 1/2 | X45: 1/2 | Z45: 1=2 | AB45: 3 | AD45: 3
A46: ='Now+'!D144 -> 1-3 | B46: ='Now+'!E144 -> 0-1 | C46: 1 | D46: 3 | F46: 0 | G46: 1 | I46: ='Now+'!C144 -> Monarcas Morelia | J46: Monarcas Morelia | L46: =IF($K$1=J46,C46,D46) -> 3 | M46: 1 | N46: 2 | O46: 1 | P46: 0 | Q46: 2 | R46: 2 | S46: 1 | T46: 2 | V46: 2/2 | X46: 2/2 | Z46: 2>1 | AB46: 1 | AD46: 3
A47: ='Now+'!D145 -> 0-1 | B47: ='Now+'!E145 -> 0-0 | C47: 0 | D47: 1 | F47: 0 | G47: 0 | I47: ='Now+'!C145 -> Pumas U.N.A.M. | J47: Pumas U.N.A.M. | L47: 0 | M47: 1 | N47: 1 | O47: 0 | P47: 0 | Q47: X | R47: 0 | S47: 1 | T47: 1 | V47: X/1 | X47: X/1 | Z47: 2>1 | AB47: 0 | AD47: 1
A48: ='Now+'!D146 -> 0-0 | B48: ='Now+'!E146 -> 0-0 | C48: 0 | D48: 0 | F48: 0 | G48: 0 | I48: ='Now+'!C146 -> Puebla | J48: Puebla | L48: 0 | M48: 0 | N48: X | O48: 0 | P48: 0 | Q48: X | R48: 0 | S48: 0 | T48: X | V48: X/X | X48: X/X | Z48: 1=2 | AB48: 0 | AD48: 0
B51: 1/1 | C51: 1/2 | D51: 1/X | E51: X/1 | F51: X/X | G51: 2/X | H51: X/2 | I51: 2/1 | J51: 2/2
A52: 20 | B52: =COUNTIF($V$4:$V$48,B51) -> 11 | C52: =COUNTIF($V$4:$V$48,C51) -> 2 | D52: 3 | E52: =COUNTIF($V$4:$V$48,E51) -> 7 | F52: 11 | G52: 0 | H52: 2 | I52: 1 | J52: 2
B55: 1/1 | C55: 1/2 | D55: 1/X | E55: X/1 | F55: X/X | G55: 2/X | H55: X/2 | I55: 2/1 | J55: 2/2
A56: 20 | B56: =COUNTIF($X$4:$X$48,B55) -> 14 | C56: =COUNTIF($X$4:$X$48,C55) -> 1 | D56: 1 | E56: =COUNTIF($X$4:$X$48,E55) -> 7 | F56: 11 | G56: 1 | H56: 2 | I56: 0 | J56: 2
B58: Ft | F58: 1° Tempo | L58: 2°Tempo
B59: 1>2 | C59: 1=2 | D59: 2>1 | F59: 1 | G59: 2 | H59: 3 | I59: 4 | J59: 5 | L59: 1 | M59: 2 | N59: 3 | O59: 4 | P59: 5
B60: =COUNTIF($Z$4:$Z$48,B59) -> 8 | C60: =COUNTIF($Z$4:$Z$48,C59) -> 17 | D60: 14 | F60: =COUNTIF($AB$4:$AB$48,F59) -> 15 | G60: =COUNTIF($AB$4:$AB$48,G59) -> 5 | H60: 4 | I60: 0 | J60: 0 | L60: =COUNTIF($AD$4:$AD$48,L59) -> 14 | M60: =COUNTIF($AD$4:$AD$48,M59) -> 8 | N60: 6 | O60: 0 | P60: 0
B62: FT | F62: 1° Tempo | L62: 2° Tempo
B63: 1>2 | C63: 1=2 | D63: 2>1 | F63: 1 | G63: 2 | H63: 3 | I63: 4 | J63: 5 | L63: 1 | M63: 2 | N63: 3 | O63: 4 | P63: 5
B64: =B60/(C60+D60) -> 0.2580645161 | C64: =C60/(B60+D60) -> 0.7727272727 | D64: =D60/(B60+C60) -> 0.56 | F64: =F60/20/(SUM(F60:J60)/20) -> 0.625 | G64: =G60/20/(SUM(F60:J60)/20) -> 0.2083333333 | H64: =H60/20/(SUM(F60:J60)/20) -> 0.1666666667 | I64: =I60/20/(SUM(F60:J60)/20) -> 0 | J64: =J60/20/(SUM(F60:J60)/20) -> 0 | L64: =L60/20/(SUM(L60:P60)/20) -> 0.5 | M64: =M60/20/(SUM(L60:P60)/20) -> 0.2857142857 | N64: =N60/20/(SUM(L60:P60)/20) -> 0.2142857143 | O64: =O60/20/(SUM(L60:P60)/20) -> 0 | P64: =P60/20/(SUM(L60:P60)/20) -> 0
F65: =IF(F64>40%,"BET","NoBet") -> BET | G65: =IF(G64>40%,"BET","NoBet") -> NoBet | H65: NoBet | I65: NoBet | L65: =IF(L64>40%,"BET","NoBet") -> BET | M65: NoBet | N65: NoBet | O65: NoBet | P65: NoBet
B68: OVER
B69: 2 | C69: 3
B70: =SUM(Now!F64:G64,Now!L64:M64)/2.5 -> 0.6476190476 | C70: =SUM(Now!G64:H64,Now!M64:N64)/2.5 -> 0.35
B71: =IF(B70>65%,"Bet",IF(AND(B70<65%,B70>50%),"MB Bet","NoBet")) -> MB Bet | C71: =IF(C70>65%,"Bet",IF(AND(C70<65%,C70>50%),"May be Bet","NoBet")) -> NoBet

Sheet Now+ (hidden)
A1: League | B1: =MATCH(A1,'Clasament campionate'!A:A,0) -> 47
B2: =B1+1 -> 48
B3: =B1+2 -> 49
B4: =B1+3 -> 50
B5: =B1+4 -> 51
B6: =B1+5 -> 52
B7: =B1+6 -> 53
B8: =B1+7 -> 54
B9: =B1+8 -> 55
B10: =B1+9 -> 56
B11: =B1+10 -> 57
B12: =B1+11 -> 58
B13: =B1+12 -> 59
B14: =B1+13 -> 60
B15: =B1+14 -> 61
B16: =B1+15 -> 62
B17: =B1+16 -> 63
B18: =B1+17 -> 64
B19: =B1+18 -> 65
B20: =B1+19 -> 66
B21: =B1+20 -> 67
B22: =B1+21 -> 68
B23: =B1+22 -> 69
B24: =B1+23 -> 70
B25: =B1+24 -> 71
B26: =B1+25 -> 72
B27: =B1+26 -> 73
B28: =B1+27 -> 74
B29: =B1+28 -> 75
B30: =B1+29 -> 76
B31: =B1+30 -> 77
B32: =B1+31 -> 78
B33: =B1+32 -> 79
B34: =B1+33 -> 80
B35: =B1+34 -> 81
B36: =B1+35 -> 82
B37: =B1+36 -> 83
B38: =B1+37 -> 84
B39: =B1+38 -> 85
B40: =B1+39 -> 86
B41: =B1+40 -> 87
B42: =B1+41 -> 88
B43: =B1+42 -> 89
B44: =B1+43 -> 90
B45: =B1+44 -> 91
B46: =B1+45 -> 92
B47: =B1+46 -> 93
B48: =B1+47 -> 94
A100: =INDEX('Clasament campionate'!A:A,'Now+'!B1) -> League | B100: =INDEX('Clasament campionate'!B:B,'Now+'!B1) -> Date | C100: =INDEX('Clasament campionate'!C:C,'Now+'!B1) -> Home | D100: =INDEX('Clasament campionate'!D:D,'Now+'!B1) -> Score | E100: =INDEX('Clasament campionate'!E:E,'Now+'!B1) -> H T | F100: =INDEX('Clasament campionate'!F:F,'Now+'!B1) -> Corner | G100: =INDEX('Clasament campionate'!G:G,'Now+'!B1) -> Away | N100: =INDEX('Clasament campionate'!N:N,'Now+'!B1) -> W/L | O100: =INDEX('Clasament campionate'!O:O,'Now+'!B1) -> AH | P100: =INDEX('Clasament campionate'!P:P,'Now+'!B1) -> O/U
A101: =INDEX('Clasament campionate'!A:A,'Now+'!B2) -> 0 | B101: =INDEX('Clasament campionate'!B:B,'Now+'!B2) -> 0 | C101: =INDEX('Clasament campionate'!C:C,'Now+'!B2) -> 0 | D101: =INDEX('Clasament campionate'!D:D,'Now+'!B2) -> 0 | E101: =INDEX('Clasament campionate'!E:E,'Now+'!B2) -> 0 | F101: =INDEX('Clasament campionate'!F:F,'Now+'!B2) -> 0 | G101: =INDEX('Clasament campionate'!G:G,'Now+'!B2) -> 0 | N101: =INDEX('Clasament campionate'!N:N,'Now+'!B2) -> 0 | O101: =INDEX('Clasament campionate'!O:O,'Now+'!B2) -> 0 | P101: =INDEX('Clasament campionate'!P:P,'Now+'!B2) -> 0
A102: =INDEX('Clasament campionate'!A:A,'Now+'!B3) -> MEX D1 | B102: =INDEX('Clasament campionate'!B:B,'Now+'!B3) -> 0 | C102: =INDEX('Clasament campionate'!C:C,'Now+'!B3) -> Club America | D102: =INDEX('Clasament campionate'!D:D,'Now+'!B3) -> 2-0 | E102: =INDEX('Clasament campionate'!E:E,'Now+'!B3) -> 1-0 | F102: =INDEX('Clasament campionate'!F:F,'Now+'!B3) -> 2-4 | G102: =INDEX('Clasament campionate'!G:G,'Now+'!B3) -> Pumas U.N.A.M. | N102: =INDEX('Clasament campionate'!N:N,'Now+'!B3) -> W | O102: =INDEX('Clasament campionate'!O:O,'Now+'!B3) -> 0 | P102: =INDEX('Clasament campionate'!P:P,'Now+'!B3) -> 0
A103: =INDEX('Clasament campionate'!A:A,'Now+'!B4) -> MEX D1 | B103: =INDEX('Clasament campionate'!B:B,'Now+'!B4) -> 0 | C103: =INDEX('Clasament campionate'!C:C,'Now+'!B4) -> Pachuca | D103: =INDEX('Clasament campionate'!D:D,'Now+'!B4) -> 1-1 | E103: =INDEX('Clasament campionate'!E:E,'Now+'!B4) -> 1-1 | F103: =INDEX('Clasament campionate'!F:F,'Now+'!B4) -> 3-4 | G103: =INDEX('Clasament campionate'!G:G,'Now+'!B4) -> Club America | N103: =INDEX('Clasament campionate'!N:N,'Now+'!B4) -> D | O103: =INDEX('Clasament campionate'!O:O,'Now+'!B4) -> 0 | P103: =INDEX('Clasament campionate'!P:P,'Now+'!B4) -> 0
A104: =INDEX('Clasament campionate'!A:A,'Now+'!B5) -> MEX D1 | B104: =INDEX('Clasament campionate'!B:B,'Now+'!B5) -> 0 | C104: =INDEX('Clasament campionate'!C:C,'Now+'!B5) -> Club America | D104: =INDEX('Clasament campionate'!D:D,'Now+'!B5) -> 0-0 | E104: =INDEX('Clasament campionate'!E:E,'Now+'!B5) -> 0-0 | F104: =INDEX('Clasament campionate'!F:F,'Now+'!B5) -> 9-3 | G104: =INDEX('Clasament campionate'!G:G,'Now+'!B5) -> Chivas Guadalajara | N104: =INDEX('Clasament campionate'!N:N,'Now+'!B5) -> D | O104: =INDEX('Clasament campionate'!O:O,'Now+'!B5) -> 0 | P104: =INDEX('Clasament campionate'!P:P,'Now+'!B5) -> 0
A105: =INDEX('Clasament campionate'!A:A,'Now+'!B6) -> MEX D1 | B105: =INDEX('Clasament campionate'!B:B,'Now+'!B6) -> 0 | C105: =INDEX('Clasament campionate'!C:C,'Now+'!B6) -> 1Toluca | D105: =INDEX('Clasament campionate'!D:D,'Now+'!B6) -> 3-1 | E105: =INDEX('Clasament campionate'!E:E,'Now+'!B6) -> 2-1 | F105: =INDEX('Clasament campionate'!F:F,'Now+'!B6) -> 4-5 | G105: =INDEX('Clasament campionate'!G:G,'Now+'!B6) -> Club America1 | N105: =INDEX('Clasament campionate'!N:N,'Now+'!B6) -> L | O105: =INDEX('Clasament campionate'!O:O,'Now+'!B6) -> 0 | P105: =INDEX('Clasament campionate'!P:P,'Now+'!B6) -> 0
A106: =INDEX('Clasament campionate'!A:A,'Now+'!B7) -> CNCF CHL | B106: =INDEX('Clasament campionate'!B:B,'Now+'!B7) -> 0 | C106: =INDEX('Clasament campionate'!C:C,'Now+'!B7) -> Philadelphia Union | D106: =INDEX('Clasament campionate'!D:D,'Now+'!B7) -> 0-2 | E106: =INDEX('Clasament campionate'!E:E,'Now+'!B7) -> 0-0 | F106: =INDEX('Clasament campionate'!F:F,'Now+'!B7) -> 7-4 | G106: =INDEX('Clasament campionate'!G:G,'Now+'!B7) -> Club America | N106: =INDEX('Clasament campionate'!N:N,'Now+'!B7) -> W | O106: =INDEX('Clasament campionate'!O:O,'Now+'!B7) -> 0 | P106: =INDEX('Clasament campionate'!P:P,'Now+'!B7) -> 0
A107: =INDEX('Clasament campionate'!A:A,'Now+'!B8) -> MEX D1 | B107: =INDEX('Clasament campionate'!B:B,'Now+'!B8) -> 0 | C107: =INDEX('Clasament campionate'!C:C,'Now+'!B8) -> Club America | D107: =INDEX('Clasament campionate'!D:D,'Now+'!B8) -> 2-0 | E107: =INDEX('Clasament campionate'!E:E,'Now+'!B8) -> 1-0 | F107: =INDEX('Clasament campionate'!F:F,'Now+'!B8) -> 7-0 | G107: =INDEX('Clasament campionate'!G:G,'Now+'!B8) -> Mazatlan FC | N107: =INDEX('Clasament campionate'!N:N,'Now+'!B8) -> W | O107: =INDEX('Clasament campionate'!O:O,'Now+'!B8) -> 0 | P107: =INDEX('Clasament campionate'!P:P,'Now+'!B8) -> 0
A108: =INDEX('Clasament campionate'!A:A,'Now+'!B9) -> MEX D1 | B108: =INDEX('Clasament campionate'!B:B,'Now+'!B9) -> 0 | C108: =INDEX('Clasament campionate'!C:C,'Now+'!B9) -> Club Leon | D108: =INDEX('Clasament campionate'!D:D,'Now+'!B9) -> 1-1 | E108: =INDEX('Clasament campionate'!E:E,'Now+'!B9) -> 1-1 | F108: =INDEX('Clasament campionate'!F:F,'Now+'!B9) -> 7-3 | G108: =INDEX('Clasament campionate'!G:G,'Now+'!B9) -> Club America1 | N108: =INDEX('Clasament campionate'!N:N,'Now+'!B9) -> D | O108: =INDEX('Clasament campionate'!O:O,'Now+'!B9) -> 0 | P108: =INDEX('Clasament campionate'!P:P,'Now+'!B9) -> 0
A109: =INDEX('Clasament campionate'!A:A,'Now+'!B10) -> MEX D1 | B109: =INDEX('Clasament campionate'!B:B,'Now+'!B10) -> 0 | C109: =INDEX('Clasament campionate'!C:C,'Now+'!B10) -> Club America | D109: =INDEX('Clasament campionate'!D:D,'Now+'!B10) -> 2-0 | E109: =INDEX('Clasament campionate'!E:E,'Now+'!B10) -> 0-0 | F109: =INDEX('Clasament campionate'!F:F,'Now+'!B10) -> 3-2 | G109: =INDEX('Clasament campionate'!G:G,'Now+'!B10) -> Club Tijuana1 | N109: =INDEX('Clasament campionate'!N:N,'Now+'!B10) -> W | O109: =INDEX('Clasament campionate'!O:O,'Now+'!B10) -> 0 | P109: =INDEX('Clasament campionate'!P:P,'Now+'!B10) -> 0
A110: =INDEX('Clasament campionate'!A:A,'Now+'!B11) -> MEX D1 | B110: =INDEX('Clasament campionate'!B:B,'Now+'!B11) -> 0 | C110: =INDEX('Clasament campionate'!C:C,'Now+'!B11) -> 1FC Juarez | D110: =INDEX('Clasament campionate'!D:D,'Now+'!B11) -> 1-2 | E110: =INDEX('Clasament campionate'!E:E,'Now+'!B11) -> 1-1 | F110: =INDEX('Clasament campionate'!F:F,'Now+'!B11) -> 1-5 | G110: =INDEX('Clasament campionate'!G:G,'Now+'!B11) -> Club America | N110: =INDEX('Clasament campionate'!N:N,'Now+'!B11) -> W | O110: =INDEX('Clasament campionate'!O:O,'Now+'!B11) -> 0 | P110: =INDEX('Clasament campionate'!P:P,'Now+'!B11) -> 0
A111: =INDEX('Clasament campionate'!A:A,'Now+'!B12) -> MEX D1 | B111: =INDEX('Clasament campionate'!B:B,'Now+'!B12) -> 0 | C111: =INDEX('Clasament campionate'!C:C,'Now+'!B12) -> Atlas | D111: =INDEX('Clasament campionate'!D:D,'Now+'!B12) -> 0-1 | E111: =INDEX('Clasament campionate'!E:E,'Now+'!B12) -> 0-0 | F111: =INDEX('Clasament campionate'!F:F,'Now+'!B12) -> 1-4 | G111: =INDEX('Clasament campionate'!G:G,'Now+'!B12) -> Club America1 | N111: =INDEX('Clasament campionate'!N:N,'Now+'!B12) -> W | O111: =INDEX('Clasament campionate'!O:O,'Now+'!B12) -> 0 | P111: =INDEX('Clasament campionate'!P:P,'Now+'!B12) -> 0
A112: =INDEX('Clasament campionate'!A:A,'Now+'!B13) -> CNCF CHL | B112: =INDEX('Clasament campionate'!B:B,'Now+'!B13) -> 0 | C112: =INDEX('Clasament campionate'!C:C,'Now+'!B13) -> Club America | D112: =INDEX('Clasament campionate'!D:D,'Now+'!B13) -> 2-0 | E112: =INDEX('Clasament campionate'!E:E,'Now+'!B13) -> 1-0 | F112: =INDEX('Clasament campionate'!F:F,'Now+'!B13) -> 9-1 | G112: =INDEX('Clasament campionate'!G:G,'Now+'!B13) -> Philadelphia Union | N112: =INDEX('Clasament campionate'!N:N,'Now+'!B13) -> W | O112: =INDEX('Clasament campionate'!O:O,'Now+'!B13) -> 0 | P112: =INDEX('Clasament campionate'!P:P,'Now+'!B13) -> 0
A113: =INDEX('Clasament campionate'!A:A,'Now+'!B14) -> MEX D1 | B113: =INDEX('Clasament campionate'!B:B,'Now+'!B14) -> 0 | C113: =INDEX('Clasament campionate'!C:C,'Now+'!B14) -> Club America | D113: =INDEX('Clasament campionate'!D:D,'Now+'!B14) -> 2-0 | E113: =INDEX('Clasament campionate'!E:E,'Now+'!B14) -> 1-0 | F113: =INDEX('Clasament campionate'!F:F,'Now+'!B14) -> 3-5 | G113: =INDEX('Clasament campionate'!G:G,'Now+'!B14) -> Puebla | N113: =INDEX('Clasament campionate'!N:N,'Now+'!B14) -> W | O113: =INDEX('Clasament campionate'!O:O,'Now+'!B14) -> 0 | P113: =INDEX('Clasament campionate'!P:P,'Now+'!B14) -> 0
A114: =INDEX('Clasament campionate'!A:A,'Now+'!B15) -> MEX D1 | B114: =INDEX('Clasament campionate'!B:B,'Now+'!B15) -> 0 | C114: =INDEX('Clasament campionate'!C:C,'Now+'!B15) -> Club America | D114: =INDEX('Clasament campionate'!D:D,'Now+'!B15) -> 2-1 | E114: =INDEX('Clasament campionate'!E:E,'Now+'!B15) -> 1-0 | F114: =INDEX('Clasament campionate'!F:F,'Now+'!B15) -> 3-4 | G114: =INDEX('Clasament campionate'!G:G,'Now+'!B15) -> Necaxa | N114: =INDEX('Clasament campionate'!N:N,'Now+'!B15) -> W | O114: =INDEX('Clasament campionate'!O:O,'Now+'!B15) -> 0 | P114: =INDEX('Clasament campionate'!P:P,'Now+'!B15) -> 0
A115: =INDEX('Clasament campionate'!A:A,'Now+'!B16) -> MEX D1 | B115: =INDEX('Clasament campionate'!B:B,'Now+'!B16) -> 0 | C115: =INDEX('Clasament campionate'!C:C,'Now+'!B16) -> Queretaro FC | D115: =INDEX('Clasament campionate'!D:D,'Now+'!B16) -> 0-0 | E115: =INDEX('Clasament campionate'!E:E,'Now+'!B16) -> 0-0 | F115: =INDEX('Clasament campionate'!F:F,'Now+'!B16) -> 0-8 | G115: =INDEX('Clasament campionate'!G:G,'Now+'!B16) -> Club America | N115: =INDEX('Clasament campionate'!N:N,'Now+'!B16) -> D | O115: =INDEX('Clasament campionate'!O:O,'Now+'!B16) -> 0 | P115: =INDEX('Clasament campionate'!P:P,'Now+'!B16) -> 0
A116: =INDEX('Clasament campionate'!A:A,'Now+'!B17) -> INT CF | B116: =INDEX('Clasament campionate'!B:B,'Now+'!B17) -> 0 | C116: =INDEX('Clasament campionate'!C:C,'Now+'!B17) -> Tigres UANL | D116: =INDEX('Clasament campionate'!D:D,'Now+'!B17) -> 1-1 | E116: =INDEX('Clasament campionate'!E:E,'Now+'!B17) -> 0-0 | F116: =INDEX('Clasament campionate'!F:F,'Now+'!B17) -> 6-5 | G116: =INDEX('Clasament campionate'!G:G,'Now+'!B17) -> Club America | N116: =INDEX('Clasament campionate'!N:N,'Now+'!B17) -> D | O116: =INDEX('Clasament campionate'!O:O,'Now+'!B17) -> 0 | P116: =INDEX('Clasament campionate'!P:P,'Now+'!B17) -> 0
A117: =INDEX('Clasament campionate'!A:A,'Now+'!B18) -> INT CF | B117: =INDEX('Clasament campionate'!B:B,'Now+'!B18) -> 0 | C117: =INDEX('Clasament campionate'!C:C,'Now+'!B18) -> Atlas(N) | D117: =INDEX('Clasament campionate'!D:D,'Now+'!B18) -> 0-1 | E117: =INDEX('Clasament campionate'!E:E,'Now+'!B18) -> 0-0 | F117: =INDEX('Clasament campionate'!F:F,'Now+'!B18) -> 4-5 | G117: =INDEX('Clasament campionate'!G:G,'Now+'!B18) -> Club America | N117: =INDEX('Clasament campionate'!N:N,'Now+'!B18) -> W | O117: =INDEX('Clasament campionate'!O:O,'Now+'!B18) -> 0 | P117: =INDEX('Clasament campionate'!P:P,'Now+'!B18) -> 0
A118: =INDEX('Clasament campionate'!A:A,'Now+'!B19) -> INT CF | B118: =INDEX('Clasament campionate'!B:B,'Now+'!B19) -> 0 | C118: =INDEX('Clasament campionate'!C:C,'Now+'!B19) -> 1Santos Laguna(N) | D118: =INDEX('Clasament campionate'!D:D,'Now+'!B19) -> 0-1 | E118: =INDEX('Clasament campionate'!E:E,'Now+'!B19) -> 0-1 | F118: =INDEX('Clasament campionate'!F:F,'Now+'!B19) -> 2-5 | G118: =INDEX('Clasament campionate'!G:G,'Now+'!B19) -> Club America | N118: =INDEX('Clasament campionate'!N:N,'Now+'!B19) -> W | O118: =INDEX('Clasament campionate'!O:O,'Now+'!B19) -> 0 | P118: =INDEX('Clasament campionate'!P:P,'Now+'!B19) -> 0
A119: =INDEX('Clasament campionate'!A:A,'Now+'!B20) -> MEX D1 | B119: =INDEX('Clasament campionate'!B:B,'Now+'!B20) -> 0 | C119: =INDEX('Clasament campionate'!C:C,'Now+'!B20) -> Club America | D119: =INDEX('Clasament campionate'!D:D,'Now+'!B20) -> 4-2 | E119: =INDEX('Clasament campionate'!E:E,'Now+'!B20) -> 2-1 | F119: =INDEX('Clasament campionate'!F:F,'Now+'!B20) -> 9-3 | G119: =INDEX('Clasament campionate'!G:G,'Now+'!B20) -> Pachuca | N119: =INDEX('Clasament campionate'!N:N,'Now+'!B20) -> W | O119: =INDEX('Clasament campionate'!O:O,'Now+'!B20) -> 0 | P119: =INDEX('Clasament campionate'!P:P,'Now+'!B20) -> 0
A120: =INDEX('Clasament campionate'!A:A,'Now+'!B21) -> MEX D1 | B120: =INDEX('Clasament campionate'!B:B,'Now+'!B21) -> 0 | C120: =INDEX('Clasament campionate'!C:C,'Now+'!B21) -> Pachuca | D120: =INDEX('Clasament campionate'!D:D,'Now+'!B21) -> 3-1 | E120: =INDEX('Clasament campionate'!E:E,'Now+'!B21) -> 1-1 | F120: =INDEX('Clasament campionate'!F:F,'Now+'!B21) -> 3-5 | G120: =INDEX('Clasament campionate'!G:G,'Now+'!B21) -> Club America1 | N120: =INDEX('Clasament campionate'!N:N,'Now+'!B21) -> L | O120: =INDEX('Clasament campionate'!O:O,'Now+'!B21) -> 0 | P120: =INDEX('Clasament campionate'!P:P,'Now+'!B21) -> 0
A121: =INDEX('Clasament campionate'!A:A,'Now+'!B22) -> CNCF CHL | B121: =INDEX('Clasament campionate'!B:B,'Now+'!B22) -> 0 | C121: =INDEX('Clasament campionate'!C:C,'Now+'!B22) -> Club America | D121: =INDEX('Clasament campionate'!D:D,'Now+'!B22) -> 3-1 | E121: =INDEX('Clasament campionate'!E:E,'Now+'!B22) -> 1-0 | F121: =INDEX('Clasament campionate'!F:F,'Now+'!B22) -> 2-4 | G121: =INDEX('Clasament campionate'!G:G,'Now+'!B22) -> Portland Timbers | N121: =INDEX('Clasament campionate'!N:N,'Now+'!B22) -> W | O121: =INDEX('Clasament campionate'!O:O,'Now+'!B22) -> 0 | P121: =INDEX('Clasament campionate'!P:P,'Now+'!B22) -> 0
A122: =INDEX('Clasament campionate'!A:A,'Now+'!B23) -> Last 20 matches, Win rate：65.0% AH win rate：0.0% Over 2.5 rate：0.0% Odd rate：25.0% | B122: =INDEX('Clasament campionate'!B:B,'Now+'!B23) -> 0 | C122: =INDEX('Clasament campionate'!C:C,'Now+'!B23) -> 0 | D122: =INDEX('Clasament campionate'!D:D,'Now+'!B23) -> 0 | E122: =INDEX('Clasament campionate'!E:E,'Now+'!B23) -> 0 | F122: =INDEX('Clasament campionate'!F:F,'Now+'!B23) -> 0 | G122: =INDEX('Clasament campionate'!G:G,'Now+'!B23) -> 0 | N122: =INDEX('Clasament campionate'!N:N,'Now+'!B23) -> 0 | O122: =INDEX('Clasament campionate'!O:O,'Now+'!B23) -> 0 | P122: =INDEX('Clasament campionate'!P:P,'Now+'!B23) -> 0
A123: =INDEX('Clasament campionate'!A:A,'Now+'!B24) -> 0 | B123: =INDEX('Clasament campionate'!B:B,'Now+'!B24) -> 0 | C123: =INDEX('Clasament campionate'!C:C,'Now+'!B24) -> 0 | D123: =INDEX('Clasament campionate'!D:D,'Now+'!B24) -> 0 | E123: =INDEX('Clasament campionate'!E:E,'Now+'!B24) -> 0 | F123: =INDEX('Clasament campionate'!F:F,'Now+'!B24) -> 0 | G123: =INDEX('Clasament campionate'!G:G,'Now+'!B24) -> 0 | N123: =INDEX('Clasament campionate'!N:N,'Now+'!B24) -> 0 | O123: =INDEX('Clasament campionate'!O:O,'Now+'!B24) -> 0 | P123: =INDEX('Clasament campionate'!P:P,'Now+'!B24) -> 0
A124: =INDEX('Clasament campionate'!A:A,'Now+'!B25) -> Pumas U.N.A.M. | B124: =INDEX('Clasament campionate'!B:B,'Now+'!B25) -> 0 | C124: =INDEX('Clasament campionate'!C:C,'Now+'!B25) -> 0 | D124: =INDEX('Clasament campionate'!D:D,'Now+'!B25) -> 0 | E124: =INDEX('Clasament campionate'!E:E,'Now+'!B25) -> 0 | F124: =INDEX('Clasament campionate'!F:F,'Now+'!B25) -> 0 | G124: =INDEX('Clasament campionate'!G:G,'Now+'!B25) -> 0 | N124: =INDEX('Clasament campionate'!N:N,'Now+'!B25) -> 0 | O124: =INDEX('Clasament campionate'!O:O,'Now+'!B25) -> 0 | P124: =INDEX('Clasament campionate'!P:P,'Now+'!B25) -> 0
A125: =INDEX('Clasament campionate'!A:A,'Now+'!B26) -> H-A Same MEX D1 CONCACAF LC INT CF | B125: =INDEX('Clasament campionate'!B:B,'Now+'!B26) -> 0 | C125: =INDEX('Clasament campionate'!C:C,'Now+'!B26) -> 0 | D125: =INDEX('Clasament campionate'!D:D,'Now+'!B26) -> 0 | E125: =INDEX('Clasament campionate'!E:E,'Now+'!B26) -> 0 | F125: =INDEX('Clasament campionate'!F:F,'Now+'!B26) -> 0 | G125: =INDEX('Clasament campionate'!G:G,'Now+'!B26) -> 0 | N125: =INDEX('Clasament campionate'!N:N,'Now+'!B26) -> 0 | O125: =INDEX('Clasament campionate'!O:O,'Now+'!B26) -> 0 | P125: =INDEX('Clasament campionate'!P:P,'Now+'!B26) -> 0
A126: =INDEX('Clasament campionate'!A:A,'Now+'!B27) -> League | B126: =INDEX('Clasament campionate'!B:B,'Now+'!B27) -> Date | C126: =INDEX('Clasament campionate'!C:C,'Now+'!B27) -> Home | D126: =INDEX('Clasament campionate'!D:D,'Now+'!B27) -> Score | E126: =INDEX('Clasament campionate'!E:E,'Now+'!B27) -> H T | F126: =INDEX('Clasament campionate'!F:F,'Now+'!B27) -> Corner | G126: =INDEX('Clasament campionate'!G:G,'Now+'!B27) -> Away | N126: =INDEX('Clasament campionate'!N:N,'Now+'!B27) -> W/L | O126: =INDEX('Clasament campionate'!O:O,'Now+'!B27) -> AH | P126: =INDEX('Clasament campionate'!P:P,'Now+'!B27) -> O/U
A127: =INDEX('Clasament campionate'!A:A,'Now+'!B28) -> 0 | B127: =INDEX('Clasament campionate'!B:B,'Now+'!B28) -> 0 | C127: =INDEX('Clasament campionate'!C:C,'Now+'!B28) -> 0 | D127: =INDEX('Clasament campionate'!D:D,'Now+'!B28) -> 0 | E127: =INDEX('Clasament campionate'!E:E,'Now+'!B28) -> 0 | F127: =INDEX('Clasament campionate'!F:F,'Now+'!B28) -> 0 | G127: =INDEX('Clasament campionate'!G:G,'Now+'!B28) -> 0 | N127: =INDEX('Clasament campionate'!N:N,'Now+'!B28) -> 0 | O127: =INDEX('Clasament campionate'!O:O,'Now+'!B28) -> 0 | P127: =INDEX('Clasament campionate'!P:P,'Now+'!B28) -> 0
A128: =INDEX('Clasament campionate'!A:A,'Now+'!B29) -> MEX D1 | B128: =INDEX('Clasament campionate'!B:B,'Now+'!B29) -> 0 | C128: =INDEX('Clasament campionate'!C:C,'Now+'!B29) -> Club America | D128: =INDEX('Clasament campionate'!D:D,'Now+'!B29) -> 2-0 | E128: =INDEX('Clasament campionate'!E:E,'Now+'!B29) -> 1-0 | F128: =INDEX('Clasament campionate'!F:F,'Now+'!B29) -> 2-4 | G128: =INDEX('Clasament campionate'!G:G,'Now+'!B29) -> Pumas U.N.A.M. | N128: =INDEX('Clasament campionate'!N:N,'Now+'!B29) -> L | O128: =INDEX('Clasament campionate'!O:O,'Now+'!B29) -> 0 | P128: =INDEX('Clasament campionate'!P:P,'Now+'!B29) -> 0
A129: =INDEX('Clasament campionate'!A:A,'Now+'!B30) -> MEX D1 | B129: =INDEX('Clasament campionate'!B:B,'Now+'!B30) -> 0 | C129: =INDEX('Clasament campionate'!C:C,'Now+'!B30) -> Tigres UANL | D129: =INDEX('Clasament campionate'!D:D,'Now+'!B30) -> 0-0 | E129: =INDEX('Clasament campionate'!E:E,'Now+'!B30) -> 0-0 | F129: =INDEX('Clasament campionate'!F:F,'Now+'!B30) -> 5-4 | G129: =INDEX('Clasament campionate'!G:G,'Now+'!B30) -> Pumas U.N.A.M. | N129: =INDEX('Clasament campionate'!N:N,'Now+'!B30) -> D | O129: =INDEX('Clasament campionate'!O:O,'Now+'!B30) -> 0 | P129: =INDEX('Clasament campionate'!P:P,'Now+'!B30) -> 0
A130: =INDEX('Clasament campionate'!A:A,'Now+'!B31) -> MEX D1 | B130: =INDEX('Clasament campionate'!B:B,'Now+'!B31) -> 0 | C130: =INDEX('Clasament campionate'!C:C,'Now+'!B31) -> Mazatlan FC | D130: =INDEX('Clasament campionate'!D:D,'Now+'!B31) -> 2-2 | E130: =INDEX('Clasament campionate'!E:E,'Now+'!B31) -> 1-0 | F130: =INDEX('Clasament campionate'!F:F,'Now+'!B31) -> 1-7 | G130: =INDEX('Clasament campionate'!G:G,'Now+'!B31) -> Pumas U.N.A.M. | N130: =INDEX('Clasament campionate'!N:N,'Now+'!B31) -> D | O130: =INDEX('Clasament campionate'!O:O,'Now+'!B31) -> 0 | P130: =INDEX('Clasament campionate'!P:P,'Now+'!B31) -> 0
A131: =INDEX('Clasament campionate'!A:A,'Now+'!B32) -> CONCACAF LC | B131: =INDEX('Clasament campionate'!B:B,'Now+'!B32) -> 0 | C131: =INDEX('Clasament campionate'!C:C,'Now+'!B32) -> Club Leon(N) | D131: =INDEX('Clasament campionate'!D:D,'Now+'!B32) -> 2-0 | E131: =INDEX('Clasament campionate'!E:E,'Now+'!B32) -> 1-0 | F131: =INDEX('Clasament campionate'!F:F,'Now+'!B32) -> 5-0 | G131: =INDEX('Clasament campionate'!G:G,'Now+'!B32) -> Pumas U.N.A.M.1 | N131: =INDEX('Clasament campionate'!N:N,'Now+'!B32) -> L | O131: =INDEX('Clasament campionate'!O:O,'Now+'!B32) -> 0 | P131: =INDEX('Clasament campionate'!P:P,'Now+'!B32) -> 0
A132: =INDEX('Clasament campionate'!A:A,'Now+'!B33) -> MEX D1 | B132: =INDEX('Clasament campionate'!B:B,'Now+'!B33) -> 0 | C132: =INDEX('Clasament campionate'!C:C,'Now+'!B33) -> Pumas U.N.A.M. | D132: =INDEX('Clasament campionate'!D:D,'Now+'!B33) -> 0-0 | E132: =INDEX('Clasament campionate'!E:E,'Now+'!B33) -> 0-0 | F132: =INDEX('Clasament campionate'!F:F,'Now+'!B33) -> 4-4 | G132: =INDEX('Clasament campionate'!G:G,'Now+'!B33) -> Chivas Guadalajara | N132: =INDEX('Clasament campionate'!N:N,'Now+'!B33) -> D | O132: =INDEX('Clasament campionate'!O:O,'Now+'!B33) -> 0 | P132: =INDEX('Clasament campionate'!P:P,'Now+'!B33) -> 0
A133: =INDEX('Clasament campionate'!A:A,'Now+'!B34) -> MEX D1 | B133: =INDEX('Clasament campionate'!B:B,'Now+'!B34) -> 0 | C133: =INDEX('Clasament campionate'!C:C,'Now+'!B34) -> Toluca | D133: =INDEX('Clasament campionate'!D:D,'Now+'!B34) -> 2-1 | E133: =INDEX('Clasament campionate'!E:E,'Now+'!B34) -> 1-1 | F133: =INDEX('Clasament campionate'!F:F,'Now+'!B34) -> 5-2 | G133: =INDEX('Clasament campionate'!G:G,'Now+'!B34) -> Pumas U.N.A.M.3 | N133: =INDEX('Clasament campionate'!N:N,'Now+'!B34) -> L | O133: =INDEX('Clasament campionate'!O:O,'Now+'!B34) -> 0 | P133: =INDEX('Clasament campionate'!P:P,'Now+'!B34) -> 0
A134: =INDEX('Clasament campionate'!A:A,'Now+'!B35) -> MEX D1 | B134: =INDEX('Clasament campionate'!B:B,'Now+'!B35) -> 0 | C134: =INDEX('Clasament campionate'!C:C,'Now+'!B35) -> Pumas U.N.A.M. | D134: =INDEX('Clasament campionate'!D:D,'Now+'!B35) -> 2-0 | E134: =INDEX('Clasament campionate'!E:E,'Now+'!B35) -> 0-0 | F134: =INDEX('Clasament campionate'!F:F,'Now+'!B35) -> 8-4 | G134: =INDEX('Clasament campionate'!G:G,'Now+'!B35) -> Puebla | N134: =INDEX('Clasament campionate'!N:N,'Now+'!B35) -> W | O134: =INDEX('Clasament campionate'!O:O,'Now+'!B35) -> 0 | P134: =INDEX('Clasament campionate'!P:P,'Now+'!B35) -> 0
A135: =INDEX('Clasament campionate'!A:A,'Now+'!B36) -> MEX D1 | B135: =INDEX('Clasament campionate'!B:B,'Now+'!B36) -> 0 | C135: =INDEX('Clasament campionate'!C:C,'Now+'!B36) -> Necaxa | D135: =INDEX('Clasament campionate'!D:D,'Now+'!B36) -> 3-0 | E135: =INDEX('Clasament campionate'!E:E,'Now+'!B36) -> 1-0 | F135: =INDEX('Clasament campionate'!F:F,'Now+'!B36) -> 3-8 | G135: =INDEX('Clasament campionate'!G:G,'Now+'!B36) -> Pumas U.N.A.M. | N135: =INDEX('Clasament campionate'!N:N,'Now+'!B36) -> L | O135: =INDEX('Clasament campionate'!O:O,'Now+'!B36) -> 0 | P135: =INDEX('Clasament campionate'!P:P,'Now+'!B36) -> 0
A136: =INDEX('Clasament campionate'!A:A,'Now+'!B37) -> MEX D1 | B136: =INDEX('Clasament campionate'!B:B,'Now+'!B37) -> 0 | C136: =INDEX('Clasament campionate'!C:C,'Now+'!B37) -> 1Pumas U.N.A.M. | D136: =INDEX('Clasament campionate'!D:D,'Now+'!B37) -> 0-0 | E136: =INDEX('Clasament campionate'!E:E,'Now+'!B37) -> 0-0 | F136: =INDEX('Clasament campionate'!F:F,'Now+'!B37) -> 2-6 | G136: =INDEX('Clasament campionate'!G:G,'Now+'!B37) -> Queretaro FC | N136: =INDEX('Clasament campionate'!N:N,'Now+'!B37) -> D | O136: =INDEX('Clasament campionate'!O:O,'Now+'!B37) -> 0 | P136: =INDEX('Clasament campionate'!P:P,'Now+'!B37) -> 0
A137: =INDEX('Clasament campionate'!A:A,'Now+'!B38) -> CONCACAF LC | B137: =INDEX('Clasament campionate'!B:B,'Now+'!B38) -> 0 | C137: =INDEX('Clasament campionate'!C:C,'Now+'!B38) -> New York City Football Club | D137: =INDEX('Clasament campionate'!D:D,'Now+'!B38) -> 1-1 | E137: =INDEX('Clasament campionate'!E:E,'Now+'!B38) -> 0-0 | F137: =INDEX('Clasament campionate'!F:F,'Now+'!B38) -> 10-5 | G137: =INDEX('Clasament campionate'!G:G,'Now+'!B38) -> Pumas U.N.A.M. | N137: =INDEX('Clasament campionate'!N:N,'Now+'!B38) -> D | O137: =INDEX('Clasament campionate'!O:O,'Now+'!B38) -> 0 | P137: =INDEX('Clasament campionate'!P:P,'Now+'!B38) -> 0
A138: =INDEX('Clasament campionate'!A:A,'Now+'!B39) -> MEX D1 | B138: =INDEX('Clasament campionate'!B:B,'Now+'!B39) -> 0 | C138: =INDEX('Clasament campionate'!C:C,'Now+'!B39) -> Pumas U.N.A.M. | D138: =INDEX('Clasament campionate'!D:D,'Now+'!B39) -> 1-3 | E138: =INDEX('Clasament campionate'!E:E,'Now+'!B39) -> 1-2 | F138: =INDEX('Clasament campionate'!F:F,'Now+'!B39) -> 5-0 | G138: =INDEX('Clasament campionate'!G:G,'Now+'!B39) -> Atletico San Luis | N138: =INDEX('Clasament campionate'!N:N,'Now+'!B39) -> L | O138: =INDEX('Clasament campionate'!O:O,'Now+'!B39) -> 0 | P138: =INDEX('Clasament campionate'!P:P,'Now+'!B39) -> 0
A139: =INDEX('Clasament campionate'!A:A,'Now+'!B40) -> MEX D1 | B139: =INDEX('Clasament campionate'!B:B,'Now+'!B40) -> 0 | C139: =INDEX('Clasament campionate'!C:C,'Now+'!B40) -> Monterrey | D139: =INDEX('Clasament campionate'!D:D,'Now+'!B40) -> 2-0 | E139: =INDEX('Clasament campionate'!E:E,'Now+'!B40) -> 1-0 | F139: =INDEX('Clasament campionate'!F:F,'Now+'!B40) -> 1-3 | G139: =INDEX('Clasament campionate'!G:G,'Now+'!B40) -> Pumas U.N.A.M. | N139: =INDEX('Clasament campionate'!N:N,'Now+'!B40) -> L | O139: =INDEX('Clasament campionate'!O:O,'Now+'!B40) -> 0 | P139: =INDEX('Clasament campionate'!P:P,'Now+'!B40) -> 0
A140: =INDEX('Clasament campionate'!A:A,'Now+'!B41) -> INT CF | B140: =INDEX('Clasament campionate'!B:B,'Now+'!B41) -> 0 | C140: =INDEX('Clasament campionate'!C:C,'Now+'!B41) -> Everton(N) | D140: =INDEX('Clasament campionate'!D:D,'Now+'!B41) -> 1-0 | E140: =INDEX('Clasament campionate'!E:E,'Now+'!B41) -> 1-0 | F140: =INDEX('Clasament campionate'!F:F,'Now+'!B41) -> 2-5 | G140: =INDEX('Clasament campionate'!G:G,'Now+'!B41) -> Pumas U.N.A.M. | N140: =INDEX('Clasament campionate'!N:N,'Now+'!B41) -> L | O140: =INDEX('Clasament campionate'!O:O,'Now+'!B41) -> 0 | P140: =INDEX('Clasament campionate'!P:P,'Now+'!B41) -> 0
A141: =INDEX('Clasament campionate'!A:A,'Now+'!B42) -> MEX D1 | B141: =INDEX('Clasament campionate'!B:B,'Now+'!B42) -> 0 | C141: =INDEX('Clasament campionate'!C:C,'Now+'!B42) -> Pumas U.N.A.M. | D141: =INDEX('Clasament campionate'!D:D,'Now+'!B42) -> 0-0 | E141: =INDEX('Clasament campionate'!E:E,'Now+'!B42) -> 0-0 | F141: =INDEX('Clasament campionate'!F:F,'Now+'!B42) -> 2-7 | G141: =INDEX('Clasament campionate'!G:G,'Now+'!B42) -> Atlas | N141: =INDEX('Clasament campionate'!N:N,'Now+'!B42) -> D | O141: =INDEX('Clasament campionate'!O:O,'Now+'!B42) -> 0 | P141: =INDEX('Clasament campionate'!P:P,'Now+'!B42) -> 0
A142: =INDEX('Clasament campionate'!A:A,'Now+'!B43) -> INT CF | B142: =INDEX('Clasament campionate'!B:B,'Now+'!B43) -> 0 | C142: =INDEX('Clasament campionate'!C:C,'Now+'!B43) -> Pumas U.N.A.M.(N) | D142: =INDEX('Clasament campionate'!D:D,'Now+'!B43) -> 2-2 | E142: =INDEX('Clasament campionate'!E:E,'Now+'!B43) -> 0-1 | F142: =INDEX('Clasament campionate'!F:F,'Now+'!B43) -> 6-3 | G142: =INDEX('Clasament campionate'!G:G,'Now+'!B43) -> Queretaro FC | N142: =INDEX('Clasament campionate'!N:N,'Now+'!B43) -> D | O142: =INDEX('Clasament campionate'!O:O,'Now+'!B43) -> 0 | P142: =INDEX('Clasament campionate'!P:P,'Now+'!B43) -> 0
A143: =INDEX('Clasament campionate'!A:A,'Now+'!B44) -> INT CF | B143: =INDEX('Clasament campionate'!B:B,'Now+'!B44) -> 0 | C143: =INDEX('Clasament campionate'!C:C,'Now+'!B44) -> San Antonio | D143: =INDEX('Clasament campionate'!D:D,'Now+'!B44) -> 2-4 | E143: =INDEX('Clasament campionate'!E:E,'Now+'!B44) -> 2-1 | F143: =INDEX('Clasament campionate'!F:F,'Now+'!B44) -> 5-14 | G143: =INDEX('Clasament campionate'!G:G,'Now+'!B44) -> Pumas U.N.A.M. | N143: =INDEX('Clasament campionate'!N:N,'Now+'!B44) -> W | O143: =INDEX('Clasament campionate'!O:O,'Now+'!B44) -> 0 | P143: =INDEX('Clasament campionate'!P:P,'Now+'!B44) -> 0
A144: =INDEX('Clasament campionate'!A:A,'Now+'!B45) -> INT CF | B144: =INDEX('Clasament campionate'!B:B,'Now+'!B45) -> 0 | C144: =INDEX('Clasament campionate'!C:C,'Now+'!B45) -> Monarcas Morelia | D144: =INDEX('Clasament campionate'!D:D,'Now+'!B45) -> 1-3 | E144: =INDEX('Clasament campionate'!E:E,'Now+'!B45) -> 0-1 | F144: =INDEX('Clasament campionate'!F:F,'Now+'!B45) -> 2-1 | G144: =INDEX('Clasament campionate'!G:G,'Now+'!B45) -> Pumas U.N.A.M. | N144: =INDEX('Clasament campionate'!N:N,'Now+'!B45) -> W | O144: =INDEX('Clasament campionate'!O:O,'Now+'!B45) -> 0 | P144: =INDEX('Clasament campionate'!P:P,'Now+'!B45) -> 0
A145: =INDEX('Clasament campionate'!A:A,'Now+'!B46) -> MEX D1 | B145: =INDEX('Clasament campionate'!B:B,'Now+'!B46) -> 0 | C145: =INDEX('Clasament campionate'!C:C,'Now+'!B46) -> Pumas U.N.A.M. | D145: =INDEX('Clasament campionate'!D:D,'Now+'!B46) -> 0-1 | E145: =INDEX('Clasament campionate'!E:E,'Now+'!B46) -> 0-0 | F145: =INDEX('Clasament campionate'!F:F,'Now+'!B46) -> 6-10 | G145: =INDEX('Clasament campionate'!G:G,'Now+'!B46) -> Club America | N145: =INDEX('Clasament campionate'!N:N,'Now+'!B46) -> L | O145: =INDEX('Clasament campionate'!O:O,'Now+'!B46) -> 0 | P145: =INDEX('Clasament campionate'!P:P,'Now+'!B46) -> 0
A146: =INDEX('Clasament campionate'!A:A,'Now+'!B47) -> MEX D1 | B146: =INDEX('Clasament campionate'!B:B,'Now+'!B47) -> 0 | C146: =INDEX('Clasament campionate'!C:C,'Now+'!B47) -> Puebla | D146: =INDEX('Clasament campionate'!D:D,'Now+'!B47) -> 0-0 | E146: =INDEX('Clasament campionate'!E:E,'Now+'!B47) -> 0-0 | F146: =INDEX('Clasament campionate'!F:F,'Now+'!B47) -> 10-3 | G146: =INDEX('Clasament campionate'!G:G,'Now+'!B47) -> Pumas U.N.A.M. | N146: =INDEX('Clasament campionate'!N:N,'Now+'!B47) -> D | O146: =INDEX('Clasament campionate'!O:O,'Now+'!B47) -> 0 | P146: =INDEX('Clasament campionate'!P:P,'Now+'!B47) -> 0
A147: =INDEX('Clasament campionate'!A:A,'Now+'!B48) -> MEX D1 | B147: =INDEX('Clasament campionate'!B:B,'Now+'!B48) -> 0 | C147: =INDEX('Clasament campionate'!C:C,'Now+'!B48) -> Pumas U.N.A.M. | D147: =INDEX('Clasament campionate'!D:D,'Now+'!B48) -> 0-0 | E147: =INDEX('Clasament campionate'!E:E,'Now+'!B48) -> 0-0 | F147: =INDEX('Clasament campionate'!F:F,'Now+'!B48) -> 2-2 | G147: =INDEX('Clasament campionate'!G:G,'Now+'!B48) -> Tigres UANL | N147: =INDEX('Clasament campionate'!N:N,'Now+'!B48) -> D | O147: =INDEX('Clasament campionate'!O:O,'Now+'!B48) -> 0 | P147: =INDEX('Clasament campionate'!P:P,'Now+'!B48) -> 0
A148: =INDEX('Clasament campionate'!A:A,'Now+'!B49) -> 0 | B148: =INDEX('Clasament campionate'!B:B,'Now+'!B49) -> 0 | C148: =INDEX('Clasament campionate'!C:C,'Now+'!B49) -> 0 | D148: =INDEX('Clasament campionate'!D:D,'Now+'!B49) -> 0 | E148: =INDEX('Clasament campionate'!E:E,'Now+'!B49) -> 0 | F148: =INDEX('Clasament campionate'!F:F,'Now+'!B49) -> 0 | G148: =INDEX('Clasament campionate'!G:G,'Now+'!B49) -> 0 | N148: =INDEX('Clasament campionate'!N:N,'Now+'!B49) -> 0 | O148: =INDEX('Clasament campionate'!O:O,'Now+'!B49) -> 0 | P148: =INDEX('Clasament campionate'!P:P,'Now+'!B49) -> 0
A149: =INDEX('Clasament campionate'!A:A,'Now+'!B50) -> Pumas U.N.A.M. | B149: =INDEX('Clasament campionate'!B:B,'Now+'!B50) -> 0 | C149: =INDEX('Clasament campionate'!C:C,'Now+'!B50) -> 0 | D149: =INDEX('Clasament campionate'!D:D,'Now+'!B50) -> 0 | E149: =INDEX('Clasament campionate'!E:E,'Now+'!B50) -> 0 | F149: =INDEX('Clasament campionate'!F:F,'Now+'!B50) -> 0 | G149: =INDEX('Clasament campionate'!G:G,'Now+'!B50) -> 0 | N149: =INDEX('Clasament campionate'!N:N,'Now+'!B50) -> 0 | O149: =INDEX('Clasament campionate'!O:O,'Now+'!B50) -> 0 | P149: =INDEX('Clasament campionate'!P:P,'Now+'!B50) -> 0
A150: =INDEX('Clasament campionate'!A:A,'Now+'!B51) -> Match | B150: =INDEX('Clasament campionate'!B:B,'Now+'!B51) -> Time | C150: =INDEX('Clasament campionate'!C:C,'Now+'!B51) -> Home | D150: =INDEX('Clasament campionate'!D:D,'Now+'!B51) -> First Odds | E150: =INDEX('Clasament campionate'!E:E,'Now+'!B51) -> Away | F150: =INDEX('Clasament campionate'!F:F,'Now+'!B51) -> Score | G150: =INDEX('Clasament campionate'!G:G,'Now+'!B51) -> Odds | N150: =INDEX('Clasament campionate'!N:N,'Now+'!B51) -> 0 | O150: =INDEX('Clasament campionate'!O:O,'Now+'!B51) -> 0 | P150: =INDEX('Clasament campionate'!P:P,'Now+'!B51) -> 0

Sheet Total goluri - 10 meciuri (hidden)
C1: Poisson Dağılımı, Maç Başına Toplam Gol.
H2: Dakika | I2: 90
D4: Her iki takımdaki ortalama GOL SAYISI >> | H4: =SUM('Scor corect - 10 meciuri'!A4:B4)*2*'Scor corect - 10 meciuri'!$H$1:$I$1/90+SUM('Scor corect - 10 meciuri'!C4:D4)*2*'Scor corect - 10 meciuri'!$H$1:$I$1/90 -> 1.8 | I4: Final
A5: k | B5: p | C5: pk | D5: Odds, exactly k goals | F5: Odds, 0 to k goals | H5: Odds, k+1 or more goals | J5: p | K5: Pauza | M5: p | N5: Final
A6: 0 | B6: =POISSON(A6,$H$4*$I$2/90,FALSE)*100*$I$2/90 -> 16.52988882 | C6: =B6 -> 16.52988882 | D6: =A6&" " &"goluri" -> 0 goluri | E6: =1/B6*100 -> 6.049647464 | F6: ="Under"&" "&A6&".5" -> Under 0.5 | G6: =1/(POISSON(A6,$H$4*$I$2/90,TRUE)) -> 6.049647464 | H6: ="Over"&" "&A6&".5" -> Over 0.5 | I6: =1/(1-POISSON(A6,$H$4*$I$2/90,TRUE)) -> 1.198033627 | J6: =POISSON(A6,$H$4/2,FALSE)*100 -> 40.65696597 | K6: =100/J6 -> 2.459603111 | L6: 0 | M6: =POISSON(A6,$H$4,FALSE)*100 -> 16.52988882 | N6: =100/M6 -> 6.049647464 | O6: 0
A7: 1 | B7: =POISSON(A7,$H$4*$I$2/90,FALSE)*100*$I$2/90 -> 29.75379988 | C7: =B7+C6 -> 46.2836887 | D7: =A7&" " &"goluri" -> 1 goluri | E7: =1/B7*100 -> 3.360915258 | F7: ="Under"&" "&A7&".5" -> Under 1.5 | G7: =1/(POISSON(A7,$H$4*$I$2/90,TRUE)) -> 2.16058838 | H7: ="Over"&" "&A7&".5" -> Over 1.5 | I7: =1/(1-POISSON(A7,$H$4*$I$2/90,TRUE)) -> 1.861631925 | J7: =POISSON(A7,$H$4/2,FALSE)*100 -> 36.59126938 | K7: =100/J7 -> 2.732892346 | L7: 1 | M7: =POISSON(A7,$H$4,FALSE)*100 -> 29.75379988 | N7: =100/M7 -> 3.360915258 | O7: 1
A8: 2 | B8: 26.77841989 | C8: =B8+C7 -> 73.06210859 | D8: 2 goluri | E8: 3.734350287 | F8: Under 2.5 | G8: 1.368698521 | H8: ="Over"&" "&A8&".5" -> Over 2.5 | I8: 3.712243044 | J8: 16.46607122 | K8: 6.073094102 | L8: 2 | M8: 26.77841989 | N8: 3.734350287 | O8: 2
A9: 3 | B9: 16.06705194 | C9: 89.12916053 | D9: 3 goluri | E9: 6.223917144 | F9: Under 3.5 | G9: 1.12196726 | H9: Over 3.5 | I9: 9.198921598 | J9: 4.939821366 | K9: 20.24364701 | L9: 3 | M9: 16.06705194 | N9: 6.223917144 | O9: 3
A10: 4 | B10: 7.230173371 | C10: 96.3593339 | D10: 4 goluri | E10: 13.83092699 | F10: Under 4.5 | G10: 1.037782184 | H10: Over 4.5 | I10: 27.46750107 | J10: 1.111459807 | K10: 89.97176447 | L10: 4 | M10: 7.230173371 | N10: 13.83092699 | O10: 4
A11: 5 | B11: 2.602862413 | C11: 98.96219631 | D11: 5 goluri | E11: 38.41924163 | F11: Under 5.5 | G11: 1.01048687 | H11: Over 5.5 | I11: 96.35733741 | J11: 0.2000627653 | K11: 499.8431359 | L11: 5 | M11: 2.602862413 | N11: 38.41924163 | O11: 5
A12: 6 | B12: 0.780858724 | C12: 99.74305504 | D12: 6 goluri | E12: 128.0641388 | F12: Under 6.5 | G12: 1.002576069 | H12: Over 6.5 | I12: 389.1884044 | J12: 0.0300094148 | K12: 3332.287573 | L12: 6 | M12: 0.780858724 | N12: 128.0641388 | O12: 6
A13: 7 | B13: 0.2007922433 | C13: 99.94384728 | D13: 7 goluri | E13: 498.0272063 | F13: Under 7.5 | G13: 1.000561843 | H13: Over 7.5 | I13: 1780.857657 | J13: 0.003858353331 | K13: 25917.79223 | L13: 7 | M13: 0.2007922433 | N13: 498.0272063 | O13: 7
A14: 8 | B14: 0.04517825475 | C14: 99.98902554 | D14: 8 goluri | E14: =1/B14*100 -> 2213.45425 | F14: ="Under"&" "&A14&".5" -> Under 8.5 | G14: 1.000109757 | H14: ="Over"&" "&A14&".5" -> Over 8.5 | I14: 9112.06192 | J14: 0.0004340647497 | K14: 230380.3754 | L14: 8 | M14: 0.04517825475 | N14: 2213.45425 | O14: 8
A17: Gol | B17: p | C17: ORAN
A18: 1-2 | B18: =SUMIF($A$6:$A$14,">="&LEFT(A18,1),$B$6:$B$14)-SUMIF($A$6:$A$14,">"&RIGHT(A18,1),$B$6:$B$14) -> 56.53221977 | C18: =100/B18 -> 1.768902767
A19: 1-3 | B19: =SUMIF($A$6:$A$14,">="&LEFT(A19,1),$B$6:$B$14)-SUMIF($A$6:$A$14,">"&RIGHT(A19,1),$B$6:$B$14) -> 72.59927171 | C19: =100/B19 -> 1.377424286
A20: 2-3 | B20: =SUMIF($A$6:$A$14,">="&LEFT(A20,1),$B$6:$B$14)-SUMIF($A$6:$A$14,">"&RIGHT(A20,1),$B$6:$B$14) -> 42.84547183 | C20: 2.333968929
A21: 2-4 | B21: 50.0756452 | C21: 1.996978763
A22: 2-5 | B22: 52.67850761 | C22: 1.898307384
A23: 3-4 | B23: 23.29722531 | C23: 4.292356651
A24: 3-5 | B24: 25.90008772 | C24: 3.860990784
A25: 3-6 | B25: 26.68094644 | C25: 3.747992981
A26: 4-5 | B26: 9.833035784 | C26: 10.16979926
A27: 4-6 | B27: 10.61389451 | C27: 9.421612389
A28: 5+ | B28: 3.629691636 | C28: 27.55054975
A29: 6+ | B29: 1.026829222 | C29: 97.38717778
A30: 7+ | B30: 0.2459704981 | C30: 406.5528215

Sheet Evolution (hidden)
D1: =C31 -> Club America | H1: - | I1: =C32 -> Pumas U.N.A.M.
D2: 1/1 | E2: 1/X | F2: 1/2 | G2: X/1 | H2: X/X | I2: X/2 | J2: 2/1 | K2: 2/X | L2: 2/2
D3: =IFERROR(1/SUM($F$31:$N$32)*SUM(F31:F32),"") -> 0.325 | E3: 0.025 | F3: 0.025 | G3: 0.1 | H3: 0.3 | I3: 0.125 | J3: 0 | K3: 0.025 | L3: 0.075
D4: =IFERROR(1/D3,"") -> 3.076923077 | E4: 40 | F4: 40 | G4: 10 | H4: 3.333333333 | I4: 8 | K4: 40 | L4: 13.33333333
D5: SON İSTATİSTİK FİNAL HT / FT - SONUCU
D6: 1/1 | E6: 1/X | F6: 1/2 | G6: X/1 | H6: X/X | I6: X/2 | J6: 2/1 | K6: 2/X | L6: 2/2
D7: =H15 -> 0.16125 | E7: =H16 -> 0.12875 | F7: =H17 -> 0.085 | G7: =H18 -> 0.225 | H7: =H19 -> 0.18125 | I7: =H20 -> 0.11875 | J7: =H21 -> 0.03875 | K7: =H22 -> 0.04 | L7: =H23 -> 0.02125
D8: =IFERROR(1/D7,"") -> 6.201550388 | E8: 7.766990291 | F8: 11.76470588 | G8: 4.444444444 | H8: 5.517241379 | I8: 8.421052632 | J8: 25.80645161 | K8: 25 | L8: 47.05882353
D9: HT | F9: FT | I9: HT | K9: FT
D10: 1 | E10: =COUNTIF($H$82:$H$101,D10)/COUNTA($H$82:$H$101) -> 0.4 | F10: =COUNTIF($I$82:$I$101,D10)/COUNTA($I$82:$I$101) -> 0.5 | G10: 1 | I10: 1 | J10: =COUNTIF($P$82:$P$101,I10)/COUNTA($P$82:$P$101) -> 0.35 | K10: =COUNTIF($Q$82:$Q$101,I10)/COUNTA($Q$82:$Q$101) -> 0.35 | L10: 1
D11: X | E11: =COUNTIF($H$82:$H$101,D11)/COUNTA($H$82:$H$101) -> 0.55 | F11: =COUNTIF($I$82:$I$101,D11)/COUNTA($I$82:$I$101) -> 0.25 | G11: X | I11: X | J11: =COUNTIF($P$82:$P$101,I11)/COUNTA($P$82:$P$101) -> 0.5 | K11: =COUNTIF($Q$82:$Q$101,I11)/COUNTA($Q$82:$Q$101) -> 0.45 | L11: X
D12: 2 | E12: =COUNTIF($H$82:$H$101,D12)/COUNTA($H$82:$H$101) -> 0.05 | F12: =COUNTIF($I$82:$I$101,D12)/COUNTA($I$82:$I$101) -> 0.25 | G12: 2 | I12: 2 | J12: =COUNTIF($P$82:$P$101,I12)/COUNTA($P$82:$P$101) -> 0.15 | K12: =COUNTIF($Q$82:$Q$101,I12)/COUNTA($Q$82:$Q$101) -> 0.2 | L12: 2
G14: HT / FT | H14: FiNAL
E15: 1/1 | F15: =E10*F10 -> 0.2 | G15: 1/1 | H15: =AVERAGE(F15,K15) -> 0.16125 | J15: 1/1 | K15: =J10*K10 -> 0.1225
E16: 1/X | F16: =E10*F11 -> 0.1 | G16: 1/X | H16: =AVERAGE(F16,K16) -> 0.12875 | J16: 1/X | K16: =J10*K11 -> 0.1575
E17: 1/2 | F17: =E10*F12 -> 0.1 | G17: 1/2 | H17: =AVERAGE(F17,K17) -> 0.085 | J17: 1/2 | K17: =J10*K12 -> 0.07
E18: X/1 | F18: =E11*F10 -> 0.275 | G18: X/1 | H18: 0.225 | J18: X/1 | K18: =J11*K10 -> 0.175
E19: X/X | F19: =E11*F11 -> 0.1375 | G19: X/X | H19: 0.18125 | J19: X/X | K19: =J11*K11 -> 0.225
E20: X/2 | F20: =E11*F12 -> 0.1375 | G20: X/2 | H20: 0.11875 | J20: X/2 | K20: =J11*K12 -> 0.1
E21: 2/1 | F21: =E12*F10 -> 0.025 | G21: 2/1 | H21: 0.03875 | J21: 2/1 | K21: =J12*K10 -> 0.0525
E22: 2/X | F22: =E12*F11 -> 0.0125 | G22: 2/X | H22: 0.04 | J22: 2/X | K22: =J12*K11 -> 0.0675
E23: 2/2 | F23: =E12*F12 -> 0.0125 | G23: 2/2 | H23: 0.02125 | J23: 2/2 | K23: =J12*K12 -> 0.03
E28: Statistisca HT/FT - ECHIPA
E30: Meciuri | F30: 1/1 | G30: 1/X | H30: 1/2 | I30: X/1 | J30: X/X | K30: X/2 | L30: 2/1 | M30: 2/X | N30: 2/2
C31: =C41 -> Club America | E31: =COUNTA(C82:C101) -> 20 | F31: =COUNTIF($J$82:$J$101,F30) -> 8 | G31: 0 | H31: 0 | I31: 2 | J31: 5 | K31: 4 | L31: 0 | M31: 0 | N31: 1
C32: =L41 -> Pumas U.N.A.M. | E32: =COUNTA(C82:C101) -> 20 | F32: =COUNTIF($R$82:$R$101,F30) -> 5 | G32: 1 | H32: 1 | I32: 2 | J32: 7 | K32: 1 | L32: 0 | M32: 1 | N32: 2
E33: Probabilitate HT/FT - ECHIPA
I39: Classifica
C41: =Predictie!E2 -> Club America | L41: =Predictie!I2 -> Pumas U.N.A.M.
D42: Matches | E42: Win | F42: Draw | G42: Loss | H42: Get | I42: Miss | J42: Pts | K42: Rank | M42: Matches | N42: Win | O42: Draw | P42: Loss | Q42: Get | R42: Miss | S42: Pts | T42: Rank
C43: =Poisson!C5 -> Total | D43: =Poisson!D5 -> 12 | E43: =Poisson!E5 -> 7 | F43: =Poisson!F5 -> 4 | G43: =Poisson!G5 -> 1 | H43: =Poisson!H5 -> 16 | I43: =Poisson!I5 -> 7 | J43: =Poisson!J5 -> 25 | K43: =Poisson!K5 -> 1 | L43: Total | M43: =Poisson!M5 -> 11 | N43: =Poisson!N5 -> 1 | O43: =Poisson!O5 -> 5 | P43: =Poisson!P5 -> 5 | Q43: =Poisson!Q5 -> 6 | R43: =Poisson!R5 -> 14 | S43: =Poisson!S5 -> 8 | T43: =Poisson!T5 -> 17
C44: =Poisson!C6 -> Home | D44: =Poisson!D6 -> 6 | E44: =Poisson!E6 -> 5 | F44: =Poisson!F6 -> 1 | G44: =Poisson!G6 -> 0 | H44: =Poisson!H6 -> 10 | I44: =Poisson!I6 -> 1 | J44: =Poisson!J6 -> 16 | K44: =Poisson!K6 -> 1 | L44: Home | M44: =Poisson!M6 -> 5 | N44: =Poisson!N6 -> 1 | O44: =Poisson!O6 -> 3 | P44: =Poisson!P6 -> 1 | Q44: =Poisson!Q6 -> 3 | R44: =Poisson!R6 -> 3 | S44: =Poisson!S6 -> 6 | T44: =Poisson!T6 -> 15
C45: =Poisson!C7 -> Away | D45: =Poisson!D7 -> 6 | E45: =Poisson!E7 -> 2 | F45: =Poisson!F7 -> 3 | G45: =Poisson!G7 -> 1 | H45: =Poisson!H7 -> 6 | I45: =Poisson!I7 -> 6 | J45: =Poisson!J7 -> 9 | K45: =Poisson!K7 -> 6 | L45: Away | M45: =Poisson!M7 -> 6 | N45: =Poisson!N7 -> 0 | O45: =Poisson!O7 -> 2 | P45: =Poisson!P7 -> 4 | Q45: =Poisson!Q7 -> 3 | R45: =Poisson!R7 -> 11 | S45: =Poisson!S7 -> 2 | T45: =Poisson!T7 -> 17
C46: =Poisson!C8 -> Last 6 | D46: =Poisson!D8 -> 6 | E46: =Poisson!E8 -> 2 | F46: =Poisson!F8 -> 3 | G46: =Poisson!G8 -> 1 | H46: =Poisson!H8 -> 7 | I46: =Poisson!I8 -> 5 | J46: =Poisson!J8 -> 9 | K46: =Poisson!K8 -> 0 | L46: Last 6 | M46: =Poisson!M8 -> 6 | N46: =Poisson!N8 -> 1 | O46: =Poisson!O8 -> 3 | P46: =Poisson!P8 -> 2 | Q46: =Poisson!Q8 -> 5 | R46: =Poisson!R8 -> 6 | S46: =Poisson!S8 -> 6 | T46: =Poisson!T8 -> 0
I48: H2H
A50: 5 | E50: =IF(AND(F50=$C$41,K50=1),"V",IF(AND(H50=$C$41,K50=2),"V",IF(K50="X","E","I"))) -> V | F50: =Poisson!F12 -> Club America | H50: =Poisson!H12 -> Pumas U.N.A.M. | J50: =Poisson!J12 -> 2-0 | K50: =IF(VALUE(LEFT(J50))=VALUE(RIGHT(J50)),"X",IF(VALUE(LEFT(J50))>VALUE(RIGHT(J50)),1,2)) -> 1 | L50: =IF(E50="I","V",IF(E50="E","E","I")) -> I | M50: =C41 -> Club America | O50: H2H | P50: =L41 -> Pumas U.N.A.M. | R50: H2H
A51: 7 | E51: =IF(AND(F51=$C$41,K51=1),"V",IF(AND(H51=$C$41,K51=2),"V",IF(K51="X","E","I"))) -> V | F51: =Poisson!F13 -> Pumas U.N.A.M. | H51: =Poisson!H13 -> Club America | J51: =Poisson!J13 -> 0-1 | K51: =IF(VALUE(LEFT(J51))=VALUE(RIGHT(J51)),"X",IF(VALUE(LEFT(J51))>VALUE(RIGHT(J51)),1,2)) -> 2 | L51: =IF(E51="I","V",IF(E51="E","E","I")) -> I | M51: Victorie | O51: =COUNTIF(E50:E54,"V")/5 -> 0.4 | P51: Victorie | R51: =COUNTIF(L50:L54,"V")/5 -> 0
A52: 9 | E52: =IF(AND(F52=$C$41,K52=1),"V",IF(AND(H52=$C$41,K52=2),"V",IF(K52="X","E","I"))) -> E | F52: =Poisson!F14 -> Club America | H52: =Poisson!H14 -> Pumas U.N.A.M. | J52: =Poisson!J14 -> 2-2 | K52: =IF(VALUE(LEFT(J52))=VALUE(RIGHT(J52)),"X",IF(VALUE(LEFT(J52))>VALUE(RIGHT(J52)),1,2)) -> X | L52: =IF(E52="I","V",IF(E52="E","E","I")) -> E | M52: Egal | O52: =COUNTIF(E50:E54,"E")/5 -> 0.6 | P52: Egal | R52: =COUNTIF(L50:L54,"E")/5 -> 0.6
A53: 11 | E53: =IF(AND(F53=$C$41,K53=1),"V",IF(AND(H53=$C$41,K53=2),"V",IF(K53="X","E","I"))) -> E | F53: =Poisson!F15 -> Pumas U.N.A.M. | H53: =Poisson!H15 -> Club America | J53: =Poisson!J15 -> 0-0 | K53: =IF(VALUE(LEFT(J53))=VALUE(RIGHT(J53)),"X",IF(VALUE(LEFT(J53))>VALUE(RIGHT(J53)),1,2)) -> X | L53: =IF(E53="I","V",IF(E53="E","E","I")) -> E | M53: Infrangere | O53: =COUNTIF(E50:E54,"I")/5 -> 0 | P53: Infrangere | R53: =COUNTIF(L50:L54,"I")/5 -> 0.4
A54: 13 | E54: =IF(AND(F54=$C$41,K54=1),"V",IF(AND(H54=$C$41,K54=2),"V",IF(K54="X","E","I"))) -> E | F54: =Poisson!F16 -> Pumas U.N.A.M. | H54: =Poisson!H16 -> Club America | J54: =Poisson!J16 -> 3-3 | K54: =IF(VALUE(LEFT(J54))=VALUE(RIGHT(J54)),"X",IF(VALUE(LEFT(J54))>VALUE(RIGHT(J54)),1,2)) -> X | L54: =IF(E54="I","V",IF(E54="E","E","I")) -> E | M54: =AVERAGE(O51,R53) -> 0.4 | O54: =AVERAGE(O52,R52) -> 0.6 | Q54: =AVERAGE(O53,R51) -> 0
I56: ULTIMELE 20 MECIURI
B58: =C41 -> Club America | I58: =L41 -> Pumas U.N.A.M. | R58: =C41 -> Club America | T58: =SUM(T59:T61) -> 1 | U58: =L41 -> Pumas U.N.A.M. | W58: =SUM(W59:W61) -> 1
A59: 5 | C59: =Poisson!C21 -> Club America | E59: =Poisson!E21 -> Pumas U.N.A.M. | F59: =Poisson!F21 -> 2-0 | G59: =IF(VALUE(LEFT(F59))=VALUE(RIGHT(F59)),"X",IF(VALUE(LEFT(F59))>VALUE(RIGHT(F59)),1,2)) -> 1 | H59: =IF(AND(X59=$C$41,G59=1),"V",IF(AND(X59<>$C$41,G59=2),"V",IF(AND(G59="X"),"E",IF(AND(X59<>$C$41,G59=1),"I",IF(AND(X59=$C$41,G59=2),"I",))))) -> V | I59: =Poisson!I21 -> Club America | K59: =Poisson!K21 -> Pumas U.N.A.M. | M59: =Poisson!M21 -> 2-0 | N59: =IF(VALUE(LEFT(M59))=VALUE(RIGHT(M59)),"X",IF(VALUE(LEFT(M59))>VALUE(RIGHT(M59)),1,2)) -> 1 | O59: =IF(AND(Y59=$L$41,N59=1),"V",IF(AND(Y59<>$L$41,N59=2),"V",IF(AND(N59="X"),"E",IF(AND(Y59<>$L$41,N59=1),"I",IF(AND(Y59=$L$41,N59=2),"I",))))) -> I | R59: Victorie | T59: =COUNTIF($H$59:$H$78,"V")/20 -> 0.65 | U59: Victorie | W59: =COUNTIF($O$59:$O$78,"V")/20 -> 0.15 | X59: =IF(RIGHT(C59,LEN($C$41))=$C$41,$C$41,C59) -> Club America | Y59: =IF(RIGHT(I59,LEN($L$41))=$L$41,$L$41,I59) -> Club America
A60: 6 | C60: =Poisson!C22 -> Pachuca | E60: =Poisson!E22 -> Club America | F60: =Poisson!F22 -> 1-1 | G60: X | H60: E | I60: =Poisson!I22 -> Tigres UANL | K60: =Poisson!K22 -> Pumas U.N.A.M. | M60: =Poisson!M22 -> 0-0 | N60: X | O60: E | R60: Egal | T60: =COUNTIF($H$59:$H$78,"E")/20 -> 0.25 | U60: Egal | W60: =COUNTIF($O$59:$O$78,"E")/20 -> 0.45 | X60: Pachuca | Y60: Tigres UANL
A61: 7 | C61: =Poisson!C23 -> Club America | E61: =Poisson!E23 -> Chivas Guadalajara | F61: =Poisson!F23 -> 0-0 | G61: X | H61: E | I61: =Poisson!I23 -> Mazatlan FC | K61: =Poisson!K23 -> Pumas U.N.A.M. | M61: =Poisson!M23 -> 2-2 | N61: X | O61: E | R61: Infrangere | T61: =COUNTIF($H$59:$H$78,"I")/20 -> 0.1 | U61: Infrangere | W61: =COUNTIF($O$59:$O$78,"I")/20 -> 0.4 | X61: Club America | Y61: Mazatlan FC
A62: 8 | C62: =Poisson!C24 -> 1Toluca | E62: =Poisson!E24 -> Club America1 | F62: =Poisson!F24 -> 3-1 | G62: 1 | H62: I | I62: =Poisson!I24 -> Club Leon(N) | K62: =Poisson!K24 -> Pumas U.N.A.M.1 | M62: =Poisson!M24 -> 2-0 | N62: 1 | O62: I | R62: 1 | T62: X | V62: 2 | X62: 1Toluca | Y62: Club Leon(N)
A63: 9 | C63: =Poisson!C25 -> Philadelphia Union | E63: =Poisson!E25 -> Club America | F63: =Poisson!F25 -> 0-2 | G63: 2 | H63: V | I63: =Poisson!I25 -> Pumas U.N.A.M. | K63: =Poisson!K25 -> Chivas Guadalajara | M63: =Poisson!M25 -> 0-0 | N63: X | O63: E | R63: =AVERAGE(T59,W61) -> 0.525 | T63: =AVERAGE(T60,W60) -> 0.35 | V63: =AVERAGE(T61,W59) -> 0.125 | X63: Philadelphia Union | Y63: Pumas U.N.A.M.
A64: 10 | C64: =Poisson!C26 -> Club America | E64: =Poisson!E26 -> Mazatlan FC | F64: =Poisson!F26 -> 2-0 | G64: 1 | H64: V | I64: =Poisson!I26 -> Toluca | K64: =Poisson!K26 -> Pumas U.N.A.M.3 | M64: =Poisson!M26 -> 2-1 | N64: 1 | O64: I | R64: MEDIE FINALA | X64: Club America | Y64: Toluca
A65: 11 | C65: =Poisson!C27 -> Club Leon | E65: =Poisson!E27 -> Club America1 | F65: =Poisson!F27 -> 1-1 | G65: X | H65: E | I65: =Poisson!I27 -> Pumas U.N.A.M. | K65: =Poisson!K27 -> Puebla | M65: =Poisson!M27 -> 2-0 | N65: 1 | O65: V | R65: 1 | T65: X | V65: 2 | X65: Club Leon | Y65: Pumas U.N.A.M.
A66: 12 | C66: =Poisson!C28 -> Club America | E66: =Poisson!E28 -> Club Tijuana1 | F66: =Poisson!F28 -> 2-0 | G66: 1 | H66: V | I66: =Poisson!I28 -> Necaxa | K66: =Poisson!K28 -> Pumas U.N.A.M. | M66: =Poisson!M28 -> 3-0 | N66: 1 | O66: I | R66: =AVERAGE(T59,O51,W61) -> 0.4833333333 | T66: =AVERAGE(T60,W60,O52) -> 0.4333333333 | V66: =AVERAGE(O53,T61,W59) -> 0.08333333333 | X66: Club America | Y66: Necaxa
A67: 13 | C67: =Poisson!C29 -> 1FC Juarez | E67: =Poisson!E29 -> Club America | F67: =Poisson!F29 -> 1-2 | G67: 2 | H67: V | I67: =Poisson!I29 -> 1Pumas U.N.A.M. | K67: =Poisson!K29 -> Queretaro FC | M67: =Poisson!M29 -> 0-0 | N67: X | O67: E | X67: 1FC Juarez | Y67: Pumas U.N.A.M.
A68: 14 | C68: =Poisson!C30 -> Atlas | E68: =Poisson!E30 -> Club America1 | F68: =Poisson!F30 -> 0-1 | G68: 2 | H68: V | I68: =Poisson!I30 -> New York City Football Club | K68: =Poisson!K30 -> Pumas U.N.A.M. | M68: =Poisson!M30 -> 1-1 | N68: X | O68: E | X68: Atlas | Y68: New York City Football Club
A69: 15 | C69: =Poisson!C31 -> Club America | E69: =Poisson!E31 -> Philadelphia Union | F69: =Poisson!F31 -> 2-0 | G69: 1 | H69: V | I69: =Poisson!I31 -> Pumas U.N.A.M. | K69: =Poisson!K31 -> Atletico San Luis | M69: =Poisson!M31 -> 1-3 | N69: 2 | O69: I | X69: Club America | Y69: Pumas U.N.A.M.
A70: 16 | C70: =Poisson!C32 -> Club America | E70: =Poisson!E32 -> Puebla | F70: =Poisson!F32 -> 2-0 | G70: 1 | H70: V | I70: =Poisson!I32 -> Monterrey | K70: =Poisson!K32 -> Pumas U.N.A.M. | M70: =Poisson!M32 -> 2-0 | N70: 1 | O70: I | X70: Club America | Y70: Monterrey
A71: 17 | C71: =Poisson!C33 -> Club America | E71: =Poisson!E33 -> Necaxa | F71: =Poisson!F33 -> 2-1 | G71: 1 | H71: V | I71: =Poisson!I33 -> Everton(N) | K71: =Poisson!K33 -> Pumas U.N.A.M. | M71: =Poisson!M33 -> 1-0 | N71: 1 | O71: I | X71: Club America | Y71: Everton(N)
A72: 18 | C72: =Poisson!C34 -> Queretaro FC | E72: =Poisson!E34 -> Club America | F72: =Poisson!F34 -> 0-0 | G72: X | H72: E | I72: =Poisson!I34 -> Pumas U.N.A.M. | K72: =Poisson!K34 -> Atlas | M72: =Poisson!M34 -> 0-0 | N72: X | O72: E | X72: Queretaro FC | Y72: Pumas U.N.A.M.
A73: 19 | C73: =Poisson!C35 -> Tigres UANL | E73: =Poisson!E35 -> Club America | F73: =Poisson!F35 -> 1-1 | G73: X | H73: E | I73: =Poisson!I35 -> Pumas U.N.A.M.(N) | K73: =Poisson!K35 -> Queretaro FC | M73: =Poisson!M35 -> 2-2 | N73: X | O73: E | X73: Tigres UANL | Y73: Pumas U.N.A.M.(N)
A74: 20 | C74: =Poisson!C36 -> Atlas(N) | E74: =Poisson!E36 -> Club America | F74: =Poisson!F36 -> 0-1 | G74: 2 | H74: V | I74: =Poisson!I36 -> San Antonio | K74: =Poisson!K36 -> Pumas U.N.A.M. | M74: =Poisson!M36 -> 2-4 | N74: 2 | O74: V | X74: Atlas(N) | Y74: San Antonio
A75: 21 | C75: =Poisson!C37 -> 1Santos Laguna(N) | E75: =Poisson!E37 -> Club America | F75: =Poisson!F37 -> 0-1 | G75: 2 | H75: V | I75: =Poisson!I37 -> Monarcas Morelia | K75: =Poisson!K37 -> Pumas U.N.A.M. | M75: =Poisson!M37 -> 1-3 | N75: 2 | O75: V | X75: 1Santos Laguna(N) | Y75: Monarcas Morelia
A76: 22 | C76: =Poisson!C38 -> Club America | E76: =Poisson!E38 -> Pachuca | F76: =Poisson!F38 -> 4-2 | G76: 1 | H76: V | I76: =Poisson!I38 -> Pumas U.N.A.M. | K76: =Poisson!K38 -> Club America | M76: =Poisson!M38 -> 0-1 | N76: 2 | O76: I | X76: Club America | Y76: Pumas U.N.A.M.
A77: 23 | C77: =Poisson!C39 -> Pachuca | E77: =Poisson!E39 -> Club America1 | F77: =Poisson!F39 -> 3-1 | G77: 1 | H77: I | I77: =Poisson!I39 -> Puebla | K77: =Poisson!K39 -> Pumas U.N.A.M. | M77: =Poisson!M39 -> 0-0 | N77: X | O77: E | X77: Pachuca | Y77: Puebla
A78: 24 | C78: =Poisson!C40 -> Club America | E78: =Poisson!E40 -> Portland Timbers | F78: =Poisson!F40 -> 3-1 | G78: 1 | H78: V | I78: =Poisson!I40 -> Pumas U.N.A.M. | K78: =Poisson!K40 -> Tigres UANL | M78: =Poisson!M40 -> 0-0 | N78: X | O78: E | X78: Club America | Y78: Pumas U.N.A.M.
B81: =C41 -> Club America | F81: FT | G81: HT | H81: HT | I81: FT | J81: HT/FT | K81: =L41 -> Pumas U.N.A.M. | N81: FT | O81: FT | P81: HT | Q81: FT | R81: HT/FT | T81: Echipe | V81: HT Date | W81: FT date | Z81: HT Luate | AA81: FT Luate | AB81: HT | AD81: FT | AJ81: HT Date | AK81: FT Date | AL81: HT Luate | AM81: FT Luate | AN81: HT | AP81: FT
A82: 2 | C82: =C59 -> Club America | E82: =INDEX('Clasament campionate'!E:E,MATCH("League",'Clasament campionate'!A:A,FALSE)+$A82,1) -> 1-0 | F82: =F59 -> 2-0 | G82: =E82 -> 1-0 | H82: =IF(VALUE(LEFT(G82))=VALUE(RIGHT(G82)),"X",IF(VALUE(LEFT(G82))>VALUE(RIGHT(G82)),1,2)) -> 1 | I82: =IF(VALUE(LEFT(F82))=VALUE(RIGHT(F82)),"X",IF(VALUE(LEFT(F82))>VALUE(RIGHT(F82)),1,2)) -> 1 | J82: =H82&"/"&I82 -> 1/1 | K82: =I59 -> Club America | M82: =INDEX('Clasament campionate'!E:E,MATCH("League",'Clasament campionate'!A:A,FALSE)+$A82+26,1) -> 1-0 | N82: =M59 -> 2-0 | O82: =M82 -> 1-0 | P82: =IF(VALUE(LEFT(O82))=VALUE(RIGHT(O82)),"X",IF(VALUE(LEFT(O82))>VALUE(RIGHT(O82)),1,2)) -> 1 | Q82: =IF(VALUE(LEFT(N82))=VALUE(RIGHT(N82)),"X",IF(VALUE(LEFT(N82))>VALUE(RIGHT(N82)),1,2)) -> 1 | R82: =P82&"/"&Q82 -> 1/1 | T82: =TRIM($B$81) -> Club America | V82: =IF(T82=C82,AB82,IF(RIGHT(C82,LEN(C82)-1)=T82,AB82,AC82)) -> 1 | W82: =IF(T82=C82,AD82,IF(RIGHT(C82,LEN(C82)-1)=T82,AD82,AE82)) -> 2 | Z82: =IF(X59=$C$41,VALUE(RIGHT(G82)),VALUE(LEFT(G82))) -> 0 | AA82: =IF(X59=$C$41,VALUE(RIGHT(F82)),VALUE(LEFT(F82))) -> 0 | AB82: =VALUE(LEFT(G82)) -> 1 | AC82: =VALUE(RIGHT(G82)) -> 0 | AD82: =VALUE(LEFT(F82)) -> 2 | AE82: =VALUE(RIGHT(F82)) -> 0 | AH82: =TRIM($K$81) -> Pumas U.N.A.M. | AJ82: =IF(AH82=K82,AN82,IF(RIGHT(AH82,LEN(AH82)-1)=AH82,AN82,AO82)) -> 0 | AK82: =IF(AH82=K82,AP82,IF(RIGHT(AH82,LEN(AH82)-1)=AH82,AP82,AQ82)) -> 0 | AL82: =IF(Y59=$L$41,VALUE(RIGHT(O82)),VALUE(LEFT(O82))) -> 1 | AM82: =IF(Y59=$L$41,VALUE(RIGHT(N82)),VALUE(LEFT(N82))) -> 2 | AN82: =VALUE(LEFT(O82)) -> 1 | AO82: =VALUE(RIGHT(O82)) -> 0 | AP82: =VALUE(LEFT(N82)) -> 2 | AQ82: =VALUE(RIGHT(N82)) -> 0
A83: 3 | C83: Pachuca | E83: =INDEX('Clasament campionate'!E:E,MATCH("League",'Clasament campionate'!A:A,FALSE)+$A83,1) -> 1-1 | F83: 1-1 | G83: =E83 -> 1-1 | H83: =IF(VALUE(LEFT(G83))=VALUE(RIGHT(G83)),"X",IF(VALUE(LEFT(G83))>VALUE(RIGHT(G83)),1,2)) -> X | I83: =IF(VALUE(LEFT(F83))=VALUE(RIGHT(F83)),"X",IF(VALUE(LEFT(F83))>VALUE(RIGHT(F83)),1,2)) -> X | J83: =H83&"/"&I83 -> X/X | K83: Tigres UANL | M83: =INDEX('Clasament campionate'!E:E,MATCH("League",'Clasament campionate'!A:A,FALSE)+$A83+26,1) -> 0-0 | N83: 0-0 | O83: =M83 -> 0-0 | P83: =IF(VALUE(LEFT(O83))=VALUE(RIGHT(O83)),"X",IF(VALUE(LEFT(O83))>VALUE(RIGHT(O83)),1,2)) -> X | Q83: =IF(VALUE(LEFT(N83))=VALUE(RIGHT(N83)),"X",IF(VALUE(LEFT(N83))>VALUE(RIGHT(N83)),1,2)) -> X | R83: =P83&"/"&Q83 -> X/X | T83: Club America | V83: 1 | W83: 1 | Z83: 1 | AA83: 1 | AB83: 1 | AC83: 1 | AD83: 1 | AE83: 1 | AH83: Pumas U.N.A.M. | AJ83: 0 | AK83: 0 | AL83: 0 | AM83: 0 | AN83: 0 | AO83: 0 | AP83: 0 | AQ83: 0
A84: 4 | C84: Club America | E84: =INDEX('Clasament campionate'!E:E,MATCH("League",'Clasament campionate'!A:A,FALSE)+$A84,1) -> 0-0 | F84: 0-0 | G84: 0-0 | H84: X | I84: X | J84: X/X | K84: Mazatlan FC | M84: =INDEX('Clasament campionate'!E:E,MATCH("League",'Clasament campionate'!A:A,FALSE)+$A84+26,1) -> 1-0 | N84: 2-2 | O84: 1-0 | P84: 1 | Q84: X | R84: 1/X | T84: Club America | V84: 0 | W84: 0 | Z84: 0 | AA84: 0 | AB84: 0 | AC84: 0 | AD84: 0 | AE84: 0 | AH84: Pumas U.N.A.M. | AJ84: 0 | AK84: 2 | AL84: 1 | AM84: 2 | AN84: 1 | AO84: 0 | AP84: 2 | AQ84: 2
A85: 5 | C85: 1Toluca | E85: =INDEX('Clasament campionate'!E:E,MATCH("League",'Clasament campionate'!A:A,FALSE)+$A85,1) -> 2-1 | F85: 3-1 | G85: 2-1 | H85: 1 | I85: 1 | J85: 1/1 | K85: Club Leon(N) | M85: =INDEX('Clasament campionate'!E:E,MATCH("League",'Clasament campionate'!A:A,FALSE)+$A85+26,1) -> 1-0 | N85: 2-0 | O85: 1-0 | P85: 1 | Q85: 1 | R85: 1/1 | T85: Club America | V85: 1 | W85: 1 | Z85: 2 | AA85: 3 | AB85: 2 | AC85: 1 | AD85: 3 | AE85: 1 | AH85: Pumas U.N.A.M. | AJ85: 0 | AK85: 0 | AL85: 1 | AM85: 2 | AN85: 1 | AO85: 0 | AP85: 2 | AQ85: 0
A86: 6 | C86: Philadelphia Union | E86: =INDEX('Clasament campionate'!E:E,MATCH("League",'Clasament campionate'!A:A,FALSE)+$A86,1) -> 0-0 | F86: 0-2 | G86: 0-0 | H86: X | I86: 2 | J86: X/2 | K86: Pumas U.N.A.M. | M86: =INDEX('Clasament campionate'!E:E,MATCH("League",'Clasament campionate'!A:A,FALSE)+$A86+26,1) -> 0-0 | N86: 0-0 | O86: 0-0 | P86: X | Q86: X | R86: X/X | T86: Club America | V86: 0 | W86: 2 | Z86: 0 | AA86: 0 | AB86: 0 | AC86: 0 | AD86: 0 | AE86: 2 | AH86: Pumas U.N.A.M. | AJ86: 0 | AK86: 0 | AL86: 0 | AM86: 0 | AN86: 0 | AO86: 0 | AP86: 0 | AQ86: 0
A87: 7 | C87: Club America | E87: =INDEX('Clasament campionate'!E:E,MATCH("League",'Clasament campionate'!A:A,FALSE)+$A87,1) -> 1-0 | F87: 2-0 | G87: 1-0 | H87: 1 | I87: 1 | J87: 1/1 | K87: Toluca | M87: =INDEX('Clasament campionate'!E:E,MATCH("League",'Clasament campionate'!A:A,FALSE)+$A87+26,1) -> 1-1 | N87: 2-1 | O87: 1-1 | P87: X | Q87: 1 | R87: X/1 | T87: Club America | V87: 1 | W87: 2 | Z87: 0 | AA87: 0 | AB87: 1 | AC87: 0 | AD87: 2 | AE87: 0 | AH87: Pumas U.N.A.M. | AJ87: 1 | AK87: 1 | AL87: 1 | AM87: 2 | AN87: 1 | AO87: 1 | AP87: 2 | AQ87: 1
A88: 8 | C88: Club Leon | E88: =INDEX('Clasament campionate'!E:E,MATCH("League",'Clasament campionate'!A:A,FALSE)+$A88,1) -> 1-1 | F88: 1-1 | G88: 1-1 | H88: X | I88: X | J88: X/X | K88: Pumas U.N.A.M. | M88: =INDEX('Clasament campionate'!E:E,MATCH("League",'Clasament campionate'!A:A,FALSE)+$A88+26,1) -> 0-0 | N88: 2-0 | O88: 0-0 | P88: X | Q88: 1 | R88: X/1 | T88: Club America | V88: 1 | W88: 1 | Z88: 1 | AA88: 1 | AB88: 1 | AC88: 1 | AD88: 1 | AE88: 1 | AH88: Pumas U.N.A.M. | AJ88: 0 | AK88: 2 | AL88: 0 | AM88: 0 | AN88: 0 | AO88: 0 | AP88: 2 | AQ88: 0
A89: 9 | C89: Club America | E89: =INDEX('Clasament campionate'!E:E,MATCH("League",'Clasament campionate'!A:A,FALSE)+$A89,1) -> 0-0 | F89: 2-0 | G89: 0-0 | H89: X | I89: 1 | J89: X/1 | K89: Necaxa | M89: =INDEX('Clasament campionate'!E:E,MATCH("League",'Clasament campionate'!A:A,FALSE)+$A89+26,1) -> 1-0 | N89: 3-0 | O89: 1-0 | P89: 1 | Q89: 1 | R89: 1/1 | T89: Club America | V89: 0 | W89: 2 | Z89: 0 | AA89: 0 | AB89: 0 | AC89: 0 | AD89: 2 | AE89: 0 | AH89: Pumas U.N.A.M. | AJ89: 0 | AK89: 0 | AL89: 1 | AM89: 3 | AN89: 1 | AO89: 0 | AP89: 3 | AQ89: 0
A90: 10 | C90: 1FC Juarez | E90: =INDEX('Clasament campionate'!E:E,MATCH("League",'Clasament campionate'!A:A,FALSE)+$A90,1) -> 1-1 | F90: 1-2 | G90: 1-1 | H90: X | I90: 2 | J90: X/2 | K90: 1Pumas U.N.A.M. | M90: =INDEX('Clasament campionate'!E:E,MATCH("League",'Clasament campionate'!A:A,FALSE)+$A90+26,1) -> 0-0 | N90: 0-0 | O90: 0-0 | P90: X | Q90: X | R90: X/X | T90: Club America | V90: 1 | W90: 2 | Z90: 1 | AA90: 1 | AB90: 1 | AC90: 1 | AD90: 1 | AE90: 2 | AH90: Pumas U.N.A.M. | AJ90: 0 | AK90: 0 | AL90: 0 | AM90: 0 | AN90: 0 | AO90: 0 | AP90: 0 | AQ90: 0
A91: 11 | C91: Atlas | E91: =INDEX('Clasament campionate'!E:E,MATCH("League",'Clasament campionate'!A:A,FALSE)+$A91,1) -> 0-0 | F91: 0-1 | G91: 0-0 | H91: X | I91: 2 | J91: X/2 | K91: New York City Football Club | M91: =INDEX('Clasament campionate'!E:E,MATCH("League",'Clasament campionate'!A:A,FALSE)+$A91+26,1) -> 0-0 | N91: 1-1 | O91: 0-0 | P91: X | Q91: X | R91: X/X | T91: Club America | V91: 0 | W91: 1 | Z91: 0 | AA91: 0 | AB91: 0 | AC91: 0 | AD91: 0 | AE91: 1 | AH91: Pumas U.N.A.M. | AJ91: 0 | AK91: 1 | AL91: 0 | AM91: 1 | AN91: 0 | AO91: 0 | AP91: 1 | AQ91: 1
A92: 12 | C92: Club America | E92: =INDEX('Clasament campionate'!E:E,MATCH("League",'Clasament campionate'!A:A,FALSE)+$A92,1) -> 1-0 | F92: 2-0 | G92: 1-0 | H92: 1 | I92: 1 | J92: 1/1 | K92: Pumas U.N.A.M. | M92: =INDEX('Clasament campionate'!E:E,MATCH("League",'Clasament campionate'!A:A,FALSE)+$A92+26,1) -> 1-2 | N92: 1-3 | O92: 1-2 | P92: 2 | Q92: 2 | R92: 2/2 | T92: Club America | V92: 1 | W92: 2 | Z92: 0 | AA92: 0 | AB92: 1 | AC92: 0 | AD92: 2 | AE92: 0 | AH92: Pumas U.N.A.M. | AJ92: 1 | AK92: 1 | AL92: 2 | AM92: 3 | AN92: 1 | AO92: 2 | AP92: 1 | AQ92: 3
A93: 13 | C93: Club America | E93: =INDEX('Clasament campionate'!E:E,MATCH("League",'Clasament campionate'!A:A,FALSE)+$A93,1) -> 1-0 | F93: 2-0 | G93: 1-0 | H93: 1 | I93: 1 | J93: 1/1 | K93: Monterrey | M93: =INDEX('Clasament campionate'!E:E,MATCH("League",'Clasament campionate'!A:A,FALSE)+$A93+26,1) -> 1-0 | N93: 2-0 | O93: 1-0 | P93: 1 | Q93: 1 | R93: 1/1 | T93: Club America | V93: 1 | W93: 2 | Z93: 0 | AA93: 0 | AB93: 1 | AC93: 0 | AD93: 2 | AE93: 0 | AH93: Pumas U.N.A.M. | AJ93: 0 | AK93: 0 | AL93: 1 | AM93: 2 | AN93: 1 | AO93: 0 | AP93: 2 | AQ93: 0
A94: 14 | C94: Club America | E94: =INDEX('Clasament campionate'!E:E,MATCH("League",'Clasament campionate'!A:A,FALSE)+$A94,1) -> 1-0 | F94: 2-1 | G94: 1-0 | H94: 1 | I94: 1 | J94: 1/1 | K94: Everton(N) | M94: =INDEX('Clasament campionate'!E:E,MATCH("League",'Clasament campionate'!A:A,FALSE)+$A94+26,1) -> 1-0 | N94: 1-0 | O94: 1-0 | P94: 1 | Q94: 1 | R94: 1/1 | T94: Club America | V94: 1 | W94: 2 | Z94: 0 | AA94: 1 | AB94: 1 | AC94: 0 | AD94: 2 | AE94: 1 | AH94: Pumas U.N.A.M. | AJ94: 0 | AK94: 0 | AL94: 1 | AM94: 1 | AN94: 1 | AO94: 0 | AP94: 1 | AQ94: 0
A95: 15 | C95: Queretaro FC | E95: =INDEX('Clasament campionate'!E:E,MATCH("League",'Clasament campionate'!A:A,FALSE)+$A95,1) -> 0-0 | F95: 0-0 | G95: 0-0 | H95: X | I95: X | J95: X/X | K95: Pumas U.N.A.M. | M95: =INDEX('Clasament campionate'!E:E,MATCH("League",'Clasament campionate'!A:A,FALSE)+$A95+26,1) -> 0-0 | N95: 0-0 | O95: 0-0 | P95: X | Q95: X | R95: X/X | T95: Club America | V95: 0 | W95: 0 | Z95: 0 | AA95: 0 | AB95: 0 | AC95: 0 | AD95: 0 | AE95: 0 | AH95: Pumas U.N.A.M. | AJ95: 0 | AK95: 0 | AL95: 0 | AM95: 0 | AN95: 0 | AO95: 0 | AP95: 0 | AQ95: 0
A96: 16 | C96: Tigres UANL | E96: =INDEX('Clasament campionate'!E:E,MATCH("League",'Clasament campionate'!A:A,FALSE)+$A96,1) -> 0-0 | F96: 1-1 | G96: 0-0 | H96: X | I96: X | J96: X/X | K96: Pumas U.N.A.M.(N) | M96: =INDEX('Clasament campionate'!E:E,MATCH("League",'Clasament campionate'!A:A,FALSE)+$A96+26,1) -> 0-1 | N96: 2-2 | O96: 0-1 | P96: 2 | Q96: X | R96: 2/X | T96: Club America | V96: 0 | W96: 1 | Z96: 0 | AA96: 1 | AB96: 0 | AC96: 0 | AD96: 1 | AE96: 1 | AH96: Pumas U.N.A.M. | AJ96: 1 | AK96: 2 | AL96: 0 | AM96: 2 | AN96: 0 | AO96: 1 | AP96: 2 | AQ96: 2
A97: 17 | C97: Atlas(N) | E97: =INDEX('Clasament campionate'!E:E,MATCH("League",'Clasament campionate'!A:A,FALSE)+$A97,1) -> 0-0 | F97: 0-1 | G97: 0-0 | H97: X | I97: 2 | J97: X/2 | K97: San Antonio | M97: =INDEX('Clasament campionate'!E:E,MATCH("League",'Clasament campionate'!A:A,FALSE)+$A97+26,1) -> 2-1 | N97: 2-4 | O97: 2-1 | P97: 1 | Q97: 2 | R97: 1/2 | T97: Club America | V97: 0 | W97: 1 | Z97: 0 | AA97: 0 | AB97: 0 | AC97: 0 | AD97: 0 | AE97: 1 | AH97: Pumas U.N.A.M. | AJ97: 1 | AK97: 4 | AL97: 2 | AM97: 2 | AN97: 2 | AO97: 1 | AP97: 2 | AQ97: 4
A98: 18 | C98: 1Santos Laguna(N) | E98: =INDEX('Clasament campionate'!E:E,MATCH("League",'Clasament campionate'!A:A,FALSE)+$A98,1) -> 0-1 | F98: 0-1 | G98: 0-1 | H98: 2 | I98: 2 | J98: 2/2 | K98: Monarcas Morelia | M98: =INDEX('Clasament campionate'!E:E,MATCH("League",'Clasament campionate'!A:A,FALSE)+$A98+26,1) -> 0-1 | N98: 1-3 | O98: 0-1 | P98: 2 | Q98: 2 | R98: 2/2 | T98: Club America | V98: 1 | W98: 1 | Z98: 0 | AA98: 0 | AB98: 0 | AC98: 1 | AD98: 0 | AE98: 1 | AH98: Pumas U.N.A.M. | AJ98: 1 | AK98: 3 | AL98: 0 | AM98: 1 | AN98: 0 | AO98: 1 | AP98: 1 | AQ98: 3
A99: 19 | C99: Club America | E99: =INDEX('Clasament campionate'!E:E,MATCH("League",'Clasament campionate'!A:A,FALSE)+$A99,1) -> 2-1 | F99: 4-2 | G99: 2-1 | H99: 1 | I99: 1 | J99: 1/1 | K99: Pumas U.N.A.M. | M99: =INDEX('Clasament campionate'!E:E,MATCH("League",'Clasament campionate'!A:A,FALSE)+$A99+26,1) -> 0-0 | N99: 0-1 | O99: 0-0 | P99: X | Q99: 2 | R99: X/2 | T99: Club America | V99: 2 | W99: 4 | Z99: 1 | AA99: 2 | AB99: 2 | AC99: 1 | AD99: 4 | AE99: 2 | AH99: Pumas U.N.A.M. | AJ99: 0 | AK99: 0 | AL99: 0 | AM99: 1 | AN99: 0 | AO99: 0 | AP99: 0 | AQ99: 1
A100: 20 | C100: Pachuca | E100: =INDEX('Clasament campionate'!E:E,MATCH("League",'Clasament campionate'!A:A,FALSE)+$A100,1) -> 1-1 | F100: 3-1 | G100: 1-1 | H100: X | I100: 1 | J100: X/1 | K100: Puebla | M100: =INDEX('Clasament campionate'!E:E,MATCH("League",'Clasament campionate'!A:A,FALSE)+$A100+26,1) -> 0-0 | N100: 0-0 | O100: 0-0 | P100: X | Q100: X | R100: X/X | T100: Club America | V100: 1 | W100: 1 | Z100: 1 | AA100: 3 | AB100: 1 | AC100: 1 | AD100: 3 | AE100: 1 | AH100: Pumas U.N.A.M. | AJ100: 0 | AK100: 0 | AL100: 0 | AM100: 0 | AN100: 0 | AO100: 0 | AP100: 0 | AQ100: 0
A101: 21 | C101: Club America | E101: =INDEX('Clasament campionate'!E:E,MATCH("League",'Clasament campionate'!A:A,FALSE)+$A101,1) -> 1-0 | F101: 3-1 | G101: 1-0 | H101: 1 | I101: 1 | J101: 1/1 | K101: Pumas U.N.A.M. | M101: =INDEX('Clasament campionate'!E:E,MATCH("League",'Clasament campionate'!A:A,FALSE)+$A101+26,1) -> 0-0 | N101: 0-0 | O101: 0-0 | P101: X | Q101: X | R101: X/X | T101: Club America | V101: 1 | W101: 3 | Z101: 0 | AA101: 1 | AB101: 1 | AC101: 0 | AD101: 3 | AE101: 1 | AH101: Pumas U.N.A.M. | AJ101: 0 | AK101: 0 | AL101: 0 | AM101: 0 | AN101: 0 | AO101: 0 | AP101: 0 | AQ101: 0
V102: =SUM(V82:V101) -> 14 | W102: 31 | X102: 0 | Y102: 0 | Z102: 7 | AA102: 14 | AB102: 14 | AC102: 7 | AD102: 29 | AE102: 16 | AJ102: =SUM(AJ82:AJ101) -> 5 | AK102: =SUM(AK82:AK101) -> 16 | AL102: =SUM(AL82:AL101) -> 11 | AM102: 24 | AN102: 10 | AO102: 6 | AP102: 23 | AQ102: 17
D106: =T101 -> Club America | J106: =AH97 -> Pumas U.N.A.M.
D107: <<>> | E107: Repriza 1 | F107: Repriza 2 | I107: Final | J107: <<>> | K107: Repriza 1 | L107: Repriza 2 | M107: Final
D108: Date | E108: =V102 -> 14 | F108: =W102-V102 -> 17 | I108: =SUM(V102:W102) -> 45 | J108: Date | K108: =AJ102 -> 5 | L108: =AK102-K108 -> 11 | M108: =AK102 -> 16
D109: Luate | E109: =Z102 -> 7 | F109: =SUM(AA102-Z102) -> 7 | I109: =AA102 -> 14 | J109: Luate | K109: =AL102 -> 11 | L109: =AM102-AL102 -> 13 | M109: =AM102 -> 24

Sheet PRINCIPAL (hidden)
A2: =Evolution!C41 -> Club America | D2: =Evolution!L41 -> Pumas U.N.A.M. | G2: REPRIZA 1 | K2: REZULTAT FINAL | N2: REZULTAT FINAL REPRIZA2 | R2: SCOR CORECT REPRIZA 1
B3: PGC | C3: 20 | E3: PGT | F3: 20 | G3: 1 | H3: X | I3: 2 | K3: 1 | L3: X | M3: 2 | N3: 1 | O3: X | P3: 2 | R3: 1-0 | S3: =B104*D103 -> 0.2422758216 | T3: 0-0 | U3: =B103*D103 -> 0.201896518 | V3: 0-1 | W3: =B103*D104 -> 0.0807586072
B4: GFC HT | C4: =Evolution!E108 -> 14 | E4: GFT HT | F4: =Evolution!K108 -> 5 | G4: =SUM(S3:S5)+V6/3 -> 0.488282181 | H4: =SUM(U3:U5)+V6/3 -> 0.3529307553 | I4: =SUM(W3:W5)+V6/3 -> 0.1587870636 | K4: =SUM(S15:S24)+V25/3 -> 0.4696391845 | L4: =SUM(U15:U19)+V25/3 -> 0.375301813 | M4: =SUM(W15:W24)+V25/3 -> 0.1550590025 | N4: =SUM(S9:S11)+V12/3 -> 0.2576177535 | O4: =SUM(U9:U11)+V12/3 -> 0.350511892 | P4: =SUM(W9:W11)+V12/3 -> 0.3918703545 | R4: 2-0 | S4: =B105*D103 -> 0.145365493 | T4: 1-1 | U4: =B104*D104 -> 0.09691032864 | V4: 0-2 | W4: =B103*D105 -> 0.01615172144
A5: =Poisson!F45 -> 1.2 | B5: GSC HT | C5: =Evolution!E109 -> 7 | D5: =Poisson!F49 -> 0.4 | E5: GST HT | F5: =Evolution!K109 -> 11 | R5: 2-1 | S5: =B105*D104 -> 0.05814619718 | T5: 2-2 | U5: =B105*D105 -> 0.01162923944 | V5: 1-2 | W5: =B104*D105 -> 0.01938206573
A6: =Poisson!G45 -> 0.8 | B6: GFC ST | C6: =Evolution!F108 -> 17 | D6: =Poisson!G49 -> 1.2 | E6: GFT ST | F6: =Evolution!L108 -> 11 | G6: SANSA DUBLA REPRIZA 1 | K6: SANSA DUBLA FINAL | N6: SANSA DUBLA REPRIZA 2 | T6: ALTUL | U6: =B106*D106 -> 0.0009552252493 | V6: =1-SUM(S3:S5,U3:U5,W3:W5) -> 0.1274840078
A7: =Poisson!E72 -> 1.2 | B7: GSC ST | C7: =Evolution!F109 -> 7 | D7: =Poisson!E75 -> 0.6 | E7: GST ST | F7: =Evolution!L109 -> 13 | G7: 1X | H7: 12 | I7: X2 | K7: 1X | L7: 12 | M7: X2 | N7: 1X | O7: 12 | P7: X2
G8: =SUM(S3:S5,U3:U5)+V6*(2/3) -> 0.8412129364 | H8: =SUM(S3:S5,W3:W5)+V6*(2/3) -> 0.6470692447 | I8: =SUM(U3:U5,W3:W5)+V6*(2/3) -> 0.511717819 | K8: =SUM(S15:S24,U15:U19)+V25*(2/3) -> 0.8449409975 | L8: =SUM(S15:S24,W15:W24)+V25*(2/3) -> 0.624698187 | M8: =SUM(U15:U19,W15:W24)+V25*(2/3) -> 0.5303608155 | N8: =SUM(S9:S11,U9:U11)+V12*(2/3) -> 0.6081296455 | O8: =SUM(S9:S11,W9:W11)+V12*(2/3) -> 0.649488108 | P8: =SUM(U9:U11,W9:W11)+V12*(2/3) -> 0.7423822465 | R8: SCOR CORECT REPRIZA 2
R9: 1-0 | S9: =B111*D110 -> 0.1082682266 | T9: 0-0 | U9: =B110*D110 -> 0.1353352832 | V9: 0-1 | W9: =B110*D111 -> 0.1624023399
B10: REPRIZA 1 | C10: =IF(D10=G4,G3,IF(D10=H4,H3,I3)) -> 1 | D10: =MAX(G4:I4) -> 0.488282181 | G10: TOYAL GOLURI REPRIZA 1 | K10: GG-NG | N10: TOTAL GOLURI REPRIZA 2 | R10: 2-0 | S10: =B112*D110 -> 0.04330729064 | T10: 1-1 | U10: =B111*D111 -> 0.1299218719 | V10: 0-2 | W10: =B110*D112 -> 0.09744140393
A11: FINAL | B11: REPRIZA 2 | C11: =IF(D11=N4,N3,IF(D11=O4,O3,P3)) -> 2 | D11: =MAX(N4:P4) -> 0.3918703545 | G11: 0 | H11: 1 | I11: 2 | J11: >2 | K11: GG | L11: NG | N11: 0 | O11: 1 | P11: 2 | Q11: >2 | R11: 2-1 | S11: =B112*D111 -> 0.05196874876 | T11: 2-2 | U11: =B112*D112 -> 0.03118124926 | V11: 1-2 | W11: =B111*D112 -> 0.07795312314
B12: FINAL | C12: =IF(D12=K4,K3,IF(D12=L4,L3,M3)) -> 1 | D12: =MAX(K4:M4) -> 0.4696391845 | G12: =U3 -> 0.201896518 | H12: =S3+W3 -> 0.3230344288 | I12: =S4+U4+W4 -> 0.258427543 | J12: =S5+U5+W5+V6 -> 0.2166415102 | K12: =SUM(S17,S19:S20,S22:S24,U16:U19,W17,W19:W20,W22:W24,(V25/2)) -> 0.3643904583 | L12: =1-K12 -> 0.6356095417 | N12: =U9 -> 0.1353352832 | O12: =S9+W9 -> 0.2706705665 | P12: =S10+U10+W10 -> 0.2706705665 | Q12: =S11+U11+W11+V12 -> 0.3233235838 | T12: ALTUL | U12: =B113*D113 -> 0.005715034636 | V12: =1-SUM(S9:S11,U9:U11,W9:W11) -> 0.1622204627
E13: Final
B14: REPRIZA 1 | C14: =IF(D14=G8,G7,IF(D14=H8,H7,I7)) -> 1X | D14: =MAX(G8:I8) -> 0.8412129364 | E14: =IF(K4-M4>18%,"1",IF(K4>M4,"1X",IF(M4-K4>18%,"2",IF(M4>K4,"X2","X")))) -> 1 | G14: HOME-AWAY SCORE-NOSCORE REPRIZA 1 | L14: Final | N14: HOME-AWAY SCORE-NOSCORE REPRIZA 2 | R14: SCOR CORECT FINAL
A15: SANSA DUBLA | B15: REPRIZA 2 | C15: =IF(D15=N8,N7,IF(D15=O8,O7,P7)) -> X2 | D15: =MAX(N8:P8) -> 0.7423822465 | G15: HS | H15: HNS | I15: AS | J15: ANS | L15: =E14 -> 1 | N15: HS | O15: HNS | P15: AS | Q15: ANS | R15: 1-0 | S15: =B119*D118 -> 0.1983586659 | T15: 0-0 | U15: =B118*D118 -> 0.1652988882 | V15: 0-1 | W15: =B118*D119 -> 0.09917933293
B16: FINAL | C16: =IF(D16=K8,K7,IF(D16=L8,L7,M7)) -> 1X | D16: =MAX(K8:M8) -> 0.8449409975 | G16: =SUM(S3:S5,U4:U5,W5,(V6/2)) -> 0.6374511495 | H16: =SUM(U3,W3:W4,(V6/2)) -> 0.3625488505 | I16: =SUM(S5,U4:U5,W3:W5,(V6/2)) -> 0.3467201635 | J16: =SUM(S3:S4,U3,(V6/2)) -> 0.6532798365 | N16: =SUM(S9:S11,U10:U11,W11,(V12/2)) -> 0.5237107416 | O16: =SUM(U9,W9:W10,(V12/2)) -> 0.4762892584 | P16: =SUM(U10:U11,S11,W9:W11,(V12/2)) -> 0.6319789682 | Q16: =SUM(S9:S10,U9,(V12/2)) -> 0.3680210318 | R16: 2-0 | S16: =B120*D118 -> 0.1190151995 | T16: 1-1 | U16: =B119*D119 -> 0.1190151995 | V16: 0-2 | W16: =B118*D120 -> 0.02975379988
R17: 2-1 | S17: =B120*D119 -> 0.07140911971 | T17: 2-2 | U17: =B120*D118 -> 0.1190151995 | V17: 1-2 | W17: =B119*D120 -> 0.03570455986
B18: REPRIZA 1 | C18: =IF(D18=G12,G11,IF(D18=H12,H11,IF(D18=I12,I11,J11))) -> 1 | D18: =MAX(G12:J12) -> 0.3230344288 | G18: OV-UN 0,5 P.T. | I18: OV-UN 1,5 P.T. | N18: OV-UN 0,5 S.T. | P18: OV-UN 1,5 S.T. | R18: 3-0 | S18: =B121*D118 -> 0.04760607981 | T18: 3-3 | U18: =B121*D121 -> 0.001713818873 | V18: 0-3 | W18: =B118*D121 -> 0.005950759976
A19: TOTAL GOLURI | B19: REPRIZA 2 | C19: =IF(D19=N12,N11,IF(D19=O12,O11,IF(D19=P12,P11,Q11))) -> >2 | D19: =LARGE(N12:Q12,1) -> 0.3233235838 | G19: OV 0,5 | H19: UN 0,5 | I19: OV 1,5 | J19: UN 1,5 | N19: OV 0,5 | O19: UN 0,5 | P19: OV 1,5 | Q19: UN 1,5 | R19: 3-1 | S19: =B121*D119 -> 0.02856364788 | T19: 4-4 | U19: =B122*D122 -> 7.712184929e-05 | V19: 1-3 | W19: =B119*D121 -> 0.007140911971
B20: FINA | C20: =IF(D20=L29,L28,IF(D20=M29,M28,IF(D20=N29,N28,IF(D20=O29,O28,IF(D20=P29,P28,IF(D20=Q29,Q28,IF(D20=R29,R28,S28))))))) -> 1 | D20: =LARGE(L29:S29,1) -> 0.2975379988 | G20: =1-H20 -> 0.798103482 | H20: =U3 -> 0.201896518 | I20: =1-J20 -> 0.4750690532 | J20: =SUM(S3,U3,W3) -> 0.5249309468 | N20: =1-O20 -> 0.8646647168 | O20: =U9 -> 0.1353352832 | P20: =1-Q20 -> 0.5939941503 | Q20: =S9+U9+W9 -> 0.4060058497 | R20: 3-2 | S20: =B121*D120 -> 0.008569094365 | V20: 2-3 | W20: =B120*D121 -> 0.004284547183
R21: 4-0 | S21: =B122*D118 -> 0.01428182394 | V21: 0-4 | W21: =B118*D122 -> 0.0008926139964
B22: REPRIZA 1 | C22: =IF(D22=G16,G15,IF(D22=H16,H15,IF(D22=I16,I15,J15))) -> ANS | D22: =MAX(G16:J16) -> 0.6532798365 | G22: OV-UN 2,5 P.T. | I22: GG-NG P.T. | N22: OV-UN 2,5 S.T. | P22: GG-NG S.T. | R22: 4-1 | S22: =B122*D119 -> 0.008569094365 | V22: 1-4 | W22: =B119*D122 -> 0.001071136796
A23: HOME-AWAY S-NS | B23: REPRIZA 2 | C23: =IF(D23=N16,N15,IF(D23=O16,O15,IF(D23=P16,P15,Q15))) -> AS | D23: =MAX(N16:Q16) -> 0.6319789682 | G23: OV 2,5 | H23: UN 2,5 | I23: GG | J23: NG | N23: OV 2,5 | O23: UN 2,5 | P23: GG | Q23: NG | R23: 4-2 | S23: =B122*D120 -> 0.00257072831 | V23: 2-4 | W23: =B120*D122 -> 0.0006426820774
B24: FINAL | C24: =IF(D24=L33,L32,IF(D24=M33,M32,IF(D24=N33,N32,O32))) -> HS | D24: =MAX(L33:O33) -> 0.7436522275 | G24: =1-H24 -> 0.2166415102 | H24: =SUM(S3:S4,U3:U4,W3:W4) -> 0.7833584898 | I24: =SUM(S5,U4:U5,W5,(V6/2)) -> 0.2498098349 | J24: =SUM(S3:S4,U3,W3:W4,(V6/2)) -> 0.7501901651 | N24: =1-O24 -> 0.3233235838 | O24: =SUM(S9:S10,U9:U10,W9:W10) -> 0.6766764162 | P24: =SUM(S11,U10:U11,W11,(V12/2)) -> 0.3721352244 | Q24: =SUM(S9:S10,U9,W9:W10,(V12/2)) -> 0.6278647756 | R24: 4-3 | S24: =B122*D121 -> 0.0005141456619 | V24: 3-4 | W24: =B121*D122 -> 0.000257072831
T25: ALTUL | U25: =B123*D123 -> 3.055605176e-06 | V25: =1-SUM(S15:S24,U15:U19,W15:W24) -> -0.08945524492
B26: REPRIZA 1 | C26: =IF(D26=I24,I23,J23) -> NG | D26: =MAX(I24:J24) -> 0.7501901651
A27: GG-NG | B27: REPRIZA 2 | C27: =IF(D27=P24,P23,Q23) -> NG | D27: =MAX(P24:Q24) -> 0.6278647756 | L27: TOTAL GOLURI
B28: FINAL | C28: =IF(D28=K12,K11,L11) -> NG | D28: =MAX(K12:L12) -> 0.6356095417 | L28: 0 | M28: 1 | N28: 2 | O28: 3 | P28: 4 | Q28: 5 | R28: 6 | S28: >6
L29: =U15 -> 0.1652988882 | M29: =S15+W15 -> 0.2975379988 | N29: =S16+U16+W16 -> 0.2677841989 | O29: =S18+S17+W17+W18 -> 0.1606705194 | P29: =S19+S21+U17+W19+W21 -> 0.1698941973 | Q29: =S20+S22+W20+W22+V25/3 -> -0.007324542263 | R29: =S23+U18+W23+V25/3 -> -0.02489118571 | S29: =1-SUM(L29:R29) -> -0.02897007463
B30: REPRIZA 1 | C30: =IF(D30=G20,G19,H19) -> OV 0,5 | D30: =MAX(G20:H20) -> 0.798103482
A31: OV-UN 0,5 | B31: REPRIZA 2 | C31: =IF(D31=N20,N19,O19) -> OV 0,5 | D31: =MAX(N20:O20) -> 0.8646647168 | L31: HOME-AWAY SCORE-NOSCORE
B32: FINAL | C32: =IF(D32=L37,L36,M36) -> OV 0,5 | D32: =MAX(L37:M37) -> 0.8347011118 | L32: HS | M32: HNS | N32: AS | O32: ANS
L33: =SUM(S15:S24,U16:U19,W17,W19,W20,W22:W24,(V25/2)) -> 0.7436522275 | M33: =1-L33 -> 0.2563477725 | N33: =SUM(S17,S19,S20,S22:S24,U16:U19,W15:W24,(V25/2)) -> 0.5001669651 | O33: =1-N33 -> 0.4998330349
B34: REPRIZA 1 | C34: =IF(I20=D34,I19,J19) -> UN 1,5 | D34: =MAX(I20:J20) -> 0.5249309468
A35: OV-UN 1,5 | B35: REPRIZA 2 | C35: =IF(P20=D35,P19,Q19) -> OV 1,5 | D35: =MAX(P20:Q20) -> 0.5939941503 | L35: OV-UN 0,5 | N35: OV-UN 1,5 | P35: OV-UN 2,5 | R35: OV-UN 3,5 | T35: OV-UN 4,5 | V35: OV-UN 5,5
B36: FINAL | C36: =IF(N37=D36,N36,O36) -> OV 1,5 | D36: =MAX(N37:O37) -> 0.537163113 | L36: OV 0,5 | M36: UN 0,5 | N36: OV 1,5 | O36: UN 1,5 | P36: OV 2,5 | Q36: UN 2,5 | R36: OV 3,5 | S36: UN 3,5 | T36: OV 4,5 | U36: UN 4,5 | V36: OV 5,5 | W36: UN 5,5
L37: =1-M37 -> 0.8347011118 | M37: =L29 -> 0.1652988882 | N37: =1-O37 -> 0.537163113 | O37: =SUM(L29:M29) -> 0.462836887 | P37: =1-Q37 -> 0.2693789141 | Q37: =SUM(L29:N29) -> 0.7306210859 | R37: =1-S37 -> 0.1087083947 | S37: =SUM(L29:O29) -> 0.8912916053 | T37: =1-U37 -> -0.0611858026 | U37: =SUM(L29:P29) -> 1.061185803 | V37: =1-W37 -> -0.05386126034 | W37: =SUM(L29:Q29) -> 1.05386126
B38: REPRIZA 1 | C38: =IF(D38=G24,G23,H23) -> UN 2,5 | D38: =MAX(G24:H24) -> 0.7833584898
A39: OV-UN 2,5 | B39: REPRIZA 2 | C39: =IF(D39=N24,N23,O23) -> UN 2,5 | D39: =MAX(N24:O24) -> 0.6766764162
B40: FINAL | C40: =IF(D40=P37,P36,Q36) -> UN 2,5 | D40: =MAX(P37:Q37) -> 0.7306210859 | P40: =P36 -> OV 2,5 | Q40: =Q36 -> UN 2,5
A42: OV-UN 3,5 | B42: FINAL | C42: =IF(D42=R37,R36,S36) -> UN 3,5 | D42: =MAX(R37:S37) -> 0.8912916053
A44: OV-UN 4,5 | B44: FINALE | C44: =IF(D44=T37,T36,U36) -> UN 4,5 | D44: =MAX(T37:U37) -> 1.061185803
C46: =IF(D46=V37,V36,W36) -> UN 5,5 | D46: =MAX(W37) -> 1.05386126
A100: DISTRIBUTIE HT | C100: ECHIPA B
A101: ECHIPA A
A102: GOLURI | C102: GOLURI
A103: 0 | B103: =(EXP(-A5)) -> 0.3011942119 | C103: 0 | D103: =(EXP(-D5)) -> 0.670320046
A104: 1 | B104: =(EXP(-A5)*(A5)) -> 0.3614330543 | C104: 1 | D104: =(EXP(-D5)*(D5)) -> 0.2681280184
A105: 2 | B105: =(EXP(-A5)*(A5^2))/2 -> 0.2168598326 | C105: 2 | D105: =(EXP(-D5)*(D5^2))/2 -> 0.05362560368 | E105: GOL TOTAL DATE A | F105: =SUM(C4+C6) -> 31 | G105: GOL TOTAL DATE B | H105: =SUM(F4+F6) -> 16
A106: >2 | B106: =1-SUM(B103:B105) -> 0.1205129012 | C106: >2 | D106: =1-SUM(D103:D105) -> 0.007926331867 | E106: GOL TOTAL LUATE A | F106: =SUM(C5+C7) -> 14 | G106: GOL TOTAL UATE B | H106: =SUM(F5+F7) -> 24
A107: DISTRIBUTIE ST | E107: MGF HT | F107: =C4/C3 -> 0.7 | G107: MGF HT | H107: =F4/F3 -> 0.25
A108: ECHIPA A | C108: ECHIPA B | E108: MGS HT | F108: =C5/C3 -> 0.35 | G108: MGS HT | H108: =F5/F3 -> 0.55
A109: GOLURI | C109: GOLURI | E109: MGF ST | F109: =C6/C3 -> 0.85 | G109: MGF ST | H109: =F6/F3 -> 0.55
A110: 0 | B110: =(EXP(-A6)) -> 0.4493289641 | C110: 0 | D110: =(EXP(-D6)) -> 0.3011942119 | E110: MGS ST | F110: =C7/C3 -> 0.35 | G110: MGS ST | H110: =F7/F3 -> 0.65
A111: 1 | B111: =(EXP(-A6)*(A6)) -> 0.3594631713 | C111: 1 | D111: =(EXP(-D6)*(D6)) -> 0.3614330543 | E111: MGF TOT | F111: =F105/C3 -> 1.55 | G111: MGF TOT | H111: =H105/F3 -> 0.8
A112: 2 | B112: =(EXP(-A6)*(A6^2))/2 -> 0.1437852685 | C112: 2 | D112: =(EXP(-D6)*(D6^2))/2 -> 0.2168598326 | E112: MGS TOT | F112: =F106/C3 -> 0.7 | G112: MGS TOT | H112: =H106/F3 -> 1.2
A113: >2 | B113: =1-SUM(B110:B112) -> 0.04742259607 | C113: >2 | D113: =1-SUM(D110:D112) -> 0.1205129012
A115: DISTRIBUTIE TOTAL
A116: ECHIPA A | C116: ECHIPA B
A117: GOLURI | C117: GOLURI
A118: 0 | B118: =(EXP(-A7)) -> 0.3011942119 | C118: 0 | D118: =(EXP(-D7)) -> 0.5488116361
A119: 1 | B119: =(EXP(-A7)*(A7)) -> 0.3614330543 | C119: 1 | D119: =(EXP(-D7)*(D7)) -> 0.3292869817
A120: 2 | B120: =(EXP(-A7)*(A7^2))/2 -> 0.2168598326 | C120: 2 | D120: =(EXP(-D7)*(D7^2))/2 -> 0.0987860945
A121: 3 | B121: =(EXP(-A7)*(A7^3))/6 -> 0.08674393303 | C121: 3 | D121: =(EXP(-D7)*(D7^3))/6 -> 0.0197572189
A122: 4 | B122: =(EXP(-A7)*(A7^4))/24 -> 0.02602317991 | C122: 4 | D122: =(EXP(-D7)*(D7^4))/24 -> 0.002963582835
A123: >4 | B123: =1-SUM(B118:B122) -> 0.007745788276 | C123: >4 | D123: =1-SUM(D118:D122) -> 0.0003944860183

Sheet Clasament campionate
A1: Club America | B1: VS | C1: Pumas U.N.A.M.
A3: {MatchPrediction}
A4: Disclaimer: All above views expressed are those of the author and do not represent the views of goaloo.
A6: [1] Club America
A7: FT | B7: Matches | C7: Win | D7: Draw | E7: Loss | F7: Get | G7: Miss | H7: Pts | I7: Rank | J7: Rate
A8: Total | B8: 12 | C8: 7 | D8: 4 | E8: 1 | F8: 16 | G8: 7 | H8: 25 | I8: 1 | J8: 58.3%
A9: Home | B9: 6 | C9: 5 | D9: 1 | E9: 0 | F9: 10 | G9: 1 | H9: 16 | I9: 1 | J9: 83.3%
A10: Away | B10: 6 | C10: 2 | D10: 3 | E10: 1 | F10: 6 | G10: 6 | H10: 9 | I10: 6 | J10: 33.3%
A11: Last 6 | B11: 6 | C11: 2 | D11: 3 | E11: 1 | F11: 7 | G11: 5 | H11: 9 | J11: 33.3%
A12: HT | B12: Matches | C12: Win | D12: Draw | E12: Loss | F12: Get | G12: Miss | H12: Pts | I12: Rank | J12: Rate
A13: Total | B13: 12 | C13: 4 | D13: 7 | E13: 1 | F13: 8 | G13: 5 | H13: 19 | I13: 3 | J13: 33.3%
A14: Home | B14: 6 | C14: 4 | D14: 2 | E14: 0 | F14: 4 | G14: 0 | H14: 14 | I14: 1 | J14: 66.7%
A15: Away | B15: 6 | C15: 0 | D15: 5 | E15: 1 | F15: 4 | G15: 5 | H15: 5 | I15: 12 | J15: 0.0%
A16: Last 6 | B16: 6 | C16: 2 | D16: 3 | E16: 1 | F16: 5 | G16: 4 | H16: 9 | J16: 33.3%
A18: [17] Pumas U.N.A.M.
A19: FT | B19: Matches | C19: Win | D19: Draw | E19: Loss | F19: Get | G19: Miss | H19: Pts | I19: Rank | J19: Rate
A20: Total | B20: 11 | C20: 1 | D20: 5 | E20: 5 | F20: 6 | G20: 14 | H20: 8 | I20: 17 | J20: 9.1%
A21: Home | B21: 5 | C21: 1 | D21: 3 | E21: 1 | F21: 3 | G21: 3 | H21: 6 | I21: 15 | J21: 20.0%
A22: Away | B22: 6 | C22: 0 | D22: 2 | E22: 4 | F22: 3 | G22: 11 | H22: 2 | I22: 17 | J22: 0.0%
A23: Last 6 | B23: 6 | C23: 1 | D23: 3 | E23: 2 | F23: 5 | G23: 6 | H23: 6 | J23: 16.7%
A24: HT | B24: Matches | C24: Win | D24: Draw | E24: Loss | F24: Get | G24: Miss | H24: Pts | I24: Rank | J24: Rate
A25: Total | B25: 11 | C25: 0 | D25: 6 | E25: 5 | F25: 2 | G25: 7 | H25: 6 | I25: 18 | J25: 0.0%
A26: Home | B26: 5 | C26: 0 | D26: 4 | E26: 1 | F26: 1 | G26: 2 | H26: 4 | I26: 18 | J26: 0.0%
A27: Away | B27: 6 | C27: 0 | D27: 2 | E27: 4 | F27: 1 | G27: 5 | H27: 2 | I27: 18 | J27: 0.0%
A28: Last 6 | B28: 6 | C28: 0 | D28: 4 | E28: 2 | F28: 1 | G28: 3 | H28: 4 | J28: 0.0%
A30: H-A Same MEX D1 MGNP INT CF
A31: League/Cup | B31: Date | C31: Home | D31: Score | E31: H T | F31: Corner | G31: Away | N31: W/L | O31: Odds | P31: O/U
H32: HW | I32: D | J32: AW | K32: H | L32: Odds | M32: A
A33: MEX D1 | C33: Club America | D33: 2-0 | E33: 1-0 | F33: 2-4 | G33: Pumas U.N.A.M. | N33: W
A34: MEX D1 | C34: Pumas U.N.A.M. | D34: 0-1 | E34: 0-0 | F34: 6-10 | G34: Club America | N34: W
A35: MEX D1 | C35: Club America | D35: 2-2 | E35: 1-1 | F35: 3-5 | G35: Pumas U.N.A.M. | N35: D
A36: MGNP | C36: Pumas U.N.A.M. | D36: 0-0 | E36: 0-0 | F36: 5-5 | G36: Club America | N36: D
A37: MEX D1 | C37: Pumas U.N.A.M. | D37: 3-3 | E37: 1-1 | F37: 4-7 | G37: Club America | N37: D
A38: MEX D1 | C38: Club America | D38: 1-1 | E38: 0-0 | F38: 4-3 | G38: Pumas U.N.A.M. | N38: D
A39: INT CF | C39: Club America | D39: 0-3 | E39: 0-1 | F39: 2-3 | G39: Pumas U.N.A.M. | N39: L
A40: MEX D1 | C40: Pumas U.N.A.M. | D40: 1-0 | E40: 0-0 | F40: 7-2 | G40: Club America | N40: L
A41: MEX D1 | C41: Club America | D41: 6-1 | E41: 3-1 | F41: 7-4 | G41: Pumas U.N.A.M. | N41: W
A42: MEX D1 | C42: Pumas U.N.A.M. | D42: 1-1 | E42: 0-1 | F42: 4-0 | G42: Club America | N42: D
A45: Club America
A46: H-A Same MEX D1 CNCF CHL INT CF
A47: League | B47: Date | C47: Home | D47: Score | E47: H T | F47: Corner | G47: Away | N47: W/L | O47: AH | P47: O/U
H48: HW | I48: D | J48: AW | K48: H | L48: AH | M48: A
A49: MEX D1 | C49: Club America | D49: 2-0 | E49: 1-0 | F49: 2-4 | G49: Pumas U.N.A.M. | N49: W
A50: MEX D1 | C50: Pachuca | D50: 1-1 | E50: 1-1 | F50: 3-4 | G50: Club America | N50: D
A51: MEX D1 | C51: Club America | D51: 0-0 | E51: 0-0 | F51: 9-3 | G51: Chivas Guadalajara | N51: D
A52: MEX D1 | C52: 1Toluca | D52: 3-1 | E52: 2-1 | F52: 4-5 | G52: Club America1 | N52: L
A53: CNCF CHL | C53: Philadelphia Union | D53: 0-2 | E53: 0-0 | F53: 7-4 | G53: Club America | N53: W
A54: MEX D1 | C54: Club America | D54: 2-0 | E54: 1-0 | F54: 7-0 | G54: Mazatlan FC | N54: W
A55: MEX D1 | C55: Club Leon | D55: 1-1 | E55: 1-1 | F55: 7-3 | G55: Club America1 | N55: D
A56: MEX D1 | C56: Club America | D56: 2-0 | E56: 0-0 | F56: 3-2 | G56: Club Tijuana1 | N56: W
A57: MEX D1 | C57: 1FC Juarez | D57: 1-2 | E57: 1-1 | F57: 1-5 | G57: Club America | N57: W
A58: MEX D1 | C58: Atlas | D58: 0-1 | E58: 0-0 | F58: 1-4 | G58: Club America1 | N58: W
A59: CNCF CHL | C59: Club America | D59: 2-0 | E59: 1-0 | F59: 9-1 | G59: Philadelphia Union | N59: W
A60: MEX D1 | C60: Club America | D60: 2-0 | E60: 1-0 | F60: 3-5 | G60: Puebla | N60: W
A61: MEX D1 | C61: Club America | D61: 2-1 | E61: 1-0 | F61: 3-4 | G61: Necaxa | N61: W
A62: MEX D1 | C62: Queretaro FC | D62: 0-0 | E62: 0-0 | F62: 0-8 | G62: Club America | N62: D
A63: INT CF | C63: Tigres UANL | D63: 1-1 | E63: 0-0 | F63: 6-5 | G63: Club America | N63: D
A64: INT CF | C64: Atlas(N) | D64: 0-1 | E64: 0-0 | F64: 4-5 | G64: Club America | N64: W
A65: INT CF | C65: 1Santos Laguna(N) | D65: 0-1 | E65: 0-1 | F65: 2-5 | G65: Club America | N65: W
A66: MEX D1 | C66: Club America | D66: 4-2 | E66: 2-1 | F66: 9-3 | G66: Pachuca | N66: W
A67: MEX D1 | C67: Pachuca | D67: 3-1 | E67: 1-1 | F67: 3-5 | G67: Club America1 | N67: L
A68: CNCF CHL | C68: Club America | D68: 3-1 | E68: 1-0 | F68: 2-4 | G68: Portland Timbers | N68: W
A69: Last 20 matches, Win rate：65.0% AH win rate：0.0% Over 2.5 rate：0.0% Odd rate：25.0%
A71: Pumas U.N.A.M.
A72: H-A Same MEX D1 CONCACAF LC INT CF
A73: League | B73: Date | C73: Home | D73: Score | E73: H T | F73: Corner | G73: Away | N73: W/L | O73: AH | P73: O/U
H74: HW | I74: D | J74: AW | K74: H | L74: AH | M74: A
A75: MEX D1 | C75: Club America | D75: 2-0 | E75: 1-0 | F75: 2-4 | G75: Pumas U.N.A.M. | N75: L
A76: MEX D1 | C76: Tigres UANL | D76: 0-0 | E76: 0-0 | F76: 5-4 | G76: Pumas U.N.A.M. | N76: D
A77: MEX D1 | C77: Mazatlan FC | D77: 2-2 | E77: 1-0 | F77: 1-7 | G77: Pumas U.N.A.M. | N77: D
A78: CONCACAF LC | C78: Club Leon(N) | D78: 2-0 | E78: 1-0 | F78: 5-0 | G78: Pumas U.N.A.M.1 | N78: L
A79: MEX D1 | C79: Pumas U.N.A.M. | D79: 0-0 | E79: 0-0 | F79: 4-4 | G79: Chivas Guadalajara | N79: D
A80: MEX D1 | C80: Toluca | D80: 2-1 | E80: 1-1 | F80: 5-2 | G80: Pumas U.N.A.M.3 | N80: L
A81: MEX D1 | C81: Pumas U.N.A.M. | D81: 2-0 | E81: 0-0 | F81: 8-4 | G81: Puebla | N81: W
A82: MEX D1 | C82: Necaxa | D82: 3-0 | E82: 1-0 | F82: 3-8 | G82: Pumas U.N.A.M. | N82: L
A83: MEX D1 | C83: 1Pumas U.N.A.M. | D83: 0-0 | E83: 0-0 | F83: 2-6 | G83: Queretaro FC | N83: D
A84: CONCACAF LC | C84: New York City Football Club | D84: 1-1 | E84: 0-0 | F84: 10-5 | G84: Pumas U.N.A.M. | N84: D
A85: MEX D1 | C85: Pumas U.N.A.M. | D85: 1-3 | E85: 1-2 | F85: 5-0 | G85: Atletico San Luis | N85: L
A86: MEX D1 | C86: Monterrey | D86: 2-0 | E86: 1-0 | F86: 1-3 | G86: Pumas U.N.A.M. | N86: L
A87: INT CF | C87: Everton(N) | D87: 1-0 | E87: 1-0 | F87: 2-5 | G87: Pumas U.N.A.M. | N87: L
A88: MEX D1 | C88: Pumas U.N.A.M. | D88: 0-0 | E88: 0-0 | F88: 2-7 | G88: Atlas | N88: D
A89: INT CF | C89: Pumas U.N.A.M.(N) | D89: 2-2 | E89: 0-1 | F89: 6-3 | G89: Queretaro FC | N89: D
A90: INT CF | C90: San Antonio | D90: 2-4 | E90: 2-1 | F90: 5-14 | G90: Pumas U.N.A.M. | N90: W
A91: INT CF | C91: Monarcas Morelia | D91: 1-3 | E91: 0-1 | F91: 2-1 | G91: Pumas U.N.A.M. | N91: W
A92: MEX D1 | C92: Pumas U.N.A.M. | D92: 0-1 | E92: 0-0 | F92: 6-10 | G92: Club America | N92: L
A93: MEX D1 | C93: Puebla | D93: 0-0 | E93: 0-0 | F93: 10-3 | G93: Pumas U.N.A.M. | N93: D
A94: MEX D1 | C94: Pumas U.N.A.M. | D94: 0-0 | E94: 0-0 | F94: 2-2 | G94: Tigres UANL | N94: D
A95: Last 20 matches, Win rate：15.0% AH win rate：0.0% Over 2.5 rate：0.0% Odd rate：20.0%
A97: Team | B97: Get | C97: Miss | D97: Diff | E97: Avg Get | F97: W% | G97: D% | H97: L% | I97: H/A | J97: Get | K97: Miss | L97: Diff | M97: Avg Get | N97: W% | O97: D% | P97: L%
A98: Club America | I98: Home
A99: Pumas U.N.A.M. | I99: Away
A101: Club America
A102: FT | C102: Handicap | H102: Over/Under
B103: Match | C103: W | D103: D | E103: L | F103: Odds% | G103: Details | H103: O | I103: O% | J103: U | K103: U% | L103: Details
A104: Total | B104: 12 | C104: 6 | D104: 3 | E104: 3 | F104: 0.5 | G104: View | H104: 3 | I104: 0.25 | J104: 9 | K104: 0.75 | L104: View
A105: Home | B105: 6 | C105: 4 | D105: 1 | E105: 1 | F105: 66.7% | G105: View | H105: 1 | I105: 16.7% | J105: 5 | K105: 83.3% | L105: View
A106: Away | B106: 6 | C106: 2 | D106: 2 | E106: 2 | F106: 33.3% | G106: View | H106: 2 | I106: 33.3% | J106: 4 | K106: 66.7% | L106: View
A107: Last 6 | B107: 6 | C107: W D L L W D | F107: 33.3% | G107: View | H107: U U U O U U | L107: View
A109: Pumas U.N.A.M.
A110: FT | C110: Handicap | H110: Over/Under
B111: Match | C111: W | D111: D | E111: L | F111: Odds% | G111: Details | H111: O | I111: O% | J111: U | K111: U% | L111: Details
A112: Total | B112: 11 | C112: 3 | D112: 1 | E112: 7 | F112: 27.3% | G112: View | H112: 4 | I112: 36.4% | J112: 7 | K112: 63.6% | L112: View
A113: Home | B113: 5 | C113: 1 | D113: 1 | E113: 3 | F113: 0.2 | G113: View | H113: 1 | I113: 0.2 | J113: 4 | K113: 0.8 | L113: View
A114: Away | B114: 6 | C114: 2 | D114: 0 | E114: 4 | F114: 33.3% | G114: View | H114: 3 | I114: 0.5 | J114: 3 | K114: 0.5 | L114: View
A115: Last 6 | B115: 6 | C115: L W W D L W | F115: 50.0% | G115: View | H115: U U O U O U | L115: View
A117: Club America
A118: HT | C118: Handicap | H118: Over/Under
B119: Match | C119: W | D119: D | E119: L | F119: Odds% | G119: Details | H119: O | I119: O% | J119: U | K119: U% | L119: Details
A120: Total | B120: 12 | C120: 4 | D120: 3 | E120: 5 | F120: 33.3% | G120: View | H120: 4 | I120: 33.3% | J120: 4 | K120: 33.3% | L120: View
A121: Home | B121: 6 | C121: 4 | D121: 0 | E121: 2 | F121: 66.7% | G121: View | H121: 0 | I121: 0 | J121: 2 | K121: 33.3% | L121: View
A122: Away | B122: 6 | C122: 0 | D122: 3 | E122: 3 | F122: 0 | G122: View | H122: 4 | I122: 66.7% | J122: 2 | K122: 33.3% | L122: View
A123: Last 6 | B123: 6 | C123: W D L L W D | F123: 33.3% | G123: View | H123: D O U O D O | L123: View
A125: Pumas U.N.A.M.
A126: HT | C126: Handicap | H126: Over/Under
B127: Match | C127: W | D127: D | E127: L | F127: Odds% | G127: Details | H127: O | I127: O% | J127: U | K127: U% | L127: Details
A128: Total | B128: 11 | C128: 2 | D128: 3 | E128: 6 | F128: 18.2% | G128: View | H128: 2 | I128: 18.2% | J128: 5 | K128: 45.5% | L128: View
A129: Home | B129: 5 | C129: 0 | D129: 3 | E129: 2 | F129: 0 | G129: View | H129: 1 | I129: 0.2 | J129: 4 | K129: 0.8 | L129: View
A130: Away | B130: 6 | C130: 2 | D130: 0 | E130: 4 | F130: 33.3% | G130: View | H130: 1 | I130: 16.7% | J130: 1 | K130: 16.7% | L130: View
A131: Last 6 | B131: 6 | C131: L W L D W D | F131: 33.3% | G131: View | H131: D U D U O U | L131: View
A133: Club America
A134: Match | B134: Time | C134: Home | D134: First Odds | E134: Away | F134: Score | G134: Odds
A141: Club America
A142: Match | B142: Time | C142: Home | D142: First Odds | E142: Away | F142: Score | G142: O/U
A149: Pumas U.N.A.M.
A150: Match | B150: Time | C150: Home | D150: First Odds | E150: Away | F150: Score | G150: Odds
A157: Pumas U.N.A.M.
A158: Match | B158: Time | C158: Home | D158: First Odds | E158: Away | F158: Score | G158: O/U
B165: 0 | C165: 1 | D165: 2 | E165: 3 | F165: 4+ | G165: 1st Half | H165: 2nd Half
A166: Total | B166: 1 | C166: 2 | D166: 0 | E166: 0 | F166: 0 | G166: 1 | H166: 1
A167: Home | B167: 1 | C167: 0 | D167: 0 | E167: 0 | F167: 0 | G167: 0 | H167: 0
A168: Away | B168: 0 | C168: 2 | D168: 0 | E168: 0 | F168: 0 | G168: 1 | H168: 1
B170: 0 | C170: 1 | D170: 2 | E170: 3 | F170: 4+ | G170: 1st Half | H170: 2nd Half
A171: Total | B171: 1 | C171: 0 | D171: 1 | E171: 1 | F171: 1 | G171: 2 | H171: 7
A172: Home | B172: 0 | C172: 0 | D172: 1 | E172: 0 | F172: 0 | G172: 0 | H172: 2
A173: Away | B173: 1 | C173: 0 | D173: 0 | E173: 1 | F173: 1 | G173: 2 | H173: 5
A175: HT | B175: Win | C175: Win | D175: Win | E175: Draw | F175: Draw | G175: Draw | H175: Loss | I175: Loss | J175: Loss
A176: FT | B176: Win | C176: Draw | D176: Loss | E176: Win | F176: Draw | G176: Loss | H176: Win | I176: Draw | J176: Loss
A177: Total | B177: 1 | C177: 0 | D177: 0 | E177: 1 | F177: 0 | G177: 0 | H177: 0 | I177: 0 | J177: 1
A178: Home | B178: 0 | C178: 0 | D178: 0 | E178: 0 | F178: 0 | G178: 0 | H178: 0 | I178: 0 | J178: 1
A179: Away | B179: 1 | C179: 0 | D179: 0 | E179: 1 | F179: 0 | G179: 0 | H179: 0 | I179: 0 | J179: 0
A181: HT | B181: Win | C181: Win | D181: Win | E181: Draw | F181: Draw | G181: Draw | H181: Loss | I181: Loss | J181: Loss
A182: FT | B182: Win | C182: Draw | D182: Loss | E182: Win | F182: Draw | G182: Loss | H182: Win | I182: Draw | J182: Loss
A183: Total | B183: 1 | C183: 0 | D183: 0 | E183: 0 | F183: 0 | G183: 0 | H183: 1 | I183: 1 | J183: 1
A184: Home | B184: 0 | C184: 0 | D184: 0 | E184: 0 | F184: 0 | G184: 0 | H184: 0 | I184: 1 | J184: 0
A185: Away | B185: 1 | C185: 0 | D185: 0 | E185: 0 | F185: 0 | G185: 0 | H185: 1 | I185: 0 | J185: 1
B187: Over | C187: Under | D187: Draw | E187: Odd | F187: Even
A188: Total | B188: 0(0.0%) | C188: 3(100.0%) | D188: 0(0.0%) | E188: 2(66.7%) | F188: 1(33.3%)
A189: Home | B189: 0(0.0%) | C189: 1(33.3%) | D189: 0(0.0%) | E189: 0(0.0%) | F189: 1(33.3%)
A190: Away | B190: 0(0.0%) | C190: 2(66.7%) | D190: 0(0.0%) | E190: 2(66.7%) | F190: 0(0.0%)
B192: Over | C192: Under | D192: Draw | E192: Odd | F192: Even
A193: Total | B193: 3(75.0%) | C193: 1(25.0%) | D193: 0(0.0%) | E193: 1(25.0%) | F193: 3(75.0%)
A194: Home | B194: 1(25.0%) | C194: 0(0.0%) | D194: 0(0.0%) | E194: 0(0.0%) | F194: 1(25.0%)
A195: Away | B195: 2(50.0%) | C195: 1(25.0%) | D195: 0(0.0%) | E195: 1(25.0%) | F195: 2(50.0%)
B197: 1-10 | C197: 11-20 | D197: 21-30 | E197: 31-40 | F197: 41-45 | G197: 46-50 | H197: 51-60 | I197: 61-70 | J197: 71-80 | K197: 81-90+
A198: Total | B198: 0 | C198: 1 | D198: 0 | E198: 0 | F198: 0 | G198: 1 | H198: 0 | I198: 0 | J198: 1 | K198: 0
A199: Home | B199: 0 | C199: 0 | D199: 0 | E199: 0 | F199: 0 | G199: 0 | H199: 0 | I199: 0 | J199: 0 | K199: 0
A200: Away | B200: 0 | C200: 1 | D200: 0 | E200: 0 | F200: 0 | G200: 1 | H200: 0 | I200: 0 | J200: 1 | K200: 0
A201: Time Statistics of the 1st Goal
A202: Total | B202: 0 | C202: 1 | D202: 0 | E202: 0 | F202: 0 | G202: 1 | H202: 0 | I202: 0 | J202: 1 | K202: 0
A203: Home | B203: 0 | C203: 0 | D203: 0 | E203: 0 | F203: 0 | G203: 0 | H203: 0 | I203: 0 | J203: 0 | K203: 0
A204: Away | B204: 0 | C204: 1 | D204: 0 | E204: 0 | F204: 0 | G204: 1 | H204: 0 | I204: 0 | J204: 1 | K204: 0
B206: 1-10 | C206: 11-20 | D206: 21-30 | E206: 31-40 | F206: 41-45 | G206: 46-50 | H206: 51-60 | I206: 61-70 | J206: 71-80 | K206: 81-90+
A207: Total | B207: 0 | C207: 2 | D207: 0 | E207: 0 | F207: 0 | G207: 0 | H207: 0 | I207: 2 | J207: 2 | K207: 3
A208: Home | B208: 0 | C208: 0 | D208: 0 | E208: 0 | F208: 0 | G208: 0 | H208: 0 | I208: 2 | J208: 0 | K208: 0
A209: Away | B209: 0 | C209: 2 | D209: 0 | E209: 0 | F209: 0 | G209: 0 | H209: 0 | I209: 0 | J209: 2 | K209: 3
A210: Time Statistics of the 1st Goal
A211: Total | B211: 0 | C211: 2 | D211: 0 | E211: 0 | F211: 0 | G211: 0 | H211: 0 | I211: 1 | J211: 0 | K211: 0
A212: Home | B212: 0 | C212: 0 | D212: 0 | E212: 0 | F212: 0 | G212: 0 | H212: 0 | I212: 1 | J212: 0 | K212: 0
A213: Away | B213: 0 | C213: 2 | D213: 0 | E213: 0 | F213: 0 | G213: 0 | H213: 0 | I213: 0 | J213: 0 | K213: 0
A215: League/Cup | B215: Date | C215: Type | D215: VS | E215: Near
A216: MEX D1 | C216: Away | D216: Atletico San Luis | E216: 8 Days
A217: MEX D1 | C217: Home | D217: Santos Laguna | E217: 11 Days
A218: MEX D1 | C218: Home | D218: Tigres UANL | E218: 15 Days
A220: League/Cup | B220: Date | C220: Type | D220: VS | E220: Near
A221: MEX D1 | C221: Home | D221: FC Juarez | E221: 9 Days
A222: MEX D1 | C222: Away | D222: Club Leon | E222: 12 Days
A223: MEX D1 | C223: Home | D223: Club Tijuana | E223: 16 Days

Sheet Propunerii (hidden)
A1: Home | B1: Echipe | E1: Ovensiva | F1: Defensiva | G1: Forta Atac | H1: Procentaj % | N1: Final | O1: O/U 2.5 | Q1: Finish
B2: ='Propuneri meciuri'!A4 -> 0 | E2: ='Propuneri meciuri'!T4 -> 0 | F2: ='Propuneri meciuri'!U4 -> 0 | G2: ='Propuneri meciuri'!V4 -> 0 | H2: 1 | I2: x | J2: 2 | K2: 1X | L2: 12 | M2: X2 | N2: Predictie | O2: Over | P2: Under
A3: AwaY | B3: ='Propuneri meciuri'!B4 -> 0 | E3: ='Propuneri meciuri'!W4 -> 0 | F3: ='Propuneri meciuri'!X4 -> 0 | G3: ='Propuneri meciuri'!Y4 -> 0 | H3: ='Propuneri meciuri'!C4 -> 0 | I3: ='Propuneri meciuri'!D4 -> 0 | J3: ='Propuneri meciuri'!E4 -> 0 | K3: ='Propuneri meciuri'!F4 -> 0 | L3: ='Propuneri meciuri'!H4 -> 0 | M3: ='Propuneri meciuri'!G4 -> 0 | N3: ='Propuneri meciuri'!AA4 ->  | O3: ='Propuneri meciuri'!L4 -> 0 | P3: =100%-O3 -> 1
B4: Prediction soccer | O4: % | P4: %
A5: Home | B5: Echipe | E5: Ovensiva | F5: Defensiva | G5: Forta Atac | H5: Procentaj % | N5: Final | O5: O/U 2.5 | Q5: Finish
B6: ='Propuneri meciuri'!A5 -> 0 | E6: ='Propuneri meciuri'!T5 -> 0 | F6: ='Propuneri meciuri'!U5 -> 0 | G6: ='Propuneri meciuri'!V5 -> 0 | H6: 1 | I6: x | J6: 2 | K6: 1X | L6: 12 | M6: X2 | N6: Predictie | O6: Over | P6: Under
A7: AwaY | B7: ='Propuneri meciuri'!B5 -> 0 | E7: ='Propuneri meciuri'!W5 -> 0 | F7: ='Propuneri meciuri'!X5 -> 0 | G7: ='Propuneri meciuri'!Y5 -> 0 | H7: ='Propuneri meciuri'!C5 -> 0 | I7: ='Propuneri meciuri'!D5 -> 0 | J7: ='Propuneri meciuri'!E5 -> 0 | K7: ='Propuneri meciuri'!F5 -> 0 | L7: ='Propuneri meciuri'!H5 -> 0 | M7: ='Propuneri meciuri'!G5 -> 0 | N7: ='Propuneri meciuri'!AA5 ->  | O7: ='Propuneri meciuri'!L5 -> 0 | P7: =100%-O7 -> 1
B8: Prediction soccer | O8: % | P8: %
A9: Home | B9: Echipe | E9: Ovensiva | F9: Defensiva | G9: Forta Atac | H9: Procentaj % | N9: Final | O9: O/U 2.5 | Q9: Finish
B10: ='Propuneri meciuri'!A6 -> 0 | E10: ='Propuneri meciuri'!T6 -> 0 | F10: ='Propuneri meciuri'!U6 -> 0 | G10: ='Propuneri meciuri'!V6 -> 0 | H10: 1 | I10: x | J10: 2 | K10: 1X | L10: 12 | M10: X2 | N10: Predictie | O10: Over | P10: Under
A11: AwaY | B11: ='Propuneri meciuri'!B6 -> 0 | E11: ='Propuneri meciuri'!W6 -> 0 | F11: ='Propuneri meciuri'!X6 -> 0 | G11: ='Propuneri meciuri'!Y6 -> 0 | H11: ='Propuneri meciuri'!C6 -> 0 | I11: ='Propuneri meciuri'!D6 -> 0 | J11: ='Propuneri meciuri'!E6 -> 0 | K11: ='Propuneri meciuri'!F6 -> 0 | L11: ='Propuneri meciuri'!H6 -> 0 | M11: ='Propuneri meciuri'!G6 -> 0 | N11: ='Propuneri meciuri'!AA6 ->  | O11: ='Propuneri meciuri'!L6 -> 0 | P11: =100%-O11 -> 1
B12: Prediction soccer | O12: % | P12: %
A13: Home | B13: Echipe | E13: Ovensiva | F13: Defensiva | G13: Forta Atac | H13: Procentaj % | N13: Final | O13: O/U 2.5 | Q13: Finish
B14: ='Propuneri meciuri'!A7 -> 0 | E14: ='Propuneri meciuri'!T7 -> 0 | F14: ='Propuneri meciuri'!U7 -> 0 | G14: ='Propuneri meciuri'!V7 -> 0 | H14: 1 | I14: x | J14: 2 | K14: 1X | L14: 12 | M14: X2 | N14: Predictie | O14: Over | P14: Under
A15: AwaY | B15: ='Propuneri meciuri'!B7 -> 0 | E15: ='Propuneri meciuri'!W7 -> 0 | F15: ='Propuneri meciuri'!X7 -> 0 | G15: ='Propuneri meciuri'!Y7 -> 0 | H15: ='Propuneri meciuri'!C7 -> 0 | I15: ='Propuneri meciuri'!D7 -> 0 | J15: ='Propuneri meciuri'!E7 -> 0 | K15: ='Propuneri meciuri'!F7 -> 0 | L15: ='Propuneri meciuri'!H7 -> 0 | M15: ='Propuneri meciuri'!G7 -> 0 | N15: ='Propuneri meciuri'!AA7 ->  | O15: ='Propuneri meciuri'!L7 -> 0 | P15: =100%-O15 -> 1
B16: Prediction soccer | O16: % | P16: %
A17: Home | B17: Echipe | E17: Ovensiva | F17: Defensiva | G17: Forta Atac | H17: Procentaj % | N17: Final | O17: O/U 2.5 | Q17: Finish
B18: ='Propuneri meciuri'!A8 -> 0 | E18: ='Propuneri meciuri'!T8 -> 0 | F18: ='Propuneri meciuri'!U8 -> 0 | G18: ='Propuneri meciuri'!V8 -> 0 | H18: 1 | I18: x | J18: 2 | K18: 1X | L18: 12 | M18: X2 | N18: Predictie | O18: Over | P18: Under
A19: AwaY | B19: ='Propuneri meciuri'!B8 -> 0 | E19: ='Propuneri meciuri'!W8 -> 0 | F19: ='Propuneri meciuri'!X8 -> 0 | G19: ='Propuneri meciuri'!Y8 -> 0 | H19: ='Propuneri meciuri'!C8 -> 0 | I19: ='Propuneri meciuri'!D8 -> 0 | J19: ='Propuneri meciuri'!E8 -> 0 | K19: ='Propuneri meciuri'!F8 -> 0 | L19: ='Propuneri meciuri'!H8 -> 0 | M19: ='Propuneri meciuri'!G8 -> 0 | N19: ='Propuneri meciuri'!AA8 ->  | O19: ='Propuneri meciuri'!L8 -> 0 | P19: =100%-O19 -> 1
B20: Prediction soccer | O20: % | P20: %
A21: Home | B21: Echipe | E21: Ovensiva | F21: Defensiva | G21: Forta Atac | H21: Procentaj % | N21: Final | O21: O/U 2.5 | Q21: Finish
B22: ='Propuneri meciuri'!A9 -> 0 | E22: ='Propuneri meciuri'!T9 -> 0 | F22: ='Propuneri meciuri'!U9 -> 0 | G22: ='Propuneri meciuri'!V9 -> 0 | H22: 1 | I22: x | J22: 2 | K22: 1X | L22: 12 | M22: X2 | N22: Predictie | O22: Over | P22: Under
A23: AwaY | B23: ='Propuneri meciuri'!B9 -> 0 | E23: ='Propuneri meciuri'!W9 -> 0 | F23: ='Propuneri meciuri'!X9 -> 0 | G23: ='Propuneri meciuri'!Y9 -> 0 | H23: ='Propuneri meciuri'!C9 -> 0 | I23: ='Propuneri meciuri'!D9 -> 0 | J23: ='Propuneri meciuri'!E9 -> 0 | K23: ='Propuneri meciuri'!F9 -> 0 | L23: ='Propuneri meciuri'!H9 -> 0 | M23: ='Propuneri meciuri'!G9 -> 0 | N23: ='Propuneri meciuri'!AA9 ->  | O23: ='Propuneri meciuri'!L9 -> 0 | P23: =100%-O23 -> 1
B24: Prediction soccer | O24: % | P24: %
A25: Home | B25: Echipe | E25: Ovensiva | F25: Defensiva | G25: Forta Atac | H25: Procentaj % | N25: Final | O25: O/U 2.5 | Q25: Finish
B26: ='Propuneri meciuri'!A10 -> 0 | E26: ='Propuneri meciuri'!T10 -> 0 | F26: ='Propuneri meciuri'!U10 -> 0 | G26: ='Propuneri meciuri'!V10 -> 0 | H26: 1 | I26: x | J26: 2 | K26: 1X | L26: 12 | M26: X2 | N26: Predictie | O26: Over | P26: Under
A27: AwaY | B27: ='Propuneri meciuri'!B10 -> 0 | E27: ='Propuneri meciuri'!W10 -> 0 | F27: ='Propuneri meciuri'!X10 -> 0 | G27: ='Propuneri meciuri'!Y10 -> 0 | H27: ='Propuneri meciuri'!C10 -> 0 | I27: ='Propuneri meciuri'!D10 -> 0 | J27: ='Propuneri meciuri'!E10 -> 0 | K27: ='Propuneri meciuri'!F10 -> 0 | L27: ='Propuneri meciuri'!H10 -> 0 | M27: ='Propuneri meciuri'!G10 -> 0 | N27: ='Propuneri meciuri'!AA10 ->  | O27: ='Propuneri meciuri'!L10 -> 0 | P27: =100%-O27 -> 1
B28: Prediction soccer | O28: % | P28: %
A29: Home | B29: Echipe | E29: Ovensiva | F29: Defensiva | G29: Forta Atac | H29: Procentaj % | N29: Final | O29: O/U 2.5 | Q29: Finish
B30: ='Propuneri meciuri'!A11 -> 0 | E30: ='Propuneri meciuri'!T10 -> 0 | F30: ='Propuneri meciuri'!U10 -> 0 | G30: ='Propuneri meciuri'!V10 -> 0 | H30: 1 | I30: x | J30: 2 | K30: 1X | L30: 12 | M30: X2 | N30: Predictie | O30: Over | P30: Under
A31: AwaY | B31: ='Propuneri meciuri'!B10 -> 0 | E31: ='Propuneri meciuri'!W10 -> 0 | F31: ='Propuneri meciuri'!X10 -> 0 | G31: ='Propuneri meciuri'!Y10 -> 0 | H31: ='Propuneri meciuri'!C10 -> 0 | I31: ='Propuneri meciuri'!D10 -> 0 | J31: ='Propuneri meciuri'!E10 -> 0 | K31: ='Propuneri meciuri'!F10 -> 0 | L31: ='Propuneri meciuri'!H10 -> 0 | M31: ='Propuneri meciuri'!G10 -> 0 | N31: ='Propuneri meciuri'!AA10 ->  | O31: ='Propuneri meciuri'!L10 -> 0 | P31: =100%-O31 -> 1
B32: Prediction soccer | O32: % | P32: %
A33: Home | B33: Echipe | E33: Ovensiva | F33: Defensiva | G33: Forta Atac | H33: Procentaj % | N33: Final | O33: O/U 2.5 | Q33: Finish
B34: ='Propuneri meciuri'!A11 -> 0 | E34: ='Propuneri meciuri'!T11 -> 0 | F34: ='Propuneri meciuri'!U11 -> 0 | G34: ='Propuneri meciuri'!V11 -> 0 | H34: 1 | I34: x | J34: 2 | K34: 1X | L34: 12 | M34: X2 | N34: Predictie | O34: Over | P34: Under
A35: AwaY | B35: ='Propuneri meciuri'!B11 -> 0 | E35: ='Propuneri meciuri'!W11 -> 0 | F35: ='Propuneri meciuri'!X11 -> 0 | G35: ='Propuneri meciuri'!Y11 -> 0 | H35: ='Propuneri meciuri'!C11 -> 0 | I35: ='Propuneri meciuri'!D11 -> 0 | J35: ='Propuneri meciuri'!E11 -> 0 | K35: ='Propuneri meciuri'!F11 -> 0 | L35: ='Propuneri meciuri'!H11 -> 0 | M35: ='Propuneri meciuri'!G11 -> 0 | N35: ='Propuneri meciuri'!AA11 ->  | O35: ='Propuneri meciuri'!L11 -> 0 | P35: =100%-O35 -> 1
B36: Prediction soccer | O36: % | P36: %
A37: Home | B37: Echipe | E37: Ovensiva | F37: Defensiva | G37: Forta Atac | H37: Procentaj % | N37: Final | O37: O/U 2.5 | Q37: Finish
B38: ='Propuneri meciuri'!A12 -> 0 | E38: ='Propuneri meciuri'!T12 -> 0 | F38: ='Propuneri meciuri'!U12 -> 0 | G38: ='Propuneri meciuri'!V12 -> 0 | H38: 1 | I38: x | J38: 2 | K38: 1X | L38: 12 | M38: X2 | N38: Predictie | O38: Over | P38: Under
A39: AwaY | B39: ='Propuneri meciuri'!B12 -> 0 | E39: ='Propuneri meciuri'!W12 -> 0 | F39: ='Propuneri meciuri'!X12 -> 0 | G39: ='Propuneri meciuri'!Y12 -> 0 | H39: ='Propuneri meciuri'!C12 -> 0 | I39: ='Propuneri meciuri'!D12 -> 0 | J39: ='Propuneri meciuri'!E12 -> 0 | K39: ='Propuneri meciuri'!F12 -> 0 | L39: ='Propuneri meciuri'!H12 -> 0 | M39: ='Propuneri meciuri'!G12 -> 0 | N39: ='Propuneri meciuri'!AA12 ->  | O39: ='Propuneri meciuri'!L12 -> 0 | P39: =100%-O39 -> 1
B40: Prediction soccer | O40: % | P40: %
A41: Home | B41: Echipe | E41: Ovensiva | F41: Defensiva | G41: Forta Atac | H41: Procentaj % | N41: Final | O41: O/U 2.5 | Q41: Finish
B42: reeal zaragoza | H42: 1 | I42: x | J42: 2 | K42: 1X | L42: 12 | M42: X2 | N42: Predictie | O42: Over | P42: Under
A43: AwaY | B43: barcelona | H43: 1 | I43: 2 | J43: 3 | K43: 1 | L43: 2 | M43: 3
B44: Prediction soccer | O44: % | P44: %
A45: Home | B45: Echipe | E45: Ovensiva | F45: Defensiva | G45: Forta Atac | H45: Procentaj % | N45: Final | O45: O/U 2.5 | Q45: Finish
B46: reeal zaragoza | H46: 1 | I46: x | J46: 2 | K46: 1X | L46: 12 | M46: X2 | N46: Predictie | O46: Over | P46: Under
A47: AwaY | B47: barcelona | H47: 1 | I47: 2 | J47: 3 | K47: 1 | L47: 2 | M47: 3
B48: Prediction soccer | O48: % | P48: %
A49: Home | B49: Echipe | E49: Ovensiva | F49: Defensiva | G49: Forta Atac | H49: Procentaj % | N49: Final | O49: O/U 2.5 | Q49: Finish
B50: reeal zaragoza | H50: 1 | I50: x | J50: 2 | K50: 1X | L50: 12 | M50: X2 | N50: Predictie | O50: Over | P50: Under
A51: AwaY | B51: barcelona | H51: 1 | I51: 2 | J51: 3 | K51: 1 | L51: 2 | M51: 3 | O51: 3 | P51: 3
B52: Prediction soccer | O52: % | P52: %
A53: Home | B53: Echipe | E53: Ovensiva | F53: Defensiva | G53: Forta Atac | H53: Procentaj % | N53: Final | O53: O/U 2.5 | Q53: Finish
B54: reeal zaragoza | H54: 1 | I54: x | J54: 2 | K54: 1X | L54: 12 | M54: X2 | N54: Predictie | O54: Over | P54: Under
A55: AwaY | B55: barcelona | H55: 1 | I55: 2 | J55: 3 | K55: 1 | L55: 2 | M55: 3
B56: Prediction soccer | O56: % | P56: %
A57: Home | B57: Echipe | E57: Ovensiva | F57: Defensiva | G57: Forta Atac | H57: Procentaj % | N57: Final | O57: O/U 2.5 | Q57: Finish
B58: reeal zaragoza | H58: 1 | I58: x | J58: 2 | K58: 1X | L58: 12 | M58: X2 | N58: Predictie | O58: Over | P58: Under
A59: AwaY | B59: barcelona | H59: 1 | I59: 2 | J59: 3 | K59: 1 | L59: 2 | M59: 3

Sheet Propuneri meciuri (hidden)
A1: Echipa A | B1: Echipa B | C1: PRONOSTIC | F1: SANSA DUBLA | I1: SOLIST | J1: DUBLA | K1: OVER 1,5 | L1: OVER 2,5 | M1: OVER 3,5 | N1: H2H | Q1: ULTIMELE 20 DE MECIURI | T1: attack | U1: defence | V1: Expected | W1: attack | X1: defence | Y1: Expected | Z1: OVER 2,5 | AA1: Predictie | AB1: Rezultate
C2: 1 | D2: X | E2: 2 | F2: 1X | G2: X2 | H2: 12 | T2: strength | U2: weakness | V2: goals | W2: strength | X2: weakness | Y2: goals | AI2: Ajax Cape Town | AJ2: =OFFSET($A$1,MATCH($AI$2,$A$1:$A$389,0)-1,1) ->  | AK2: =OFFSET($A$1,MATCH($AI$2,$A$1:$A$389,0)-1,2) ->  | AL2: =OFFSET($A$1,MATCH($AI$2,$A$1:$A$389,0)-1,3) ->  | AM2: =OFFSET($A$1,MATCH($AI$2,$A$1:$A$389,0)-1,4) ->  | AN2: =OFFSET($A$1,MATCH($AI$2,$A$1:$A$389,0)-1,5) ->  | AO2: =OFFSET($A$1,MATCH($AI$2,$A$1:$A$389,0)-1,6) ->  | AP2: =OFFSET($A$1,MATCH($AI$2,$A$1:$A$389,0)-1,7) ->  | AQ2: =OFFSET($A$1,MATCH($AI$2,$A$1:$A$389,0)-1,10) ->  | AR2: =OFFSET($A$1,MATCH($AI$2,$A$1:$A$389,0)-1,11) ->  | AS2: =OFFSET($A$1,MATCH($AI$2,$A$1:$A$389,0)-1,12) ->  | AT2: =OFFSET($A$1,MATCH($AI$2,$A$1:$A$389,0)-1,19) ->  | AU2: =OFFSET($A$1,MATCH($AI$2,$A$1:$A$389,0)-1,20) ->  | AV2: =OFFSET($A$1,MATCH($AI$2,$A$1:$A$389,0)-1,21) ->  | AW2: =games!D5 -> 1.380392157 | AX2: =games!E5 -> 1.366808511 | AY2: =games!F5 -> 2.229773884
N3: 1 | O3: X | P3: 2 | Q3: 1 | R3: X | S3: 2 | T3: 1 | U3: X | V3: 2 | W3: 1 | X3: X | Y3: 2 | AW3: =games!D6 -> Away team | AX3: =games!E6 -> Home team | AY3: =games!F6 -> 0
AA4: =IF(A4="","",IF(AND(C4-E4>23%,C4-D4>15%),"1",IF(C4>E4,"1X",IF(AND(E4-C4>23%,E4-D4>15%),"2",IF(E4>C4,"X2","X"))))) ->  | AD4: =IF(AB4="","",IF(TRIM(AC4)=TRIM(AA4),"Prins",IF(AND(AC4="X",OR(AA4="1X",AA4="X2")),"Prins",IF(AND(AA4="1X",AC4=1),"Prins",IF(AND(AA4="X2",AC4=2),"Prins","Pierdut"))))) ->  | AW4: =games!D7 -> attack | AX4: =games!E7 -> defence | AY4: =games!F7 -> Expected
AD5: =IF(AB5="","",IF(TRIM(AC5)=TRIM(AA5),"Prins",IF(AND(AC5="X",OR(AA5="1X",AA5="X2")),"Prins",IF(AND(AA5="1X",AC5=1),"Prins",IF(AND(AA5="X2",AC5=2),"Prins","Pierdut"))))) ->  | AW5: =games!D8 -> strength | AX5: =games!E8 -> Ddebolezza | AY5: =games!F8 -> goals
AW6: =games!D9 -> 0.5694117647 | AX6: =games!E9 -> 0.6553191489 | AY6: =games!F9 -> 0.2798598248
AA10: =IF(A10="","",IF(AND(C10-E10>23%,C10-D10>15%),"1",IF(C10>E10,"1X",IF(AND(E10-C10>23%,E10-D10>15%),"2",IF(E10>C10,"X2","X"))))) -> 
AK21: PREDICTIE | AM21: =OFFSET($A$1,MATCH($AI$2,$A$1:$A$389,0)-1,26) -> 
AK23: EVOLUTIE | AM23: 1 | AN23: X | AO23: 2
AC24: =IF(AB24="","",IF(VALUE(LEFT(AB24))>VALUE(RIGHT(AB24)),1,IF(VALUE(LEFT(AB24))<VALUE(RIGHT(AB24)),2,"X"))) -> 
AK25: PROCENTE | AM25: =AT2 ->  | AN25: =AU2 ->  | AO25: =AV2 -> 
AD39: =IF(AB39="","",IF(TRIM(AC39)=TRIM(AA39),"Prins",IF(AND(AC39="X",OR(AA39="1X",AA39="X2")),"Prins",IF(AND(AA39="1X",AC39=1),"Prins",IF(AND(AA39="X2",AC39=2),"Prins","Pierdut"))))) -> 
AD49: =IF(AB49="","",IF(TRIM(AC49)=TRIM(AA49),"Prins",IF(AND(AC49="X",OR(AA49="1X",AA49="X2")),"Prins",IF(AND(AA49="1X",AC49=1),"Prins",IF(AND(AA49="X2",AC49=2),"Prins","Pierdut"))))) -> 
AA58: =IF(A58="","",IF(AND(C58-E58>23%,C58-D58>15%),"1",IF(C58>E58,"1X",IF(AND(E58-C58>23%,E58-D58>15%),"2",IF(E58>C58,"X2","X"))))) -> 
AC59: =IF(AB59="","",IF(VALUE(LEFT(AB59))>VALUE(RIGHT(AB59)),1,IF(VALUE(LEFT(AB59))<VALUE(RIGHT(AB59)),2,"X"))) ->  | AD59: =IF(AB59="","",IF(TRIM(AC59)=TRIM(AA59),"Prins",IF(AND(AC59="X",OR(AA59="1X",AA59="X2")),"Prins",IF(AND(AA59="1X",AC59=1),"Prins",IF(AND(AA59="X2",AC59=2),"Prins","Pierdut"))))) -> 
AC120: =IF(AB120="","",IF(VALUE(LEFT(AB120))>VALUE(RIGHT(AB120)),1,IF(VALUE(LEFT(AB120))<VALUE(RIGHT(AB120)),2,"X"))) ->  | AD120: =IF(AB120="","",IF(TRIM(AC120)=TRIM(AA120),"Prins",IF(AND(AC120="X",OR(AA120="1X",AA120="X2")),"Prins",IF(AND(AA120="1X",AC120=1),"Prins",IF(AND(AA120="X2",AC120=2),"Prins","Pierdut"))))) -> 
AA122: =IF(A122="","",IF(AND(C122-E122>23%,C122-D122>15%),"1",IF(C122>E122,"1X",IF(AND(E122-C122>23%,E122-D122>15%),"2",IF(E122>C122,"X2","X"))))) -> 
AC184: =IF(AB184="","",IF(VALUE(LEFT(AB184))>VALUE(RIGHT(AB184)),1,IF(VALUE(LEFT(AB184))<VALUE(RIGHT(AB184)),2,"X"))) ->  | AD184: =IF(AB184="","",IF(TRIM(AC184)=TRIM(AA184),"Prins",IF(AND(AC184="X",OR(AA184="1X",AA184="X2")),"Prins",IF(AND(AA184="1X",AC184=1),"Prins",IF(AND(AA184="X2",AC184=2),"Prins","Pierdut"))))) -> 
AA186: =IF(A186="","",IF(AND(C186-E186>23%,C186-D186>15%),"1",IF(C186>E186,"1X",IF(AND(E186-C186>23%,E186-D186>15%),"2",IF(E186>C186,"X2","X"))))) -> 
AC248: =IF(AB248="","",IF(VALUE(LEFT(AB248))>VALUE(RIGHT(AB248)),1,IF(VALUE(LEFT(AB248))<VALUE(RIGHT(AB248)),2,"X"))) ->  | AD248: =IF(AB248="","",IF(TRIM(AC248)=TRIM(AA248),"Prins",IF(AND(AC248="X",OR(AA248="1X",AA248="X2")),"Prins",IF(AND(AA248="1X",AC248=1),"Prins",IF(AND(AA248="X2",AC248=2),"Prins","Pierdut"))))) -> 
AA250: =IF(A250="","",IF(AND(C250-E250>23%,C250-D250>15%),"1",IF(C250>E250,"1X",IF(AND(E250-C250>23%,E250-D250>15%),"2",IF(E250>C250,"X2","X"))))) -> 
AC312: =IF(AB312="","",IF(VALUE(LEFT(AB312))>VALUE(RIGHT(AB312)),1,IF(VALUE(LEFT(AB312))<VALUE(RIGHT(AB312)),2,"X"))) ->  | AD312: =IF(AB312="","",IF(TRIM(AC312)=TRIM(AA312),"Prins",IF(AND(AC312="X",OR(AA312="1X",AA312="X2")),"Prins",IF(AND(AA312="1X",AC312=1),"Prins",IF(AND(AA312="X2",AC312=2),"Prins","Pierdut"))))) -> 
AA314: =IF(A314="","",IF(AND(C314-E314>23%,C314-D314>15%),"1",IF(C314>E314,"1X",IF(AND(E314-C314>23%,E314-D314>15%),"2",IF(E314>C314,"X2","X"))))) -> 
AC376: =IF(AB376="","",IF(VALUE(LEFT(AB376))>VALUE(RIGHT(AB376)),1,IF(VALUE(LEFT(AB376))<VALUE(RIGHT(AB376)),2,"X"))) ->  | AD376: =IF(AB376="","",IF(TRIM(AC376)=TRIM(AA376),"Prins",IF(AND(AC376="X",OR(AA376="1X",AA376="X2")),"Prins",IF(AND(AA376="1X",AC376=1),"Prins",IF(AND(AA376="X2",AC376=2),"Prins","Pierdut"))))) -> 
AA378: =IF(A378="","",IF(AND(C378-E378>23%,C378-D378>15%),"1",IF(C378>E378,"1X",IF(AND(E378-C378>23%,E378-D378>15%),"2",IF(E378>C378,"X2","X"))))) -> 
AC388: =COUNTIF(AD4:AD387,"Prins") -> 0 | AD388: =AC388/AB388 -> 
A397: Gainsborough Trinity | B397: Corby Town | C397: 0.4396772276 | D397: 0.2240908283 | E397: 0.3362319441 | F397: 0.6637680559 | G397: 0.5603227724 | H397: 0.7759091717 | I397: 1 | J397: 12 | K397: 0.8550376757 | L397: 0.6634640381 | M397: 0.4452829507 | N397: 0.6 | O397: 0.4 | P397: 0 | Q397: 0.25 | R397: 0.275 | S397: 0.475 | T397: 0.8166666667 | U397: 1.277777778 | V397: 1.937962963 | W397: 1.213333333 | X397: 0.7222222222 | Y397: 1.502222222 | Z397: 0.5639951
A398: Lowestoft Town | B398: FC United of Manchester | C398: 0.4072068902 | D398: 0.2638067652 | E398: 0.3289863446 | F398: 0.6710136554 | G398: 0.5927931098 | H398: 0.7361932348 | I398: 1 | J398: 12 | K398: 0.7293800572 | L398: 0.4773783469 | M398: 0.2603768741 | N398: 0 | O398: 0.8 | P398: 0.2 | Q398: 0.275 | R398: 0.35 | S398: 0.375 | T398: 0.8425925926 | U398: 1.296296296 | V398: 2.028463649 | W398: 1.166666667 | X398: 0.6805555556 | Y398: 0.5671296296 | Z398: 0.3278346559
A399: Solihull Moors | B399: Harrogate Town | C399: 0.5400867702 | D399: 0.2434151206 | E399: 0.2164981091 | F399: 0.7835018909 | G399: 0.4599132298 | H399: 0.7565848794 | I399: 1 | J399: 1X | K399: 0.7374058808 | L399: 0.4878282803 | M399: 0.26944788 | N399: 0.6 | O399: 0 | P399: 0.4 | Q399: 0.4 | R399: 0.25 | S399: 0.35 | T399: 1.307471264 | U399: 0.9916666667 | V399: 2.778376437 | W399: 0.6637931034 | X399: 0.9333333333 | Y399: 1.23908046 | Z399: 0.5080071891
A400: Chorley FC | B400: Alfreton Town | C400: 0.4213811537 | D400: 0.2516821337 | E400: 0.3269367126 | F400: 0.6730632874 | G400: 0.5786188463 | H400: 0.7483178663 | I400: 1 | J400: 12 | K400: 0.7674990552 | L400: 0.5285574937 | M400: 0.3062090961 | N400: 0.4 | O400: 0.6 | P400: 0 | Q400: 0.35 | R400: 0.375 | S400: 0.275 | T400: 1.166666667 | U400: 0.8888888889 | V400: 1.333333333 | W400: 0.8596491228 | X400: 1.111111111 | Y400: 1.364522417 | Z400: 0.3835360708
A401: Bath City | B401: Dartford | C401: 0.5394004577 | D401: 0.228583544 | E401: 0.2320159983 | F401: 0.7679840017 | G401: 0.4605995423 | H401: 0.771416456 | I401: 1 | J401: 12 | K401: 0.7945413069 | L401: 0.5674103262 | M401: 0.3434339425 | N401: 0.2 | O401: 0.8 | P401: 0 | Q401: 0.425 | R401: 0.3 | S401: 0.275 | T401: 1.239583333 | U401: 1.346153846 | V401: 3.337339744 | W401: 0.8506944444 | X401: 0.6282051282 | Y401: 0.7634437322 | Z401: 0.3530681492
A402: Chelmsford City | B402: Havant Waterlooville | C402: 0.647891538 | D402: 0.2087520404 | E402: 0.1433564215 | F402: 0.8566435785 | G402: 0.352108462 | H402: 0.7912479596 | I402: 1 | J402: 1X | K402: 0.7602705205 | L402: 0.5185432953 | M402: 0.2969600055 | N402: 0.2 | O402: 0.4 | P402: 0.4 | Q402: 0.35 | R402: 0.175 | S402: 0.475 | T402: 1.25 | U402: 1.195833333 | V402: 2.989583333 | W402: 0.6666666667 | X402: 0.8458333333 | Y402: 0.5638888889 | Z402: 0.4874122352
A403: Chelmsford City | B403: Havant Waterlooville | C403: 0.647891538 | D403: 0.2087520404 | E403: 0.1433564215 | F403: 0.8566435785 | G403: 0.352108462 | H403: 0.7912479596 | I403: 1 | J403: 1X | K403: 0.7602705205 | L403: 0.5185432953 | M403: 0.2969600055 | N403: 0.2 | O403: 0.4 | P403: 0.4 | Q403: 0.35 | R403: 0.175 | S403: 0.475 | T403: 1.25 | U403: 1.195833333 | V403: 2.989583333 | W403: 0.6666666667 | X403: 0.8458333333 | Y403: 0.5638888889 | Z403: 0.4874122352
A404: Sutton United | B404: Concord Rangers | C404: 0.4858929392 | D404: 0.2081532992 | E404: 0.3059537616 | F404: 0.6940462384 | G404: 0.5141070608 | H404: 0.7918467008 | I404: 1 | J404: 12 | K404: 0.8919097085 | L404: 0.7297546897 | M404: 0.5248087631 | N404: 0.2 | O404: 0.8 | P404: 0 | Q404: 0.325 | R404: 0.15 | S404: 0.525 | T404: 1.003333333 | U404: 1.12 | V404: 2.408 | W404: 1.026666667 | X404: 0.91 | Y404: 1.334666667 | Z404: 0.4824069175
A405: TPV | B405: KaPa | C405: 0.6069989238 | D405: 0.2003495252 | E405: 0.192651551 | F405: 0.807348449 | G405: 0.3930010762 | H405: 0.7996504748 | I405: 1 | J405: 1X | K405: 0.8451005735 | L405: 0.646703845 | M405: 0.4264364592 | N405: 0.6 | O405: 0.2 | P405: 0.2 | Q405: 0.4 | R405: 0.275 | S405: 0.325 | T405: 1.159090909 | U405: 1.313609467 | V405: 2.030123722 | W405: 0.8653846154 | X405: 0.6293706294 | Y405: 0.72619688 | Z405: 0.5392406333
A406: TPS Turku | B406: PS Kemi Kings | C406: 0.369822463 | D406: 0.2527955766 | E406: 0.3773819604 | F406: 0.6226180396 | G406: 0.630177537 | H406: 0.7472044234 | I406: 2 | J406: 12 | K406: 0.768921762 | L406: 0.5305463165 | M406: 0.3080625674 | N406: 0 | O406: 0.6 | P406: 0.4 | Q406: 0.325 | R406: 0.2 | S406: 0.475 | T406: 0.8615384615 | U406: 1.290322581 | V406: 2.112158809 | W406: 1.138461538 | X406: 0.7096774194 | Y406: 1.090719603 | Z406: 0.4171752074
A407: Orleans US 45 | B407: Amiens | C407: 0.4077925232 | D407: 0.4693199573 | E407: 0.1228875194 | F407: 0.8771124806 | G407: 0.5922074768 | H407: 0.5306800427 | I407: X | J407: 1X | K407: 0.7663785042 | L407: 0.06562910634 | M407: 0.01429809844 | N407: 0.2 | O407: 0.2 | P407: 0.6 | Q407: 0.35 | R407: 0.25 | S407: 0.4 | T407: 1 | U407: 1.333333333 | V407: 1 | W407: 1 | X407: 0.6666666667 | Y407: 0.1666666667 | Z407: 0.1436558298
A408: Energie Cottbus | B408: Vfr Aalen | C408: 0.3255355854 | D408: 0.3736198134 | E408: 0.3008446011 | F408: 0.6991553989 | G408: 0.6744644146 | H408: 0.6263801866 | I408: X | J408: 1X | K408: 0.5718664924 | L408: 0.1807689408 | M408: 0.06052227641 | N408: 0.2 | O408: 0.8 | P408: 0 | Q408: 0.325 | R408: 0.3 | S408: 0.375 | T408: 1.25 | U408: 0.6666666667 | V408: 0.6944444444 | W408: 0.75 | X408: 1.333333333 | Y408: 0.5 | Z408: 0.3548670424
A409: Holstein Kiel | B409: Stuttgarter Kickers | C409: 0.3508046208 | D409: 0.2597849698 | E409: 0.3894104094 | F409: 0.6105895906 | G409: 0.6491953792 | H409: 0.7402150302 | I409: 2 | J409: 12 | K409: 0.7452273455 | L409: 0.4981750745 | M409: 0.2785730558 | N409: 0 | O409: 0.8 | P409: 0.2 | Q409: 0.275 | R409: 0.3 | S409: 0.425 | T409: 1.466666667 | U409: 0.4705882353 | V409: 0.8052287582 | W409: 0.5333333333 | X409: 1.529411765 | Y409: 1.087581699 | Z409: 0.4189299188
A410: Preuben Munster | B410: Werder Bremen (Youth) | C410: 0.5295318032 | D410: 0.2617599726 | E410: 0.2087082242 | F410: 0.7912917758 | G410: 0.4704681968 | H410: 0.7382400274 | I410: 1 | J410: 1X | K410: 0.6767601071 | L410: 0.4127808613 | M410: 0.20746367 | N410: 0 | O410: 0.6 | P410: 0.4 | Q410: 0.275 | R410: 0.225 | S410: 0.5 | T410: 1.230769231 | U410: 1.411764706 | V410: 0.8687782805 | W410: 0.7692307692 | X410: 0.5882352941 | Y410: 0.754147813 | Z410: 0.38799135
A411: Wurzburger | B411: Rot-Weiss Erfurt | C411: 0.4397141754 | D411: 0.2885726013 | E411: 0.2717132233 | F411: 0.7282867767 | G411: 0.5602858246 | H411: 0.7114273987 | I411: 1 | J411: 1X | K411: 0.6372303274 | L411: 0.368335263 | M411: 0.174133272 | N411: 0.2 | O411: 0.6 | P411: 0.2 | Q411: 0.4 | R411: 0.3 | S411: 0.3 | T411: 0.6666666667 | U411: 1.6 | V411: 1.066666667 | W411: 1.333333333 | X411: 0.4 | Y411: 0.5333333333 | Z411: 0.20210669
A412: Wacker Burghausen | B412: Nurnberg (Youth) | C412: 0.5902922522 | D412: 0.1980966541 | E412: 0.2116110937 | F412: 0.7883889063 | G412: 0.4097077478 | H412: 0.8019033459 | I412: 1 | J412: 12 | K412: 0.8684505714 | L412: 0.6867906666 | M412: 0.4723310567 | N412: 0.2 | O412: 0.6 | P412: 0.2 | Q412: 0.3 | R412: 0.3 | S412: 0.4 | T412: 1.032258065 | U412: 1.333333333 | V412: 3.268817204 | W412: 0.9677419355 | X412: 0.6666666667 | Y412: 0.9677419355 | Z412: 0.4441615308
A413: Monchengladbach AM. | B413: SSVg Velbert | C413: 0.5674315766 | D413: 0.1841648171 | E413: 0.2484036063 | F413: 0.7515963937 | G413: 0.4325684234 | H413: 0.8158351829 | I413: 1 | J413: 12 | K413: 0.9275988728 | L413: 0.8015976329 | M413: 0.6213458591 | N413: 0.4 | O413: 0.4 | P413: 0.2 | Q413: 0.4 | R413: 0.3 | S413: 0.3 | T413: 1.06918239 | U413: 1.19047619 | V413: 3.5639413 | W413: 0.8490566038 | X413: 0.8333333333 | Y413: 1.768867925 | Z413: 0.6445742805
A414: Limerick FC | B414: St. Patricks Athletic | C414: 0.3708573722 | D414: 0.2170763525 | E414: 0.4120662753 | F414: 0.5879337247 | G414: 0.6291426278 | H414: 0.7829236475 | I414: 2 | J414: 12 | K414: 0.8801106374 | L414: 0.707779457 | M414: 0.4975206877 | N414: 0.4 | O414: 0.2 | P414: 0.4 | Q414: 0.275 | R414: 0.175 | S414: 0.55 | T414: 0.8717948718 | U414: 0.5714285714 | V414: 0.785573401 | W414: 1.128205128 | X414: 1.428571429 | Y414: 2.293603832 | Z414: 0.6518266618
A415: Salthill Devon Galway | B415: Longford Town | C415: 0.2968378166 | D415: 0.2427996224 | E415: 0.460362561 | F415: 0.539637439 | G415: 0.7031621834 | H415: 0.7572003776 | I415: 2 | J415: 12 | K415: 0.786532 | L415: 0.5556664882 | M415: 0.3319538608 | N415: 0.4 | O415: 0.2 | P415: 0.4 | Q415: 0.325 | R415: 0.25 | S415: 0.425 | T415: 1.068965517 | U415: 0.8791208791 | V415: 1.048182587 | W415: 0.9310344828 | X415: 1.120879121 | Y415: 1.163989856 | Z415: 0.4621581321
A416: Wexford (Youth) | B416: Cobh Ramblers | C416: 0.5563162306 | D416: 0.2210751041 | E416: 0.2226086652 | F416: 0.7773913348 | G416: 0.4436837694 | H416: 0.7789248959 | I416: 1 | J416: 12 | K416: 0.8100485953 | L416: 0.5907487788 | M416: 0.3668525268 | N416: 0.8 | O416: 0.2 | P416: 0 | Q416: 0.525 | R416: 0.175 | S416: 0.3 | T416: 1.347162083 | U416: 1.174820144 | V416: 2.661768483 | W416: 0.6684220792 | X416: 0.8069304556 | Y416: 0.9145841384 | Z416: 0.5827577369
A417: Athlone Town | B417: UC Dublin | C417: 0.2303022593 | D417: 0.2242740577 | E417: 0.545423683 | F417: 0.454576317 | G417: 0.7696977407 | H417: 0.7757259423 | I417: 2 | J417: 12 | K417: 0.8063280141 | L417: 0.5850749616 | M417: 0.361084182 | N417: 0.4 | O417: 0.4 | P417: 0.2 | Q417: 0.25 | R417: 0.2 | S417: 0.55 | T417: 0.7559991934 | U417: 0.7293310943 | V417: 1.174665749 | W417: 1.249949587 | X417: 1.258466275 | Y417: 1.787522045 | Z417: 0.5775563099
A418: Bristol Rovers | B418: Oxford United | C418: 0.3593611255 | D418: 0.281277655 | E418: 0.3593612196 | F418: 0.6406387804 | G418: 0.6406388745 | H418: 0.718722345 | I418: 2 | J418: 12 | K418: 0.6767601071 | L418: 0.4127808613 | M418: 0.20746367 | N418: 0.4 | O418: 0.4 | P418: 0.2 | Q418: 0.325 | R418: 0.275 | S418: 0.4 | T418: 0.7738095238 | U418: 1.203703704 | V418: 1.676587302 | W418: 1.25 | X418: 0.9259259259 | Y418: 1.157407407 | Z418: 0.3278346559
A419: Holbaek | B419: AB Tarnby | C419: 0.4737131051 | D419: 0.2806896114 | E419: 0.2455972835 | F419: 0.7544027165 | G419: 0.5262868949 | H419: 0.7193103886 | I419: 1 | J419: 1X | K419: 0.6474566698 | L419: 0.3795199235 | M419: 0.1822887075 | N419: 0 | O419: 0.6 | P419: 0.4 | Q419: 0.375 | R419: 0.425 | S419: 0.175 | T419: 1.333333333 | U419: 1.142857143 | V419: 1.904761905 | W419: 0.6666666667 | X419: 0.8571428571 | Y419: 0.5714285714 | Z419: 0.2287686868
A420: Dynamo Dresden | B420: Chemnitzer | C420: 0.5595588929 | D420: 0.2313675202 | E420: 0.2090735869 | F420: 0.7909264131 | G420: 0.4404411071 | H420: 0.7686324798 | I420: 1 | J420: 1X | K420: 0.7674990552 | L420: 0.5285574937 | M420: 0.3062090961 | N420: 0.4 | O420: 0.4 | P420: 0.2 | Q420: 0.4 | R420: 0.175 | S420: 0.425 | T420: 1.333333333 | U420: 0.8333333333 | V420: 2.962962963 | W420: 0.6666666667 | X420: 1.166666667 | Y420: 0.6481481481 | Z420: 0.4329017393
A421: Magdeburg | B421: VfL Osnabruck | C421: 0.4737131051 | D421: 0.2806896114 | E421: 0.2455972835 | F421: 0.7544027165 | G421: 0.5262868949 | H421: 0.7193103886 | I421: 1 | J421: 1X | K421: 0.6474566698 | L421: 0.3795199235 | M421: 0.1822887075 | N421: 0.2 | O421: 0.8 | P421: 0 | Q421: 0.45 | R421: 0.3 | S421: 0.25 | T421: 1.25 | U421: 0.9230769231 | V421: 1.923076923 | W421: 0.75 | X421: 1.076923077 | Y421: 0.8076923077 | Z421: 0.3467673345
A422: TSV Schilksee | B422: St. Pauli (Youth) | C422: 0.3254270231 | D422: 0.1996912419 | E422: 0.4748817349 | F422: 0.5251182651 | G422: 0.6745729769 | H422: 0.8003087581 | I422: 2 | J422: 12 | K422: 0.9185402306 | L422: 0.7824956824 | M422: 0.5944896747 | N422: 0 | O422: 0.6 | P422: 0.4 | Q422: 0.125 | R422: 0.5 | S422: 0.3 | T422: 0.7608695652 | U422: 0.9408602151 | V422: 1.022674147 | W422: 1.268115942 | X422: 0.9879032258 | Y422: 1.503330996 | Z422: 0.3449659114
A423: Eintracht Norderstedt | B423: Hamburger SV (Youth) | C423: 0.5199252305 | D423: 0.2016615922 | E423: 0.2784131773 | F423: 0.7215868227 | G423: 0.4800747695 | H423: 0.7983384078 | I423: 1 | J423: 12 | K423: 0.8988226029 | L423: 0.7430029255 | M423: 0.5417358423 | N423: 0.6 | O423: 0.2 | P423: 0.2 | Q423: 0.425 | R423: 0.175 | S423: 0.4 | T423: 1.28 | U423: 1.2 | V423: 2.56 | W423: 0.72 | X423: 0.8 | Y423: 1.44 | Z423: 0.6200962589
A424: ETSV Weiche Flensburg | B424: Eintr. Braunschweig (Youth) | C424: 0.603512157 | D424: 0.2064677172 | E424: 0.1900201258 | F424: 0.8099798742 | G424: 0.396487843 | H424: 0.7935322828 | I424: 1 | J424: 1X | K424: 0.824400652 | L424: 0.6130961033 | M424: 0.390052413 | N424: 0.8 | O424: 0.2 | P424: 0 | Q424: 0.425 | R424: 0.225 | S424: 0.35 | T424: 1.333333333 | U424: 0.8333333333 | V424: 3.333333333 | W424: 0.6666666667 | X424: 1.25 | Y424: 0.8333333333 | Z424: 0.4621581321
A425: Naestved | B425: Roskilde | C425: 0.4139656734 | D425: 0.334088999 | E425: 0.2519453276 | F425: 0.7480546724 | G425: 0.5860343266 | H425: 0.665911001 | I425: 1 | J425: 1X | K425: 0.5093380562 | L425: 0.2449782076 | M425: 0.09443996051 | N425: 0.4 | O425: 0 | P425: 0.6 | Q425: 0.525 | R425: 0.05 | S425: 0.425 | T425: 0.8 | U425: 0.7692307692 | V425: 0.9230769231 | W425: 1.2 | X425: 1.230769231 | Y425: 0.2461538462 | Z425: 0.3512686307
A426: FC Rosengard | B426: Hassleholms IF | C426: 0.2238639913 | D426: 0.2629972655 | E426: 0.5131387432 | F426: 0.4868612568 | G426: 0.7761360087 | H426: 0.7370027345 | I426: 2 | J426: X2 | K426: 0.6848468497 | L426: 0.4222881471 | M426: 0.214915394 | N426: 0.8 | O426: 0 | P426: 0.2 | Q426: 0.275 | R426: 0.225 | S426: 0.5 | T426: 0.8544692737 | U426: 0.8923180141 | V426: 1.089226179 | W426: 1.144546019 | X426: 1.128782288 | Y426: 1.631928346 | Z426: 0.3548670424
A427: VfV Borussia 06 Hildesheim | B427: Oldenburg | C427: 0.2837711012 | D427: 0.2137097496 | E427: 0.5025191493 | F427: 0.4974808507 | G427: 0.7162288988 | H427: 0.7862902504 | I427: 2 | J427: 12 | K427: 0.8684505714 | L427: 0.6867906666 | M427: 0.4723310567 | N427: 0 | O427: 0.6 | P427: 0.4 | Q427: 0.175 | R427: 0.45 | S427: 0.325 | T427: 0.7777777778 | U427: 0.6086956522 | V427: 0.8679549114 | W427: 1.222222222 | X427: 1.391304348 | Y427: 1.98389694 | Z427: 0.360259616
A428: FC Hansa Luneburg | B428: VFB Lubeck | C428: 0.4217294144 | D428: 0.2145938711 | E428: 0.3636767145 | F428: 0.6363232855 | G428: 0.5782705856 | H428: 0.7854061289 | I428: 1 | J428: 12 | K428: 0.886439286 | L428: 0.7194698093 | M428: 0.5119174736 | N428: 0 | O428: 0.8 | P428: 0.2 | Q428: 0.325 | R428: 0.4 | S428: 0.275 | T428: 0.8 | U428: 0.875 | V428: 1.225 | W428: 1.2 | X428: 0.8484848485 | Y428: 2.036363636 | Z428: 0.4973512241
A429: De Roth Person | B429: SV Meppen | C429: 0.1433845762 | D429: 0.2597458247 | E429: 0.5968695992 | F429: 0.4031304008 | G429: 0.8566154238 | H429: 0.7402541753 | I429: 2 | J429: X2 | K429: 0.6160803797 | L429: 0.345866683 | M429: 0.1582182825 | N429: 0 | O429: 0.8 | P429: 0.2 | Q429: 0.25 | R429: 0.5 | S429: 0.175 | T429: 0.4166666667 | U429: 0.5833333333 | V429: 0.2916666667 | W429: 1.547619048 | X429: 1.583333333 | Y429: 3.920634921 | Z429: 0.09166215648
A430: ASV Geel | B430: Royal Antwerp | C430: 0.08838185316 | D430: 0.2742156926 | E430: 0.6374024543 | F430: 0.3625975457 | G430: 0.9116181468 | H430: 0.7257843074 | I430: 2 | J430: X2 | K430: 0.5093380562 | L430: 0.2449782076 | M430: 0.09443996051 | N430: 0.2 | O430: 0.8 | P430: 0 | Q430: 0.325 | R430: 0.075 | S430: 0.6 | T430: 0.5294117647 | U430: 0 | V430: 0 | W430: 1.764705882 | X430: 1.666666667 | Y430: 3.921568627 | Z430: 0.4030770337
A431: Seraing | B431: Cercle Brugge | N431: 0 | O431: 0.8 | P431: 0.2 | Q431: 0.4 | R431: 0.2 | S431: 0.4 | T431: 1.166666667 | X431: 1 | Z431: 0.2106295162
A432: IFK Lulea | B432: Sodertalje | C432: 0.4101250801 | D432: 0.244238086 | E432: 0.3456368339 | F432: 0.6543631661 | G432: 0.5898749199 | H432: 0.755761914 | I432: 1 | J432: 12 | K432: 0.7945413069 | L432: 0.5674103262 | M432: 0.3434339425 | N432: 0.2 | O432: 0.8 | P432: 0 | Q432: 0.375 | R432: 0.325 | S432: 0.3 | T432: 1.06871345 | U432: 1.146122685 | V432: 2.305650314 | W432: 0.9485867446 | X432: 0.8263888889 | Y432: 1.152796391 | Z432: 0.4731704638
A433: Nykopings BIS | B433: Huddinge IF | C433: 0.5357538637 | D433: 0.2212398962 | E433: 0.2430062402 | F433: 0.7569937598 | G433: 0.4642461363 | H433: 0.7787601038 | I433: 1 | J433: 12 | K433: 0.824400652 | L433: 0.6130961033 | M433: 0.390052413 | N433: 0.6 | O433: 0.4 | P433: 0 | Q433: 0.525 | R433: 0.25 | S433: 0.225 | T433: 1.144916143 | U433: 1.365509259 | V433: 2.758929871 | W433: 0.8954402516 | X433: 0.6335648148 | Y433: 0.7675498268 | Z433: 0.603150696
A434: Tromsdalen | B434: Grorud | C434: 0.368970466 | D434: 0.2038057047 | E434: 0.4272238293 | F434: 0.5727761707 | G434: 0.631029534 | H434: 0.7961942953 | I434: 2 | J434: 12 | K434: 0.9152904128 | L434: 0.7757988174 | M434: 0.5852894627 | N434: 0.2 | O434: 0.6 | P434: 0.2 | Q434: 0.45 | R434: 0.1 | S434: 0.45 | T434: 0.936302682 | U434: 0.8657407407 | V434: 2.288739889 | W434: 1.06385696 | X434: 1.166245791 | Y434: 2.846354671 | Z434: 0.7798752039
A435: Brumunddal | B435: Kongsvinger | C435: 0.2204139394 | D435: 0.2132574537 | E435: 0.566328607 | F435: 0.433671393 | G435: 0.7795860606 | H435: 0.7867425463 | I435: 2 | J435: 12 | K435: 0.8316753359 | L435: 0.6247147473 | M435: 0.4024237449 | N435: 0 | O435: 0.8 | P435: 0.2 | Q435: 0.225 | R435: 0.2 | S435: 0.575 | T435: 0.592772612 | U435: 0.718699187 | V435: 0.9703907204 | W435: 1.379543533 | X435: 1.285365854 | Y435: 2.816287652 | Z435: 0.5738160664
A436: Herfolge Boldklub Koge | B436: FC Vestsjaelland | C436: 0.6209494397 | D436: 0.2224710919 | E436: 0.1565794684 | F436: 0.8434205316 | G436: 0.3790505603 | H436: 0.7775289081 | I436: 1 | J436: 1X | K436: 0.7374058808 | L436: 0.4878282803 | M436: 0.26944788 | N436: 0.2 | O436: 0.2 | P436: 0.6 | Q436: 0.375 | R436: 0.3 | S436: 0.325 | T436: 0.9090909091 | U436: 1.571428571 | V436: 1.666666667 | W436: 1.090909091 | X436: 0.4285714286 | Y436: 0.3116883117 | Z436: 0.3781799261
